Workbook

Sheet Auto_Uppdrag
B15: _Personalnummer | C15: _Arbetstagarenamn | D15: _AnstNr | E15: _Uppdrag | F15: _Timersättning | G15: _Datum | H15: _Start | I15: _Slut | J15: _Rast | K15: _Comments
B16: YYYYMMDD-NNNN | C16: Namn Namn 16 | D16: 4 | E16: Ledsagare LSS | F16: 127 | G16: 2023-04-03 | H16: 17:00 | I16: 19:25
B17: YYYYMMDD-NNNN | C17: Namn Namn 16 | D17: 4 | E17: Ledsagare LSS | F17: 127 | G17: 2023-04-04 | H17: 18:00 | I17: 20:20
B18: YYYYMMDD-NNNN | C18: Namn Namn 16 | D18: 4 | E18: Ledsagare LSS | F18: 127 | G18: 2023-04-06 | H18: 18:00 | I18: 20:20
B19: YYYYMMDD-NNNN | C19: Namn Namn 16 | D19: 4 | E19: Ledsagare LSS | F19: 127 | G19: 2023-04-10 | H19: 17:00 | I19: 19:25
B20: YYYYMMDD-NNNN | C20: Namn Namn 16 | D20: 4 | E20: Ledsagare LSS | F20: 127 | G20: 2023-04-11 | H20: 18:00 | I20: 20:25
B21: YYYYMMDD-NNNN | C21: Namn Namn 16 | D21: 4 | E21: Ledsagare LSS | F21: 127 | G21: 2023-04-13 | H21: 18:00 | I21: 20:20
B22: YYYYMMDD-NNNN | C22: Namn Namn 16 | D22: 4 | E22: Ledsagare LSS | F22: 127 | G22: 2023-04-17 | H22: 17:00 | I22: 19:25
B23: YYYYMMDD-NNNN | C23: Namn Namn 16 | D23: 4 | E23: Ledsagare LSS | F23: 127 | G23: 2023-04-18 | H23: 18:00 | I23: 20:25
B24: YYYYMMDD-NNNN | C24: Namn Namn 16 | D24: 4 | E24: Ledsagare LSS | F24: 127 | G24: 2023-04-20 | H24: 18:00 | I24: 19:54
B25: YYYYMMDD-NNNN | C25: Namn Namn 25 | D25: 1 | E25: Ledsagare LSS | F25: 127 | G25: 2023-04-08 | H25: 13:00 | I25: 16:00
B26: YYYYMMDD-NNNN | C26: Namn Namn 25 | D26: 1 | E26: Ledsagare LSS | F26: 127 | G26: 2023-04-14 | H26: 17:00 | I26: 20:00
B27: YYYYMMDD-NNNN | C27: Namn Namn 25 | D27: 1 | E27: Ledsagare LSS | F27: 127 | G27: 2023-04-22 | H27: 13:00 | I27: 16:00
B28: YYYYMMDD-NNNN | C28: Namn Namn 25 | D28: 1 | E28: Ledsagare LSS | F28: 127 | G28: 2023-04-30 | H28: 13:00 | I28: 16:00
B29: YYYYMMDD-NNNN | C29: Namn Namn 29 | D29: 2 | E29: Ledsagare LSS | F29: 127 | G29: 2023-04-02 | H29: 12:00 | I29: 16:00
B30: YYYYMMDD-NNNN | C30: Namn Namn 29 | D30: 2 | E30: Ledsagare LSS | F30: 127 | G30: 2023-04-06 | H30: 13:00 | I30: 16:00
B31: YYYYMMDD-NNNN | C31: Namn Namn 29 | D31: 2 | E31: Ledsagare LSS | F31: 127 | G31: 2023-04-10 | H31: 17:00 | I31: 19:00
B32: YYYYMMDD-NNNN | C32: Namn Namn 29 | D32: 2 | E32: Ledsagare LSS | F32: 127 | G32: 2023-04-15 | H32: 18:00 | I32: 21:00
B33: YYYYMMDD-NNNN | C33: Namn Namn 33 | D33: 2 | E33: Ledsagare LSS | F33: 127 | G33: 2023-04-12 | H33: 14:00 | I33: 15:30
B34: YYYYMMDD-NNNN | C34: Namn Namn 33 | D34: 2 | E34: Ledsagare LSS | F34: 127 | G34: 2023-04-13 | H34: 14:00 | I34: 15:30
B35: YYYYMMDD-NNNN | C35: Namn Namn 33 | D35: 2 | E35: Ledsagare LSS | F35: 127 | G35: 2023-04-17 | H35: 14:00 | I35: 16:00
B36: YYYYMMDD-NNNN | C36: Namn Namn 33 | D36: 2 | E36: Ledsagare LSS | F36: 127 | G36: 2023-04-18 | H36: 14:00 | I36: 16:00
B37: YYYYMMDD-NNNN | C37: Namn Namn 33 | D37: 2 | E37: Ledsagare LSS | F37: 127 | G37: 2023-04-25 | H37: 14:00 | I37: 15:30
B38: YYYYMMDD-NNNN | C38: Namn Namn 33 | D38: 2 | E38: Ledsagare LSS | F38: 127 | G38: 2023-04-26 | H38: 14:00 | I38: 15:30
B39: YYYYMMDD-NNNN | C39: Namn Namn 33 | D39: 2 | E39: Ledsagare LSS | F39: 127 | G39: 2023-04-28 | H39: 14:00 | I39: 16:00
B40: YYYYMMDD-NNNN | C40: Namn Namn 40 | D40: T1 | E40: Ledsagare LSS | F40: 127 | G40: 2023-04-08 | H40: 09:30 | I40: 14:30
B41: YYYYMMDD-NNNN | C41: Namn Namn 40 | D41: T1 | E41: Ledsagare LSS | F41: 127 | G41: 2023-04-23 | H41: 10:00 | I41: 15:00
B42: YYYYMMDD-NNNN | C42: Namn Namn 42 | D42: 1 | E42: Ledsagare LSS | F42: 127 | G42: 2023-04-05 | H42: 17:20 | I42: 19:15
B43: YYYYMMDD-NNNN | C43: Namn Namn 42 | D43: 1 | E43: Ledsagare LSS | F43: 127 | G43: 2023-04-06 | H43: 14:53 | I43: 16:45
B44: YYYYMMDD-NNNN | C44: Namn Namn 42 | D44: 1 | E44: Ledsagare LSS | F44: 127 | G44: 2023-04-08 | H44: 10:00 | I44: 12:00
B45: YYYYMMDD-NNNN | C45: Namn Namn 42 | D45: 1 | E45: Ledsagare LSS | F45: 127 | G45: 2023-04-10 | H45: 15:10 | I45: 16:35
B46: YYYYMMDD-NNNN | C46: Namn Namn 42 | D46: 1 | E46: Ledsagare LSS | F46: 127 | G46: 2023-04-13 | H46: 17:25 | I46: 19:00
B47: YYYYMMDD-NNNN | C47: Namn Namn 42 | D47: 1 | E47: Ledsagare LSS | F47: 127 | G47: 2023-04-15 | H47: 12:30 | I47: 15:30
B48: YYYYMMDD-NNNN | C48: Namn Namn 42 | D48: 1 | E48: Ledsagare LSS | F48: 127 | G48: 2023-04-16 | H48: 10:00 | I48: 12:15
B49: YYYYMMDD-NNNN | C49: Namn Namn 42 | D49: 1 | E49: Ledsagare LSS | F49: 127 | G49: 2023-04-20 | H49: 17:22 | I49: 19:12
B50: YYYYMMDD-NNNN | C50: Namn Namn 42 | D50: 1 | E50: Ledsagare LSS | F50: 127 | G50: 2023-04-22 | H50: 10:00 | I50: 12:25
B51: YYYYMMDD-NNNN | C51: Namn Namn 42 | D51: 1 | E51: Ledsagare LSS | F51: 127 | G51: 2023-04-29 | H51: 11:50 | I51: 13:32
B52: YYYYMMDD-NNNN | C52: Namn Namn 52 | D52: 3 | E52: Ledsagare LSS | F52: 127 | G52: 2023-04-04 | H52: 16:00 | I52: 21:00
B53: YYYYMMDD-NNNN | C53: Namn Namn 52 | D53: 3 | E53: Ledsagare LSS | F53: 127 | G53: 2023-04-09 | H53: 17:00 | I53: 22:00
B54: YYYYMMDD-NNNN | C54: Namn Namn 52 | D54: 3 | E54: Ledsagare LSS | F54: 127 | G54: 2023-04-18 | H54: 16:30 | I54: 21:30
B55: YYYYMMDD-NNNN | C55: Namn Namn 52 | D55: 3 | E55: Ledsagare LSS | F55: 127 | G55: 2023-04-24 | H55: 16:00 | I55: 21:00
B56: YYYYMMDD-NNNN | C56: Namn Namn 56 | D56: T2 | E56: Ledsagare LSS | F56: 127 | G56: 2023-04-04 | H56: 14:30 | I56: 18:30
B57: YYYYMMDD-NNNN | C57: Namn Namn 56 | D57: T2 | E57: Ledsagare LSS | F57: 127 | G57: 2023-04-18 | H57: 14:00 | I57: 19:00
B58: YYYYMMDD-NNNN | C58: Namn Namn 58 | D58: 1 | E58: Ledsagare LSS | F58: 127 | G58: 2023-04-08 | H58: 12:00 | I58: 17:00
B59: YYYYMMDD-NNNN | C59: Namn Namn 58 | D59: 1 | E59: Ledsagare LSS | F59: 127 | G59: 2023-04-15 | H59: 12:00 | I59: 17:00
B60: YYYYMMDD-NNNN | C60: Namn Namn 60 | D60: T1 | E60: Ledsagare LSS | F60: 127 | G60: 2023-04-01 | H60: 11:00 | I60: 14:00
B61: YYYYMMDD-NNNN | C61: Namn Namn 60 | D61: T1 | E61: Ledsagare LSS | F61: 127 | G61: 2023-04-16 | H61: 11:50 | I61: 14:50
B62: YYYYMMDD-NNNN | C62: Namn Namn 60 | D62: T1 | E62: Ledsagare LSS | F62: 127 | G62: 2023-04-23 | H62: 12:25 | I62: 16:25
B63: YYYYMMDD-NNNN | C63: Namn Namn 63 | D63: 1 | E63: Ledsagare LSS | F63: 132.86 | G63: 2023-04-06 | H63: 09:00 | I63: 11:00
B64: YYYYMMDD-NNNN | C64: Namn Namn 63 | D64: 1 | E64: Ledsagare LSS | F64: 132.86 | G64: 2023-04-07 | H64: 09:00 | I64: 11:00
B65: YYYYMMDD-NNNN | C65: Namn Namn 63 | D65: 1 | E65: Ledsagare LSS | F65: 132.86 | G65: 2023-04-08 | H65: 08:00 | I65: 10:00
B66: YYYYMMDD-NNNN | C66: Namn Namn 63 | D66: 1 | E66: Ledsagare LSS | F66: 132.86 | G66: 2023-04-09 | H66: 08:00 | I66: 10:00
B67: YYYYMMDD-NNNN | C67: Namn Namn 63 | D67: 1 | E67: Ledsagare LSS | F67: 132.86 | G67: 2023-04-20 | H67: 09:00 | I67: 13:30
B68: YYYYMMDD-NNNN | C68: Namn Namn 63 | D68: 1 | E68: Ledsagare LSS | F68: 132.86 | G68: 2023-04-21 | H68: 08:00 | I68: 14:30
B69: YYYYMMDD-NNNN | C69: Namn Namn 69 | D69: 9 | E69: Ledsagare LSS | F69: 127 | G69: 2023-04-13 | H69: 18:50 | I69: 20:50
B70: YYYYMMDD-NNNN | C70: Namn Namn 70 | D70: 6 | E70: Ledsagare LSS | F70: 127 | G70: 2023-04-05 | H70: 16:45 | I70: 18:45
B71: YYYYMMDD-NNNN | C71: Namn Namn 70 | D71: 6 | E71: Ledsagare LSS | F71: 127 | G71: 2023-04-07 | H71: 12:00 | I71: 14:00
B72: YYYYMMDD-NNNN | C72: Namn Namn 70 | D72: 6 | E72: Ledsagare LSS | F72: 127 | G72: 2023-04-12 | H72: 17:00 | I72: 19:00
B73: YYYYMMDD-NNNN | C73: Namn Namn 70 | D73: 6 | E73: Ledsagare LSS | F73: 127 | G73: 2023-04-14 | H73: 17:00 | I73: 19:00
B74: YYYYMMDD-NNNN | C74: Namn Namn 70 | D74: 6 | E74: Ledsagare LSS | F74: 127 | G74: 2023-04-19 | H74: 16:40 | I74: 18:40
B75: YYYYMMDD-NNNN | C75: Namn Namn 70 | D75: 6 | E75: Ledsagare LSS | F75: 127 | G75: 2023-04-21 | H75: 16:30 | I75: 18:30
B76: YYYYMMDD-NNNN | C76: Namn Namn 70 | D76: 6 | E76: Ledsagare LSS | F76: 127 | G76: 2023-04-26 | H76: 17:00 | I76: 18:30
B77: YYYYMMDD-NNNN | C77: Namn Namn 70 | D77: 6 | E77: Ledsagare LSS | F77: 127 | G77: 2023-04-28 | H77: 16:45 | I77: 18:15
B78: YYYYMMDD-NNNN | C78: Namn Namn 70 | D78: 6 | E78: Ledsagare LSS | F78: 127 | G78: 2023-04-30 | H78: 16:00 | I78: 17:00
B79: YYYYMMDD-NNNN | C79: Namn Namn 79 | D79: 3 | E79: Ledsagare LSS | F79: 127 | G79: 2023-04-10 | H79: 17:00 | I79: 20:15
B80: YYYYMMDD-NNNN | C80: Namn Namn 79 | D80: 3 | E80: Ledsagare LSS | F80: 127 | G80: 2023-04-24 | H80: 16:00 | I80: 19:45
B81: YYYYMMDD-NNNN | C81: Namn Namn 81 | D81: 1 | E81: Ledsagare LSS | F81: 127 | G81: 2023-04-17 | H81: 15:40 | I81: 17:15
B82: YYYYMMDD-NNNN | C82: Namn Namn 82 | D82: 6 | E82: Ledsagare LSS | F82: 127 | G82: 2023-04-01 | H82: 14:00 | I82: 18:00
B83: YYYYMMDD-NNNN | C83: Namn Namn 82 | D83: 6 | E83: Ledsagare LSS | F83: 127 | G83: 2023-04-14 | H83: 14:00 | I83: 16:00
B84: YYYYMMDD-NNNN | C84: Namn Namn 82 | D84: 6 | E84: Ledsagare LSS | F84: 127 | G84: 2023-04-21 | H84: 14:00 | I84: 17:00
B85: YYYYMMDD-NNNN | C85: Namn Namn 82 | D85: 6 | E85: Ledsagare LSS | F85: 127 | G85: 2023-04-27 | H85: 14:00 | I85: 17:00
B86: YYYYMMDD-NNNN | C86: Namn Namn 86 | D86: 2 | E86: Ledsagare LSS | F86: 127 | G86: 2023-04-07 | H86: 12:00 | I86: 14:00
B87: YYYYMMDD-NNNN | C87: Namn Namn 87 | D87: 1 | E87: Ledsagare LSS | F87: 127 | G87: 2023-04-06 | H87: 09:00 | I87: 14:00
B88: YYYYMMDD-NNNN | C88: Namn Namn 87 | D88: 1 | E88: Ledsagare LSS | F88: 127 | G88: 2023-04-29 | H88: 09:00 | I88: 14:00
B89: YYYYMMDD-NNNN | C89: Namn Namn 89 | D89: 11 | E89: Ledsagare LSS | F89: 127 | G89: 2023-04-02 | H89: 14:00 | I89: 16:00
B90: YYYYMMDD-NNNN | C90: Namn Namn 89 | D90: 11 | E90: Ledsagare LSS | F90: 127 | G90: 2023-04-06 | H90: 14:30 | I90: 16:00
B91: YYYYMMDD-NNNN | C91: Namn Namn 89 | D91: 11 | E91: Ledsagare LSS | F91: 127 | G91: 2023-04-12 | H91: 10:00 | I91: 15:00
B92: YYYYMMDD-NNNN | C92: Namn Namn 89 | D92: 11 | E92: Ledsagare LSS | F92: 127 | G92: 2023-04-16 | H92: 10:30 | I92: 13:00
B93: YYYYMMDD-NNNN | C93: Namn Namn 89 | D93: 11 | E93: Ledsagare LSS | F93: 127 | G93: 2023-04-25 | H93: 15:30 | I93: 16:30
B94: YYYYMMDD-NNNN | C94: Namn Namn 89 | D94: 11 | E94: Ledsagare LSS | F94: 127 | G94: 2023-04-27 | H94: 18:00 | I94: 21:30
B95: YYYYMMDD-NNNN | C95: Namn Namn 89 | D95: 11 | E95: Ledsagare LSS | F95: 127 | G95: 2023-04-02 | H95: 10:00 | I95: 11:30
B96: YYYYMMDD-NNNN | C96: Namn Namn 89 | D96: 11 | E96: Ledsagare LSS | F96: 127 | G96: 2023-04-10 | H96: 11:00 | I96: 12:30
B97: YYYYMMDD-NNNN | C97: Namn Namn 89 | D97: 11 | E97: Ledsagare LSS | F97: 127 | G97: 2023-04-19 | H97: 12:30 | I97: 14:30
B98: YYYYMMDD-NNNN | C98: Namn Namn 98 | D98: 4 | E98: Ledsagare LSS | F98: 127 | G98: 2023-04-02 | H98: 14:00 | I98: 16:00
B99: YYYYMMDD-NNNN | C99: Namn Namn 98 | D99: 4 | E99: Ledsagare LSS | F99: 127 | G99: 2023-04-05 | H99: 14:00 | I99: 20:00
B100: YYYYMMDD-NNNN | C100: Namn Namn 98 | D100: 4 | E100: Ledsagare LSS | F100: 127 | G100: 2023-04-09 | H100: 14:00 | I100: 16:00
B101: YYYYMMDD-NNNN | C101: Namn Namn 98 | D101: 4 | E101: Ledsagare LSS | F101: 127 | G101: 2023-04-13 | H101: 16:00 | I101: 19:00
B102: YYYYMMDD-NNNN | C102: Namn Namn 98 | D102: 4 | E102: Ledsagare LSS | F102: 127 | G102: 2023-04-15 | H102: 13:00 | I102: 16:00
B103: YYYYMMDD-NNNN | C103: Namn Namn 98 | D103: 4 | E103: Ledsagare LSS | F103: 127 | G103: 2023-04-18 | H103: 15:00 | I103: 18:00
B104: YYYYMMDD-NNNN | C104: Namn Namn 98 | D104: 4 | E104: Ledsagare LSS | F104: 127 | G104: 2023-04-20 | H104: 14:00 | I104: 16:00
B105: YYYYMMDD-NNNN | C105: Namn Namn 105 | D105: 1 | E105: Ledsagare LSS | F105: 127 | G105: 2023-04-04 | H105: 12:00 | I105: 16:00
B106: YYYYMMDD-NNNN | C106: Namn Namn 105 | D106: 1 | E106: Ledsagare LSS | F106: 127 | G106: 2023-04-07 | H106: 12:00 | I106: 17:00
B107: YYYYMMDD-NNNN | C107: Namn Namn 105 | D107: 1 | E107: Ledsagare LSS | F107: 127 | G107: 2023-04-11 | H107: 10:00 | I107: 17:00
B108: YYYYMMDD-NNNN | C108: Namn Namn 105 | D108: 1 | E108: Ledsagare LSS | F108: 127 | G108: 2023-04-21 | H108: 12:00 | I108: 16:00
B109: YYYYMMDD-NNNN | C109: Namn Namn 105 | D109: 1 | E109: Ledsagare LSS | F109: 127 | G109: 2023-04-25 | H109: 11:00 | I109: 16:00
B110: YYYYMMDD-NNNN | C110: Namn Namn 110 | D110: 4 | E110: Ledsagare LSS | F110: 132.86 | G110: 2023-04-04 | H110: 11:55 | I110: 15:55
B111: YYYYMMDD-NNNN | C111: Namn Namn 110 | D111: 4 | E111: Ledsagare LSS | F111: 132.86 | G111: 2023-04-11 | H111: 11:56 | I111: 15:56
B112: YYYYMMDD-NNNN | C112: Namn Namn 110 | D112: 4 | E112: Ledsagare LSS | F112: 132.86 | G112: 2023-04-18 | H112: 11:57 | I112: 15:57
B113: YYYYMMDD-NNNN | C113: Namn Namn 110 | D113: 4 | E113: Ledsagare LSS | F113: 132.86 | G113: 2023-04-25 | H113: 11:58 | I113: 15:58
B114: YYYYMMDD-NNNN | C114: Namn Namn 110 | D114: 6 | E114: Ledsagare LSS | F114: 132.86 | G114: 2023-04-03 | H114: 15:59 | I114: 18:59
B115: YYYYMMDD-NNNN | C115: Namn Namn 110 | D115: 6 | E115: Ledsagare LSS | F115: 132.86 | G115: 2023-04-11 | H115: 15:00 | I115: 18:00
B116: YYYYMMDD-NNNN | C116: Namn Namn 110 | D116: 6 | E116: Ledsagare LSS | F116: 132.86 | G116: 2023-04-18 | H116: 15:00 | I116: 19:00
B117: YYYYMMDD-NNNN | C117: Namn Namn 110 | D117: 6 | E117: Ledsagare LSS | F117: 132.86 | G117: 2023-04-25 | H117: 15:02 | I117: 17:02
B118: YYYYMMDD-NNNN | C118: Namn Namn 118 | D118: 6 | E118: Ledsagare LSS | F118: 127 | G118: 2023-04-02 | H118: 11:00 | I118: 14:00
B119: YYYYMMDD-NNNN | C119: Namn Namn 118 | D119: 6 | E119: Ledsagare LSS | F119: 127 | G119: 2023-04-10 | H119: 11:00 | I119: 15:00
B120: YYYYMMDD-NNNN | C120: Namn Namn 118 | D120: 6 | E120: Ledsagare LSS | F120: 127 | G120: 2023-04-16 | H120: 11:00 | I120: 14:00
B121: YYYYMMDD-NNNN | C121: Namn Namn 121 | D121: 8 | E121: Ledsagare LSS | F121: 127 | G121: 2023-04-16 | H121: 14:00 | I121: 22:00
B122: YYYYMMDD-NNNN | C122: Namn Namn 121 | D122: 8 | E122: Ledsagare LSS | F122: 127 | G122: 2023-04-23 | H122: 17:00 | I122: 21:00
B123: YYYYMMDD-NNNN | C123: Namn Namn 123 | D123: 1 | E123: Ledsagare LSS | F123: 127 | G123: 2023-04-01 | H123: 15:00 | I123: 16:00
B124: YYYYMMDD-NNNN | C124: Namn Namn 123 | D124: 1 | E124: Ledsagare LSS | F124: 127 | G124: 2023-04-02 | H124: 14:00 | I124: 15:30
B125: YYYYMMDD-NNNN | C125: Namn Namn 123 | D125: 1 | E125: Ledsagare LSS | F125: 127 | G125: 2023-04-08 | H125: 13:00 | I125: 15:30
B126: YYYYMMDD-NNNN | C126: Namn Namn 123 | D126: 1 | E126: Ledsagare LSS | F126: 127 | G126: 2023-04-09 | H126: 13:00 | I126: 14:00
B127: YYYYMMDD-NNNN | C127: Namn Namn 123 | D127: 1 | E127: Ledsagare LSS | F127: 127 | G127: 2023-04-15 | H127: 12:00 | I127: 14:00
B128: YYYYMMDD-NNNN | C128: Namn Namn 123 | D128: 1 | E128: Ledsagare LSS | F128: 127 | G128: 2023-04-16 | H128: 13:00 | I128: 14:00
B129: YYYYMMDD-NNNN | C129: Namn Namn 123 | D129: 1 | E129: Ledsagare LSS | F129: 127 | G129: 2023-04-23 | H129: 12:00 | I129: 13:00
B130: YYYYMMDD-NNNN | C130: Namn Namn 130 | D130: T2 | E130: Ledsagare LSS | F130: 127 | G130: 2023-04-07 | H130: 13:30 | I130: 15:00
B131: YYYYMMDD-NNNN | C131: Namn Namn 130 | D131: T2 | E131: Ledsagare LSS | F131: 127 | G131: 2023-04-08 | H131: 12:30 | I131: 14:30
B132: YYYYMMDD-NNNN | C132: Namn Namn 130 | D132: T2 | E132: Ledsagare LSS | F132: 127 | G132: 2023-04-09 | H132: 14:00 | I132: 15:30
B133: YYYYMMDD-NNNN | C133: Namn Namn 130 | D133: T2 | E133: Ledsagare LSS | F133: 127 | G133: 2023-04-10 | H133: 11:00 | I133: 12:30
B134: YYYYMMDD-NNNN | C134: Namn Namn 130 | D134: T2 | E134: Ledsagare LSS | F134: 127 | G134: 2023-04-15 | H134: 12:30 | I134: 14:30
B135: YYYYMMDD-NNNN | C135: Namn Namn 130 | D135: T2 | E135: Ledsagare LSS | F135: 127 | G135: 2023-04-16 | H135: 14:00 | I135: 15:30
B136: YYYYMMDD-NNNN | C136: Namn Namn 130 | D136: T2 | E136: Ledsagare LSS | F136: 127 | G136: 2023-04-22 | H136: 11:00 | I136: 12:30
B137: YYYYMMDD-NNNN | C137: Namn Namn 137 | D137: 1 | E137: Ledsagare LSS | F137: 127 | G137: 2023-04-01 | H137: 13:00 | I137: 18:00
B138: YYYYMMDD-NNNN | C138: Namn Namn 137 | D138: 1 | E138: Ledsagare LSS | F138: 127 | G138: 2023-04-07 | H138: 15:00 | I138: 19:00
B139: YYYYMMDD-NNNN | C139: Namn Namn 137 | D139: 1 | E139: Ledsagare LSS | F139: 127 | G139: 2023-04-13 | H139: 15:00 | I139: 19:00
B140: YYYYMMDD-NNNN | C140: Namn Namn 137 | D140: 1 | E140: Ledsagare LSS | F140: 127 | G140: 2023-04-19 | H140: 16:30 | I140: 19:00
B141: YYYYMMDD-NNNN | C141: Namn Namn 137 | D141: 1 | E141: Ledsagare LSS | F141: 127 | G141: 2023-04-27 | H141: 13:30 | I141: 17:30
B142: YYYYMMDD-NNNN | C142: Namn Namn 142 | D142: 3 | E142: Ledsagare LSS | F142: 127 | G142: 2023-04-09 | H142: 12:00 | I142: 15:00
B143: YYYYMMDD-NNNN | C143: Namn Namn 142 | D143: 3 | E143: Ledsagare LSS | F143: 127 | G143: 2023-04-16 | H143: 12:00 | I143: 15:00
B144: YYYYMMDD-NNNN | C144: Namn Namn 142 | D144: 3 | E144: Ledsagare LSS | F144: 127 | G144: 2023-04-23 | H144: 12:00 | I144: 15:00
B145: YYYYMMDD-NNNN | C145: Namn Namn 142 | D145: 3 | E145: Ledsagare LSS | F145: 127 | G145: 2023-04-30 | H145: 12:00 | I145: 15:00
B146: YYYYMMDD-NNNN | C146: Namn Namn 146 | D146: 1 | E146: Ledsagare LSS | F146: 127 | G146: 2023-04-01 | H146: 11:00 | I146: 15:00
B147: YYYYMMDD-NNNN | C147: Namn Namn 146 | D147: 1 | E147: Ledsagare LSS | F147: 127 | G147: 2023-04-04 | H147: 09:00 | I147: 11:00
B148: YYYYMMDD-NNNN | C148: Namn Namn 146 | D148: 1 | E148: Ledsagare LSS | F148: 127 | G148: 2023-04-06 | H148: 09:00 | I148: 11:00
B149: YYYYMMDD-NNNN | C149: Namn Namn 146 | D149: 1 | E149: Ledsagare LSS | F149: 127 | G149: 2023-04-08 | H149: 13:00 | I149: 15:30
B150: YYYYMMDD-NNNN | C150: Namn Namn 146 | D150: 1 | E150: Ledsagare LSS | F150: 127 | G150: 2023-04-11 | H150: 15:00 | I150: 17:00
B151: YYYYMMDD-NNNN | C151: Namn Namn 146 | D151: 1 | E151: Ledsagare LSS | F151: 127 | G151: 2023-04-13 | H151: 15:30 | I151: 17:00
B152: YYYYMMDD-NNNN | C152: Namn Namn 146 | D152: 1 | E152: Ledsagare LSS | F152: 127 | G152: 2023-04-17 | H152: 09:00 | I152: 11:00
B153: YYYYMMDD-NNNN | C153: Namn Namn 146 | D153: 1 | E153: Ledsagare LSS | F153: 127 | G153: 2023-04-21 | H153: 09:00 | I153: 10:30
B154: YYYYMMDD-NNNN | C154: Namn Namn 146 | D154: 1 | E154: Ledsagare LSS | F154: 127 | G154: 2023-04-26 | H154: 15:00 | I154: 16:30
B155: YYYYMMDD-NNNN | C155: Namn Namn 146 | D155: 1 | E155: Ledsagare LSS | F155: 127 | G155: 2023-04-27 | H155: 15:00 | I155: 16:00
B156: YYYYMMDD-NNNN | C156: Namn Namn 156 | D156: 3 | E156: Ledsagare LSS | F156: 125 | G156: 2023-04-04 | H156: 18:00 | I156: 19:30
B157: YYYYMMDD-NNNN | C157: Namn Namn 156 | D157: 3 | E157: Ledsagare LSS | F157: 125 | G157: 2023-04-12 | H157: 16:00 | I157: 17:30
B158: YYYYMMDD-NNNN | C158: Namn Namn 156 | D158: 3 | E158: Ledsagare LSS | F158: 125 | G158: 2023-04-14 | H158: 16:00 | I158: 18:45
B159: YYYYMMDD-NNNN | C159: Namn Namn 156 | D159: 3 | E159: Ledsagare LSS | F159: 125 | G159: 2023-04-16 | H159: 15:40 | I159: 17:30
B160: YYYYMMDD-NNNN | C160: Namn Namn 156 | D160: 3 | E160: Ledsagare LSS | F160: 125 | G160: 2023-04-18 | H160: 18:00 | I160: 19:30
B161: YYYYMMDD-NNNN | C161: Namn Namn 156 | D161: 3 | E161: Ledsagare LSS | F161: 125 | G161: 2023-04-26 | H161: 16:00 | I161: 17:30
B162: YYYYMMDD-NNNN | C162: Namn Namn 162 | D162: 1 | E162: Ledsagare LSS | F162: 125 | G162: 2023-04-12 | H162: 14:30 | I162: 18:00
B163: YYYYMMDD-NNNN | C163: Namn Namn 162 | D163: 1 | E163: Ledsagare LSS | F163: 125 | G163: 2023-04-19 | H163: 14:00 | I163: 18:00
B164: YYYYMMDD-NNNN | C164: Namn Namn 162 | D164: 1 | E164: Ledsagare LSS | F164: 125 | G164: 2023-04-26 | H164: 14:00 | I164: 17:30
B165: YYYYMMDD-NNNN | C165: Namn Namn 162 | D165: 1 | E165: Ledsagare LSS | F165: 125 | G165: 2023-04-27 | H165: 07:30 | I165: 17:00
B166: YYYYMMDD-NNNN | C166: Namn Namn 166 | D166: 7 | E166: Ledsagare LSS | F166: 132.86 | G166: 2023-04-15 | H166: 09:45 | I166: 11:45
B167: YYYYMMDD-NNNN | C167: Namn Namn 166 | D167: 7 | E167: Ledsagare LSS | F167: 132.86 | G167: 2023-04-22 | H167: 14:45 | I167: 16:45
B168: YYYYMMDD-NNNN | C168: Namn Namn 166 | D168: 7 | E168: Ledsagare LSS | F168: 132.86 | G168: 2023-04-23 | H168: 11:15 | I168: 12:15
B169: YYYYMMDD-NNNN | C169: Namn Namn 166 | D169: 7 | E169: Ledsagare LSS | F169: 132.86 | G169: 2023-04-28 | H169: 18:45 | I169: 20:45
B170: YYYYMMDD-NNNN | C170: Namn Namn 170 | D170: 2 | E170: Ledsagare LSS | F170: 127 | G170: 2023-04-09 | H170: 18:00 | I170: 20:00
B171: YYYYMMDD-NNNN | C171: Namn Namn 170 | D171: 2 | E171: Ledsagare LSS | F171: 127 | G171: 2023-04-12 | H171: 16:00 | I171: 18:00
B172: YYYYMMDD-NNNN | C172: Namn Namn 170 | D172: 2 | E172: Ledsagare LSS | F172: 127 | G172: 2023-04-23 | H172: 18:00 | I172: 20:00
B173: YYYYMMDD-NNNN | C173: Namn Namn 170 | D173: 2 | E173: Ledsagare LSS | F173: 127 | G173: 2023-04-29 | H173: 15:00 | I173: 17:00
B174: YYYYMMDD-NNNN | C174: Namn Namn 174 | D174: 2 | E174: Ledsagare LSS | F174: 127 | G174: 2023-04-22 | H174: 14:00 | I174: 18:00
B175: YYYYMMDD-NNNN | C175: Namn Namn 174 | D175: 2 | E175: Ledsagare LSS | F175: 127 | G175: 2023-04-24 | H175: 12:00 | I175: 16:00
B176: YYYYMMDD-NNNN | C176: Namn Namn 174 | D176: 2 | E176: Ledsagare LSS | F176: 127 | G176: 2023-04-26 | H176: 13:00 | I176: 17:00
B177: YYYYMMDD-NNNN | C177: Namn Namn 174 | D177: 2 | E177: Ledsagare LSS | F177: 127 | G177: 2023-04-28 | H177: 14:00 | I177: 18:00
B178: YYYYMMDD-NNNN | C178: Namn Namn 178 | D178: 6 | E178: Ledsagare LSS | F178: 127 | G178: 2023-04-02 | H178: 14:00 | I178: 17:00
B179: YYYYMMDD-NNNN | C179: Namn Namn 178 | D179: 6 | E179: Ledsagare LSS | F179: 127 | G179: 2023-04-13 | H179: 13:00 | I179: 14:00
B180: YYYYMMDD-NNNN | C180: Namn Namn 178 | D180: 6 | E180: Ledsagare LSS | F180: 127 | G180: 2023-04-21 | H180: 19:00 | I180: 21:00
B181: YYYYMMDD-NNNN | C181: Namn Namn 178 | D181: 6 | E181: Ledsagare LSS | F181: 127 | G181: 2023-04-29 | H181: 13:00 | I181: 17:00
B182: YYYYMMDD-NNNN | C182: Namn Namn 182 | D182: 6 | E182: Ledsagare LSS | F182: 127 | G182: 2023-04-03 | H182: 18:00 | I182: 21:00
B183: YYYYMMDD-NNNN | C183: Namn Namn 182 | D183: 6 | E183: Ledsagare LSS | F183: 127 | G183: 2023-04-10 | H183: 18:00 | I183: 20:00
B184: YYYYMMDD-NNNN | C184: Namn Namn 182 | D184: 6 | E184: Ledsagare LSS | F184: 127 | G184: 2023-04-17 | H184: 18:00 | I184: 21:00
B185: YYYYMMDD-NNNN | C185: Namn Namn 182 | D185: 5 | E185: Ledsagare LSS | F185: 127 | G185: 2023-04-27 | H185: 07:00 | I185: 11:00
B186: YYYYMMDD-NNNN | C186: Namn Namn 182 | D186: 5 | E186: Ledsagare LSS | F186: 127 | G186: 2023-04-28 | H186: 18:00 | I186: 22:00
B187: YYYYMMDD-NNNN | C187: Namn Namn 187 | D187: 2 | E187: Ledsagare LSS | F187: 127 | G187: 2023-04-02 | H187: 15:00 | I187: 17:30
B188: YYYYMMDD-NNNN | C188: Namn Namn 187 | D188: 2 | E188: Ledsagare LSS | F188: 127 | G188: 2023-04-05 | H188: 19:00 | I188: 20:00
B189: YYYYMMDD-NNNN | C189: Namn Namn 187 | D189: 2 | E189: Ledsagare LSS | F189: 127 | G189: 2023-04-10 | H189: 19:00 | I189: 20:00
B190: YYYYMMDD-NNNN | C190: Namn Namn 187 | D190: 2 | E190: Ledsagare LSS | F190: 127 | G190: 2023-04-12 | H190: 19:00 | I190: 20:00
B191: YYYYMMDD-NNNN | C191: Namn Namn 187 | D191: 2 | E191: Ledsagare LSS | F191: 127 | G191: 2023-04-16 | H191: 15:00 | I191: 17:30
B192: YYYYMMDD-NNNN | C192: Namn Namn 187 | D192: 2 | E192: Ledsagare LSS | F192: 127 | G192: 2023-04-17 | H192: 19:00 | I192: 20:00
B193: YYYYMMDD-NNNN | C193: Namn Namn 187 | D193: 2 | E193: Ledsagare LSS | F193: 127 | G193: 2023-04-20 | H193: 18:00 | I193: 20:00
B194: YYYYMMDD-NNNN | C194: Namn Namn 187 | D194: 2 | E194: Ledsagare LSS | F194: 127 | G194: 2023-04-30 | H194: 13:00 | I194: 14:00
B195: YYYYMMDD-NNNN | C195: Namn Namn 195 | D195: 1 | E195: Ledsagare LSS | F195: 127 | G195: 2023-04-02 | H195: 15:00 | I195: 21:00
B196: YYYYMMDD-NNNN | C196: Namn Namn 195 | D196: 1 | E196: Ledsagare LSS | F196: 127 | G196: 2023-04-22 | H196: 13:00 | I196: 19:00
B197: YYYYMMDD-NNNN | C197: Namn Namn 197 | D197: 1 | E197: Ledsagare LSS | F197: 127 | G197: 2023-04-01 | H197: 12:00 | I197: 13:00
B198: YYYYMMDD-NNNN | C198: Namn Namn 197 | D198: 1 | E198: Ledsagare LSS | F198: 127 | G198: 2023-04-02 | H198: 13:00 | I198: 15:00
B199: YYYYMMDD-NNNN | C199: Namn Namn 197 | D199: 1 | E199: Ledsagare LSS | F199: 127 | G199: 2023-04-06 | H199: 11:00 | I199: 12:00
B200: YYYYMMDD-NNNN | C200: Namn Namn 197 | D200: 1 | E200: Ledsagare LSS | F200: 127 | G200: 2023-04-08 | H200: 12:00 | I200: 14:00
B201: YYYYMMDD-NNNN | C201: Namn Namn 197 | D201: 1 | E201: Ledsagare LSS | F201: 127 | G201: 2023-04-09 | H201: 13:00 | I201: 14:00
B202: YYYYMMDD-NNNN | C202: Namn Namn 197 | D202: 1 | E202: Ledsagare LSS | F202: 127 | G202: 2023-04-11 | H202: 12:00 | I202: 14:00
B203: YYYYMMDD-NNNN | C203: Namn Namn 197 | D203: 1 | E203: Ledsagare LSS | F203: 127 | G203: 2023-04-15 | H203: 12:00 | I203: 14:00
B204: YYYYMMDD-NNNN | C204: Namn Namn 197 | D204: 1 | E204: Ledsagare LSS | F204: 127 | G204: 2023-04-16 | H204: 12:00 | I204: 14:00
B205: YYYYMMDD-NNNN | C205: Namn Namn 197 | D205: 1 | E205: Ledsagare LSS | F205: 127 | G205: 2023-04-17 | H205: 15:00 | I205: 17:00
B206: YYYYMMDD-NNNN | C206: Namn Namn 197 | D206: 1 | E206: Ledsagare LSS | F206: 127 | G206: 2023-04-23 | H206: 13:00 | I206: 14:00
B207: YYYYMMDD-NNNN | C207: Namn Namn 197 | D207: 1 | E207: Ledsagare LSS | F207: 127 | G207: 2023-04-24 | H207: 15:00 | I207: 17:00
B208: YYYYMMDD-NNNN | C208: Namn Namn 208 | D208: 1 | E208: Ledsagare LSS | F208: 127 | G208: 2023-04-02 | H208: 11:00 | I208: 15:00
B209: YYYYMMDD-NNNN | C209: Namn Namn 208 | D209: 1 | E209: Ledsagare LSS | F209: 127 | G209: 2023-04-05 | H209: 11:00 | I209: 14:30
B210: YYYYMMDD-NNNN | C210: Namn Namn 208 | D210: 1 | E210: Ledsagare LSS | F210: 127 | G210: 2023-04-07 | H210: 13:00 | I210: 14:00
B211: YYYYMMDD-NNNN | C211: Namn Namn 208 | D211: 1 | E211: Ledsagare LSS | F211: 127 | G211: 2023-04-09 | H211: 11:00 | I211: 13:00
B212: YYYYMMDD-NNNN | C212: Namn Namn 208 | D212: 1 | E212: Ledsagare LSS | F212: 127 | G212: 2023-04-10 | H212: 11:00 | I212: 13:00
B213: YYYYMMDD-NNNN | C213: Namn Namn 208 | D213: 1 | E213: Ledsagare LSS | F213: 127 | G213: 2023-04-12 | H213: 12:30 | I213: 15:30
B214: YYYYMMDD-NNNN | C214: Namn Namn 208 | D214: 1 | E214: Ledsagare LSS | F214: 127 | G214: 2023-04-14 | H214: 14:00 | I214: 15:30
... 216 more rows

Sheet Manual_Uppdrag
B13: Report_Month | C13: 2024-05-01
B15: _Personalnummer | C15: _Arbetstagarenamn | D15: _AnstNr | E15: _Uppdrag | F15: _Timersättning | G15: _Datum | H15: _Start | I15: _Slut | J15: _Rast | K15: _Comments

Sheet Output
A8: Export To Path | B8: C:\Users\lukas\OneDrive\Dokument\ExcelDepartment\Helsingborg\221106
A10: Personnummer | B10: Namn | C10: Anstnr | D10: Antal tim | E10: Belopp/tim | F10: OB-belopp tot | G10: Gäller fom | H10: Gäller tom | I10: Uppdrag | J10: Omkostnad
A11: YYYYMMDD-NNNN | B11: Namn Namn 16 | C11: 4 | D11: 57.98333333 | E11: 127 | F11: 1082.1 | G11: 2023-04-02 | H11: 2023-04-25 | I11: Ledsagare LSS | J11: 499
A12: YYYYMMDD-NNNN | B12: Namn Namn 25 | C12: 1 | D12: 358.0666667 | E12: 127 | F12: 11123.79667 | G12: 2023-04-01 | H12: 2023-04-30 | I12: Ledsagare LSS | J12: 499
A13: YYYYMMDD-NNNN | B13: Namn Namn 29 | C13: 2 | D13: 190.25 | E13: 127 | F13: 5433.9 | G13: 2023-04-02 | H13: 2023-04-30 | I13: Ledsagare LSS | J13: 499
A14: YYYYMMDD-NNNN | B14: Namn Namn 33 | C14: 2 | D14: 190.25 | E14: 127 | F14: 5433.9 | G14: 2023-04-02 | H14: 2023-04-30 | I14: Ledsagare LSS | J14: 499
A15: YYYYMMDD-NNNN | B15: Namn Namn 40 | C15: T1 | D15: 20 | E15: 127 | F15: 1238 | G15: 2023-04-01 | H15: 2023-04-23 | I15: Ledsagare LSS | J15: 499
A16: YYYYMMDD-NNNN | B16: Namn Namn 42 | C16: 1 | D16: 358.0666667 | E16: 127 | F16: 11123.79667 | G16: 2023-04-01 | H16: 2023-04-30 | I16: Ledsagare LSS | J16: 499
A17: YYYYMMDD-NNNN | B17: Namn Namn 52 | C17: 3 | D17: 149.0833333 | E17: 127 | F17: 4121.483333 | G17: 2023-04-01 | H17: 2023-04-30 | I17: Ledsagare LSS | J17: 499
A18: YYYYMMDD-NNNN | B18: Namn Namn 56 | C18: T2 | D18: 36.5 | E18: 127 | F18: 1686.775 | G18: 2023-04-04 | H18: 2023-04-23 | I18: Ledsagare LSS | J18: 499
A19: YYYYMMDD-NNNN | B19: Namn Namn 58 | C19: 1 | D19: 358.0666667 | E19: 127 | F19: 11123.79667 | G19: 2023-04-01 | H19: 2023-04-30 | I19: Ledsagare LSS | J19: 499
A20: YYYYMMDD-NNNN | B20: Namn Namn 60 | C20: T1 | D20: 20 | E20: 127 | F20: 1238 | G20: 2023-04-01 | H20: 2023-04-23 | I20: Ledsagare LSS | J20: 499
A21: YYYYMMDD-NNNN | B21: Namn Namn 63 | C21: 1 | D21: 358.0666667 | E21: 132.86 | F21: 11123.79667 | G21: 2023-04-01 | H21: 2023-04-30 | I21: Ledsagare LSS | J21: 499
A22: YYYYMMDD-NNNN | B22: Namn Namn 69 | C22: 9 | D22: 2 | E22: 127 | F22: 44 | G22: 2023-04-13 | H22: 2023-04-13 | I22: Ledsagare LSS | J22: 499
A23: YYYYMMDD-NNNN | B23: Namn Namn 70 | C23: 6 | D23: 126.5 | E23: 127 | F23: 3536.5 | G23: 2023-04-01 | H23: 2023-04-30 | I23: Ledsagare LSS | J23: 499
A24: YYYYMMDD-NNNN | B24: Namn Namn 79 | C24: 3 | D24: 149.0833333 | E24: 127 | F24: 4121.483333 | G24: 2023-04-01 | H24: 2023-04-30 | I24: Ledsagare LSS | J24: 499
A25: YYYYMMDD-NNNN | B25: Namn Namn 81 | C25: 1 | D25: 358.0666667 | E25: 127 | F25: 11123.79667 | G25: 2023-04-01 | H25: 2023-04-30 | I25: Ledsagare LSS | J25: 499
A26: YYYYMMDD-NNNN | B26: Namn Namn 82 | C26: 6 | D26: 126.5 | E26: 127 | F26: 3536.5 | G26: 2023-04-01 | H26: 2023-04-30 | I26: Ledsagare LSS | J26: 499
A27: YYYYMMDD-NNNN | B27: Namn Namn 86 | C27: 2 | D27: 190.25 | E27: 127 | F27: 5433.9 | G27: 2023-04-02 | H27: 2023-04-30 | I27: Ledsagare LSS | J27: 499
A28: YYYYMMDD-NNNN | B28: Namn Namn 87 | C28: 1 | D28: 358.0666667 | E28: 127 | F28: 11123.79667 | G28: 2023-04-01 | H28: 2023-04-30 | I28: Ledsagare LSS | J28: 499
A29: YYYYMMDD-NNNN | B29: Namn Namn 89 | C29: 11 | D29: 56.5 | E29: 127 | F29: 2845.5 | G29: 2023-04-02 | H29: 2023-04-30 | I29: Ledsagare LSS | J29: 499
A30: YYYYMMDD-NNNN | B30: Namn Namn 98 | C30: 4 | D30: 57.98333333 | E30: 127 | F30: 1082.1 | G30: 2023-04-02 | H30: 2023-04-25 | I30: Ledsagare LSS | J30: 499
A31: YYYYMMDD-NNNN | B31: Namn Namn 105 | C31: 1 | D31: 358.0666667 | E31: 127 | F31: 11123.79667 | G31: 2023-04-01 | H31: 2023-04-30 | I31: Ledsagare LSS | J31: 499
A32: YYYYMMDD-NNNN | B32: Namn Namn 110 | C32: 4 | D32: 57.98333333 | E32: 132.86 | F32: 1082.1 | G32: 2023-04-02 | H32: 2023-04-25 | I32: Ledsagare LSS | J32: 499
A33: YYYYMMDD-NNNN | B33: Namn Namn 110 | C33: 6 | D33: 126.5 | E33: 132.86 | F33: 3536.5 | G33: 2023-04-01 | H33: 2023-04-30 | I33: Ledsagare LSS | J33: 499
A34: YYYYMMDD-NNNN | B34: Namn Namn 118 | C34: 6 | D34: 126.5 | E34: 127 | F34: 3536.5 | G34: 2023-04-01 | H34: 2023-04-30 | I34: Ledsagare LSS | J34: 499
A35: YYYYMMDD-NNNN | B35: Namn Namn 121 | C35: 8 | D35: 35 | E35: 127 | F35: 1268 | G35: 2023-04-04 | H35: 2023-04-30 | I35: Ledsagare LSS | J35: 499
A36: YYYYMMDD-NNNN | B36: Namn Namn 123 | C36: 1 | D36: 358.0666667 | E36: 127 | F36: 11123.79667 | G36: 2023-04-01 | H36: 2023-04-30 | I36: Ledsagare LSS | J36: 499
A37: YYYYMMDD-NNNN | B37: Namn Namn 130 | C37: T2 | D37: 36.5 | E37: 127 | F37: 1686.775 | G37: 2023-04-04 | H37: 2023-04-23 | I37: Ledsagare LSS | J37: 499
A38: YYYYMMDD-NNNN | B38: Namn Namn 137 | C38: 1 | D38: 358.0666667 | E38: 127 | F38: 11123.79667 | G38: 2023-04-01 | H38: 2023-04-30 | I38: Ledsagare LSS | J38: 499
A39: YYYYMMDD-NNNN | B39: Namn Namn 142 | C39: 3 | D39: 149.0833333 | E39: 127 | F39: 4121.483333 | G39: 2023-04-01 | H39: 2023-04-30 | I39: Ledsagare LSS | J39: 499
A40: YYYYMMDD-NNNN | B40: Namn Namn 146 | C40: 1 | D40: 358.0666667 | E40: 127 | F40: 11123.79667 | G40: 2023-04-01 | H40: 2023-04-30 | I40: Ledsagare LSS | J40: 499
A41: YYYYMMDD-NNNN | B41: Namn Namn 156 | C41: 3 | D41: 149.0833333 | E41: 125 | F41: 4121.483333 | G41: 2023-04-01 | H41: 2023-04-30 | I41: Ledsagare LSS | J41: 499
A42: YYYYMMDD-NNNN | B42: Namn Namn 162 | C42: 1 | D42: 358.0666667 | E42: 125 | F42: 11123.79667 | G42: 2023-04-01 | H42: 2023-04-30 | I42: Ledsagare LSS | J42: 499
A43: YYYYMMDD-NNNN | B43: Namn Namn 166 | C43: 7 | D43: 75 | E43: 132.86 | F43: 1528.55 | G43: 2023-04-03 | H43: 2023-04-30 | I43: Ledsagare LSS | J43: 499
A44: YYYYMMDD-NNNN | B44: Namn Namn 170 | C44: 2 | D44: 190.25 | E44: 127 | F44: 5433.9 | G44: 2023-04-02 | H44: 2023-04-30 | I44: Ledsagare LSS | J44: 499
A45: YYYYMMDD-NNNN | B45: Namn Namn 174 | C45: 2 | D45: 190.25 | E45: 127 | F45: 5433.9 | G45: 2023-04-02 | H45: 2023-04-30 | I45: Ledsagare LSS | J45: 499
A46: YYYYMMDD-NNNN | B46: Namn Namn 178 | C46: 6 | D46: 126.5 | E46: 127 | F46: 3536.5 | G46: 2023-04-01 | H46: 2023-04-30 | I46: Ledsagare LSS | J46: 499
A47: YYYYMMDD-NNNN | B47: Namn Namn 182 | C47: 6 | D47: 126.5 | E47: 127 | F47: 3536.5 | G47: 2023-04-01 | H47: 2023-04-30 | I47: Ledsagare LSS | J47: 499
A48: YYYYMMDD-NNNN | B48: Namn Namn 182 | C48: 5 | D48: 77.08333333 | E48: 127 | F48: 1706.125 | G48: 2023-04-03 | H48: 2023-04-28 | I48: Ledsagare LSS | J48: 499
A49: YYYYMMDD-NNNN | B49: Namn Namn 187 | C49: 2 | D49: 190.25 | E49: 127 | F49: 5433.9 | G49: 2023-04-02 | H49: 2023-04-30 | I49: Ledsagare LSS | J49: 499
A50: YYYYMMDD-NNNN | B50: Namn Namn 195 | C50: 1 | D50: 358.0666667 | E50: 127 | F50: 11123.79667 | G50: 2023-04-01 | H50: 2023-04-30 | I50: Ledsagare LSS | J50: 499
A51: YYYYMMDD-NNNN | B51: Namn Namn 197 | C51: 1 | D51: 358.0666667 | E51: 127 | F51: 11123.79667 | G51: 2023-04-01 | H51: 2023-04-30 | I51: Ledsagare LSS | J51: 499
A52: YYYYMMDD-NNNN | B52: Namn Namn 208 | C52: 1 | D52: 358.0666667 | E52: 127 | F52: 11123.79667 | G52: 2023-04-01 | H52: 2023-04-30 | I52: Ledsagare LSS | J52: 499
A53: YYYYMMDD-NNNN | B53: Namn Namn 221 | C53: 2 | D53: 190.25 | E53: 127 | F53: 5433.9 | G53: 2023-04-02 | H53: 2023-04-30 | I53: Ledsagare LSS | J53: 499
A54: YYYYMMDD-NNNN | B54: Namn Namn 227 | C54: 5 | D54: 77.08333333 | E54: 127 | F54: 1706.125 | G54: 2023-04-03 | H54: 2023-04-28 | I54: Ledsagare LSS | J54: 499
A55: YYYYMMDD-NNNN | B55: Namn Namn 232 | C55: 2 | D55: 190.25 | E55: 127 | F55: 5433.9 | G55: 2023-04-02 | H55: 2023-04-30 | I55: Ledsagare LSS | J55: 499
A56: YYYYMMDD-NNNN | B56: Namn Namn 236 | C56: 7 | D56: 75 | E56: 127 | F56: 1528.55 | G56: 2023-04-03 | H56: 2023-04-30 | I56: Ledsagare LSS | J56: 499
A57: YYYYMMDD-NNNN | B57: Namn Namn 238 | C57: 1 | D57: 358.0666667 | E57: 127 | F57: 11123.79667 | G57: 2023-04-01 | H57: 2023-04-30 | I57: Ledsagare LSS | J57: 499
A58: YYYYMMDD-NNNN | B58: Namn Namn 242 | C58: 5 | D58: 77.08333333 | E58: 127 | F58: 1706.125 | G58: 2023-04-03 | H58: 2023-04-28 | I58: Ledsagare LSS | J58: 499
A59: YYYYMMDD-NNNN | B59: Namn Namn 245 | C59: 1 | D59: 358.0666667 | E59: 127 | F59: 11123.79667 | G59: 2023-04-01 | H59: 2023-04-30 | I59: Ledsagare LSS | J59: 499
A60: YYYYMMDD-NNNN | B60: Namn Namn 247 | C60: 1 | D60: 358.0666667 | E60: 127 | F60: 11123.79667 | G60: 2023-04-01 | H60: 2023-04-30 | I60: Ledsagare LSS | J60: 499
A61: YYYYMMDD-NNNN | B61: Namn Namn 252 | C61: 5 | D61: 77.08333333 | E61: 127 | F61: 1706.125 | G61: 2023-04-03 | H61: 2023-04-28 | I61: Ledsagare LSS | J61: 499
A62: YYYYMMDD-NNNN | B62: Namn Namn 253 | C62: 3 | D62: 149.0833333 | E62: 127 | F62: 4121.483333 | G62: 2023-04-01 | H62: 2023-04-30 | I62: Ledsagare LSS | J62: 499
A63: YYYYMMDD-NNNN | B63: Namn Namn 261 | C63: 5 | D63: 77.08333333 | E63: 125 | F63: 1706.125 | G63: 2023-04-03 | H63: 2023-04-28 | I63: Ledsagare LSS | J63: 499
A64: YYYYMMDD-NNNN | B64: Namn Namn 265 | C64: 2 | D64: 190.25 | E64: 127 | F64: 5433.9 | G64: 2023-04-02 | H64: 2023-04-30 | I64: Ledsagare LSS | J64: 499
A65: YYYYMMDD-NNNN | B65: Namn Namn 265 | C65: 3 | D65: 149.0833333 | E65: 127 | F65: 4121.483333 | G65: 2023-04-01 | H65: 2023-04-30 | I65: Ledsagare LSS | J65: 499
A66: YYYYMMDD-NNNN | B66: Namn Namn 272 | C66: 1 | D66: 358.0666667 | E66: 127 | F66: 11123.79667 | G66: 2023-04-01 | H66: 2023-04-30 | I66: Ledsagare LSS | J66: 499
A67: YYYYMMDD-NNNN | B67: Namn Namn 272 | C67: 2 | D67: 190.25 | E67: 127 | F67: 5433.9 | G67: 2023-04-02 | H67: 2023-04-30 | I67: Ledsagare LSS | J67: 499
A68: YYYYMMDD-NNNN | B68: Namn Namn 283 | C68: 5 | D68: 77.08333333 | E68: 127 | F68: 1706.125 | G68: 2023-04-03 | H68: 2023-04-28 | I68: Ledsagare LSS | J68: 499
A69: YYYYMMDD-NNNN | B69: Namn Namn 286 | C69: 15 | D69: 16 | E69: 127 | F69: 133.9 | G69: 2023-04-05 | H69: 2023-04-27 | I69: Ledsagare LSS | J69: 499
A70: YYYYMMDD-NNNN | B70: Namn Namn 291 | C70: 1 | D70: 358.0666667 | E70: 127 | F70: 11123.79667 | G70: 2023-04-01 | H70: 2023-04-30 | I70: Ledsagare LSS | J70: 499
A71: YYYYMMDD-NNNN | B71: Namn Namn 296 | C71: 1 | D71: 358.0666667 | E71: 127 | F71: 11123.79667 | G71: 2023-04-01 | H71: 2023-04-30 | I71: Ledsagare LSS | J71: 499
A72: YYYYMMDD-NNNN | B72: Namn Namn 298 | C72: 2 | D72: 190.25 | E72: 127 | F72: 5433.9 | G72: 2023-04-02 | H72: 2023-04-30 | I72: Ledsagare LSS | J72: 499
A73: YYYYMMDD-NNNN | B73: Namn Namn 298 | C73: 8 | D73: 35 | E73: 127 | F73: 1268 | G73: 2023-04-04 | H73: 2023-04-30 | I73: Ledsagare LSS | J73: 499
A74: YYYYMMDD-NNNN | B74: Namn Namn 303 | C74: 2 | D74: 190.25 | E74: 125 | F74: 5433.9 | G74: 2023-04-02 | H74: 2023-04-30 | I74: Ledsagare LSS | J74: 499
A75: YYYYMMDD-NNNN | B75: Namn Namn 307 | C75: 11 | D75: 56.5 | E75: 127 | F75: 2845.5 | G75: 2023-04-02 | H75: 2023-04-30 | I75: Ledsagare LSS | J75: 499
A76: YYYYMMDD-NNNN | B76: Namn Namn 310 | C76: 15 | D76: 16 | E76: 127 | F76: 133.9 | G76: 2023-04-05 | H76: 2023-04-27 | I76: Ledsagare LSS | J76: 499
A77: YYYYMMDD-NNNN | B77: Namn Namn 310 | C77: 17 | D77: 4 | E77: 127 | F77: 247.6 | G77: 2023-04-08 | H77: 2023-04-22 | I77: Ledsagare LSS | J77: 499
A78: YYYYMMDD-NNNN | B78: Namn Namn 316 | C78: 2 | D78: 190.25 | E78: 127 | F78: 5433.9 | G78: 2023-04-02 | H78: 2023-04-30 | I78: Ledsagare LSS | J78: 499
A79: YYYYMMDD-NNNN | B79: Namn Namn 322 | C79: 1 | D79: 358.0666667 | E79: 127 | F79: 11123.79667 | G79: 2023-04-01 | H79: 2023-04-30 | I79: Ledsagare LSS | J79: 499
A80: YYYYMMDD-NNNN | B80: Namn Namn 334 | C80: 2 | D80: 190.25 | E80: 125 | F80: 5433.9 | G80: 2023-04-02 | H80: 2023-04-30 | I80: Ledsagare LSS | J80: 499
A81: YYYYMMDD-NNNN | B81: Namn Namn 337 | C81: 11 | D81: 56.5 | E81: 127 | F81: 2845.5 | G81: 2023-04-02 | H81: 2023-04-30 | I81: Ledsagare LSS | J81: 499
A82: YYYYMMDD-NNNN | B82: Namn Namn 341 | C82: 6 | D82: 126.5 | E82: 127 | F82: 3536.5 | G82: 2023-04-01 | H82: 2023-04-30 | I82: Ledsagare LSS | J82: 499
A83: YYYYMMDD-NNNN | B83: Namn Namn 341 | C83: 3 | D83: 149.0833333 | E83: 127 | F83: 4121.483333 | G83: 2023-04-01 | H83: 2023-04-30 | I83: Ledsagare LSS | J83: 499
A84: YYYYMMDD-NNNN | B84: Namn Namn 341 | C84: 5 | D84: 77.08333333 | E84: 127 | F84: 1706.125 | G84: 2023-04-03 | H84: 2023-04-28 | I84: Ledsagare LSS | J84: 499
A85: YYYYMMDD-NNNN | B85: Namn Namn 341 | C85: 7 | D85: 75 | E85: 127 | F85: 1528.55 | G85: 2023-04-03 | H85: 2023-04-30 | I85: Ledsagare LSS | J85: 499
A86: YYYYMMDD-NNNN | B86: Namn Namn 360 | C86: 3 | D86: 149.0833333 | E86: 127 | F86: 4121.483333 | G86: 2023-04-01 | H86: 2023-04-30 | I86: Ledsagare LSS | J86: 499
A87: YYYYMMDD-NNNN | B87: Namn Namn 362 | C87: 6 | D87: 126.5 | E87: 127 | F87: 3536.5 | G87: 2023-04-01 | H87: 2023-04-30 | I87: Ledsagare LSS | J87: 499
A88: YYYYMMDD-NNNN | B88: Namn Namn 368 | C88: 2 | D88: 190.25 | E88: 127 | F88: 5433.9 | G88: 2023-04-02 | H88: 2023-04-30 | I88: Ledsagare LSS | J88: 499
A89: YYYYMMDD-NNNN | B89: Namn Namn 370 | C89: 1 | D89: 358.0666667 | E89: 127 | F89: 11123.79667 | G89: 2023-04-01 | H89: 2023-04-30 | I89: Ledsagare LSS | J89: 499
A90: YYYYMMDD-NNNN | B90: Namn Namn 374 | C90: 7 | D90: 75 | E90: 127 | F90: 1528.55 | G90: 2023-04-03 | H90: 2023-04-30 | I90: Ledsagare LSS | J90: 499
A91: YYYYMMDD-NNNN | B91: Namn Namn 377 | C91: 7 | D91: 75 | E91: 127 | F91: 1528.55 | G91: 2023-04-03 | H91: 2023-04-30 | I91: Ledsagare LSS | J91: 499
A92: YYYYMMDD-NNNN | B92: Namn Namn 380 | C92: 7 | D92: 75 | E92: 127 | F92: 1528.55 | G92: 2023-04-03 | H92: 2023-04-30 | I92: Ledsagare LSS | J92: 499
A93: YYYYMMDD-NNNN | B93: Namn Namn 383 | C93: 3 | D93: 149.0833333 | E93: 127 | F93: 4121.483333 | G93: 2023-04-01 | H93: 2023-04-30 | I93: Ledsagare LSS | J93: 499
A94: YYYYMMDD-NNNN | B94: Namn Namn 383 | C94: 5 | D94: 77.08333333 | E94: 127 | F94: 1706.125 | G94: 2023-04-03 | H94: 2023-04-28 | I94: Ledsagare LSS | J94: 499
A95: YYYYMMDD-NNNN | B95: Namn Namn 392 | C95: 8 | D95: 35 | E95: 127 | F95: 1268 | G95: 2023-04-04 | H95: 2023-04-30 | I95: Ledsagare LSS | J95: 499
A96: YYYYMMDD-NNNN | B96: Namn Namn 396 | C96: 6 | D96: 126.5 | E96: 127 | F96: 3536.5 | G96: 2023-04-01 | H96: 2023-04-30 | I96: Ledsagare LSS | J96: 499
A97: YYYYMMDD-NNNN | B97: Namn Namn 402 | C97: 7 | D97: 75 | E97: 127 | F97: 1528.55 | G97: 2023-04-03 | H97: 2023-04-30 | I97: Ledsagare LSS | J97: 499
A98: YYYYMMDD-NNNN | B98: Namn Namn 406 | C98: 1 | D98: 358.0666667 | E98: 128.34 | F98: 11123.79667 | G98: 2023-04-01 | H98: 2023-04-30 | I98: Ledsagare LSS | J98: 499
A99: YYYYMMDD-NNNN | B99: Namn Namn 409 | C99: 3 | D99: 149.0833333 | E99: 127 | F99: 4121.483333 | G99: 2023-04-01 | H99: 2023-04-30 | I99: Ledsagare LSS | J99: 499
A100: YYYYMMDD-NNNN | B100: Namn Namn 417 | C100: T2 | D100: 36.5 | E100: 127 | F100: 1686.775 | G100: 2023-04-04 | H100: 2023-04-23 | I100: Ledsagare LSS | J100: 499
A101: YYYYMMDD-NNNN | B101: Namn Namn 423 | C101: 6 | D101: 126.5 | E101: 132.86 | F101: 3536.5 | G101: 2023-04-01 | H101: 2023-04-30 | I101: Ledsagare LSS | J101: 499
A102: YYYYMMDD-NNNN | B102: Namn Namn 427 | C102: 3 | D102: 149.0833333 | E102: 127 | F102: 4121.483333 | G102: 2023-04-01 | H102: 2023-04-30 | I102: Ledsagare LSS | J102: 499

Sheet DB (hidden)
M10: =IFERROR(INDEX(Admin!$AZ$3:$BA$50,MATCH(H10,Admin!$AZ$3:$AZ$53,0),2),"LäggTillAdmin") -> 0 | P10: =IF(E10="","",IF(COUNTIF(Admin!$AN$4:$AN$99,E10)>0,1,WEEKDAY(E10))) ->  | Q10: =IFERROR(IF(HOUR(F10)>HOUR(G10),IF(IF(E10="","",WEEKDAY(E10))=7,1,IF(E10="","",WEEKDAY(E10))+1),""),"") ->  | R10: =IFERROR(IF(HOUR(F10)>HOUR(G10),O10-S10,O10),"") -> 0 | S10: =IFERROR(IF(HOUR(F10)>HOUR(G10),HOUR(G10)+MINUTE(G10)/60,0),"") -> 0 | Z10: =IFERROR(IF(AND(P10>=INDIRECT("'"&L10&"'!j2"),P10<=INDIRECT("'"&L10&"'!k2"),O10>INDIRECT("'"&L10&"'!i2"),HOUR(F10)+MINUTE(F10)/60-INDIRECT("'"&L10&"'!i2")<20),O10-INDIRECT("'"&L10&"'!i2")-MAX(HOUR(G10)-INDIRECT("'"&L10&"'!M2"),0),0),"") ->  | AA10: =IFERROR(IF(OR(P10=INDIRECT("'"&L10&"'!n2"),P10=INDIRECT("'"&L10&"'!o2"),HOUR(G10)+MINUTE(G10)/60>INDIRECT("'"&L10&"'!m2"),HOUR(G10)+MINUTE(G10)/60<6),IF(O10>INDIRECT("'"&L10&"'!i2"),O10-INDIRECT("'"&L10&"'!i2")-Z10,0),0),"") ->  | AH10: =IFERROR(Z10*INDIRECT("'"&L10&"'!x2")*INDIRECT("'"&L10&"'!c6"),0) -> 0 | AI10: =IFERROR(AA10*INDIRECT("'"&L10&"'!z2")*INDIRECT("'"&L10&"'!c6"),0) -> 0 | AJ10: =IFERROR(AG10+AB10+AC10+AD10+AE10+AF10,"") -> 0 | AK10: =IF(E10="","",YEAR(E10)&"-"&MONTH(E10)&"-"&IF(LEN(DAY(E10))=1,"0"&DAY(E10),DAY(E10))) ->  | AL10: =IFERROR(HOUR(F10)&":"&MINUTE(F10)&"-"&HOUR(G10)&":"&MINUTE(G10),"") -> 0:0-0:0 | AM10: =IFERROR(M10*60&" min","") -> 0 min | AN10: =O10 -> 0 | AO10: =IFERROR(T10,0)+IFERROR(U10,0)+IFERROR(V10,0)+IFERROR(W10,0)+IFERROR(X10,0)+IFERROR(Y10,0) -> 0 | AP10: =IFERROR(SUM(Z10:AA10),"") -> 0 | AQ10: =IF(F10="","",D10) ->  | AR10: =IFERROR(O10-Z10-AA10,"") ->  | AU10: =IFERROR(AB10,0) -> 0 | AV10: 0 | AW10: 0 | AX10: 0 | AY10: 0 | AZ10: 0 | BC10: =SUM(AU10:AZ10) -> 0
B11: _Uppdrag | C11: _AnstNr | D11: _ArbetstagareNamn | E11: _Datum | F11: _Start | G11: _Slut | H11: _Rast | I11: _TotaltH | J11: _Timersättning | K11: _Veckodag | L11: _Personalnummer | M11: _rastHour | N11: Kontrakt | O11: WorkingHours | P11: Weekday | Q11: Weekday_+1 | R11: h_day0 | S11: h_day+1 | T11: OD | U11: OC | V11: OB1 | W11: OB2 | X11: OA1 | Y11: OA2 | Z11: Övertid1 | AA11: Övertid2 | AB11: ODPay | AC11: OCPay | AD11: OB1Pay | AE11: OB2Pay | AF11: OA1Pay | AG11: OA2Pay | AH11: Övertid1Pay | AI11: Övertid2Pay | AJ11: TotalPay | AK11: Datum | AL11: TID | AM11: RAST | AN11: TIM | AO11: OB | AP11: Övertid | AQ11: Bemaning | AR11: WorkingH (no OT) | AS11: VanligArbetstimmar | AT11: Kost_Arbh | AU11: Kost_OD | AV11: Kost_OC | AW11: Kost_OB1 | AX11: Kost_OB2 | AY11: Kost_OA1 | AZ11: Kost_OA2 | BA11: Kost_ÖT1 | BB11: Kost_ÖT2 | BC11: Kost_Total | BD11: _Comments | BE11: _Input
B12: Ledsagare LSS | C12: 4 | D12: Namn Namn 16 | E12: 2023-04-03 | F12: 17:00 | G12: 19:25 | J12: 127 | L12: YYYYMMDD-NNNN | M12: =IFERROR(INDEX(Admin!$AZ$3:$BA$50,MATCH(H12,Admin!$AZ$3:$AZ$53,0),2),"LäggTillAdmin") -> 0 | O12: 2.416666667 | P12: =IF(E12="","",IF(COUNTIF(Admin!$AN$4:$AN$99,E12)>0,1,WEEKDAY(E12))) -> 2 | Q12: =IFERROR(IF(HOUR(F12)>HOUR(G12),IF(IF(E12="","",WEEKDAY(E12))=7,1,IF(E12="","",WEEKDAY(E12))+1),""),"") ->  | R12: =IFERROR(IF(HOUR(F12)>HOUR(G12),O12-S12,O12),"") -> 2.416666667 | S12: =IFERROR(IF(HOUR(F12)>HOUR(G12),HOUR(G12)+MINUTE(G12)/60,0),"") -> 0 | T12: 0.4166666667 | U12: 0 | V12: 0 | W12: 0 | X12: 0 | Y12: 0 | Z12: =IFERROR(IF(AND(P12>=INDIRECT("'"&L12&"'!j2"),P12<=INDIRECT("'"&L12&"'!k2"),O12>INDIRECT("'"&L12&"'!i2"),HOUR(F12)+MINUTE(F12)/60-INDIRECT("'"&L12&"'!i2")<20),O12-INDIRECT("'"&L12&"'!i2")-MAX(HOUR(G12)-INDIRECT("'"&L12&"'!M2"),0),0),"") ->  | AA12: =IFERROR(IF(OR(P12=INDIRECT("'"&L12&"'!n2"),P12=INDIRECT("'"&L12&"'!o2"),HOUR(G12)+MINUTE(G12)/60>INDIRECT("'"&L12&"'!m2"),HOUR(G12)+MINUTE(G12)/60<6),IF(O12>INDIRECT("'"&L12&"'!i2"),O12-INDIRECT("'"&L12&"'!i2")-Z12,0),0),"") ->  | AB12: 10 | AC12: 0 | AD12: 0 | AE12: 0 | AF12: 0 | AG12: 0 | AH12: =IFERROR(Z12*INDIRECT("'"&L12&"'!x2")*INDIRECT("'"&L12&"'!c6"),0) -> 0 | AI12: =IFERROR(AA12*INDIRECT("'"&L12&"'!z2")*INDIRECT("'"&L12&"'!c6"),0) -> 0 | AJ12: =IFERROR(AG12+AB12+AC12+AD12+AE12+AF12,"") -> 10 | AK12: =IF(E12="","",YEAR(E12)&"-"&MONTH(E12)&"-"&IF(LEN(DAY(E12))=1,"0"&DAY(E12),DAY(E12))) -> 2023-4-03 | AL12: =IFERROR(HOUR(F12)&":"&MINUTE(F12)&"-"&HOUR(G12)&":"&MINUTE(G12),"") -> 17:0-19:25 | AM12: =IFERROR(M12*60&" min","") -> 0 min | AN12: =O12 -> 2.416666667 | AO12: =IFERROR(T12,0)+IFERROR(U12,0)+IFERROR(V12,0)+IFERROR(W12,0)+IFERROR(X12,0)+IFERROR(Y12,0) -> 0.4166666667 | AP12: =IFERROR(SUM(Z12:AA12),"") -> 0 | AQ12: =IF(F12="","",D12) -> Namn Namn 16 | AR12: =IFERROR(O12-Z12-AA12,"") ->  | AU12: =IFERROR(AB12,0) -> 10 | AV12: =IFERROR(AC12,0) -> 0 | AW12: =IFERROR(AD12,0) -> 0 | AX12: =IFERROR(AE12,0) -> 0 | AY12: =IFERROR(AF12,0) -> 0 | AZ12: =IFERROR(AG12,0) -> 0 | BC12: =SUM(AU12:AZ12) -> 10 | BE12: Auto
B13: Ledsagare LSS | C13: 4 | D13: Namn Namn 16 | E13: 2023-04-04 | F13: 18:00 | G13: 20:20 | J13: 127 | L13: YYYYMMDD-NNNN | M13: =IFERROR(INDEX(Admin!$AZ$3:$BA$50,MATCH(H13,Admin!$AZ$3:$AZ$53,0),2),"LäggTillAdmin") -> 0 | O13: 2.333333333 | P13: =IF(E13="","",IF(COUNTIF(Admin!$AN$4:$AN$99,E13)>0,1,WEEKDAY(E13))) -> 3 | R13: 2.333333333 | S13: 0 | T13: 1.333333333 | U13: 0 | V13: 0 | W13: 0 | X13: 0 | Y13: 0 | AB13: 32 | AC13: 0 | AD13: 0 | AE13: 0 | AF13: 0 | AG13: 0 | AH13: 0 | AI13: 0 | AJ13: 32 | AK13: 2023-4-04 | AL13: 18:0-20:20 | AM13: 0 min | AN13: 2.333333333 | AO13: 1.333333333 | AP13: 0 | AQ13: Namn Namn 16 | AU13: 32 | AV13: 0 | AW13: 0 | AX13: 0 | AY13: 0 | AZ13: 0 | BC13: 32 | BE13: Auto
B14: Ledsagare LSS | C14: 4 | D14: Namn Namn 16 | E14: 2023-04-06 | F14: 18:00 | G14: 20:20 | J14: 127 | L14: YYYYMMDD-NNNN | M14: =IFERROR(INDEX(Admin!$AZ$3:$BA$50,MATCH(H14,Admin!$AZ$3:$AZ$53,0),2),"LäggTillAdmin") -> 0 | O14: 2.333333333 | P14: =IF(E14="","",IF(COUNTIF(Admin!$AN$4:$AN$99,E14)>0,1,WEEKDAY(E14))) -> 5 | R14: 2.333333333 | S14: 0 | T14: 0 | U14: 0 | V14: 0 | W14: 0 | X14: 2 | Y14: 0 | AB14: 0 | AC14: 0 | AD14: 0 | AE14: 0 | AF14: 237.6 | AG14: 0 | AH14: 0 | AI14: 0 | AJ14: 237.6 | AK14: 2023-4-06 | AL14: 18:0-20:20 | AM14: 0 min | AN14: 2.333333333 | AO14: 2 | AP14: 0 | AQ14: Namn Namn 16 | AU14: 0 | AV14: 0 | AW14: 0 | AX14: 0 | AY14: 237.6 | AZ14: 0 | BC14: 237.6 | BE14: Auto
B15: Ledsagare LSS | C15: 4 | D15: Namn Namn 16 | E15: 2023-04-10 | F15: 17:00 | G15: 19:25 | J15: 127 | L15: YYYYMMDD-NNNN | M15: =IFERROR(INDEX(Admin!$AZ$3:$BA$50,MATCH(H15,Admin!$AZ$3:$AZ$53,0),2),"LäggTillAdmin") -> 0 | O15: 2.416666667 | P15: =IF(E15="","",IF(COUNTIF(Admin!$AN$4:$AN$99,E15)>0,1,WEEKDAY(E15))) -> 2 | R15: 2.416666667 | S15: 0 | T15: 0 | U15: 0 | V15: 2 | W15: 0 | X15: 0 | Y15: 0 | AB15: 0 | AC15: 0 | AD15: 123.8 | AE15: 0 | AF15: 0 | AG15: 0 | AH15: 0 | AI15: 0 | AJ15: 123.8 | AK15: 2023-4-10 | AL15: 17:0-19:25 | AM15: 0 min | AN15: 2.416666667 | AO15: 2 | AP15: 0 | AQ15: Namn Namn 16 | AU15: 0 | AV15: 0 | AW15: 123.8 | AX15: 0 | AY15: 0 | AZ15: 0 | BC15: 123.8 | BE15: Auto
B16: Ledsagare LSS | C16: 4 | D16: Namn Namn 16 | E16: 2023-04-11 | F16: 18:00 | G16: 20:25 | J16: 127 | L16: YYYYMMDD-NNNN | M16: =IFERROR(INDEX(Admin!$AZ$3:$BA$50,MATCH(H16,Admin!$AZ$3:$AZ$53,0),2),"LäggTillAdmin") -> 0 | O16: 2.416666667 | P16: =IF(E16="","",IF(COUNTIF(Admin!$AN$4:$AN$99,E16)>0,1,WEEKDAY(E16))) -> 3 | R16: 2.416666667 | S16: 0 | T16: 0 | U16: 0 | V16: 2 | W16: 0 | X16: 0 | Y16: 0 | AB16: 0 | AC16: 0 | AD16: 123.8 | AE16: 0 | AF16: 0 | AG16: 0 | AH16: 0 | AI16: 0 | AJ16: 123.8 | AK16: 2023-4-11 | AL16: 18:0-20:25 | AM16: 0 min | AN16: 2.416666667 | AO16: 2 | AP16: 0 | AQ16: Namn Namn 16 | AU16: 0 | AV16: 0 | AW16: 123.8 | AX16: 0 | AY16: 0 | AZ16: 0 | BC16: 123.8 | BE16: Auto
B17: Ledsagare LSS | C17: 4 | D17: Namn Namn 16 | E17: 2023-04-13 | F17: 18:00 | G17: 20:20 | J17: 127 | L17: YYYYMMDD-NNNN | M17: =IFERROR(INDEX(Admin!$AZ$3:$BA$50,MATCH(H17,Admin!$AZ$3:$AZ$53,0),2),"LäggTillAdmin") -> 0 | O17: 2.333333333 | P17: =IF(E17="","",IF(COUNTIF(Admin!$AN$4:$AN$99,E17)>0,1,WEEKDAY(E17))) -> 5 | R17: 2.333333333 | S17: 0 | T17: 1.333333333 | U17: 0 | V17: 0 | W17: 0 | X17: 0 | Y17: 0 | AB17: 32 | AC17: 0 | AD17: 0 | AE17: 0 | AF17: 0 | AG17: 0 | AH17: 0 | AI17: 0 | AJ17: 32 | AK17: 2023-4-13 | AL17: 18:0-20:20 | AM17: 0 min | AN17: 2.333333333 | AO17: 1.333333333 | AP17: 0 | AQ17: Namn Namn 16 | AU17: 32 | AV17: 0 | AW17: 0 | AX17: 0 | AY17: 0 | AZ17: 0 | BC17: 32 | BE17: Auto
B18: Ledsagare LSS | C18: 4 | D18: Namn Namn 16 | E18: 2023-04-17 | F18: 17:00 | G18: 19:25 | J18: 127 | L18: YYYYMMDD-NNNN | M18: =IFERROR(INDEX(Admin!$AZ$3:$BA$50,MATCH(H18,Admin!$AZ$3:$AZ$53,0),2),"LäggTillAdmin") -> 0 | O18: 2.416666667 | P18: =IF(E18="","",IF(COUNTIF(Admin!$AN$4:$AN$99,E18)>0,1,WEEKDAY(E18))) -> 2 | R18: 2.416666667 | S18: 0 | T18: 0.4166666667 | U18: 0 | V18: 0 | W18: 0 | X18: 0 | Y18: 0 | AB18: 10 | AC18: 0 | AD18: 0 | AE18: 0 | AF18: 0 | AG18: 0 | AH18: 0 | AI18: 0 | AJ18: 10 | AK18: 2023-4-17 | AL18: 17:0-19:25 | AM18: 0 min | AN18: 2.416666667 | AO18: 0.4166666667 | AP18: 0 | AQ18: Namn Namn 16 | AU18: 10 | AV18: 0 | AW18: 0 | AX18: 0 | AY18: 0 | AZ18: 0 | BC18: 10 | BE18: Auto
B19: Ledsagare LSS | C19: 4 | D19: Namn Namn 16 | E19: 2023-04-18 | F19: 18:00 | G19: 20:25 | J19: 127 | L19: YYYYMMDD-NNNN | M19: =IFERROR(INDEX(Admin!$AZ$3:$BA$50,MATCH(H19,Admin!$AZ$3:$AZ$53,0),2),"LäggTillAdmin") -> 0 | O19: 2.416666667 | P19: =IF(E19="","",IF(COUNTIF(Admin!$AN$4:$AN$99,E19)>0,1,WEEKDAY(E19))) -> 3 | R19: 2.416666667 | S19: 0 | T19: 1.416666667 | U19: 0 | V19: 0 | W19: 0 | X19: 0 | Y19: 0 | AB19: 34 | AC19: 0 | AD19: 0 | AE19: 0 | AF19: 0 | AG19: 0 | AH19: 0 | AI19: 0 | AJ19: 34 | AK19: 2023-4-18 | AL19: 18:0-20:25 | AM19: 0 min | AN19: 2.416666667 | AO19: 1.416666667 | AP19: 0 | AQ19: Namn Namn 16 | AU19: 34 | AV19: 0 | AW19: 0 | AX19: 0 | AY19: 0 | AZ19: 0 | BC19: 34 | BE19: Auto
B20: Ledsagare LSS | C20: 4 | D20: Namn Namn 16 | E20: 2023-04-20 | F20: 18:00 | G20: 19:54 | J20: 127 | L20: YYYYMMDD-NNNN | M20: =IFERROR(INDEX(Admin!$AZ$3:$BA$50,MATCH(H20,Admin!$AZ$3:$AZ$53,0),2),"LäggTillAdmin") -> 0 | O20: 1.9 | P20: =IF(E20="","",IF(COUNTIF(Admin!$AN$4:$AN$99,E20)>0,1,WEEKDAY(E20))) -> 5 | R20: 1.9 | S20: 0 | T20: 0.9 | U20: 0 | V20: 0 | W20: 0 | X20: 0 | Y20: 0 | AB20: 21.6 | AC20: 0 | AD20: 0 | AE20: 0 | AF20: 0 | AG20: 0 | AH20: 0 | AI20: 0 | AJ20: 21.6 | AK20: 2023-4-20 | AL20: 18:0-19:54 | AM20: 0 min | AN20: 1.9 | AO20: 0.9 | AP20: 0 | AQ20: Namn Namn 16 | AU20: 21.6 | AV20: 0 | AW20: 0 | AX20: 0 | AY20: 0 | AZ20: 0 | BC20: 21.6 | BE20: Auto
B21: Ledsagare LSS | C21: 1 | D21: Namn Namn 25 | E21: 2023-04-08 | F21: 13:00 | G21: 16:00 | J21: 127 | L21: YYYYMMDD-NNNN | M21: =IFERROR(INDEX(Admin!$AZ$3:$BA$50,MATCH(H21,Admin!$AZ$3:$AZ$53,0),2),"LäggTillAdmin") -> 0 | O21: 3 | P21: =IF(E21="","",IF(COUNTIF(Admin!$AN$4:$AN$99,E21)>0,1,WEEKDAY(E21))) -> 7 | R21: 3 | S21: 0 | T21: 0 | U21: 0 | V21: 3 | W21: 0 | X21: 0 | Y21: 0 | AB21: 0 | AC21: 0 | AD21: 185.7 | AE21: 0 | AF21: 0 | AG21: 0 | AH21: 0 | AI21: 0 | AJ21: 185.7 | AK21: 2023-4-08 | AL21: 13:0-16:0 | AM21: 0 min | AN21: 3 | AO21: 3 | AP21: 0 | AQ21: Namn Namn 25 | AU21: 0 | AV21: 0 | AW21: 185.7 | AX21: 0 | AY21: 0 | AZ21: 0 | BC21: 185.7 | BE21: Auto
B22: Ledsagare LSS | C22: 1 | D22: Namn Namn 25 | E22: 2023-04-14 | F22: 17:00 | G22: 20:00 | J22: 127 | L22: YYYYMMDD-NNNN | M22: =IFERROR(INDEX(Admin!$AZ$3:$BA$50,MATCH(H22,Admin!$AZ$3:$AZ$53,0),2),"LäggTillAdmin") -> 0 | O22: 3 | P22: =IF(E22="","",IF(COUNTIF(Admin!$AN$4:$AN$99,E22)>0,1,WEEKDAY(E22))) -> 6 | R22: 3 | S22: 0 | T22: 0 | U22: 0 | V22: 1 | W22: 0 | X22: 0 | Y22: 0 | AB22: 0 | AC22: 0 | AD22: 61.9 | AE22: 0 | AF22: 0 | AG22: 0 | AH22: 0 | AI22: 0 | AJ22: 61.9 | AK22: 2023-4-14 | AL22: 17:0-20:0 | AM22: 0 min | AN22: 3 | AO22: 1 | AP22: 0 | AQ22: Namn Namn 25 | AU22: 0 | AV22: 0 | AW22: 61.9 | AX22: 0 | AY22: 0 | AZ22: 0 | BC22: 61.9 | BE22: Auto
B23: Ledsagare LSS | C23: 1 | D23: Namn Namn 25 | E23: 2023-04-22 | F23: 13:00 | G23: 16:00 | J23: 127 | L23: YYYYMMDD-NNNN | M23: =IFERROR(INDEX(Admin!$AZ$3:$BA$50,MATCH(H23,Admin!$AZ$3:$AZ$53,0),2),"LäggTillAdmin") -> 0 | O23: 3 | P23: =IF(E23="","",IF(COUNTIF(Admin!$AN$4:$AN$99,E23)>0,1,WEEKDAY(E23))) -> 7 | R23: 3 | S23: 0 | T23: 0 | U23: 0 | V23: 3 | W23: 0 | X23: 0 | Y23: 0 | AB23: 0 | AC23: 0 | AD23: 185.7 | AE23: 0 | AF23: 0 | AG23: 0 | AH23: 0 | AI23: 0 | AJ23: 185.7 | AK23: 2023-4-22 | AL23: 13:0-16:0 | AM23: 0 min | AN23: 3 | AO23: 3 | AP23: 0 | AQ23: Namn Namn 25 | AU23: 0 | AV23: 0 | AW23: 185.7 | AX23: 0 | AY23: 0 | AZ23: 0 | BC23: 185.7 | BE23: Auto
B24: Ledsagare LSS | C24: 1 | D24: Namn Namn 25 | E24: 2023-04-30 | F24: 13:00 | G24: 16:00 | J24: 127 | L24: YYYYMMDD-NNNN | M24: =IFERROR(INDEX(Admin!$AZ$3:$BA$50,MATCH(H24,Admin!$AZ$3:$AZ$53,0),2),"LäggTillAdmin") -> 0 | O24: 3 | P24: =IF(E24="","",IF(COUNTIF(Admin!$AN$4:$AN$99,E24)>0,1,WEEKDAY(E24))) -> 1 | R24: 3 | S24: 0 | T24: 0 | U24: 0 | V24: 3 | W24: 0 | X24: 0 | Y24: 0 | AB24: 0 | AC24: 0 | AD24: 185.7 | AE24: 0 | AF24: 0 | AG24: 0 | AH24: 0 | AI24: 0 | AJ24: 185.7 | AK24: 2023-4-30 | AL24: 13:0-16:0 | AM24: 0 min | AN24: 3 | AO24: 3 | AP24: 0 | AQ24: Namn Namn 25 | AU24: 0 | AV24: 0 | AW24: 185.7 | AX24: 0 | AY24: 0 | AZ24: 0 | BC24: 185.7 | BE24: Auto
B25: Ledsagare LSS | C25: 2 | D25: Namn Namn 29 | E25: 2023-04-02 | F25: 12:00 | G25: 16:00 | J25: 127 | L25: YYYYMMDD-NNNN | M25: =IFERROR(INDEX(Admin!$AZ$3:$BA$50,MATCH(H25,Admin!$AZ$3:$AZ$53,0),2),"LäggTillAdmin") -> 0 | O25: 4 | P25: =IF(E25="","",IF(COUNTIF(Admin!$AN$4:$AN$99,E25)>0,1,WEEKDAY(E25))) -> 1 | R25: 4 | S25: 0 | T25: 0 | U25: 0 | V25: 4 | W25: 0 | X25: 0 | Y25: 0 | AB25: 0 | AC25: 0 | AD25: 247.6 | AE25: 0 | AF25: 0 | AG25: 0 | AH25: 0 | AI25: 0 | AJ25: 247.6 | AK25: 2023-4-02 | AL25: 12:0-16:0 | AM25: 0 min | AN25: 4 | AO25: 4 | AP25: 0 | AQ25: Namn Namn 29 | AU25: 0 | AV25: 0 | AW25: 247.6 | AX25: 0 | AY25: 0 | AZ25: 0 | BC25: 247.6 | BE25: Auto
B26: Ledsagare LSS | C26: 2 | D26: Namn Namn 29 | E26: 2023-04-06 | F26: 13:00 | G26: 16:00 | J26: 127 | L26: YYYYMMDD-NNNN | M26: =IFERROR(INDEX(Admin!$AZ$3:$BA$50,MATCH(H26,Admin!$AZ$3:$AZ$53,0),2),"LäggTillAdmin") -> 0 | O26: 3 | P26: =IF(E26="","",IF(COUNTIF(Admin!$AN$4:$AN$99,E26)>0,1,WEEKDAY(E26))) -> 5 | R26: 3 | S26: 0 | T26: 0 | U26: 0 | V26: 3 | W26: 0 | X26: 0 | Y26: 0 | AB26: 0 | AC26: 0 | AD26: 185.7 | AE26: 0 | AF26: 0 | AG26: 0 | AH26: 0 | AI26: 0 | AJ26: 185.7 | AK26: 2023-4-06 | AL26: 13:0-16:0 | AM26: 0 min | AN26: 3 | AO26: 3 | AP26: 0 | AQ26: Namn Namn 29 | AU26: 0 | AV26: 0 | AW26: 185.7 | AX26: 0 | AY26: 0 | AZ26: 0 | BC26: 185.7 | BE26: Auto
B27: Ledsagare LSS | C27: 2 | D27: Namn Namn 29 | E27: 2023-04-10 | F27: 17:00 | G27: 19:00 | J27: 127 | L27: YYYYMMDD-NNNN | M27: =IFERROR(INDEX(Admin!$AZ$3:$BA$50,MATCH(H27,Admin!$AZ$3:$AZ$53,0),2),"LäggTillAdmin") -> 0 | O27: 2 | P27: =IF(E27="","",IF(COUNTIF(Admin!$AN$4:$AN$99,E27)>0,1,WEEKDAY(E27))) -> 2 | R27: 2 | S27: 0 | T27: 0 | U27: 0 | V27: 2 | W27: 0 | X27: 0 | Y27: 0 | AB27: 0 | AC27: 0 | AD27: 123.8 | AE27: 0 | AF27: 0 | AG27: 0 | AH27: 0 | AI27: 0 | AJ27: 123.8 | AK27: 2023-4-10 | AL27: 17:0-19:0 | AM27: 0 min | AN27: 2 | AO27: 2 | AP27: 0 | AQ27: Namn Namn 29 | AU27: 0 | AV27: 0 | AW27: 123.8 | AX27: 0 | AY27: 0 | AZ27: 0 | BC27: 123.8 | BE27: Auto
B28: Ledsagare LSS | C28: 2 | D28: Namn Namn 29 | E28: 2023-04-15 | F28: 18:00 | G28: 21:00 | J28: 127 | L28: YYYYMMDD-NNNN | M28: =IFERROR(INDEX(Admin!$AZ$3:$BA$50,MATCH(H28,Admin!$AZ$3:$AZ$53,0),2),"LäggTillAdmin") -> 0 | O28: 3 | P28: =IF(E28="","",IF(COUNTIF(Admin!$AN$4:$AN$99,E28)>0,1,WEEKDAY(E28))) -> 7 | R28: 3 | S28: 0 | T28: 0 | U28: 0 | V28: 3 | W28: 0 | X28: 0 | Y28: 0 | AB28: 0 | AC28: 0 | AD28: 185.7 | AE28: 0 | AF28: 0 | AG28: 0 | AH28: 0 | AI28: 0 | AJ28: 185.7 | AK28: 2023-4-15 | AL28: 18:0-21:0 | AM28: 0 min | AN28: 3 | AO28: 3 | AP28: 0 | AQ28: Namn Namn 29 | AU28: 0 | AV28: 0 | AW28: 185.7 | AX28: 0 | AY28: 0 | AZ28: 0 | BC28: 185.7 | BE28: Auto
B29: Ledsagare LSS | C29: 2 | D29: Namn Namn 33 | E29: 2023-04-12 | F29: 14:00 | G29: 15:30 | J29: 127 | L29: YYYYMMDD-NNNN | M29: =IFERROR(INDEX(Admin!$AZ$3:$BA$50,MATCH(H29,Admin!$AZ$3:$AZ$53,0),2),"LäggTillAdmin") -> 0 | O29: 1.5 | P29: =IF(E29="","",IF(COUNTIF(Admin!$AN$4:$AN$99,E29)>0,1,WEEKDAY(E29))) -> 4 | R29: 1.5 | S29: 0 | T29: 0 | U29: 0 | V29: 0 | W29: 0 | X29: 0 | Y29: 0 | AB29: 0 | AC29: 0 | AD29: 0 | AE29: 0 | AF29: 0 | AG29: 0 | AH29: 0 | AI29: 0 | AJ29: 0 | AK29: 2023-4-12 | AL29: 14:0-15:30 | AM29: 0 min | AN29: 1.5 | AO29: 0 | AP29: 0 | AQ29: Namn Namn 33 | AU29: 0 | AV29: 0 | AW29: 0 | AX29: 0 | AY29: 0 | AZ29: 0 | BC29: 0 | BE29: Auto
B30: Ledsagare LSS | C30: 2 | D30: Namn Namn 33 | E30: 2023-04-13 | F30: 14:00 | G30: 15:30 | J30: 127 | L30: YYYYMMDD-NNNN | M30: =IFERROR(INDEX(Admin!$AZ$3:$BA$50,MATCH(H30,Admin!$AZ$3:$AZ$53,0),2),"LäggTillAdmin") -> 0 | O30: 1.5 | P30: =IF(E30="","",IF(COUNTIF(Admin!$AN$4:$AN$99,E30)>0,1,WEEKDAY(E30))) -> 5 | R30: 1.5 | S30: 0 | T30: 0 | U30: 0 | V30: 0 | W30: 0 | X30: 0 | Y30: 0 | AB30: 0 | AC30: 0 | AD30: 0 | AE30: 0 | AF30: 0 | AG30: 0 | AH30: 0 | AI30: 0 | AJ30: 0 | AK30: 2023-4-13 | AL30: 14:0-15:30 | AM30: 0 min | AN30: 1.5 | AO30: 0 | AP30: 0 | AQ30: Namn Namn 33 | AU30: 0 | AV30: 0 | AW30: 0 | AX30: 0 | AY30: 0 | AZ30: 0 | BC30: 0 | BE30: Auto
B31: Ledsagare LSS | C31: 2 | D31: Namn Namn 33 | E31: 2023-04-17 | F31: 14:00 | G31: 16:00 | J31: 127 | L31: YYYYMMDD-NNNN | M31: =IFERROR(INDEX(Admin!$AZ$3:$BA$50,MATCH(H31,Admin!$AZ$3:$AZ$53,0),2),"LäggTillAdmin") -> 0 | O31: 2 | P31: =IF(E31="","",IF(COUNTIF(Admin!$AN$4:$AN$99,E31)>0,1,WEEKDAY(E31))) -> 2 | R31: 2 | S31: 0 | T31: 0 | U31: 0 | V31: 0 | W31: 0 | X31: 0 | Y31: 0 | AB31: 0 | AC31: 0 | AD31: 0 | AE31: 0 | AF31: 0 | AG31: 0 | AH31: 0 | AI31: 0 | AJ31: 0 | AK31: 2023-4-17 | AL31: 14:0-16:0 | AM31: 0 min | AN31: 2 | AO31: 0 | AP31: 0 | AQ31: Namn Namn 33 | AU31: 0 | AV31: 0 | AW31: 0 | AX31: 0 | AY31: 0 | AZ31: 0 | BC31: 0 | BE31: Auto
B32: Ledsagare LSS | C32: 2 | D32: Namn Namn 33 | E32: 2023-04-18 | F32: 14:00 | G32: 16:00 | J32: 127 | L32: YYYYMMDD-NNNN | M32: =IFERROR(INDEX(Admin!$AZ$3:$BA$50,MATCH(H32,Admin!$AZ$3:$AZ$53,0),2),"LäggTillAdmin") -> 0 | O32: 2 | P32: =IF(E32="","",IF(COUNTIF(Admin!$AN$4:$AN$99,E32)>0,1,WEEKDAY(E32))) -> 3 | R32: 2 | S32: 0 | T32: 0 | U32: 0 | V32: 0 | W32: 0 | X32: 0 | Y32: 0 | AB32: 0 | AC32: 0 | AD32: 0 | AE32: 0 | AF32: 0 | AG32: 0 | AH32: 0 | AI32: 0 | AJ32: 0 | AK32: 2023-4-18 | AL32: 14:0-16:0 | AM32: 0 min | AN32: 2 | AO32: 0 | AP32: 0 | AQ32: Namn Namn 33 | AU32: 0 | AV32: 0 | AW32: 0 | AX32: 0 | AY32: 0 | AZ32: 0 | BC32: 0 | BE32: Auto
B33: Ledsagare LSS | C33: 2 | D33: Namn Namn 33 | E33: 2023-04-25 | F33: 14:00 | G33: 15:30 | J33: 127 | L33: YYYYMMDD-NNNN | M33: =IFERROR(INDEX(Admin!$AZ$3:$BA$50,MATCH(H33,Admin!$AZ$3:$AZ$53,0),2),"LäggTillAdmin") -> 0 | O33: 1.5 | P33: =IF(E33="","",IF(COUNTIF(Admin!$AN$4:$AN$99,E33)>0,1,WEEKDAY(E33))) -> 3 | R33: 1.5 | S33: 0 | T33: 0 | U33: 0 | V33: 0 | W33: 0 | X33: 0 | Y33: 0 | AB33: 0 | AC33: 0 | AD33: 0 | AE33: 0 | AF33: 0 | AG33: 0 | AH33: 0 | AI33: 0 | AJ33: 0 | AK33: 2023-4-25 | AL33: 14:0-15:30 | AM33: 0 min | AN33: 1.5 | AO33: 0 | AP33: 0 | AQ33: Namn Namn 33 | AU33: 0 | AV33: 0 | AW33: 0 | AX33: 0 | AY33: 0 | AZ33: 0 | BC33: 0 | BE33: Auto
B34: Ledsagare LSS | C34: 2 | D34: Namn Namn 33 | E34: 2023-04-26 | F34: 14:00 | G34: 15:30 | J34: 127 | L34: YYYYMMDD-NNNN | M34: =IFERROR(INDEX(Admin!$AZ$3:$BA$50,MATCH(H34,Admin!$AZ$3:$AZ$53,0),2),"LäggTillAdmin") -> 0 | O34: 1.5 | P34: =IF(E34="","",IF(COUNTIF(Admin!$AN$4:$AN$99,E34)>0,1,WEEKDAY(E34))) -> 4 | R34: 1.5 | S34: 0 | T34: 0 | U34: 0 | V34: 0 | W34: 0 | X34: 0 | Y34: 0 | AB34: 0 | AC34: 0 | AD34: 0 | AE34: 0 | AF34: 0 | AG34: 0 | AH34: 0 | AI34: 0 | AJ34: 0 | AK34: 2023-4-26 | AL34: 14:0-15:30 | AM34: 0 min | AN34: 1.5 | AO34: 0 | AP34: 0 | AQ34: Namn Namn 33 | AU34: 0 | AV34: 0 | AW34: 0 | AX34: 0 | AY34: 0 | AZ34: 0 | BC34: 0 | BE34: Auto
B35: Ledsagare LSS | C35: 2 | D35: Namn Namn 33 | E35: 2023-04-28 | F35: 14:00 | G35: 16:00 | J35: 127 | L35: YYYYMMDD-NNNN | M35: =IFERROR(INDEX(Admin!$AZ$3:$BA$50,MATCH(H35,Admin!$AZ$3:$AZ$53,0),2),"LäggTillAdmin") -> 0 | O35: 2 | P35: =IF(E35="","",IF(COUNTIF(Admin!$AN$4:$AN$99,E35)>0,1,WEEKDAY(E35))) -> 6 | R35: 2 | S35: 0 | T35: 0 | U35: 0 | V35: 0 | W35: 0 | X35: 0 | Y35: 0 | AB35: 0 | AC35: 0 | AD35: 0 | AE35: 0 | AF35: 0 | AG35: 0 | AH35: 0 | AI35: 0 | AJ35: 0 | AK35: 2023-4-28 | AL35: 14:0-16:0 | AM35: 0 min | AN35: 2 | AO35: 0 | AP35: 0 | AQ35: Namn Namn 33 | AU35: 0 | AV35: 0 | AW35: 0 | AX35: 0 | AY35: 0 | AZ35: 0 | BC35: 0 | BE35: Auto
B36: Ledsagare LSS | C36: T1 | D36: Namn Namn 40 | E36: 2023-04-08 | F36: 09:30 | G36: 14:30 | J36: 127 | L36: YYYYMMDD-NNNN | M36: =IFERROR(INDEX(Admin!$AZ$3:$BA$50,MATCH(H36,Admin!$AZ$3:$AZ$53,0),2),"LäggTillAdmin") -> 0 | O36: 5 | P36: =IF(E36="","",IF(COUNTIF(Admin!$AN$4:$AN$99,E36)>0,1,WEEKDAY(E36))) -> 7 | R36: 5 | S36: 0 | T36: 0 | U36: 0 | V36: 5 | W36: 0 | X36: 0 | Y36: 0 | AB36: 0 | AC36: 0 | AD36: 309.5 | AE36: 0 | AF36: 0 | AG36: 0 | AH36: 0 | AI36: 0 | AJ36: 309.5 | AK36: 2023-4-08 | AL36: 9:30-14:30 | AM36: 0 min | AN36: 5 | AO36: 5 | AP36: 0 | AQ36: Namn Namn 40 | AU36: 0 | AV36: 0 | AW36: 309.5 | AX36: 0 | AY36: 0 | AZ36: 0 | BC36: 309.5 | BE36: Auto
B37: Ledsagare LSS | C37: T1 | D37: Namn Namn 40 | E37: 2023-04-23 | F37: 10:00 | G37: 15:00 | J37: 127 | L37: YYYYMMDD-NNNN | M37: =IFERROR(INDEX(Admin!$AZ$3:$BA$50,MATCH(H37,Admin!$AZ$3:$AZ$53,0),2),"LäggTillAdmin") -> 0 | O37: 5 | P37: =IF(E37="","",IF(COUNTIF(Admin!$AN$4:$AN$99,E37)>0,1,WEEKDAY(E37))) -> 1 | R37: 5 | S37: 0 | T37: 0 | U37: 0 | V37: 5 | W37: 0 | X37: 0 | Y37: 0 | AB37: 0 | AC37: 0 | AD37: 309.5 | AE37: 0 | AF37: 0 | AG37: 0 | AH37: 0 | AI37: 0 | AJ37: 309.5 | AK37: 2023-4-23 | AL37: 10:0-15:0 | AM37: 0 min | AN37: 5 | AO37: 5 | AP37: 0 | AQ37: Namn Namn 40 | AU37: 0 | AV37: 0 | AW37: 309.5 | AX37: 0 | AY37: 0 | AZ37: 0 | BC37: 309.5 | BE37: Auto
B38: Ledsagare LSS | C38: 1 | D38: Namn Namn 42 | E38: 2023-04-05 | F38: 17:20 | G38: 19:15 | J38: 127 | L38: YYYYMMDD-NNNN | M38: =IFERROR(INDEX(Admin!$AZ$3:$BA$50,MATCH(H38,Admin!$AZ$3:$AZ$53,0),2),"LäggTillAdmin") -> 0 | O38: 1.916666667 | P38: =IF(E38="","",IF(COUNTIF(Admin!$AN$4:$AN$99,E38)>0,1,WEEKDAY(E38))) -> 4 | R38: 1.916666667 | S38: 0 | T38: 0.25 | U38: 0 | V38: 0 | W38: 0 | X38: 0 | Y38: 0 | AB38: 6 | AC38: 0 | AD38: 0 | AE38: 0 | AF38: 0 | AG38: 0 | AH38: 0 | AI38: 0 | AJ38: 6 | AK38: 2023-4-05 | AL38: 17:20-19:15 | AM38: 0 min | AN38: 1.916666667 | AO38: 0.25 | AP38: 0 | AQ38: Namn Namn 42 | AU38: 6 | AV38: 0 | AW38: 0 | AX38: 0 | AY38: 0 | AZ38: 0 | BC38: 6 | BE38: Auto
B39: Ledsagare LSS | C39: 1 | D39: Namn Namn 42 | E39: 2023-04-06 | F39: 14:53 | G39: 16:45 | J39: 127 | L39: YYYYMMDD-NNNN | M39: =IFERROR(INDEX(Admin!$AZ$3:$BA$50,MATCH(H39,Admin!$AZ$3:$AZ$53,0),2),"LäggTillAdmin") -> 0 | O39: 1.866666667 | P39: =IF(E39="","",IF(COUNTIF(Admin!$AN$4:$AN$99,E39)>0,1,WEEKDAY(E39))) -> 5 | R39: 1.866666667 | S39: 0 | T39: 0 | U39: 0 | V39: 2 | W39: 0 | X39: 0 | Y39: 0 | AB39: 0 | AC39: 0 | AD39: 123.8 | AE39: 0 | AF39: 0 | AG39: 0 | AH39: 0 | AI39: 0 | AJ39: 123.8 | AK39: 2023-4-06 | AL39: 14:53-16:45 | AM39: 0 min | AN39: 1.866666667 | AO39: 2 | AP39: 0 | AQ39: Namn Namn 42 | AU39: 0 | AV39: 0 | AW39: 123.8 | AX39: 0 | AY39: 0 | AZ39: 0 | BC39: 123.8 | BE39: Auto
B40: Ledsagare LSS | C40: 1 | D40: Namn Namn 42 | E40: 2023-04-08 | F40: 10:00 | G40: 12:00 | J40: 127 | L40: YYYYMMDD-NNNN | M40: =IFERROR(INDEX(Admin!$AZ$3:$BA$50,MATCH(H40,Admin!$AZ$3:$AZ$53,0),2),"LäggTillAdmin") -> 0 | O40: 2 | P40: =IF(E40="","",IF(COUNTIF(Admin!$AN$4:$AN$99,E40)>0,1,WEEKDAY(E40))) -> 7 | R40: 2 | S40: 0 | T40: 0 | U40: 0 | V40: 2 | W40: 0 | X40: 0 | Y40: 0 | AB40: 0 | AC40: 0 | AD40: 123.8 | AE40: 0 | AF40: 0 | AG40: 0 | AH40: 0 | AI40: 0 | AJ40: 123.8 | AK40: 2023-4-08 | AL40: 10:0-12:0 | AM40: 0 min | AN40: 2 | AO40: 2 | AP40: 0 | AQ40: Namn Namn 42 | AU40: 0 | AV40: 0 | AW40: 123.8 | AX40: 0 | AY40: 0 | AZ40: 0 | BC40: 123.8 | BE40: Auto
B41: Ledsagare LSS | C41: 1 | D41: Namn Namn 42 | E41: 2023-04-10 | F41: 15:10 | G41: 16:35 | J41: 127 | L41: YYYYMMDD-NNNN | M41: =IFERROR(INDEX(Admin!$AZ$3:$BA$50,MATCH(H41,Admin!$AZ$3:$AZ$53,0),2),"LäggTillAdmin") -> 0 | O41: 1.416666667 | P41: =IF(E41="","",IF(COUNTIF(Admin!$AN$4:$AN$99,E41)>0,1,WEEKDAY(E41))) -> 2 | R41: 1.416666667 | S41: 0 | T41: 0 | U41: 0 | V41: 1 | W41: 0 | X41: 0 | Y41: 0 | AB41: 0 | AC41: 0 | AD41: 61.9 | AE41: 0 | AF41: 0 | AG41: 0 | AH41: 0 | AI41: 0 | AJ41: 61.9 | AK41: 2023-4-10 | AL41: 15:10-16:35 | AM41: 0 min | AN41: 1.416666667 | AO41: 1 | AP41: 0 | AQ41: Namn Namn 42 | AU41: 0 | AV41: 0 | AW41: 61.9 | AX41: 0 | AY41: 0 | AZ41: 0 | BC41: 61.9 | BE41: Auto
B42: Ledsagare LSS | C42: 1 | D42: Namn Namn 42 | E42: 2023-04-13 | F42: 17:25 | G42: 19:00 | J42: 127 | L42: YYYYMMDD-NNNN | M42: =IFERROR(INDEX(Admin!$AZ$3:$BA$50,MATCH(H42,Admin!$AZ$3:$AZ$53,0),2),"LäggTillAdmin") -> 0 | O42: 1.583333333 | P42: =IF(E42="","",IF(COUNTIF(Admin!$AN$4:$AN$99,E42)>0,1,WEEKDAY(E42))) -> 5 | R42: 1.583333333 | S42: 0 | T42: 0 | U42: 0 | V42: 0 | W42: 0 | X42: 0 | Y42: 0 | AB42: 0 | AC42: 0 | AD42: 0 | AE42: 0 | AF42: 0 | AG42: 0 | AH42: 0 | AI42: 0 | AJ42: 0 | AK42: 2023-4-13 | AL42: 17:25-19:0 | AM42: 0 min | AN42: 1.583333333 | AO42: 0 | AP42: 0 | AQ42: Namn Namn 42 | AU42: 0 | AV42: 0 | AW42: 0 | AX42: 0 | AY42: 0 | AZ42: 0 | BC42: 0 | BE42: Auto
B43: Ledsagare LSS | C43: 1 | D43: Namn Namn 42 | E43: 2023-04-15 | F43: 12:30 | G43: 15:30 | J43: 127 | L43: YYYYMMDD-NNNN | M43: =IFERROR(INDEX(Admin!$AZ$3:$BA$50,MATCH(H43,Admin!$AZ$3:$AZ$53,0),2),"LäggTillAdmin") -> 0 | O43: 3 | P43: =IF(E43="","",IF(COUNTIF(Admin!$AN$4:$AN$99,E43)>0,1,WEEKDAY(E43))) -> 7 | R43: 3 | S43: 0 | T43: 0 | U43: 0 | V43: 3 | W43: 0 | X43: 0 | Y43: 0 | AB43: 0 | AC43: 0 | AD43: 185.7 | AE43: 0 | AF43: 0 | AG43: 0 | AH43: 0 | AI43: 0 | AJ43: 185.7 | AK43: 2023-4-15 | AL43: 12:30-15:30 | AM43: 0 min | AN43: 3 | AO43: 3 | AP43: 0 | AQ43: Namn Namn 42 | AU43: 0 | AV43: 0 | AW43: 185.7 | AX43: 0 | AY43: 0 | AZ43: 0 | BC43: 185.7 | BE43: Auto
B44: Ledsagare LSS | C44: 1 | D44: Namn Namn 42 | E44: 2023-04-16 | F44: 10:00 | G44: 12:15 | J44: 127 | L44: YYYYMMDD-NNNN | M44: =IFERROR(INDEX(Admin!$AZ$3:$BA$50,MATCH(H44,Admin!$AZ$3:$AZ$53,0),2),"LäggTillAdmin") -> 0 | O44: 2.25 | P44: =IF(E44="","",IF(COUNTIF(Admin!$AN$4:$AN$99,E44)>0,1,WEEKDAY(E44))) -> 1 | R44: 2.25 | S44: 0 | T44: 0 | U44: 0 | V44: 2.25 | W44: 0 | X44: 0 | Y44: 0 | AB44: 0 | AC44: 0 | AD44: 139.275 | AE44: 0 | AF44: 0 | AG44: 0 | AH44: 0 | AI44: 0 | AJ44: 139.275 | AK44: 2023-4-16 | AL44: 10:0-12:15 | AM44: 0 min | AN44: 2.25 | AO44: 2.25 | AP44: 0 | AQ44: Namn Namn 42 | AU44: 0 | AV44: 0 | AW44: 139.275 | AX44: 0 | AY44: 0 | AZ44: 0 | BC44: 139.275 | BE44: Auto
B45: Ledsagare LSS | C45: 1 | D45: Namn Namn 42 | E45: 2023-04-20 | F45: 17:22 | G45: 19:12 | J45: 127 | L45: YYYYMMDD-NNNN | M45: =IFERROR(INDEX(Admin!$AZ$3:$BA$50,MATCH(H45,Admin!$AZ$3:$AZ$53,0),2),"LäggTillAdmin") -> 0 | O45: 1.833333333 | P45: =IF(E45="","",IF(COUNTIF(Admin!$AN$4:$AN$99,E45)>0,1,WEEKDAY(E45))) -> 5 | R45: 1.833333333 | S45: 0 | T45: 0.2 | U45: 0 | V45: 0 | W45: 0 | X45: 0 | Y45: 0 | AB45: 4.8 | AC45: 0 | AD45: 0 | AE45: 0 | AF45: 0 | AG45: 0 | AH45: 0 | AI45: 0 | AJ45: 4.8 | AK45: 2023-4-20 | AL45: 17:22-19:12 | AM45: 0 min | AN45: 1.833333333 | AO45: 0.2 | AP45: 0 | AQ45: Namn Namn 42 | AU45: 4.8 | AV45: 0 | AW45: 0 | AX45: 0 | AY45: 0 | AZ45: 0 | BC45: 4.8 | BE45: Auto
B46: Ledsagare LSS | C46: 1 | D46: Namn Namn 42 | E46: 2023-04-22 | F46: 10:00 | G46: 12:25 | J46: 127 | L46: YYYYMMDD-NNNN | M46: =IFERROR(INDEX(Admin!$AZ$3:$BA$50,MATCH(H46,Admin!$AZ$3:$AZ$53,0),2),"LäggTillAdmin") -> 0 | O46: 2.416666667 | P46: =IF(E46="","",IF(COUNTIF(Admin!$AN$4:$AN$99,E46)>0,1,WEEKDAY(E46))) -> 7 | R46: 2.416666667 | S46: 0 | T46: 0 | U46: 0 | V46: 2.416666667 | W46: 0 | X46: 0 | Y46: 0 | AB46: 0 | AC46: 0 | AD46: 149.5916667 | AE46: 0 | AF46: 0 | AG46: 0 | AH46: 0 | AI46: 0 | AJ46: 149.5916667 | AK46: 2023-4-22 | AL46: 10:0-12:25 | AM46: 0 min | AN46: 2.416666667 | AO46: 2.416666667 | AP46: 0 | AQ46: Namn Namn 42 | AU46: 0 | AV46: 0 | AW46: 149.5916667 | AX46: 0 | AY46: 0 | AZ46: 0 | BC46: 149.5916667 | BE46: Auto
B47: Ledsagare LSS | C47: 1 | D47: Namn Namn 42 | E47: 2023-04-29 | F47: 11:50 | G47: 13:32 | J47: 127 | L47: YYYYMMDD-NNNN | M47: =IFERROR(INDEX(Admin!$AZ$3:$BA$50,MATCH(H47,Admin!$AZ$3:$AZ$53,0),2),"LäggTillAdmin") -> 0 | O47: 1.7 | P47: =IF(E47="","",IF(COUNTIF(Admin!$AN$4:$AN$99,E47)>0,1,WEEKDAY(E47))) -> 7 | R47: 1.7 | S47: 0 | T47: 0 | U47: 0 | V47: 1.7 | W47: 0 | X47: 0 | Y47: 0 | AB47: 0 | AC47: 0 | AD47: 105.23 | AE47: 0 | AF47: 0 | AG47: 0 | AH47: 0 | AI47: 0 | AJ47: 105.23 | AK47: 2023-4-29 | AL47: 11:50-13:32 | AM47: 0 min | AN47: 1.7 | AO47: 1.7 | AP47: 0 | AQ47: Namn Namn 42 | AU47: 0 | AV47: 0 | AW47: 105.23 | AX47: 0 | AY47: 0 | AZ47: 0 | BC47: 105.23 | BE47: Auto
B48: Ledsagare LSS | C48: 3 | D48: Namn Namn 52 | E48: 2023-04-04 | F48: 16:00 | G48: 21:00 | J48: 127 | L48: YYYYMMDD-NNNN | M48: =IFERROR(INDEX(Admin!$AZ$3:$BA$50,MATCH(H48,Admin!$AZ$3:$AZ$53,0),2),"LäggTillAdmin") -> 0 | O48: 5 | P48: =IF(E48="","",IF(COUNTIF(Admin!$AN$4:$AN$99,E48)>0,1,WEEKDAY(E48))) -> 3 | R48: 5 | S48: 0 | T48: 2 | U48: 0 | V48: 0 | W48: 0 | X48: 0 | Y48: 0 | AB48: 48 | AC48: 0 | AD48: 0 | AE48: 0 | AF48: 0 | AG48: 0 | AH48: 0 | AI48: 0 | AJ48: 48 | AK48: 2023-4-04 | AL48: 16:0-21:0 | AM48: 0 min | AN48: 5 | AO48: 2 | AP48: 0 | AQ48: Namn Namn 52 | AU48: 48 | AV48: 0 | AW48: 0 | AX48: 0 | AY48: 0 | AZ48: 0 | BC48: 48 | BE48: Auto
B49: Ledsagare LSS | C49: 3 | D49: Namn Namn 52 | E49: 2023-04-09 | F49: 17:00 | G49: 22:00 | J49: 127 | L49: YYYYMMDD-NNNN | M49: =IFERROR(INDEX(Admin!$AZ$3:$BA$50,MATCH(H49,Admin!$AZ$3:$AZ$53,0),2),"LäggTillAdmin") -> 0 | O49: 5 | P49: =IF(E49="","",IF(COUNTIF(Admin!$AN$4:$AN$99,E49)>0,1,WEEKDAY(E49))) -> 1 | R49: 5 | S49: 0 | T49: 0 | U49: 0 | V49: 5 | W49: 0 | X49: 0 | Y49: 0 | AB49: 0 | AC49: 0 | AD49: 309.5 | AE49: 0 | AF49: 0 | AG49: 0 | AH49: 0 | AI49: 0 | AJ49: 309.5 | AK49: 2023-4-09 | AL49: 17:0-22:0 | AM49: 0 min | AN49: 5 | AO49: 5 | AP49: 0 | AQ49: Namn Namn 52 | AU49: 0 | AV49: 0 | AW49: 309.5 | AX49: 0 | AY49: 0 | AZ49: 0 | BC49: 309.5 | BE49: Auto
B50: Ledsagare LSS | C50: 3 | D50: Namn Namn 52 | E50: 2023-04-18 | F50: 16:30 | G50: 21:30 | J50: 127 | L50: YYYYMMDD-NNNN | M50: =IFERROR(INDEX(Admin!$AZ$3:$BA$50,MATCH(H50,Admin!$AZ$3:$AZ$53,0),2),"LäggTillAdmin") -> 0 | O50: 5 | P50: =IF(E50="","",IF(COUNTIF(Admin!$AN$4:$AN$99,E50)>0,1,WEEKDAY(E50))) -> 3 | R50: 5 | S50: 0 | T50: 2.5 | U50: 0 | V50: 0 | W50: 0 | X50: 0 | Y50: 0 | AB50: 60 | AC50: 0 | AD50: 0 | AE50: 0 | AF50: 0 | AG50: 0 | AH50: 0 | AI50: 0 | AJ50: 60 | AK50: 2023-4-18 | AL50: 16:30-21:30 | AM50: 0 min | AN50: 5 | AO50: 2.5 | AP50: 0 | AQ50: Namn Namn 52 | AU50: 60 | AV50: 0 | AW50: 0 | AX50: 0 | AY50: 0 | AZ50: 0 | BC50: 60 | BE50: Auto
B51: Ledsagare LSS | C51: 3 | D51: Namn Namn 52 | E51: 2023-04-24 | F51: 16:00 | G51: 21:00 | J51: 127 | L51: YYYYMMDD-NNNN | M51: =IFERROR(INDEX(Admin!$AZ$3:$BA$50,MATCH(H51,Admin!$AZ$3:$AZ$53,0),2),"LäggTillAdmin") -> 0 | O51: 5 | P51: =IF(E51="","",IF(COUNTIF(Admin!$AN$4:$AN$99,E51)>0,1,WEEKDAY(E51))) -> 2 | R51: 5 | S51: 0 | T51: 2 | U51: 0 | V51: 0 | W51: 0 | X51: 0 | Y51: 0 | AB51: 48 | AC51: 0 | AD51: 0 | AE51: 0 | AF51: 0 | AG51: 0 | AH51: 0 | AI51: 0 | AJ51: 48 | AK51: 2023-4-24 | AL51: 16:0-21:0 | AM51: 0 min | AN51: 5 | AO51: 2 | AP51: 0 | AQ51: Namn Namn 52 | AU51: 48 | AV51: 0 | AW51: 0 | AX51: 0 | AY51: 0 | AZ51: 0 | BC51: 48 | BE51: Auto
B52: Ledsagare LSS | C52: T2 | D52: Namn Namn 56 | E52: 2023-04-04 | F52: 14:30 | G52: 18:30 | J52: 127 | L52: YYYYMMDD-NNNN | M52: =IFERROR(INDEX(Admin!$AZ$3:$BA$50,MATCH(H52,Admin!$AZ$3:$AZ$53,0),2),"LäggTillAdmin") -> 0 | O52: 4 | P52: =IF(E52="","",IF(COUNTIF(Admin!$AN$4:$AN$99,E52)>0,1,WEEKDAY(E52))) -> 3 | R52: 4 | S52: 0 | T52: 0 | U52: 0 | V52: 0 | W52: 0 | X52: 0 | Y52: 0 | AB52: 0 | AC52: 0 | AD52: 0 | AE52: 0 | AF52: 0 | AG52: 0 | AH52: 0 | AI52: 0 | AJ52: 0 | AK52: 2023-4-04 | AL52: 14:30-18:30 | AM52: 0 min | AN52: 4 | AO52: 0 | AP52: 0 | AQ52: Namn Namn 56 | AU52: 0 | AV52: 0 | AW52: 0 | AX52: 0 | AY52: 0 | AZ52: 0 | BC52: 0 | BE52: Auto
B53: Ledsagare LSS | C53: T2 | D53: Namn Namn 56 | E53: 2023-04-18 | F53: 14:00 | G53: 19:00 | J53: 127 | L53: YYYYMMDD-NNNN | M53: =IFERROR(INDEX(Admin!$AZ$3:$BA$50,MATCH(H53,Admin!$AZ$3:$AZ$53,0),2),"LäggTillAdmin") -> 0 | O53: 5 | P53: =IF(E53="","",IF(COUNTIF(Admin!$AN$4:$AN$99,E53)>0,1,WEEKDAY(E53))) -> 3 | R53: 5 | S53: 0 | T53: 0 | U53: 0 | V53: 0 | W53: 0 | X53: 0 | Y53: 0 | AB53: 0 | AC53: 0 | AD53: 0 | AE53: 0 | AF53: 0 | AG53: 0 | AH53: 0 | AI53: 0 | AJ53: 0 | AK53: 2023-4-18 | AL53: 14:0-19:0 | AM53: 0 min | AN53: 5 | AO53: 0 | AP53: 0 | AQ53: Namn Namn 56 | AU53: 0 | AV53: 0 | AW53: 0 | AX53: 0 | AY53: 0 | AZ53: 0 | BC53: 0 | BE53: Auto
B54: Ledsagare LSS | C54: 1 | D54: Namn Namn 58 | E54: 2023-04-08 | F54: 12:00 | G54: 17:00 | J54: 127 | L54: YYYYMMDD-NNNN | M54: =IFERROR(INDEX(Admin!$AZ$3:$BA$50,MATCH(H54,Admin!$AZ$3:$AZ$53,0),2),"LäggTillAdmin") -> 0 | O54: 5 | P54: =IF(E54="","",IF(COUNTIF(Admin!$AN$4:$AN$99,E54)>0,1,WEEKDAY(E54))) -> 7 | R54: 5 | S54: 0 | T54: 0 | U54: 0 | V54: 5 | W54: 0 | X54: 0 | Y54: 0 | AB54: 0 | AC54: 0 | AD54: 309.5 | AE54: 0 | AF54: 0 | AG54: 0 | AH54: 0 | AI54: 0 | AJ54: 309.5 | AK54: 2023-4-08 | AL54: 12:0-17:0 | AM54: 0 min | AN54: 5 | AO54: 5 | AP54: 0 | AQ54: Namn Namn 58 | AU54: 0 | AV54: 0 | AW54: 309.5 | AX54: 0 | AY54: 0 | AZ54: 0 | BC54: 309.5 | BE54: Auto
B55: Ledsagare LSS | C55: 1 | D55: Namn Namn 58 | E55: 2023-04-15 | F55: 12:00 | G55: 17:00 | J55: 127 | L55: YYYYMMDD-NNNN | M55: =IFERROR(INDEX(Admin!$AZ$3:$BA$50,MATCH(H55,Admin!$AZ$3:$AZ$53,0),2),"LäggTillAdmin") -> 0 | O55: 5 | P55: =IF(E55="","",IF(COUNTIF(Admin!$AN$4:$AN$99,E55)>0,1,WEEKDAY(E55))) -> 7 | R55: 5 | S55: 0 | T55: 0 | U55: 0 | V55: 5 | W55: 0 | X55: 0 | Y55: 0 | AB55: 0 | AC55: 0 | AD55: 309.5 | AE55: 0 | AF55: 0 | AG55: 0 | AH55: 0 | AI55: 0 | AJ55: 309.5 | AK55: 2023-4-15 | AL55: 12:0-17:0 | AM55: 0 min | AN55: 5 | AO55: 5 | AP55: 0 | AQ55: Namn Namn 58 | AU55: 0 | AV55: 0 | AW55: 309.5 | AX55: 0 | AY55: 0 | AZ55: 0 | BC55: 309.5 | BE55: Auto
B56: Ledsagare LSS | C56: T1 | D56: Namn Namn 60 | E56: 2023-04-01 | F56: 11:00 | G56: 14:00 | J56: 127 | L56: YYYYMMDD-NNNN | M56: =IFERROR(INDEX(Admin!$AZ$3:$BA$50,MATCH(H56,Admin!$AZ$3:$AZ$53,0),2),"LäggTillAdmin") -> 0 | O56: 3 | P56: =IF(E56="","",IF(COUNTIF(Admin!$AN$4:$AN$99,E56)>0,1,WEEKDAY(E56))) -> 7 | R56: 3 | S56: 0 | T56: 0 | U56: 0 | V56: 3 | W56: 0 | X56: 0 | Y56: 0 | AB56: 0 | AC56: 0 | AD56: 185.7 | AE56: 0 | AF56: 0 | AG56: 0 | AH56: 0 | AI56: 0 | AJ56: 185.7 | AK56: 2023-4-01 | AL56: 11:0-14:0 | AM56: 0 min | AN56: 3 | AO56: 3 | AP56: 0 | AQ56: Namn Namn 60 | AU56: 0 | AV56: 0 | AW56: 185.7 | AX56: 0 | AY56: 0 | AZ56: 0 | BC56: 185.7 | BE56: Auto
B57: Ledsagare LSS | C57: T1 | D57: Namn Namn 60 | E57: 2023-04-16 | F57: 11:50 | G57: 14:50 | J57: 127 | L57: YYYYMMDD-NNNN | M57: =IFERROR(INDEX(Admin!$AZ$3:$BA$50,MATCH(H57,Admin!$AZ$3:$AZ$53,0),2),"LäggTillAdmin") -> 0 | O57: 3 | P57: =IF(E57="","",IF(COUNTIF(Admin!$AN$4:$AN$99,E57)>0,1,WEEKDAY(E57))) -> 1 | R57: 3 | S57: 0 | T57: 0 | U57: 0 | V57: 3 | W57: 0 | X57: 0 | Y57: 0 | AB57: 0 | AC57: 0 | AD57: 185.7 | AE57: 0 | AF57: 0 | AG57: 0 | AH57: 0 | AI57: 0 | AJ57: 185.7 | AK57: 2023-4-16 | AL57: 11:50-14:50 | AM57: 0 min | AN57: 3 | AO57: 3 | AP57: 0 | AQ57: Namn Namn 60 | AU57: 0 | AV57: 0 | AW57: 185.7 | AX57: 0 | AY57: 0 | AZ57: 0 | BC57: 185.7 | BE57: Auto
B58: Ledsagare LSS | C58: T1 | D58: Namn Namn 60 | E58: 2023-04-23 | F58: 12:25 | G58: 16:25 | J58: 127 | L58: YYYYMMDD-NNNN | M58: =IFERROR(INDEX(Admin!$AZ$3:$BA$50,MATCH(H58,Admin!$AZ$3:$AZ$53,0),2),"LäggTillAdmin") -> 0 | O58: 4 | P58: =IF(E58="","",IF(COUNTIF(Admin!$AN$4:$AN$99,E58)>0,1,WEEKDAY(E58))) -> 1 | R58: 4 | S58: 0 | T58: 0 | U58: 0 | V58: 4 | W58: 0 | X58: 0 | Y58: 0 | AB58: 0 | AC58: 0 | AD58: 247.6 | AE58: 0 | AF58: 0 | AG58: 0 | AH58: 0 | AI58: 0 | AJ58: 247.6 | AK58: 2023-4-23 | AL58: 12:25-16:25 | AM58: 0 min | AN58: 4 | AO58: 4 | AP58: 0 | AQ58: Namn Namn 60 | AU58: 0 | AV58: 0 | AW58: 247.6 | AX58: 0 | AY58: 0 | AZ58: 0 | BC58: 247.6 | BE58: Auto
B59: Ledsagare LSS | C59: 1 | D59: Namn Namn 63 | E59: 2023-04-06 | F59: 09:00 | G59: 11:00 | J59: 132.86 | L59: YYYYMMDD-NNNN | M59: =IFERROR(INDEX(Admin!$AZ$3:$BA$50,MATCH(H59,Admin!$AZ$3:$AZ$53,0),2),"LäggTillAdmin") -> 0 | O59: 2 | P59: =IF(E59="","",IF(COUNTIF(Admin!$AN$4:$AN$99,E59)>0,1,WEEKDAY(E59))) -> 5 | R59: 2 | S59: 0 | T59: 0 | U59: 0 | V59: 0 | W59: 0 | X59: 0 | Y59: 0 | AB59: 0 | AC59: 0 | AD59: 0 | AE59: 0 | AF59: 0 | AG59: 0 | AH59: 0 | AI59: 0 | AJ59: 0 | AK59: 2023-4-06 | AL59: 9:0-11:0 | AM59: 0 min | AN59: 2 | AO59: 0 | AP59: 0 | AQ59: Namn Namn 63 | AU59: 0 | AV59: 0 | AW59: 0 | AX59: 0 | AY59: 0 | AZ59: 0 | BC59: 0 | BE59: Auto
B60: Ledsagare LSS | C60: 1 | D60: Namn Namn 63 | E60: 2023-04-07 | F60: 09:00 | G60: 11:00 | J60: 132.86 | L60: YYYYMMDD-NNNN | M60: =IFERROR(INDEX(Admin!$AZ$3:$BA$50,MATCH(H60,Admin!$AZ$3:$AZ$53,0),2),"LäggTillAdmin") -> 0 | O60: 2 | P60: =IF(E60="","",IF(COUNTIF(Admin!$AN$4:$AN$99,E60)>0,1,WEEKDAY(E60))) -> 6 | R60: 2 | S60: 0 | T60: 0 | U60: 0 | V60: 0 | W60: 0 | X60: 0 | Y60: 0 | AB60: 0 | AC60: 0 | AD60: 0 | AE60: 0 | AF60: 0 | AG60: 0 | AH60: 0 | AI60: 0 | AJ60: 0 | AK60: 2023-4-07 | AL60: 9:0-11:0 | AM60: 0 min | AN60: 2 | AO60: 0 | AP60: 0 | AQ60: Namn Namn 63 | AU60: 0 | AV60: 0 | AW60: 0 | AX60: 0 | AY60: 0 | AZ60: 0 | BC60: 0 | BE60: Auto
B61: Ledsagare LSS | C61: 1 | D61: Namn Namn 63 | E61: 2023-04-08 | F61: 08:00 | G61: 10:00 | J61: 132.86 | L61: YYYYMMDD-NNNN | M61: =IFERROR(INDEX(Admin!$AZ$3:$BA$50,MATCH(H61,Admin!$AZ$3:$AZ$53,0),2),"LäggTillAdmin") -> 0 | O61: 2 | P61: =IF(E61="","",IF(COUNTIF(Admin!$AN$4:$AN$99,E61)>0,1,WEEKDAY(E61))) -> 7 | R61: 2 | S61: 0 | T61: 0 | U61: 0 | V61: 0 | W61: 0 | X61: 0 | Y61: 0 | AB61: 0 | AC61: 0 | AD61: 0 | AE61: 0 | AF61: 0 | AG61: 0 | AH61: 0 | AI61: 0 | AJ61: 0 | AK61: 2023-4-08 | AL61: 8:0-10:0 | AM61: 0 min | AN61: 2 | AO61: 0 | AP61: 0 | AQ61: Namn Namn 63 | AU61: 0 | AV61: 0 | AW61: 0 | AX61: 0 | AY61: 0 | AZ61: 0 | BC61: 0 | BE61: Auto
B62: Ledsagare LSS | C62: 1 | D62: Namn Namn 63 | E62: 2023-04-09 | F62: 08:00 | G62: 10:00 | J62: 132.86 | L62: YYYYMMDD-NNNN | M62: =IFERROR(INDEX(Admin!$AZ$3:$BA$50,MATCH(H62,Admin!$AZ$3:$AZ$53,0),2),"LäggTillAdmin") -> 0 | O62: 2 | P62: =IF(E62="","",IF(COUNTIF(Admin!$AN$4:$AN$99,E62)>0,1,WEEKDAY(E62))) -> 1 | R62: 2 | S62: 0 | T62: 0 | U62: 0 | V62: 0 | W62: 0 | X62: 0 | Y62: 0 | AB62: 0 | AC62: 0 | AD62: 0 | AE62: 0 | AF62: 0 | AG62: 0 | AH62: 0 | AI62: 0 | AJ62: 0 | AK62: 2023-4-09 | AL62: 8:0-10:0 | AM62: 0 min | AN62: 2 | AO62: 0 | AP62: 0 | AQ62: Namn Namn 63 | AU62: 0 | AV62: 0 | AW62: 0 | AX62: 0 | AY62: 0 | AZ62: 0 | BC62: 0 | BE62: Auto
B63: Ledsagare LSS | C63: 1 | D63: Namn Namn 63 | E63: 2023-04-20 | F63: 09:00 | G63: 13:30 | J63: 132.86 | L63: YYYYMMDD-NNNN | M63: =IFERROR(INDEX(Admin!$AZ$3:$BA$50,MATCH(H63,Admin!$AZ$3:$AZ$53,0),2),"LäggTillAdmin") -> 0 | O63: 4.5 | P63: =IF(E63="","",IF(COUNTIF(Admin!$AN$4:$AN$99,E63)>0,1,WEEKDAY(E63))) -> 5 | R63: 4.5 | S63: 0 | T63: 0 | U63: 0 | V63: 0 | W63: 0 | X63: 0 | Y63: 0 | AB63: 0 | AC63: 0 | AD63: 0 | AE63: 0 | AF63: 0 | AG63: 0 | AH63: 0 | AI63: 0 | AJ63: 0 | AK63: 2023-4-20 | AL63: 9:0-13:30 | AM63: 0 min | AN63: 4.5 | AO63: 0 | AP63: 0 | AQ63: Namn Namn 63 | AU63: 0 | AV63: 0 | AW63: 0 | AX63: 0 | AY63: 0 | AZ63: 0 | BC63: 0 | BE63: Auto
B64: Ledsagare LSS | C64: 1 | D64: Namn Namn 63 | E64: 2023-04-21 | F64: 08:00 | G64: 14:30 | J64: 132.86 | L64: YYYYMMDD-NNNN | M64: =IFERROR(INDEX(Admin!$AZ$3:$BA$50,MATCH(H64,Admin!$AZ$3:$AZ$53,0),2),"LäggTillAdmin") -> 0 | O64: 6.5 | P64: =IF(E64="","",IF(COUNTIF(Admin!$AN$4:$AN$99,E64)>0,1,WEEKDAY(E64))) -> 6 | R64: 6.5 | S64: 0 | T64: 0 | U64: 0 | V64: 0 | W64: 0 | X64: 0 | Y64: 0 | AB64: 0 | AC64: 0 | AD64: 0 | AE64: 0 | AF64: 0 | AG64: 0 | AH64: 0 | AI64: 0 | AJ64: 0 | AK64: 2023-4-21 | AL64: 8:0-14:30 | AM64: 0 min | AN64: 6.5 | AO64: 0 | AP64: 0 | AQ64: Namn Namn 63 | AU64: 0 | AV64: 0 | AW64: 0 | AX64: 0 | AY64: 0 | AZ64: 0 | BC64: 0 | BE64: Auto
B65: Ledsagare LSS | C65: 9 | D65: Namn Namn 69 | E65: 2023-04-13 | F65: 18:50 | G65: 20:50 | J65: 127 | L65: YYYYMMDD-NNNN | M65: =IFERROR(INDEX(Admin!$AZ$3:$BA$50,MATCH(H65,Admin!$AZ$3:$AZ$53,0),2),"LäggTillAdmin") -> 0 | O65: 2 | P65: =IF(E65="","",IF(COUNTIF(Admin!$AN$4:$AN$99,E65)>0,1,WEEKDAY(E65))) -> 5 | R65: 2 | S65: 0 | T65: 1.833333333 | U65: 0 | V65: 0 | W65: 0 | X65: 0 | Y65: 0 | AB65: 44 | AC65: 0 | AD65: 0 | AE65: 0 | AF65: 0 | AG65: 0 | AH65: 0 | AI65: 0 | AJ65: 44 | AK65: 2023-4-13 | AL65: 18:50-20:50 | AM65: 0 min | AN65: 2 | AO65: 1.833333333 | AP65: 0 | AQ65: Namn Namn 69 | AU65: 44 | AV65: 0 | AW65: 0 | AX65: 0 | AY65: 0 | AZ65: 0 | BC65: 44 | BE65: Auto
B66: Ledsagare LSS | C66: 6 | D66: Namn Namn 70 | E66: 2023-04-05 | F66: 16:45 | G66: 18:45 | J66: 127 | L66: YYYYMMDD-NNNN | M66: =IFERROR(INDEX(Admin!$AZ$3:$BA$50,MATCH(H66,Admin!$AZ$3:$AZ$53,0),2),"LäggTillAdmin") -> 0 | O66: 2 | P66: =IF(E66="","",IF(COUNTIF(Admin!$AN$4:$AN$99,E66)>0,1,WEEKDAY(E66))) -> 4 | R66: 2 | S66: 0 | T66: 0 | U66: 0 | V66: 0 | W66: 0 | X66: 0 | Y66: 0 | AB66: 0 | AC66: 0 | AD66: 0 | AE66: 0 | AF66: 0 | AG66: 0 | AH66: 0 | AI66: 0 | AJ66: 0 | AK66: 2023-4-05 | AL66: 16:45-18:45 | AM66: 0 min | AN66: 2 | AO66: 0 | AP66: 0 | AQ66: Namn Namn 70 | AU66: 0 | AV66: 0 | AW66: 0 | AX66: 0 | AY66: 0 | AZ66: 0 | BC66: 0 | BE66: Auto
B67: Ledsagare LSS | C67: 6 | D67: Namn Namn 70 | E67: 2023-04-07 | F67: 12:00 | G67: 14:00 | J67: 127 | L67: YYYYMMDD-NNNN | M67: =IFERROR(INDEX(Admin!$AZ$3:$BA$50,MATCH(H67,Admin!$AZ$3:$AZ$53,0),2),"LäggTillAdmin") -> 0 | O67: 2 | P67: =IF(E67="","",IF(COUNTIF(Admin!$AN$4:$AN$99,E67)>0,1,WEEKDAY(E67))) -> 6 | R67: 2 | S67: 0 | T67: 0 | U67: 0 | V67: 2 | W67: 0 | X67: 0 | Y67: 0 | AB67: 0 | AC67: 0 | AD67: 123.8 | AE67: 0 | AF67: 0 | AG67: 0 | AH67: 0 | AI67: 0 | AJ67: 123.8 | AK67: 2023-4-07 | AL67: 12:0-14:0 | AM67: 0 min | AN67: 2 | AO67: 2 | AP67: 0 | AQ67: Namn Namn 70 | AU67: 0 | AV67: 0 | AW67: 123.8 | AX67: 0 | AY67: 0 | AZ67: 0 | BC67: 123.8 | BE67: Auto
B68: Ledsagare LSS | C68: 6 | D68: Namn Namn 70 | E68: 2023-04-12 | F68: 17:00 | G68: 19:00 | J68: 127 | L68: YYYYMMDD-NNNN | M68: =IFERROR(INDEX(Admin!$AZ$3:$BA$50,MATCH(H68,Admin!$AZ$3:$AZ$53,0),2),"LäggTillAdmin") -> 0 | O68: 2 | P68: =IF(E68="","",IF(COUNTIF(Admin!$AN$4:$AN$99,E68)>0,1,WEEKDAY(E68))) -> 4 | R68: 2 | S68: 0 | T68: 0 | U68: 0 | V68: 0 | W68: 0 | X68: 0 | Y68: 0 | AB68: 0 | AC68: 0 | AD68: 0 | AE68: 0 | AF68: 0 | AG68: 0 | AH68: 0 | AI68: 0 | AJ68: 0 | AK68: 2023-4-12 | AL68: 17:0-19:0 | AM68: 0 min | AN68: 2 | AO68: 0 | AP68: 0 | AQ68: Namn Namn 70 | AU68: 0 | AV68: 0 | AW68: 0 | AX68: 0 | AY68: 0 | AZ68: 0 | BC68: 0 | BE68: Auto
B69: Ledsagare LSS | C69: 6 | D69: Namn Namn 70 | E69: 2023-04-14 | F69: 17:00 | G69: 19:00 | J69: 127 | L69: YYYYMMDD-NNNN | M69: =IFERROR(INDEX(Admin!$AZ$3:$BA$50,MATCH(H69,Admin!$AZ$3:$AZ$53,0),2),"LäggTillAdmin") -> 0 | O69: 2 | P69: =IF(E69="","",IF(COUNTIF(Admin!$AN$4:$AN$99,E69)>0,1,WEEKDAY(E69))) -> 6 | R69: 2 | S69: 0 | T69: 0 | U69: 0 | V69: 0 | W69: 0 | X69: 0 | Y69: 0 | AB69: 0 | AC69: 0 | AD69: 0 | AE69: 0 | AF69: 0 | AG69: 0 | AH69: 0 | AI69: 0 | AJ69: 0 | AK69: 2023-4-14 | AL69: 17:0-19:0 | AM69: 0 min | AN69: 2 | AO69: 0 | AP69: 0 | AQ69: Namn Namn 70 | AU69: 0 | AV69: 0 | AW69: 0 | AX69: 0 | AY69: 0 | AZ69: 0 | BC69: 0 | BE69: Auto
B70: Ledsagare LSS | C70: 6 | D70: Namn Namn 70 | E70: 2023-04-19 | F70: 16:40 | G70: 18:40 | J70: 127 | L70: YYYYMMDD-NNNN | M70: =IFERROR(INDEX(Admin!$AZ$3:$BA$50,MATCH(H70,Admin!$AZ$3:$AZ$53,0),2),"LäggTillAdmin") -> 0 | O70: 2 | P70: =IF(E70="","",IF(COUNTIF(Admin!$AN$4:$AN$99,E70)>0,1,WEEKDAY(E70))) -> 4 | R70: 2 | S70: 0 | T70: 0 | U70: 0 | V70: 0 | W70: 0 | X70: 0 | Y70: 0 | AB70: 0 | AC70: 0 | AD70: 0 | AE70: 0 | AF70: 0 | AG70: 0 | AH70: 0 | AI70: 0 | AJ70: 0 | AK70: 2023-4-19 | AL70: 16:40-18:40 | AM70: 0 min | AN70: 2 | AO70: 0 | AP70: 0 | AQ70: Namn Namn 70 | AU70: 0 | AV70: 0 | AW70: 0 | AX70: 0 | AY70: 0 | AZ70: 0 | BC70: 0 | BE70: Auto
B71: Ledsagare LSS | C71: 6 | D71: Namn Namn 70 | E71: 2023-04-21 | F71: 16:30 | G71: 18:30 | J71: 127 | L71: YYYYMMDD-NNNN | M71: =IFERROR(INDEX(Admin!$AZ$3:$BA$50,MATCH(H71,Admin!$AZ$3:$AZ$53,0),2),"LäggTillAdmin") -> 0 | O71: 2 | P71: =IF(E71="","",IF(COUNTIF(Admin!$AN$4:$AN$99,E71)>0,1,WEEKDAY(E71))) -> 6 | R71: 2 | S71: 0 | T71: 0 | U71: 0 | V71: 0 | W71: 0 | X71: 0 | Y71: 0 | AB71: 0 | AC71: 0 | AD71: 0 | AE71: 0 | AF71: 0 | AG71: 0 | AH71: 0 | AI71: 0 | AJ71: 0 | AK71: 2023-4-21 | AL71: 16:30-18:30 | AM71: 0 min | AN71: 2 | AO71: 0 | AP71: 0 | AQ71: Namn Namn 70 | AU71: 0 | AV71: 0 | AW71: 0 | AX71: 0 | AY71: 0 | AZ71: 0 | BC71: 0 | BE71: Auto
B72: Ledsagare LSS | C72: 6 | D72: Namn Namn 70 | E72: 2023-04-26 | F72: 17:00 | G72: 18:30 | J72: 127 | L72: YYYYMMDD-NNNN | M72: =IFERROR(INDEX(Admin!$AZ$3:$BA$50,MATCH(H72,Admin!$AZ$3:$AZ$53,0),2),"LäggTillAdmin") -> 0 | O72: 1.5 | P72: =IF(E72="","",IF(COUNTIF(Admin!$AN$4:$AN$99,E72)>0,1,WEEKDAY(E72))) -> 4 | R72: 1.5 | S72: 0 | T72: 0 | U72: 0 | V72: 0 | W72: 0 | X72: 0 | Y72: 0 | AB72: 0 | AC72: 0 | AD72: 0 | AE72: 0 | AF72: 0 | AG72: 0 | AH72: 0 | AI72: 0 | AJ72: 0 | AK72: 2023-4-26 | AL72: 17:0-18:30 | AM72: 0 min | AN72: 1.5 | AO72: 0 | AP72: 0 | AQ72: Namn Namn 70 | AU72: 0 | AV72: 0 | AW72: 0 | AX72: 0 | AY72: 0 | AZ72: 0 | BC72: 0 | BE72: Auto
B73: Ledsagare LSS | C73: 6 | D73: Namn Namn 70 | E73: 2023-04-28 | F73: 16:45 | G73: 18:15 | J73: 127 | L73: YYYYMMDD-NNNN | M73: =IFERROR(INDEX(Admin!$AZ$3:$BA$50,MATCH(H73,Admin!$AZ$3:$AZ$53,0),2),"LäggTillAdmin") -> 0 | O73: 1.5 | P73: =IF(E73="","",IF(COUNTIF(Admin!$AN$4:$AN$99,E73)>0,1,WEEKDAY(E73))) -> 6 | R73: 1.5 | S73: 0 | T73: 0 | U73: 0 | V73: 0 | W73: 0 | X73: 0 | Y73: 0 | AB73: 0 | AC73: 0 | AD73: 0 | AE73: 0 | AF73: 0 | AG73: 0 | AH73: 0 | AI73: 0 | AJ73: 0 | AK73: 2023-4-28 | AL73: 16:45-18:15 | AM73: 0 min | AN73: 1.5 | AO73: 0 | AP73: 0 | AQ73: Namn Namn 70 | AU73: 0 | AV73: 0 | AW73: 0 | AX73: 0 | AY73: 0 | AZ73: 0 | BC73: 0 | BE73: Auto
B74: Ledsagare LSS | C74: 6 | D74: Namn Namn 70 | E74: 2023-04-30 | F74: 16:00 | G74: 17:00 | J74: 127 | L74: YYYYMMDD-NNNN | M74: =IFERROR(INDEX(Admin!$AZ$3:$BA$50,MATCH(H74,Admin!$AZ$3:$AZ$53,0),2),"LäggTillAdmin") -> 0 | O74: 1 | P74: =IF(E74="","",IF(COUNTIF(Admin!$AN$4:$AN$99,E74)>0,1,WEEKDAY(E74))) -> 1 | R74: 1 | S74: 0 | T74: 0 | U74: 0 | V74: 1 | W74: 0 | X74: 0 | Y74: 0 | AB74: 0 | AC74: 0 | AD74: 61.9 | AE74: 0 | AF74: 0 | AG74: 0 | AH74: 0 | AI74: 0 | AJ74: 61.9 | AK74: 2023-4-30 | AL74: 16:0-17:0 | AM74: 0 min | AN74: 1 | AO74: 1 | AP74: 0 | AQ74: Namn Namn 70 | AU74: 0 | AV74: 0 | AW74: 61.9 | AX74: 0 | AY74: 0 | AZ74: 0 | BC74: 61.9 | BE74: Auto
B75: Ledsagare LSS | C75: 3 | D75: Namn Namn 79 | E75: 2023-04-10 | F75: 17:00 | G75: 20:15 | J75: 127 | L75: YYYYMMDD-NNNN | M75: =IFERROR(INDEX(Admin!$AZ$3:$BA$50,MATCH(H75,Admin!$AZ$3:$AZ$53,0),2),"LäggTillAdmin") -> 0 | O75: 3.25 | P75: =IF(E75="","",IF(COUNTIF(Admin!$AN$4:$AN$99,E75)>0,1,WEEKDAY(E75))) -> 2 | R75: 3.25 | S75: 0 | T75: 0 | U75: 0 | V75: 3 | W75: 0 | X75: 0 | Y75: 0 | AB75: 0 | AC75: 0 | AD75: 185.7 | AE75: 0 | AF75: 0 | AG75: 0 | AH75: 0 | AI75: 0 | AJ75: 185.7 | AK75: 2023-4-10 | AL75: 17:0-20:15 | AM75: 0 min | AN75: 3.25 | AO75: 3 | AP75: 0 | AQ75: Namn Namn 79 | AU75: 0 | AV75: 0 | AW75: 185.7 | AX75: 0 | AY75: 0 | AZ75: 0 | BC75: 185.7 | BE75: Auto
B76: Ledsagare LSS | C76: 3 | D76: Namn Namn 79 | E76: 2023-04-24 | F76: 16:00 | G76: 19:45 | J76: 127 | L76: YYYYMMDD-NNNN | M76: =IFERROR(INDEX(Admin!$AZ$3:$BA$50,MATCH(H76,Admin!$AZ$3:$AZ$53,0),2),"LäggTillAdmin") -> 0 | O76: 3.75 | P76: =IF(E76="","",IF(COUNTIF(Admin!$AN$4:$AN$99,E76)>0,1,WEEKDAY(E76))) -> 2 | Q76: =IFERROR(IF(HOUR(F76)>HOUR(G76),IF(IF(E76="","",WEEKDAY(E76))=7,1,IF(E76="","",WEEKDAY(E76))+1),""),"") ->  | R76: =IFERROR(IF(HOUR(F76)>HOUR(G76),O76-S76,O76),"") -> 3.75 | S76: =IFERROR(IF(HOUR(F76)>HOUR(G76),HOUR(G76)+MINUTE(G76)/60,0),"") -> 0 | T76: 0.75 | U76: 0 | V76: 0 | W76: 0 | X76: 0 | Y76: 0 | Z76: =IFERROR(IF(AND(P76>=INDIRECT("'"&L76&"'!j2"),P76<=INDIRECT("'"&L76&"'!k2"),O76>INDIRECT("'"&L76&"'!i2"),HOUR(F76)+MINUTE(F76)/60-INDIRECT("'"&L76&"'!i2")<20),O76-INDIRECT("'"&L76&"'!i2")-MAX(HOUR(G76)-INDIRECT("'"&L76&"'!M2"),0),0),"") ->  | AA76: =IFERROR(IF(OR(P76=INDIRECT("'"&L76&"'!n2"),P76=INDIRECT("'"&L76&"'!o2"),HOUR(G76)+MINUTE(G76)/60>INDIRECT("'"&L76&"'!m2"),HOUR(G76)+MINUTE(G76)/60<6),IF(O76>INDIRECT("'"&L76&"'!i2"),O76-INDIRECT("'"&L76&"'!i2")-Z76,0),0),"") ->  | AB76: 18 | AC76: 0 | AD76: 0 | AE76: 0 | AF76: 0 | AG76: 0 | AH76: =IFERROR(Z76*INDIRECT("'"&L76&"'!x2")*INDIRECT("'"&L76&"'!c6"),0) -> 0 | AI76: =IFERROR(AA76*INDIRECT("'"&L76&"'!z2")*INDIRECT("'"&L76&"'!c6"),0) -> 0 | AJ76: =IFERROR(AG76+AB76+AC76+AD76+AE76+AF76,"") -> 18 | AK76: =IF(E76="","",YEAR(E76)&"-"&MONTH(E76)&"-"&IF(LEN(DAY(E76))=1,"0"&DAY(E76),DAY(E76))) -> 2023-4-24 | AL76: =IFERROR(HOUR(F76)&":"&MINUTE(F76)&"-"&HOUR(G76)&":"&MINUTE(G76),"") -> 16:0-19:45 | AM76: =IFERROR(M76*60&" min","") -> 0 min | AN76: =O76 -> 3.75 | AO76: =IFERROR(T76,0)+IFERROR(U76,0)+IFERROR(V76,0)+IFERROR(W76,0)+IFERROR(X76,0)+IFERROR(Y76,0) -> 0.75 | AP76: =IFERROR(SUM(Z76:AA76),"") -> 0 | AQ76: =IF(F76="","",D76) -> Namn Namn 79 | AR76: =IFERROR(O76-Z76-AA76,"") ->  | AU76: =IFERROR(AB76,0) -> 18 | AV76: =IFERROR(AC76,0) -> 0 | AW76: =IFERROR(AD76,0) -> 0 | AX76: =IFERROR(AE76,0) -> 0 | AY76: =IFERROR(AF76,0) -> 0 | AZ76: =IFERROR(AG76,0) -> 0 | BC76: =SUM(AU76:AZ76) -> 18 | BE76: Auto
B77: Ledsagare LSS | C77: 1 | D77: Namn Namn 81 | E77: 2023-04-17 | F77: 15:40 | G77: 17:15 | J77: 127 | L77: YYYYMMDD-NNNN | M77: =IFERROR(INDEX(Admin!$AZ$3:$BA$50,MATCH(H77,Admin!$AZ$3:$AZ$53,0),2),"LäggTillAdmin") -> 0 | O77: 1.583333333 | P77: =IF(E77="","",IF(COUNTIF(Admin!$AN$4:$AN$99,E77)>0,1,WEEKDAY(E77))) -> 2 | R77: 1.583333333 | S77: 0 | T77: 0 | U77: 0 | V77: 0 | W77: 0 | X77: 0 | Y77: 0 | AB77: 0 | AC77: 0 | AD77: 0 | AE77: 0 | AF77: 0 | AG77: 0 | AH77: 0 | AI77: 0 | AJ77: 0 | AK77: 2023-4-17 | AL77: 15:40-17:15 | AM77: 0 min | AN77: 1.583333333 | AO77: 0 | AP77: 0 | AQ77: Namn Namn 81 | AU77: 0 | AV77: 0 | AW77: 0 | AX77: 0 | AY77: 0 | AZ77: 0 | BC77: 0 | BE77: Auto
B78: Ledsagare LSS | C78: 6 | D78: Namn Namn 82 | E78: 2023-04-01 | F78: 14:00 | G78: 18:00 | J78: 127 | L78: YYYYMMDD-NNNN | M78: =IFERROR(INDEX(Admin!$AZ$3:$BA$50,MATCH(H78,Admin!$AZ$3:$AZ$53,0),2),"LäggTillAdmin") -> 0 | O78: 4 | P78: =IF(E78="","",IF(COUNTIF(Admin!$AN$4:$AN$99,E78)>0,1,WEEKDAY(E78))) -> 7 | R78: 4 | S78: 0 | T78: 0 | U78: 0 | V78: 4 | W78: 0 | X78: 0 | Y78: 0 | AB78: 0 | AC78: 0 | AD78: 247.6 | AE78: 0 | AF78: 0 | AG78: 0 | AH78: 0 | AI78: 0 | AJ78: 247.6 | AK78: 2023-4-01 | AL78: 14:0-18:0 | AM78: 0 min | AN78: 4 | AO78: 4 | AP78: 0 | AQ78: Namn Namn 82 | AU78: 0 | AV78: 0 | AW78: 247.6 | AX78: 0 | AY78: 0 | AZ78: 0 | BC78: 247.6 | BE78: Auto
B79: Ledsagare LSS | C79: 6 | D79: Namn Namn 82 | E79: 2023-04-14 | F79: 14:00 | G79: 16:00 | J79: 127 | L79: YYYYMMDD-NNNN | M79: =IFERROR(INDEX(Admin!$AZ$3:$BA$50,MATCH(H79,Admin!$AZ$3:$AZ$53,0),2),"LäggTillAdmin") -> 0 | O79: 2 | P79: =IF(E79="","",IF(COUNTIF(Admin!$AN$4:$AN$99,E79)>0,1,WEEKDAY(E79))) -> 6 | R79: 2 | S79: 0 | T79: 0 | U79: 0 | V79: 0 | W79: 0 | X79: 0 | Y79: 0 | AB79: 0 | AC79: 0 | AD79: 0 | AE79: 0 | AF79: 0 | AG79: 0 | AH79: 0 | AI79: 0 | AJ79: 0 | AK79: 2023-4-14 | AL79: 14:0-16:0 | AM79: 0 min | AN79: 2 | AO79: 0 | AP79: 0 | AQ79: Namn Namn 82 | AU79: 0 | AV79: 0 | AW79: 0 | AX79: 0 | AY79: 0 | AZ79: 0 | BC79: 0 | BE79: Auto
B80: Ledsagare LSS | C80: 6 | D80: Namn Namn 82 | E80: 2023-04-21 | F80: 14:00 | G80: 17:00 | J80: 127 | L80: YYYYMMDD-NNNN | M80: =IFERROR(INDEX(Admin!$AZ$3:$BA$50,MATCH(H80,Admin!$AZ$3:$AZ$53,0),2),"LäggTillAdmin") -> 0 | O80: 3 | P80: =IF(E80="","",IF(COUNTIF(Admin!$AN$4:$AN$99,E80)>0,1,WEEKDAY(E80))) -> 6 | R80: 3 | S80: 0 | T80: 0 | U80: 0 | V80: 0 | W80: 0 | X80: 0 | Y80: 0 | AB80: 0 | AC80: 0 | AD80: 0 | AE80: 0 | AF80: 0 | AG80: 0 | AH80: 0 | AI80: 0 | AJ80: 0 | AK80: 2023-4-21 | AL80: 14:0-17:0 | AM80: 0 min | AN80: 3 | AO80: 0 | AP80: 0 | AQ80: Namn Namn 82 | AU80: 0 | AV80: 0 | AW80: 0 | AX80: 0 | AY80: 0 | AZ80: 0 | BC80: 0 | BE80: Auto
B81: Ledsagare LSS | C81: 6 | D81: Namn Namn 82 | E81: 2023-04-27 | F81: 14:00 | G81: 17:00 | J81: 127 | L81: YYYYMMDD-NNNN | M81: =IFERROR(INDEX(Admin!$AZ$3:$BA$50,MATCH(H81,Admin!$AZ$3:$AZ$53,0),2),"LäggTillAdmin") -> 0 | O81: 3 | P81: =IF(E81="","",IF(COUNTIF(Admin!$AN$4:$AN$99,E81)>0,1,WEEKDAY(E81))) -> 5 | R81: 3 | S81: 0 | T81: 0 | U81: 0 | V81: 0 | W81: 0 | X81: 0 | Y81: 0 | AB81: 0 | AC81: 0 | AD81: 0 | AE81: 0 | AF81: 0 | AG81: 0 | AH81: 0 | AI81: 0 | AJ81: 0 | AK81: 2023-4-27 | AL81: 14:0-17:0 | AM81: 0 min | AN81: 3 | AO81: 0 | AP81: 0 | AQ81: Namn Namn 82 | AU81: 0 | AV81: 0 | AW81: 0 | AX81: 0 | AY81: 0 | AZ81: 0 | BC81: 0 | BE81: Auto
B82: Ledsagare LSS | C82: 2 | D82: Namn Namn 86 | E82: 2023-04-07 | F82: 12:00 | G82: 14:00 | J82: 127 | L82: YYYYMMDD-NNNN | M82: =IFERROR(INDEX(Admin!$AZ$3:$BA$50,MATCH(H82,Admin!$AZ$3:$AZ$53,0),2),"LäggTillAdmin") -> 0 | O82: 2 | P82: =IF(E82="","",IF(COUNTIF(Admin!$AN$4:$AN$99,E82)>0,1,WEEKDAY(E82))) -> 6 | R82: 2 | S82: 0 | T82: 0 | U82: 0 | V82: 2 | W82: 0 | X82: 0 | Y82: 0 | AB82: 0 | AC82: 0 | AD82: 123.8 | AE82: 0 | AF82: 0 | AG82: 0 | AH82: 0 | AI82: 0 | AJ82: 123.8 | AK82: 2023-4-07 | AL82: 12:0-14:0 | AM82: 0 min | AN82: 2 | AO82: 2 | AP82: 0 | AQ82: Namn Namn 86 | AU82: 0 | AV82: 0 | AW82: 123.8 | AX82: 0 | AY82: 0 | AZ82: 0 | BC82: 123.8 | BE82: Auto
B83: Ledsagare LSS | C83: 1 | D83: Namn Namn 87 | E83: 2023-04-06 | F83: 09:00 | G83: 14:00 | J83: 127 | L83: YYYYMMDD-NNNN | M83: =IFERROR(INDEX(Admin!$AZ$3:$BA$50,MATCH(H83,Admin!$AZ$3:$AZ$53,0),2),"LäggTillAdmin") -> 0 | O83: 5 | P83: =IF(E83="","",IF(COUNTIF(Admin!$AN$4:$AN$99,E83)>0,1,WEEKDAY(E83))) -> 5 | R83: 5 | S83: 0 | T83: 0 | U83: 0 | V83: 5 | W83: 0 | X83: 0 | Y83: 0 | AB83: 0 | AC83: 0 | AD83: 309.5 | AE83: 0 | AF83: 0 | AG83: 0 | AH83: 0 | AI83: 0 | AJ83: 309.5 | AK83: 2023-4-06 | AL83: 9:0-14:0 | AM83: 0 min | AN83: 5 | AO83: 5 | AP83: 0 | AQ83: Namn Namn 87 | AU83: 0 | AV83: 0 | AW83: 309.5 | AX83: 0 | AY83: 0 | AZ83: 0 | BC83: 309.5 | BE83: Auto
B84: Ledsagare LSS | C84: 1 | D84: Namn Namn 87 | E84: 2023-04-29 | F84: 09:00 | G84: 14:00 | J84: 127 | L84: YYYYMMDD-NNNN | M84: =IFERROR(INDEX(Admin!$AZ$3:$BA$50,MATCH(H84,Admin!$AZ$3:$AZ$53,0),2),"LäggTillAdmin") -> 0 | O84: 5 | P84: =IF(E84="","",IF(COUNTIF(Admin!$AN$4:$AN$99,E84)>0,1,WEEKDAY(E84))) -> 7 | R84: 5 | S84: 0 | T84: 0 | U84: 0 | V84: 5 | W84: 0 | X84: 0 | Y84: 0 | AB84: 0 | AC84: 0 | AD84: 309.5 | AE84: 0 | AF84: 0 | AG84: 0 | AH84: 0 | AI84: 0 | AJ84: 309.5 | AK84: 2023-4-29 | AL84: 9:0-14:0 | AM84: 0 min | AN84: 5 | AO84: 5 | AP84: 0 | AQ84: Namn Namn 87 | AU84: 0 | AV84: 0 | AW84: 309.5 | AX84: 0 | AY84: 0 | AZ84: 0 | BC84: 309.5 | BE84: Auto
B85: Ledsagare LSS | C85: 11 | D85: Namn Namn 89 | E85: 2023-04-02 | F85: 14:00 | G85: 16:00 | J85: 127 | L85: YYYYMMDD-NNNN | M85: =IFERROR(INDEX(Admin!$AZ$3:$BA$50,MATCH(H85,Admin!$AZ$3:$AZ$53,0),2),"LäggTillAdmin") -> 0 | O85: 2 | P85: =IF(E85="","",IF(COUNTIF(Admin!$AN$4:$AN$99,E85)>0,1,WEEKDAY(E85))) -> 1 | R85: 2 | S85: 0 | T85: 0 | U85: 0 | V85: 2 | W85: 0 | X85: 0 | Y85: 0 | AB85: 0 | AC85: 0 | AD85: 123.8 | AE85: 0 | AF85: 0 | AG85: 0 | AH85: 0 | AI85: 0 | AJ85: 123.8 | AK85: 2023-4-02 | AL85: 14:0-16:0 | AM85: 0 min | AN85: 2 | AO85: 2 | AP85: 0 | AQ85: Namn Namn 89 | AU85: 0 | AV85: 0 | AW85: 123.8 | AX85: 0 | AY85: 0 | AZ85: 0 | BC85: 123.8 | BE85: Auto
B86: Ledsagare LSS | C86: 11 | D86: Namn Namn 89 | E86: 2023-04-06 | F86: 14:30 | G86: 16:00 | J86: 127 | L86: YYYYMMDD-NNNN | M86: =IFERROR(INDEX(Admin!$AZ$3:$BA$50,MATCH(H86,Admin!$AZ$3:$AZ$53,0),2),"LäggTillAdmin") -> 0 | O86: 1.5 | P86: =IF(E86="","",IF(COUNTIF(Admin!$AN$4:$AN$99,E86)>0,1,WEEKDAY(E86))) -> 5 | R86: 1.5 | S86: 0 | T86: 0 | U86: 0 | V86: 2 | W86: 0 | X86: 0 | Y86: 0 | AB86: 0 | AC86: 0 | AD86: 123.8 | AE86: 0 | AF86: 0 | AG86: 0 | AH86: 0 | AI86: 0 | AJ86: 123.8 | AK86: 2023-4-06 | AL86: 14:30-16:0 | AM86: 0 min | AN86: 1.5 | AO86: 2 | AP86: 0 | AQ86: Namn Namn 89 | AU86: 0 | AV86: 0 | AW86: 123.8 | AX86: 0 | AY86: 0 | AZ86: 0 | BC86: 123.8 | BE86: Auto
B87: Ledsagare LSS | C87: 11 | D87: Namn Namn 89 | E87: 2023-04-12 | F87: 10:00 | G87: 15:00 | J87: 127 | L87: YYYYMMDD-NNNN | M87: =IFERROR(INDEX(Admin!$AZ$3:$BA$50,MATCH(H87,Admin!$AZ$3:$AZ$53,0),2),"LäggTillAdmin") -> 0 | O87: 5 | P87: =IF(E87="","",IF(COUNTIF(Admin!$AN$4:$AN$99,E87)>0,1,WEEKDAY(E87))) -> 4 | R87: 5 | S87: 0 | T87: 0 | U87: 0 | V87: 0 | W87: 0 | X87: 0 | Y87: 0 | AB87: 0 | AC87: 0 | AD87: 0 | AE87: 0 | AF87: 0 | AG87: 0 | AH87: 0 | AI87: 0 | AJ87: 0 | AK87: 2023-4-12 | AL87: 10:0-15:0 | AM87: 0 min | AN87: 5 | AO87: 0 | AP87: 0 | AQ87: Namn Namn 89 | AU87: 0 | AV87: 0 | AW87: 0 | AX87: 0 | AY87: 0 | AZ87: 0 | BC87: 0 | BE87: Auto
B88: Ledsagare LSS | C88: 11 | D88: Namn Namn 89 | E88: 2023-04-16 | F88: 10:30 | G88: 13:00 | J88: 127 | L88: YYYYMMDD-NNNN | M88: =IFERROR(INDEX(Admin!$AZ$3:$BA$50,MATCH(H88,Admin!$AZ$3:$AZ$53,0),2),"LäggTillAdmin") -> 0 | O88: 2.5 | P88: =IF(E88="","",IF(COUNTIF(Admin!$AN$4:$AN$99,E88)>0,1,WEEKDAY(E88))) -> 1 | R88: 2.5 | S88: 0 | T88: 0 | U88: 0 | V88: 2.5 | W88: 0 | X88: 0 | Y88: 0 | AB88: 0 | AC88: 0 | AD88: 154.75 | AE88: 0 | AF88: 0 | AG88: 0 | AH88: 0 | AI88: 0 | AJ88: 154.75 | AK88: 2023-4-16 | AL88: 10:30-13:0 | AM88: 0 min | AN88: 2.5 | AO88: 2.5 | AP88: 0 | AQ88: Namn Namn 89 | AU88: 0 | AV88: 0 | AW88: 154.75 | AX88: 0 | AY88: 0 | AZ88: 0 | BC88: 154.75 | BE88: Auto
B89: Ledsagare LSS | C89: 11 | D89: Namn Namn 89 | E89: 2023-04-25 | F89: 15:30 | G89: 16:30 | J89: 127 | L89: YYYYMMDD-NNNN | M89: =IFERROR(INDEX(Admin!$AZ$3:$BA$50,MATCH(H89,Admin!$AZ$3:$AZ$53,0),2),"LäggTillAdmin") -> 0 | O89: 1 | P89: =IF(E89="","",IF(COUNTIF(Admin!$AN$4:$AN$99,E89)>0,1,WEEKDAY(E89))) -> 3 | R89: 1 | S89: 0 | T89: 0 | U89: 0 | V89: 0 | W89: 0 | X89: 0 | Y89: 0 | AB89: 0 | AC89: 0 | AD89: 0 | AE89: 0 | AF89: 0 | AG89: 0 | AH89: 0 | AI89: 0 | AJ89: 0 | AK89: 2023-4-25 | AL89: 15:30-16:30 | AM89: 0 min | AN89: 1 | AO89: 0 | AP89: 0 | AQ89: Namn Namn 89 | AU89: 0 | AV89: 0 | AW89: 0 | AX89: 0 | AY89: 0 | AZ89: 0 | BC89: 0 | BE89: Auto
B90: Ledsagare LSS | C90: 11 | D90: Namn Namn 89 | E90: 2023-04-27 | F90: 18:00 | G90: 21:30 | J90: 127 | L90: YYYYMMDD-NNNN | M90: =IFERROR(INDEX(Admin!$AZ$3:$BA$50,MATCH(H90,Admin!$AZ$3:$AZ$53,0),2),"LäggTillAdmin") -> 0 | O90: 3.5 | P90: =IF(E90="","",IF(COUNTIF(Admin!$AN$4:$AN$99,E90)>0,1,WEEKDAY(E90))) -> 5 | R90: 3.5 | S90: 0 | T90: 2.5 | U90: 0 | V90: 0 | W90: 0 | X90: 0 | Y90: 0 | AB90: 60 | AC90: 0 | AD90: 0 | AE90: 0 | AF90: 0 | AG90: 0 | AH90: 0 | AI90: 0 | AJ90: 60 | AK90: 2023-4-27 | AL90: 18:0-21:30 | AM90: 0 min | AN90: 3.5 | AO90: 2.5 | AP90: 0 | AQ90: Namn Namn 89 | AU90: 60 | AV90: 0 | AW90: 0 | AX90: 0 | AY90: 0 | AZ90: 0 | BC90: 60 | BE90: Auto
B91: Ledsagare LSS | C91: 11 | D91: Namn Namn 89 | E91: 2023-04-02 | F91: 10:00 | G91: 11:30 | J91: 127 | L91: YYYYMMDD-NNNN | M91: =IFERROR(INDEX(Admin!$AZ$3:$BA$50,MATCH(H91,Admin!$AZ$3:$AZ$53,0),2),"LäggTillAdmin") -> 0 | O91: 1.5 | P91: =IF(E91="","",IF(COUNTIF(Admin!$AN$4:$AN$99,E91)>0,1,WEEKDAY(E91))) -> 1 | R91: 1.5 | S91: 0 | T91: 0 | U91: 0 | V91: 1.5 | W91: 0 | X91: 0 | Y91: 0 | AB91: 0 | AC91: 0 | AD91: 92.85 | AE91: 0 | AF91: 0 | AG91: 0 | AH91: 0 | AI91: 0 | AJ91: 92.85 | AK91: 2023-4-02 | AL91: 10:0-11:30 | AM91: 0 min | AN91: 1.5 | AO91: 1.5 | AP91: 0 | AQ91: Namn Namn 89 | AU91: 0 | AV91: 0 | AW91: 92.85 | AX91: 0 | AY91: 0 | AZ91: 0 | BC91: 92.85 | BE91: Auto
B92: Ledsagare LSS | C92: 11 | D92: Namn Namn 89 | E92: 2023-04-10 | F92: 11:00 | G92: 12:30 | J92: 127 | L92: YYYYMMDD-NNNN | M92: =IFERROR(INDEX(Admin!$AZ$3:$BA$50,MATCH(H92,Admin!$AZ$3:$AZ$53,0),2),"LäggTillAdmin") -> 0 | O92: 1.5 | P92: =IF(E92="","",IF(COUNTIF(Admin!$AN$4:$AN$99,E92)>0,1,WEEKDAY(E92))) -> 2 | R92: 1.5 | S92: 0 | T92: 0 | U92: 0 | V92: 1 | W92: 0 | X92: 0 | Y92: 0 | AB92: 0 | AC92: 0 | AD92: 61.9 | AE92: 0 | AF92: 0 | AG92: 0 | AH92: 0 | AI92: 0 | AJ92: 61.9 | AK92: 2023-4-10 | AL92: 11:0-12:30 | AM92: 0 min | AN92: 1.5 | AO92: 1 | AP92: 0 | AQ92: Namn Namn 89 | AU92: 0 | AV92: 0 | AW92: 61.9 | AX92: 0 | AY92: 0 | AZ92: 0 | BC92: 61.9 | BE92: Auto
B93: Ledsagare LSS | C93: 11 | D93: Namn Namn 89 | E93: 2023-04-19 | F93: 12:30 | G93: 14:30 | J93: 127 | L93: YYYYMMDD-NNNN | M93: =IFERROR(INDEX(Admin!$AZ$3:$BA$50,MATCH(H93,Admin!$AZ$3:$AZ$53,0),2),"LäggTillAdmin") -> 0 | O93: 2 | P93: =IF(E93="","",IF(COUNTIF(Admin!$AN$4:$AN$99,E93)>0,1,WEEKDAY(E93))) -> 4 | R93: 2 | S93: 0 | T93: 0 | U93: 0 | V93: 0 | W93: 0 | X93: 0 | Y93: 0 | AB93: 0 | AC93: 0 | AD93: 0 | AE93: 0 | AF93: 0 | AG93: 0 | AH93: 0 | AI93: 0 | AJ93: 0 | AK93: 2023-4-19 | AL93: 12:30-14:30 | AM93: 0 min | AN93: 2 | AO93: 0 | AP93: 0 | AQ93: Namn Namn 89 | AU93: 0 | AV93: 0 | AW93: 0 | AX93: 0 | AY93: 0 | AZ93: 0 | BC93: 0 | BE93: Auto
B94: Ledsagare LSS | C94: 4 | D94: Namn Namn 98 | E94: 2023-04-02 | F94: 14:00 | G94: 16:00 | J94: 127 | L94: YYYYMMDD-NNNN | M94: =IFERROR(INDEX(Admin!$AZ$3:$BA$50,MATCH(H94,Admin!$AZ$3:$AZ$53,0),2),"LäggTillAdmin") -> 0 | O94: 2 | P94: =IF(E94="","",IF(COUNTIF(Admin!$AN$4:$AN$99,E94)>0,1,WEEKDAY(E94))) -> 1 | R94: 2 | S94: 0 | T94: 0 | U94: 0 | V94: 2 | W94: 0 | X94: 0 | Y94: 0 | AB94: 0 | AC94: 0 | AD94: 123.8 | AE94: 0 | AF94: 0 | AG94: 0 | AH94: 0 | AI94: 0 | AJ94: 123.8 | AK94: 2023-4-02 | AL94: 14:0-16:0 | AM94: 0 min | AN94: 2 | AO94: 2 | AP94: 0 | AQ94: Namn Namn 98 | AU94: 0 | AV94: 0 | AW94: 123.8 | AX94: 0 | AY94: 0 | AZ94: 0 | BC94: 123.8 | BE94: Auto
B95: Ledsagare LSS | C95: 4 | D95: Namn Namn 98 | E95: 2023-04-05 | F95: 14:00 | G95: 20:00 | J95: 127 | L95: YYYYMMDD-NNNN | M95: =IFERROR(INDEX(Admin!$AZ$3:$BA$50,MATCH(H95,Admin!$AZ$3:$AZ$53,0),2),"LäggTillAdmin") -> 0 | O95: 6 | P95: =IF(E95="","",IF(COUNTIF(Admin!$AN$4:$AN$99,E95)>0,1,WEEKDAY(E95))) -> 4 | R95: 6 | S95: 0 | T95: 1 | U95: 0 | V95: 0 | W95: 0 | X95: 0 | Y95: 0 | AB95: 24 | AC95: 0 | AD95: 0 | AE95: 0 | AF95: 0 | AG95: 0 | AH95: 0 | AI95: 0 | AJ95: 24 | AK95: 2023-4-05 | AL95: 14:0-20:0 | AM95: 0 min | AN95: 6 | AO95: 1 | AP95: 0 | AQ95: Namn Namn 98 | AU95: 24 | AV95: 0 | AW95: 0 | AX95: 0 | AY95: 0 | AZ95: 0 | BC95: 24 | BE95: Auto
B96: Ledsagare LSS | C96: 4 | D96: Namn Namn 98 | E96: 2023-04-09 | F96: 14:00 | G96: 16:00 | J96: 127 | L96: YYYYMMDD-NNNN | M96: =IFERROR(INDEX(Admin!$AZ$3:$BA$50,MATCH(H96,Admin!$AZ$3:$AZ$53,0),2),"LäggTillAdmin") -> 0 | O96: 2 | P96: =IF(E96="","",IF(COUNTIF(Admin!$AN$4:$AN$99,E96)>0,1,WEEKDAY(E96))) -> 1 | R96: 2 | S96: 0 | T96: 0 | U96: 0 | V96: 2 | W96: 0 | X96: 0 | Y96: 0 | AB96: 0 | AC96: 0 | AD96: 123.8 | AE96: 0 | AF96: 0 | AG96: 0 | AH96: 0 | AI96: 0 | AJ96: 123.8 | AK96: 2023-4-09 | AL96: 14:0-16:0 | AM96: 0 min | AN96: 2 | AO96: 2 | AP96: 0 | AQ96: Namn Namn 98 | AU96: 0 | AV96: 0 | AW96: 123.8 | AX96: 0 | AY96: 0 | AZ96: 0 | BC96: 123.8 | BE96: Auto
B97: Ledsagare LSS | C97: 4 | D97: Namn Namn 98 | E97: 2023-04-13 | F97: 16:00 | G97: 19:00 | J97: 127 | L97: YYYYMMDD-NNNN | M97: =IFERROR(INDEX(Admin!$AZ$3:$BA$50,MATCH(H97,Admin!$AZ$3:$AZ$53,0),2),"LäggTillAdmin") -> 0 | O97: 3 | P97: =IF(E97="","",IF(COUNTIF(Admin!$AN$4:$AN$99,E97)>0,1,WEEKDAY(E97))) -> 5 | R97: 3 | S97: 0 | T97: 0 | U97: 0 | V97: 0 | W97: 0 | X97: 0 | Y97: 0 | AB97: 0 | AC97: 0 | AD97: 0 | AE97: 0 | AF97: 0 | AG97: 0 | AH97: 0 | AI97: 0 | AJ97: 0 | AK97: 2023-4-13 | AL97: 16:0-19:0 | AM97: 0 min | AN97: 3 | AO97: 0 | AP97: 0 | AQ97: Namn Namn 98 | AU97: 0 | AV97: 0 | AW97: 0 | AX97: 0 | AY97: 0 | AZ97: 0 | BC97: 0 | BE97: Auto
B98: Ledsagare LSS | C98: 4 | D98: Namn Namn 98 | E98: 2023-04-15 | F98: 13:00 | G98: 16:00 | J98: 127 | L98: YYYYMMDD-NNNN | M98: =IFERROR(INDEX(Admin!$AZ$3:$BA$50,MATCH(H98,Admin!$AZ$3:$AZ$53,0),2),"LäggTillAdmin") -> 0 | O98: 3 | P98: =IF(E98="","",IF(COUNTIF(Admin!$AN$4:$AN$99,E98)>0,1,WEEKDAY(E98))) -> 7 | R98: 3 | S98: 0 | T98: 0 | U98: 0 | V98: 3 | W98: 0 | X98: 0 | Y98: 0 | AB98: 0 | AC98: 0 | AD98: 185.7 | AE98: 0 | AF98: 0 | AG98: 0 | AH98: 0 | AI98: 0 | AJ98: 185.7 | AK98: 2023-4-15 | AL98: 13:0-16:0 | AM98: 0 min | AN98: 3 | AO98: 3 | AP98: 0 | AQ98: Namn Namn 98 | AU98: 0 | AV98: 0 | AW98: 185.7 | AX98: 0 | AY98: 0 | AZ98: 0 | BC98: 185.7 | BE98: Auto
B99: Ledsagare LSS | C99: 4 | D99: Namn Namn 98 | E99: 2023-04-18 | F99: 15:00 | G99: 18:00 | J99: 127 | L99: YYYYMMDD-NNNN | M99: =IFERROR(INDEX(Admin!$AZ$3:$BA$50,MATCH(H99,Admin!$AZ$3:$AZ$53,0),2),"LäggTillAdmin") -> 0 | O99: 3 | P99: =IF(E99="","",IF(COUNTIF(Admin!$AN$4:$AN$99,E99)>0,1,WEEKDAY(E99))) -> 3 | R99: 3 | S99: 0 | T99: 0 | U99: 0 | V99: 0 | W99: 0 | X99: 0 | Y99: 0 | AB99: 0 | AC99: 0 | AD99: 0 | AE99: 0 | AF99: 0 | AG99: 0 | AH99: 0 | AI99: 0 | AJ99: 0 | AK99: 2023-4-18 | AL99: 15:0-18:0 | AM99: 0 min | AN99: 3 | AO99: 0 | AP99: 0 | AQ99: Namn Namn 98 | AU99: 0 | AV99: 0 | AW99: 0 | AX99: 0 | AY99: 0 | AZ99: 0 | BC99: 0 | BE99: Auto
B100: Ledsagare LSS | C100: 4 | D100: Namn Namn 98 | E100: 2023-04-20 | F100: 14:00 | G100: 16:00 | J100: 127 | L100: YYYYMMDD-NNNN | M100: =IFERROR(INDEX(Admin!$AZ$3:$BA$50,MATCH(H100,Admin!$AZ$3:$AZ$53,0),2),"LäggTillAdmin") -> 0 | O100: 2 | P100: =IF(E100="","",IF(COUNTIF(Admin!$AN$4:$AN$99,E100)>0,1,WEEKDAY(E100))) -> 5 | R100: 2 | S100: 0 | T100: 0 | U100: 0 | V100: 0 | W100: 0 | X100: 0 | Y100: 0 | AB100: 0 | AC100: 0 | AD100: 0 | AE100: 0 | AF100: 0 | AG100: 0 | AH100: 0 | AI100: 0 | AJ100: 0 | AK100: 2023-4-20 | AL100: 14:0-16:0 | AM100: 0 min | AN100: 2 | AO100: 0 | AP100: 0 | AQ100: Namn Namn 98 | AU100: 0 | AV100: 0 | AW100: 0 | AX100: 0 | AY100: 0 | AZ100: 0 | BC100: 0 | BE100: Auto
B101: Ledsagare LSS | C101: 1 | D101: Namn Namn 105 | E101: 2023-04-04 | F101: 12:00 | G101: 16:00 | J101: 127 | L101: YYYYMMDD-NNNN | M101: =IFERROR(INDEX(Admin!$AZ$3:$BA$50,MATCH(H101,Admin!$AZ$3:$AZ$53,0),2),"LäggTillAdmin") -> 0 | O101: 4 | P101: =IF(E101="","",IF(COUNTIF(Admin!$AN$4:$AN$99,E101)>0,1,WEEKDAY(E101))) -> 3 | R101: 4 | S101: 0 | T101: 0 | U101: 0 | V101: 0 | W101: 0 | X101: 0 | Y101: 0 | AB101: 0 | AC101: 0 | AD101: 0 | AE101: 0 | AF101: 0 | AG101: 0 | AH101: 0 | AI101: 0 | AJ101: 0 | AK101: 2023-4-04 | AL101: 12:0-16:0 | AM101: 0 min | AN101: 4 | AO101: 0 | AP101: 0 | AQ101: Namn Namn 105 | AU101: 0 | AV101: 0 | AW101: 0 | AX101: 0 | AY101: 0 | AZ101: 0 | BC101: 0 | BE101: Auto
B102: Ledsagare LSS | C102: 1 | D102: Namn Namn 105 | E102: 2023-04-07 | F102: 12:00 | G102: 17:00 | J102: 127 | L102: YYYYMMDD-NNNN | M102: =IFERROR(INDEX(Admin!$AZ$3:$BA$50,MATCH(H102,Admin!$AZ$3:$AZ$53,0),2),"LäggTillAdmin") -> 0 | O102: 5 | P102: =IF(E102="","",IF(COUNTIF(Admin!$AN$4:$AN$99,E102)>0,1,WEEKDAY(E102))) -> 6 | R102: 5 | S102: 0 | T102: 0 | U102: 0 | V102: 5 | W102: 0 | X102: 0 | Y102: 0 | AB102: 0 | AC102: 0 | AD102: 309.5 | AE102: 0 | AF102: 0 | AG102: 0 | AH102: 0 | AI102: 0 | AJ102: 309.5 | AK102: 2023-4-07 | AL102: 12:0-17:0 | AM102: 0 min | AN102: 5 | AO102: 5 | AP102: 0 | AQ102: Namn Namn 105 | AU102: 0 | AV102: 0 | AW102: 309.5 | AX102: 0 | AY102: 0 | AZ102: 0 | BC102: 309.5 | BE102: Auto
B103: Ledsagare LSS | C103: 1 | D103: Namn Namn 105 | E103: 2023-04-11 | F103: 10:00 | G103: 17:00 | J103: 127 | L103: YYYYMMDD-NNNN | M103: =IFERROR(INDEX(Admin!$AZ$3:$BA$50,MATCH(H103,Admin!$AZ$3:$AZ$53,0),2),"LäggTillAdmin") -> 0 | O103: 7 | P103: =IF(E103="","",IF(COUNTIF(Admin!$AN$4:$AN$99,E103)>0,1,WEEKDAY(E103))) -> 3 | R103: 7 | S103: 0 | T103: 0 | U103: 0 | V103: 7 | W103: 0 | X103: 0 | Y103: 0 | AB103: 0 | AC103: 0 | AD103: 433.3 | AE103: 0 | AF103: 0 | AG103: 0 | AH103: 0 | AI103: 0 | AJ103: 433.3 | AK103: 2023-4-11 | AL103: 10:0-17:0 | AM103: 0 min | AN103: 7 | AO103: 7 | AP103: 0 | AQ103: Namn Namn 105 | AU103: 0 | AV103: 0 | AW103: 433.3 | AX103: 0 | AY103: 0 | AZ103: 0 | BC103: 433.3 | BE103: Auto
B104: Ledsagare LSS | C104: 1 | D104: Namn Namn 105 | E104: 2023-04-21 | F104: 12:00 | G104: 16:00 | J104: 127 | L104: YYYYMMDD-NNNN | M104: =IFERROR(INDEX(Admin!$AZ$3:$BA$50,MATCH(H104,Admin!$AZ$3:$AZ$53,0),2),"LäggTillAdmin") -> 0 | O104: 4 | P104: =IF(E104="","",IF(COUNTIF(Admin!$AN$4:$AN$99,E104)>0,1,WEEKDAY(E104))) -> 6 | R104: 4 | S104: 0 | T104: 0 | U104: 0 | V104: 0 | W104: 0 | X104: 0 | Y104: 0 | AB104: 0 | AC104: 0 | AD104: 0 | AE104: 0 | AF104: 0 | AG104: 0 | AH104: 0 | AI104: 0 | AJ104: 0 | AK104: 2023-4-21 | AL104: 12:0-16:0 | AM104: 0 min | AN104: 4 | AO104: 0 | AP104: 0 | AQ104: Namn Namn 105 | AU104: 0 | AV104: 0 | AW104: 0 | AX104: 0 | AY104: 0 | AZ104: 0 | BC104: 0 | BE104: Auto
B105: Ledsagare LSS | C105: 1 | D105: Namn Namn 105 | E105: 2023-04-25 | F105: 11:00 | G105: 16:00 | J105: 127 | L105: YYYYMMDD-NNNN | M105: =IFERROR(INDEX(Admin!$AZ$3:$BA$50,MATCH(H105,Admin!$AZ$3:$AZ$53,0),2),"LäggTillAdmin") -> 0 | O105: 5 | P105: =IF(E105="","",IF(COUNTIF(Admin!$AN$4:$AN$99,E105)>0,1,WEEKDAY(E105))) -> 3 | R105: 5 | S105: 0 | T105: 0 | U105: 0 | V105: 0 | W105: 0 | X105: 0 | Y105: 0 | AB105: 0 | AC105: 0 | AD105: 0 | AE105: 0 | AF105: 0 | AG105: 0 | AH105: 0 | AI105: 0 | AJ105: 0 | AK105: 2023-4-25 | AL105: 11:0-16:0 | AM105: 0 min | AN105: 5 | AO105: 0 | AP105: 0 | AQ105: Namn Namn 105 | AU105: 0 | AV105: 0 | AW105: 0 | AX105: 0 | AY105: 0 | AZ105: 0 | BC105: 0 | BE105: Auto
B106: Ledsagare LSS | C106: 4 | D106: Namn Namn 110 | E106: 2023-04-04 | F106: 11:55 | G106: 15:55 | J106: 132.86 | L106: YYYYMMDD-NNNN | M106: =IFERROR(INDEX(Admin!$AZ$3:$BA$50,MATCH(H106,Admin!$AZ$3:$AZ$53,0),2),"LäggTillAdmin") -> 0 | O106: 4 | P106: =IF(E106="","",IF(COUNTIF(Admin!$AN$4:$AN$99,E106)>0,1,WEEKDAY(E106))) -> 3 | R106: 4 | S106: 0 | T106: 0 | U106: 0 | V106: 0 | W106: 0 | X106: 0 | Y106: 0 | AB106: 0 | AC106: 0 | AD106: 0 | AE106: 0 | AF106: 0 | AG106: 0 | AH106: 0 | AI106: 0 | AJ106: 0 | AK106: 2023-4-04 | AL106: 11:55-15:55 | AM106: 0 min | AN106: 4 | AO106: 0 | AP106: 0 | AQ106: Namn Namn 110 | AU106: 0 | AV106: 0 | AW106: 0 | AX106: 0 | AY106: 0 | AZ106: 0 | BC106: 0 | BE106: Auto
B107: Ledsagare LSS | C107: 4 | D107: Namn Namn 110 | E107: 2023-04-11 | F107: 11:56 | G107: 15:56 | J107: 132.86 | L107: YYYYMMDD-NNNN | M107: =IFERROR(INDEX(Admin!$AZ$3:$BA$50,MATCH(H107,Admin!$AZ$3:$AZ$53,0),2),"LäggTillAdmin") -> 0 | O107: 4 | P107: =IF(E107="","",IF(COUNTIF(Admin!$AN$4:$AN$99,E107)>0,1,WEEKDAY(E107))) -> 3 | R107: 4 | S107: 0 | T107: 0 | U107: 0 | V107: 0 | W107: 0 | X107: 0 | Y107: 0 | AB107: 0 | AC107: 0 | AD107: 0 | AE107: 0 | AF107: 0 | AG107: 0 | AH107: 0 | AI107: 0 | AJ107: 0 | AK107: 2023-4-11 | AL107: 11:56-15:56 | AM107: 0 min | AN107: 4 | AO107: 0 | AP107: 0 | AQ107: Namn Namn 110 | AU107: 0 | AV107: 0 | AW107: 0 | AX107: 0 | AY107: 0 | AZ107: 0 | BC107: 0 | BE107: Auto
B108: Ledsagare LSS | C108: 4 | D108: Namn Namn 110 | E108: 2023-04-18 | F108: 11:57 | G108: 15:57 | J108: 132.86 | L108: YYYYMMDD-NNNN | M108: =IFERROR(INDEX(Admin!$AZ$3:$BA$50,MATCH(H108,Admin!$AZ$3:$AZ$53,0),2),"LäggTillAdmin") -> 0 | O108: 4 | P108: =IF(E108="","",IF(COUNTIF(Admin!$AN$4:$AN$99,E108)>0,1,WEEKDAY(E108))) -> 3 | R108: 4 | S108: 0 | T108: 0 | U108: 0 | V108: 0 | W108: 0 | X108: 0 | Y108: 0 | AB108: 0 | AC108: 0 | AD108: 0 | AE108: 0 | AF108: 0 | AG108: 0 | AH108: 0 | AI108: 0 | AJ108: 0 | AK108: 2023-4-18 | AL108: 11:57-15:57 | AM108: 0 min | AN108: 4 | AO108: 0 | AP108: 0 | AQ108: Namn Namn 110 | AU108: 0 | AV108: 0 | AW108: 0 | AX108: 0 | AY108: 0 | AZ108: 0 | BC108: 0 | BE108: Auto
B109: Ledsagare LSS | C109: 4 | D109: Namn Namn 110 | E109: 2023-04-25 | F109: 11:58 | G109: 15:58 | J109: 132.86 | L109: YYYYMMDD-NNNN | M109: =IFERROR(INDEX(Admin!$AZ$3:$BA$50,MATCH(H109,Admin!$AZ$3:$AZ$53,0),2),"LäggTillAdmin") -> 0 | O109: 4 | P109: =IF(E109="","",IF(COUNTIF(Admin!$AN$4:$AN$99,E109)>0,1,WEEKDAY(E109))) -> 3 | R109: 4 | S109: 0 | T109: 0 | U109: 0 | V109: 0 | W109: 0 | X109: 0 | Y109: 0 | AB109: 0 | AC109: 0 | AD109: 0 | AE109: 0 | AF109: 0 | AG109: 0 | AH109: 0 | AI109: 0 | AJ109: 0 | AK109: 2023-4-25 | AL109: 11:58-15:58 | AM109: 0 min | AN109: 4 | AO109: 0 | AP109: 0 | AQ109: Namn Namn 110 | AU109: 0 | AV109: 0 | AW109: 0 | AX109: 0 | AY109: 0 | AZ109: 0 | BC109: 0 | BE109: Auto
B110: Ledsagare LSS | C110: 6 | D110: Namn Namn 110 | E110: 2023-04-03 | F110: 15:59 | G110: 18:59 | J110: 132.86 | L110: YYYYMMDD-NNNN | M110: =IFERROR(INDEX(Admin!$AZ$3:$BA$50,MATCH(H110,Admin!$AZ$3:$AZ$53,0),2),"LäggTillAdmin") -> 0 | O110: 3 | P110: =IF(E110="","",IF(COUNTIF(Admin!$AN$4:$AN$99,E110)>0,1,WEEKDAY(E110))) -> 2 | R110: 3 | S110: 0 | T110: 0 | U110: 0 | V110: 0 | W110: 0 | X110: 0 | Y110: 0 | AB110: 0 | AC110: 0 | AD110: 0 | AE110: 0 | AF110: 0 | AG110: 0 | AH110: 0 | AI110: 0 | AJ110: 0 | AK110: 2023-4-03 | AL110: 15:59-18:59 | AM110: 0 min | AN110: 3 | AO110: 0 | AP110: 0 | AQ110: Namn Namn 110 | AU110: 0 | AV110: 0 | AW110: 0 | AX110: 0 | AY110: 0 | AZ110: 0 | BC110: 0 | BE110: Auto
B111: Ledsagare LSS | C111: 6 | D111: Namn Namn 110 | E111: 2023-04-11 | F111: 15:00 | G111: 18:00 | J111: 132.86 | L111: YYYYMMDD-NNNN | M111: =IFERROR(INDEX(Admin!$AZ$3:$BA$50,MATCH(H111,Admin!$AZ$3:$AZ$53,0),2),"LäggTillAdmin") -> 0 | O111: 3 | P111: =IF(E111="","",IF(COUNTIF(Admin!$AN$4:$AN$99,E111)>0,1,WEEKDAY(E111))) -> 3 | R111: 3 | S111: 0 | T111: 0 | U111: 0 | V111: 0 | W111: 0 | X111: 0 | Y111: 0 | AB111: 0 | AC111: 0 | AD111: 0 | AE111: 0 | AF111: 0 | AG111: 0 | AH111: 0 | AI111: 0 | AJ111: 0 | AK111: 2023-4-11 | AL111: 15:0-18:0 | AM111: 0 min | AN111: 3 | AO111: 0 | AP111: 0 | AQ111: Namn Namn 110 | AU111: 0 | AV111: 0 | AW111: 0 | AX111: 0 | AY111: 0 | AZ111: 0 | BC111: 0 | BE111: Auto
B112: Ledsagare LSS | C112: 6 | D112: Namn Namn 110 | E112: 2023-04-18 | F112: 15:00 | G112: 19:00 | J112: 132.86 | L112: YYYYMMDD-NNNN | M112: =IFERROR(INDEX(Admin!$AZ$3:$BA$50,MATCH(H112,Admin!$AZ$3:$AZ$53,0),2),"LäggTillAdmin") -> 0 | O112: 4 | P112: =IF(E112="","",IF(COUNTIF(Admin!$AN$4:$AN$99,E112)>0,1,WEEKDAY(E112))) -> 3 | R112: 4 | S112: 0 | T112: 0 | U112: 0 | V112: 0 | W112: 0 | X112: 0 | Y112: 0 | AB112: 0 | AC112: 0 | AD112: 0 | AE112: 0 | AF112: 0 | AG112: 0 | AH112: 0 | AI112: 0 | AJ112: 0 | AK112: 2023-4-18 | AL112: 15:0-19:0 | AM112: 0 min | AN112: 4 | AO112: 0 | AP112: 0 | AQ112: Namn Namn 110 | AU112: 0 | AV112: 0 | AW112: 0 | AX112: 0 | AY112: 0 | AZ112: 0 | BC112: 0 | BE112: Auto
B113: Ledsagare LSS | C113: 6 | D113: Namn Namn 110 | E113: 2023-04-25 | F113: 15:02 | G113: 17:02 | J113: 132.86 | L113: YYYYMMDD-NNNN | M113: =IFERROR(INDEX(Admin!$AZ$3:$BA$50,MATCH(H113,Admin!$AZ$3:$AZ$53,0),2),"LäggTillAdmin") -> 0 | O113: 2 | P113: =IF(E113="","",IF(COUNTIF(Admin!$AN$4:$AN$99,E113)>0,1,WEEKDAY(E113))) -> 3 | R113: 2 | S113: 0 | T113: 0 | U113: 0 | V113: 0 | W113: 0 | X113: 0 | Y113: 0 | AB113: 0 | AC113: 0 | AD113: 0 | AE113: 0 | AF113: 0 | AG113: 0 | AH113: 0 | AI113: 0 | AJ113: 0 | AK113: 2023-4-25 | AL113: 15:2-17:2 | AM113: 0 min | AN113: 2 | AO113: 0 | AP113: 0 | AQ113: Namn Namn 110 | AU113: 0 | AV113: 0 | AW113: 0 | AX113: 0 | AY113: 0 | AZ113: 0 | BC113: 0 | BE113: Auto
B114: Ledsagare LSS | C114: 6 | D114: Namn Namn 118 | E114: 2023-04-02 | F114: 11:00 | G114: 14:00 | J114: 127 | L114: YYYYMMDD-NNNN | M114: =IFERROR(INDEX(Admin!$AZ$3:$BA$50,MATCH(H114,Admin!$AZ$3:$AZ$53,0),2),"LäggTillAdmin") -> 0 | O114: 3 | P114: =IF(E114="","",IF(COUNTIF(Admin!$AN$4:$AN$99,E114)>0,1,WEEKDAY(E114))) -> 1 | R114: 3 | S114: 0 | T114: 0 | U114: 0 | V114: 3 | W114: 0 | X114: 0 | Y114: 0 | AB114: 0 | AC114: 0 | AD114: 185.7 | AE114: 0 | AF114: 0 | AG114: 0 | AH114: 0 | AI114: 0 | AJ114: 185.7 | AK114: 2023-4-02 | AL114: 11:0-14:0 | AM114: 0 min | AN114: 3 | AO114: 3 | AP114: 0 | AQ114: Namn Namn 118 | AU114: 0 | AV114: 0 | AW114: 185.7 | AX114: 0 | AY114: 0 | AZ114: 0 | BC114: 185.7 | BE114: Auto
B115: Ledsagare LSS | C115: 6 | D115: Namn Namn 118 | E115: 2023-04-10 | F115: 11:00 | G115: 15:00 | J115: 127 | L115: YYYYMMDD-NNNN | M115: =IFERROR(INDEX(Admin!$AZ$3:$BA$50,MATCH(H115,Admin!$AZ$3:$AZ$53,0),2),"LäggTillAdmin") -> 0 | O115: 4 | P115: =IF(E115="","",IF(COUNTIF(Admin!$AN$4:$AN$99,E115)>0,1,WEEKDAY(E115))) -> 2 | R115: 4 | S115: 0 | T115: 0 | U115: 0 | V115: 4 | W115: 0 | X115: 0 | Y115: 0 | AB115: 0 | AC115: 0 | AD115: 247.6 | AE115: 0 | AF115: 0 | AG115: 0 | AH115: 0 | AI115: 0 | AJ115: 247.6 | AK115: 2023-4-10 | AL115: 11:0-15:0 | AM115: 0 min | AN115: 4 | AO115: 4 | AP115: 0 | AQ115: Namn Namn 118 | AU115: 0 | AV115: 0 | AW115: 247.6 | AX115: 0 | AY115: 0 | AZ115: 0 | BC115: 247.6 | BE115: Auto
B116: Ledsagare LSS | C116: 6 | D116: Namn Namn 118 | E116: 2023-04-16 | F116: 11:00 | G116: 14:00 | J116: 127 | L116: YYYYMMDD-NNNN | M116: =IFERROR(INDEX(Admin!$AZ$3:$BA$50,MATCH(H116,Admin!$AZ$3:$AZ$53,0),2),"LäggTillAdmin") -> 0 | O116: 3 | P116: =IF(E116="","",IF(COUNTIF(Admin!$AN$4:$AN$99,E116)>0,1,WEEKDAY(E116))) -> 1 | R116: 3 | S116: 0 | T116: 0 | U116: 0 | V116: 3 | W116: 0 | X116: 0 | Y116: 0 | AB116: 0 | AC116: 0 | AD116: 185.7 | AE116: 0 | AF116: 0 | AG116: 0 | AH116: 0 | AI116: 0 | AJ116: 185.7 | AK116: 2023-4-16 | AL116: 11:0-14:0 | AM116: 0 min | AN116: 3 | AO116: 3 | AP116: 0 | AQ116: Namn Namn 118 | AU116: 0 | AV116: 0 | AW116: 185.7 | AX116: 0 | AY116: 0 | AZ116: 0 | BC116: 185.7 | BE116: Auto
B117: Ledsagare LSS | C117: 8 | D117: Namn Namn 121 | E117: 2023-04-16 | F117: 14:00 | G117: 22:00 | J117: 127 | L117: YYYYMMDD-NNNN | M117: =IFERROR(INDEX(Admin!$AZ$3:$BA$50,MATCH(H117,Admin!$AZ$3:$AZ$53,0),2),"LäggTillAdmin") -> 0 | O117: 8 | P117: =IF(E117="","",IF(COUNTIF(Admin!$AN$4:$AN$99,E117)>0,1,WEEKDAY(E117))) -> 1 | R117: 8 | S117: 0 | T117: 0 | U117: 0 | V117: 8 | W117: 0 | X117: 0 | Y117: 0 | AB117: 0 | AC117: 0 | AD117: 495.2 | AE117: 0 | AF117: 0 | AG117: 0 | AH117: 0 | AI117: 0 | AJ117: 495.2 | AK117: 2023-4-16 | AL117: 14:0-22:0 | AM117: 0 min | AN117: 8 | AO117: 8 | AP117: 0 | AQ117: Namn Namn 121 | AU117: 0 | AV117: 0 | AW117: 495.2 | AX117: 0 | AY117: 0 | AZ117: 0 | BC117: 495.2 | BE117: Auto
B118: Ledsagare LSS | C118: 8 | D118: Namn Namn 121 | E118: 2023-04-23 | F118: 17:00 | G118: 21:00 | J118: 127 | L118: YYYYMMDD-NNNN | M118: =IFERROR(INDEX(Admin!$AZ$3:$BA$50,MATCH(H118,Admin!$AZ$3:$AZ$53,0),2),"LäggTillAdmin") -> 0 | O118: 4 | P118: =IF(E118="","",IF(COUNTIF(Admin!$AN$4:$AN$99,E118)>0,1,WEEKDAY(E118))) -> 1 | R118: 4 | S118: 0 | T118: 0 | U118: 0 | V118: 4 | W118: 0 | X118: 0 | Y118: 0 | AB118: 0 | AC118: 0 | AD118: 247.6 | AE118: 0 | AF118: 0 | AG118: 0 | AH118: 0 | AI118: 0 | AJ118: 247.6 | AK118: 2023-4-23 | AL118: 17:0-21:0 | AM118: 0 min | AN118: 4 | AO118: 4 | AP118: 0 | AQ118: Namn Namn 121 | AU118: 0 | AV118: 0 | AW118: 247.6 | AX118: 0 | AY118: 0 | AZ118: 0 | BC118: 247.6 | BE118: Auto
B119: Ledsagare LSS | C119: 1 | D119: Namn Namn 123 | E119: 2023-04-01 | F119: 15:00 | G119: 16:00 | J119: 127 | L119: YYYYMMDD-NNNN | M119: =IFERROR(INDEX(Admin!$AZ$3:$BA$50,MATCH(H119,Admin!$AZ$3:$AZ$53,0),2),"LäggTillAdmin") -> 0 | O119: 1 | P119: =IF(E119="","",IF(COUNTIF(Admin!$AN$4:$AN$99,E119)>0,1,WEEKDAY(E119))) -> 7 | R119: 1 | S119: 0 | T119: 0 | U119: 0 | V119: 1 | W119: 0 | X119: 0 | Y119: 0 | AB119: 0 | AC119: 0 | AD119: 61.9 | AE119: 0 | AF119: 0 | AG119: 0 | AH119: 0 | AI119: 0 | AJ119: 61.9 | AK119: 2023-4-01 | AL119: 15:0-16:0 | AM119: 0 min | AN119: 1 | AO119: 1 | AP119: 0 | AQ119: Namn Namn 123 | AU119: 0 | AV119: 0 | AW119: 61.9 | AX119: 0 | AY119: 0 | AZ119: 0 | BC119: 61.9 | BE119: Auto
B120: Ledsagare LSS | C120: 1 | D120: Namn Namn 123 | E120: 2023-04-02 | F120: 14:00 | G120: 15:30 | J120: 127 | L120: YYYYMMDD-NNNN | M120: =IFERROR(INDEX(Admin!$AZ$3:$BA$50,MATCH(H120,Admin!$AZ$3:$AZ$53,0),2),"LäggTillAdmin") -> 0 | O120: 1.5 | P120: =IF(E120="","",IF(COUNTIF(Admin!$AN$4:$AN$99,E120)>0,1,WEEKDAY(E120))) -> 1 | R120: 1.5 | S120: 0 | T120: 0 | U120: 0 | V120: 1.5 | W120: 0 | X120: 0 | Y120: 0 | AB120: 0 | AC120: 0 | AD120: 92.85 | AE120: 0 | AF120: 0 | AG120: 0 | AH120: 0 | AI120: 0 | AJ120: 92.85 | AK120: 2023-4-02 | AL120: 14:0-15:30 | AM120: 0 min | AN120: 1.5 | AO120: 1.5 | AP120: 0 | AQ120: Namn Namn 123 | AU120: 0 | AV120: 0 | AW120: 92.85 | AX120: 0 | AY120: 0 | AZ120: 0 | BC120: 92.85 | BE120: Auto
B121: Ledsagare LSS | C121: 1 | D121: Namn Namn 123 | E121: 2023-04-08 | F121: 13:00 | G121: 15:30 | J121: 127 | L121: YYYYMMDD-NNNN | M121: =IFERROR(INDEX(Admin!$AZ$3:$BA$50,MATCH(H121,Admin!$AZ$3:$AZ$53,0),2),"LäggTillAdmin") -> 0 | O121: 2.5 | P121: =IF(E121="","",IF(COUNTIF(Admin!$AN$4:$AN$99,E121)>0,1,WEEKDAY(E121))) -> 7 | R121: 2.5 | S121: 0 | T121: 0 | U121: 0 | V121: 2 | W121: 0 | X121: 0 | Y121: 0 | AB121: 0 | AC121: 0 | AD121: 123.8 | AE121: 0 | AF121: 0 | AG121: 0 | AH121: 0 | AI121: 0 | AJ121: 123.8 | AK121: 2023-4-08 | AL121: 13:0-15:30 | AM121: 0 min | AN121: 2.5 | AO121: 2 | AP121: 0 | AQ121: Namn Namn 123 | AU121: 0 | AV121: 0 | AW121: 123.8 | AX121: 0 | AY121: 0 | AZ121: 0 | BC121: 123.8 | BE121: Auto
B122: Ledsagare LSS | C122: 1 | D122: Namn Namn 123 | E122: 2023-04-09 | F122: 13:00 | G122: 14:00 | J122: 127 | L122: YYYYMMDD-NNNN | M122: =IFERROR(INDEX(Admin!$AZ$3:$BA$50,MATCH(H122,Admin!$AZ$3:$AZ$53,0),2),"LäggTillAdmin") -> 0 | O122: 1 | P122: =IF(E122="","",IF(COUNTIF(Admin!$AN$4:$AN$99,E122)>0,1,WEEKDAY(E122))) -> 1 | R122: 1 | S122: 0 | T122: 0 | U122: 0 | V122: 1 | W122: 0 | X122: 0 | Y122: 0 | AB122: 0 | AC122: 0 | AD122: 61.9 | AE122: 0 | AF122: 0 | AG122: 0 | AH122: 0 | AI122: 0 | AJ122: 61.9 | AK122: 2023-4-09 | AL122: 13:0-14:0 | AM122: 0 min | AN122: 1 | AO122: 1 | AP122: 0 | AQ122: Namn Namn 123 | AU122: 0 | AV122: 0 | AW122: 61.9 | AX122: 0 | AY122: 0 | AZ122: 0 | BC122: 61.9 | BE122: Auto
B123: Ledsagare LSS | C123: 1 | D123: Namn Namn 123 | E123: 2023-04-15 | F123: 12:00 | G123: 14:00 | J123: 127 | L123: YYYYMMDD-NNNN | M123: =IFERROR(INDEX(Admin!$AZ$3:$BA$50,MATCH(H123,Admin!$AZ$3:$AZ$53,0),2),"LäggTillAdmin") -> 0 | O123: 2 | P123: =IF(E123="","",IF(COUNTIF(Admin!$AN$4:$AN$99,E123)>0,1,WEEKDAY(E123))) -> 7 | R123: 2 | S123: 0 | T123: 0 | U123: 0 | V123: 2 | W123: 0 | X123: 0 | Y123: 0 | AB123: 0 | AC123: 0 | AD123: 123.8 | AE123: 0 | AF123: 0 | AG123: 0 | AH123: 0 | AI123: 0 | AJ123: 123.8 | AK123: 2023-4-15 | AL123: 12:0-14:0 | AM123: 0 min | AN123: 2 | AO123: 2 | AP123: 0 | AQ123: Namn Namn 123 | AU123: 0 | AV123: 0 | AW123: 123.8 | AX123: 0 | AY123: 0 | AZ123: 0 | BC123: 123.8 | BE123: Auto
B124: Ledsagare LSS | C124: 1 | D124: Namn Namn 123 | E124: 2023-04-16 | F124: 13:00 | G124: 14:00 | J124: 127 | L124: YYYYMMDD-NNNN | M124: =IFERROR(INDEX(Admin!$AZ$3:$BA$50,MATCH(H124,Admin!$AZ$3:$AZ$53,0),2),"LäggTillAdmin") -> 0 | O124: 1 | P124: =IF(E124="","",IF(COUNTIF(Admin!$AN$4:$AN$99,E124)>0,1,WEEKDAY(E124))) -> 1 | R124: 1 | S124: 0 | T124: 0 | U124: 0 | V124: 1 | W124: 0 | X124: 0 | Y124: 0 | AB124: 0 | AC124: 0 | AD124: 61.9 | AE124: 0 | AF124: 0 | AG124: 0 | AH124: 0 | AI124: 0 | AJ124: 61.9 | AK124: 2023-4-16 | AL124: 13:0-14:0 | AM124: 0 min | AN124: 1 | AO124: 1 | AP124: 0 | AQ124: Namn Namn 123 | AU124: 0 | AV124: 0 | AW124: 61.9 | AX124: 0 | AY124: 0 | AZ124: 0 | BC124: 61.9 | BE124: Auto
B125: Ledsagare LSS | C125: 1 | D125: Namn Namn 123 | E125: 2023-04-23 | F125: 12:00 | G125: 13:00 | J125: 127 | L125: YYYYMMDD-NNNN | M125: =IFERROR(INDEX(Admin!$AZ$3:$BA$50,MATCH(H125,Admin!$AZ$3:$AZ$53,0),2),"LäggTillAdmin") -> 0 | O125: 1 | P125: =IF(E125="","",IF(COUNTIF(Admin!$AN$4:$AN$99,E125)>0,1,WEEKDAY(E125))) -> 1 | R125: 1 | S125: 0 | T125: 0 | U125: 0 | V125: 1 | W125: 0 | X125: 0 | Y125: 0 | AB125: 0 | AC125: 0 | AD125: 61.9 | AE125: 0 | AF125: 0 | AG125: 0 | AH125: 0 | AI125: 0 | AJ125: 61.9 | AK125: 2023-4-23 | AL125: 12:0-13:0 | AM125: 0 min | AN125: 1 | AO125: 1 | AP125: 0 | AQ125: Namn Namn 123 | AU125: 0 | AV125: 0 | AW125: 61.9 | AX125: 0 | AY125: 0 | AZ125: 0 | BC125: 61.9 | BE125: Auto
B126: Ledsagare LSS | C126: T2 | D126: Namn Namn 130 | E126: 2023-04-07 | F126: 13:30 | G126: 15:00 | J126: 127 | L126: YYYYMMDD-NNNN | M126: =IFERROR(INDEX(Admin!$AZ$3:$BA$50,MATCH(H126,Admin!$AZ$3:$AZ$53,0),2),"LäggTillAdmin") -> 0 | O126: 1.5 | P126: =IF(E126="","",IF(COUNTIF(Admin!$AN$4:$AN$99,E126)>0,1,WEEKDAY(E126))) -> 6 | R126: 1.5 | S126: 0 | T126: 0 | U126: 0 | V126: 2 | W126: 0 | X126: 0 | Y126: 0 | AB126: 0 | AC126: 0 | AD126: 123.8 | AE126: 0 | AF126: 0 | AG126: 0 | AH126: 0 | AI126: 0 | AJ126: 123.8 | AK126: 2023-4-07 | AL126: 13:30-15:0 | AM126: 0 min | AN126: 1.5 | AO126: 2 | AP126: 0 | AQ126: Namn Namn 130 | AU126: 0 | AV126: 0 | AW126: 123.8 | AX126: 0 | AY126: 0 | AZ126: 0 | BC126: 123.8 | BE126: Auto
B127: Ledsagare LSS | C127: T2 | D127: Namn Namn 130 | E127: 2023-04-08 | F127: 12:30 | G127: 14:30 | J127: 127 | L127: YYYYMMDD-NNNN | M127: =IFERROR(INDEX(Admin!$AZ$3:$BA$50,MATCH(H127,Admin!$AZ$3:$AZ$53,0),2),"LäggTillAdmin") -> 0 | O127: 2 | P127: =IF(E127="","",IF(COUNTIF(Admin!$AN$4:$AN$99,E127)>0,1,WEEKDAY(E127))) -> 7 | R127: 2 | S127: 0 | T127: 0 | U127: 0 | V127: 2 | W127: 0 | X127: 0 | Y127: 0 | AB127: 0 | AC127: 0 | AD127: 123.8 | AE127: 0 | AF127: 0 | AG127: 0 | AH127: 0 | AI127: 0 | AJ127: 123.8 | AK127: 2023-4-08 | AL127: 12:30-14:30 | AM127: 0 min | AN127: 2 | AO127: 2 | AP127: 0 | AQ127: Namn Namn 130 | AU127: 0 | AV127: 0 | AW127: 123.8 | AX127: 0 | AY127: 0 | AZ127: 0 | BC127: 123.8 | BE127: Auto
B128: Ledsagare LSS | C128: T2 | D128: Namn Namn 130 | E128: 2023-04-09 | F128: 14:00 | G128: 15:30 | J128: 127 | L128: YYYYMMDD-NNNN | M128: =IFERROR(INDEX(Admin!$AZ$3:$BA$50,MATCH(H128,Admin!$AZ$3:$AZ$53,0),2),"LäggTillAdmin") -> 0 | O128: 1.5 | P128: =IF(E128="","",IF(COUNTIF(Admin!$AN$4:$AN$99,E128)>0,1,WEEKDAY(E128))) -> 1 | R128: 1.5 | S128: 0 | T128: 0 | U128: 0 | V128: 1 | W128: 0 | X128: 0 | Y128: 0 | AB128: 0 | AC128: 0 | AD128: 61.9 | AE128: 0 | AF128: 0 | AG128: 0 | AH128: 0 | AI128: 0 | AJ128: 61.9 | AK128: 2023-4-09 | AL128: 14:0-15:30 | AM128: 0 min | AN128: 1.5 | AO128: 1 | AP128: 0 | AQ128: Namn Namn 130 | AU128: 0 | AV128: 0 | AW128: 61.9 | AX128: 0 | AY128: 0 | AZ128: 0 | BC128: 61.9 | BE128: Auto
B129: Ledsagare LSS | C129: T2 | D129: Namn Namn 130 | E129: 2023-04-10 | F129: 11:00 | G129: 12:30 | J129: 127 | L129: YYYYMMDD-NNNN | M129: =IFERROR(INDEX(Admin!$AZ$3:$BA$50,MATCH(H129,Admin!$AZ$3:$AZ$53,0),2),"LäggTillAdmin") -> 0 | O129: 1.5 | P129: =IF(E129="","",IF(COUNTIF(Admin!$AN$4:$AN$99,E129)>0,1,WEEKDAY(E129))) -> 2 | R129: 1.5 | S129: 0 | T129: 0 | U129: 0 | V129: 1 | W129: 0 | X129: 0 | Y129: 0 | AB129: 0 | AC129: 0 | AD129: 61.9 | AE129: 0 | AF129: 0 | AG129: 0 | AH129: 0 | AI129: 0 | AJ129: 61.9 | AK129: 2023-4-10 | AL129: 11:0-12:30 | AM129: 0 min | AN129: 1.5 | AO129: 1 | AP129: 0 | AQ129: Namn Namn 130 | AU129: 0 | AV129: 0 | AW129: 61.9 | AX129: 0 | AY129: 0 | AZ129: 0 | BC129: 61.9 | BE129: Auto
B130: Ledsagare LSS | C130: T2 | D130: Namn Namn 130 | E130: 2023-04-15 | F130: 12:30 | G130: 14:30 | J130: 127 | L130: YYYYMMDD-NNNN | M130: =IFERROR(INDEX(Admin!$AZ$3:$BA$50,MATCH(H130,Admin!$AZ$3:$AZ$53,0),2),"LäggTillAdmin") -> 0 | O130: 2 | P130: =IF(E130="","",IF(COUNTIF(Admin!$AN$4:$AN$99,E130)>0,1,WEEKDAY(E130))) -> 7 | R130: 2 | S130: 0 | T130: 0 | U130: 0 | V130: 2 | W130: 0 | X130: 0 | Y130: 0 | AB130: 0 | AC130: 0 | AD130: 123.8 | AE130: 0 | AF130: 0 | AG130: 0 | AH130: 0 | AI130: 0 | AJ130: 123.8 | AK130: 2023-4-15 | AL130: 12:30-14:30 | AM130: 0 min | AN130: 2 | AO130: 2 | AP130: 0 | AQ130: Namn Namn 130 | AU130: 0 | AV130: 0 | AW130: 123.8 | AX130: 0 | AY130: 0 | AZ130: 0 | BC130: 123.8 | BE130: Auto
B131: Ledsagare LSS | C131: T2 | D131: Namn Namn 130 | E131: 2023-04-16 | F131: 14:00 | G131: 15:30 | J131: 127 | L131: YYYYMMDD-NNNN | M131: =IFERROR(INDEX(Admin!$AZ$3:$BA$50,MATCH(H131,Admin!$AZ$3:$AZ$53,0),2),"LäggTillAdmin") -> 0 | O131: 1.5 | P131: =IF(E131="","",IF(COUNTIF(Admin!$AN$4:$AN$99,E131)>0,1,WEEKDAY(E131))) -> 1 | R131: 1.5 | S131: 0 | T131: 0 | U131: 0 | V131: 1.5 | W131: 0 | X131: 0 | Y131: 0 | AB131: 0 | AC131: 0 | AD131: 92.85 | AE131: 0 | AF131: 0 | AG131: 0 | AH131: 0 | AI131: 0 | AJ131: 92.85 | AK131: 2023-4-16 | AL131: 14:0-15:30 | AM131: 0 min | AN131: 1.5 | AO131: 1.5 | AP131: 0 | AQ131: Namn Namn 130 | AU131: 0 | AV131: 0 | AW131: 92.85 | AX131: 0 | AY131: 0 | AZ131: 0 | BC131: 92.85 | BE131: Auto
B132: Ledsagare LSS | C132: T2 | D132: Namn Namn 130 | E132: 2023-04-22 | F132: 11:00 | G132: 12:30 | J132: 127 | L132: YYYYMMDD-NNNN | M132: =IFERROR(INDEX(Admin!$AZ$3:$BA$50,MATCH(H132,Admin!$AZ$3:$AZ$53,0),2),"LäggTillAdmin") -> 0 | O132: 1.5 | P132: =IF(E132="","",IF(COUNTIF(Admin!$AN$4:$AN$99,E132)>0,1,WEEKDAY(E132))) -> 7 | R132: 1.5 | S132: 0 | T132: 0 | U132: 0 | V132: 1.5 | W132: 0 | X132: 0 | Y132: 0 | AB132: 0 | AC132: 0 | AD132: 92.85 | AE132: 0 | AF132: 0 | AG132: 0 | AH132: 0 | AI132: 0 | AJ132: 92.85 | AK132: 2023-4-22 | AL132: 11:0-12:30 | AM132: 0 min | AN132: 1.5 | AO132: 1.5 | AP132: 0 | AQ132: Namn Namn 130 | AU132: 0 | AV132: 0 | AW132: 92.85 | AX132: 0 | AY132: 0 | AZ132: 0 | BC132: 92.85 | BE132: Auto
B133: Ledsagare LSS | C133: 1 | D133: Namn Namn 137 | E133: 2023-04-01 | F133: 13:00 | G133: 18:00 | J133: 127 | L133: YYYYMMDD-NNNN | M133: =IFERROR(INDEX(Admin!$AZ$3:$BA$50,MATCH(H133,Admin!$AZ$3:$AZ$53,0),2),"LäggTillAdmin") -> 0 | O133: 5 | P133: =IF(E133="","",IF(COUNTIF(Admin!$AN$4:$AN$99,E133)>0,1,WEEKDAY(E133))) -> 7 | R133: 5 | S133: 0 | T133: 0 | U133: 0 | V133: 5 | W133: 0 | X133: 0 | Y133: 0 | AB133: 0 | AC133: 0 | AD133: 309.5 | AE133: 0 | AF133: 0 | AG133: 0 | AH133: 0 | AI133: 0 | AJ133: 309.5 | AK133: 2023-4-01 | AL133: 13:0-18:0 | AM133: 0 min | AN133: 5 | AO133: 5 | AP133: 0 | AQ133: Namn Namn 137 | AU133: 0 | AV133: 0 | AW133: 309.5 | AX133: 0 | AY133: 0 | AZ133: 0 | BC133: 309.5 | BE133: Auto
B134: Ledsagare LSS | C134: 1 | D134: Namn Namn 137 | E134: 2023-04-07 | F134: 15:00 | G134: 19:00 | J134: 127 | L134: YYYYMMDD-NNNN | M134: =IFERROR(INDEX(Admin!$AZ$3:$BA$50,MATCH(H134,Admin!$AZ$3:$AZ$53,0),2),"LäggTillAdmin") -> 0 | O134: 4 | P134: =IF(E134="","",IF(COUNTIF(Admin!$AN$4:$AN$99,E134)>0,1,WEEKDAY(E134))) -> 6 | R134: 4 | S134: 0 | T134: 0 | U134: 0 | V134: 4 | W134: 0 | X134: 0 | Y134: 0 | AB134: 0 | AC134: 0 | AD134: 247.6 | AE134: 0 | AF134: 0 | AG134: 0 | AH134: 0 | AI134: 0 | AJ134: 247.6 | AK134: 2023-4-07 | AL134: 15:0-19:0 | AM134: 0 min | AN134: 4 | AO134: 4 | AP134: 0 | AQ134: Namn Namn 137 | AU134: 0 | AV134: 0 | AW134: 247.6 | AX134: 0 | AY134: 0 | AZ134: 0 | BC134: 247.6 | BE134: Auto
B135: Ledsagare LSS | C135: 1 | D135: Namn Namn 137 | E135: 2023-04-13 | F135: 15:00 | G135: 19:00 | J135: 127 | L135: YYYYMMDD-NNNN | M135: =IFERROR(INDEX(Admin!$AZ$3:$BA$50,MATCH(H135,Admin!$AZ$3:$AZ$53,0),2),"LäggTillAdmin") -> 0 | O135: 4 | P135: =IF(E135="","",IF(COUNTIF(Admin!$AN$4:$AN$99,E135)>0,1,WEEKDAY(E135))) -> 5 | R135: 4 | S135: 0 | T135: 0 | U135: 0 | V135: 0 | W135: 0 | X135: 0 | Y135: 0 | AB135: 0 | AC135: 0 | AD135: 0 | AE135: 0 | AF135: 0 | AG135: 0 | AH135: 0 | AI135: 0 | AJ135: 0 | AK135: 2023-4-13 | AL135: 15:0-19:0 | AM135: 0 min | AN135: 4 | AO135: 0 | AP135: 0 | AQ135: Namn Namn 137 | AU135: 0 | AV135: 0 | AW135: 0 | AX135: 0 | AY135: 0 | AZ135: 0 | BC135: 0 | BE135: Auto
B136: Ledsagare LSS | C136: 1 | D136: Namn Namn 137 | E136: 2023-04-19 | F136: 16:30 | G136: 19:00 | J136: 127 | L136: YYYYMMDD-NNNN | M136: =IFERROR(INDEX(Admin!$AZ$3:$BA$50,MATCH(H136,Admin!$AZ$3:$AZ$53,0),2),"LäggTillAdmin") -> 0 | O136: 2.5 | P136: =IF(E136="","",IF(COUNTIF(Admin!$AN$4:$AN$99,E136)>0,1,WEEKDAY(E136))) -> 4 | R136: 2.5 | S136: 0 | T136: 0 | U136: 0 | V136: 0 | W136: 0 | X136: 0 | Y136: 0 | AB136: 0 | AC136: 0 | AD136: 0 | AE136: 0 | AF136: 0 | AG136: 0 | AH136: 0 | AI136: 0 | AJ136: 0 | AK136: 2023-4-19 | AL136: 16:30-19:0 | AM136: 0 min | AN136: 2.5 | AO136: 0 | AP136: 0 | AQ136: Namn Namn 137 | AU136: 0 | AV136: 0 | AW136: 0 | AX136: 0 | AY136: 0 | AZ136: 0 | BC136: 0 | BE136: Auto
B137: Ledsagare LSS | C137: 1 | D137: Namn Namn 137 | E137: 2023-04-27 | F137: 13:30 | G137: 17:30 | J137: 127 | L137: YYYYMMDD-NNNN | M137: =IFERROR(INDEX(Admin!$AZ$3:$BA$50,MATCH(H137,Admin!$AZ$3:$AZ$53,0),2),"LäggTillAdmin") -> 0 | O137: 4 | P137: =IF(E137="","",IF(COUNTIF(Admin!$AN$4:$AN$99,E137)>0,1,WEEKDAY(E137))) -> 5 | R137: 4 | S137: 0 | T137: 0 | U137: 0 | V137: 0 | W137: 0 | X137: 0 | Y137: 0 | AB137: 0 | AC137: 0 | AD137: 0 | AE137: 0 | AF137: 0 | AG137: 0 | AH137: 0 | AI137: 0 | AJ137: 0 | AK137: 2023-4-27 | AL137: 13:30-17:30 | AM137: 0 min | AN137: 4 | AO137: 0 | AP137: 0 | AQ137: Namn Namn 137 | AU137: 0 | AV137: 0 | AW137: 0 | AX137: 0 | AY137: 0 | AZ137: 0 | BC137: 0 | BE137: Auto
B138: Ledsagare LSS | C138: 3 | D138: Namn Namn 142 | E138: 2023-04-09 | F138: 12:00 | G138: 15:00 | J138: 127 | L138: YYYYMMDD-NNNN | M138: =IFERROR(INDEX(Admin!$AZ$3:$BA$50,MATCH(H138,Admin!$AZ$3:$AZ$53,0),2),"LäggTillAdmin") -> 0 | O138: 3 | P138: =IF(E138="","",IF(COUNTIF(Admin!$AN$4:$AN$99,E138)>0,1,WEEKDAY(E138))) -> 1 | R138: 3 | S138: 0 | T138: 0 | U138: 0 | V138: 3 | W138: 0 | X138: 0 | Y138: 0 | AB138: 0 | AC138: 0 | AD138: 185.7 | AE138: 0 | AF138: 0 | AG138: 0 | AH138: 0 | AI138: 0 | AJ138: 185.7 | AK138: 2023-4-09 | AL138: 12:0-15:0 | AM138: 0 min | AN138: 3 | AO138: 3 | AP138: 0 | AQ138: Namn Namn 142 | AU138: 0 | AV138: 0 | AW138: 185.7 | AX138: 0 | AY138: 0 | AZ138: 0 | BC138: 185.7 | BE138: Auto
B139: Ledsagare LSS | C139: 3 | D139: Namn Namn 142 | E139: 2023-04-16 | F139: 12:00 | G139: 15:00 | J139: 127 | L139: YYYYMMDD-NNNN | M139: =IFERROR(INDEX(Admin!$AZ$3:$BA$50,MATCH(H139,Admin!$AZ$3:$AZ$53,0),2),"LäggTillAdmin") -> 0 | O139: 3 | P139: =IF(E139="","",IF(COUNTIF(Admin!$AN$4:$AN$99,E139)>0,1,WEEKDAY(E139))) -> 1 | R139: 3 | S139: 0 | T139: 0 | U139: 0 | V139: 3 | W139: 0 | X139: 0 | Y139: 0 | AB139: 0 | AC139: 0 | AD139: 185.7 | AE139: 0 | AF139: 0 | AG139: 0 | AH139: 0 | AI139: 0 | AJ139: 185.7 | AK139: 2023-4-16 | AL139: 12:0-15:0 | AM139: 0 min | AN139: 3 | AO139: 3 | AP139: 0 | AQ139: Namn Namn 142 | AU139: 0 | AV139: 0 | AW139: 185.7 | AX139: 0 | AY139: 0 | AZ139: 0 | BC139: 185.7 | BE139: Auto
B140: Ledsagare LSS | C140: 3 | D140: Namn Namn 142 | E140: 2023-04-23 | F140: 12:00 | G140: 15:00 | J140: 127 | L140: YYYYMMDD-NNNN | M140: =IFERROR(INDEX(Admin!$AZ$3:$BA$50,MATCH(H140,Admin!$AZ$3:$AZ$53,0),2),"LäggTillAdmin") -> 0 | O140: 3 | P140: =IF(E140="","",IF(COUNTIF(Admin!$AN$4:$AN$99,E140)>0,1,WEEKDAY(E140))) -> 1 | Q140: =IFERROR(IF(HOUR(F140)>HOUR(G140),IF(IF(E140="","",WEEKDAY(E140))=7,1,IF(E140="","",WEEKDAY(E140))+1),""),"") ->  | R140: =IFERROR(IF(HOUR(F140)>HOUR(G140),O140-S140,O140),"") -> 3 | S140: =IFERROR(IF(HOUR(F140)>HOUR(G140),HOUR(G140)+MINUTE(G140)/60,0),"") -> 0 | T140: 0 | U140: 0 | V140: 3 | W140: 0 | X140: 0 | Y140: 0 | Z140: =IFERROR(IF(AND(P140>=INDIRECT("'"&L140&"'!j2"),P140<=INDIRECT("'"&L140&"'!k2"),O140>INDIRECT("'"&L140&"'!i2"),HOUR(F140)+MINUTE(F140)/60-INDIRECT("'"&L140&"'!i2")<20),O140-INDIRECT("'"&L140&"'!i2")-MAX(HOUR(G140)-INDIRECT("'"&L140&"'!M2"),0),0),"") ->  | AA140: =IFERROR(IF(OR(P140=INDIRECT("'"&L140&"'!n2"),P140=INDIRECT("'"&L140&"'!o2"),HOUR(G140)+MINUTE(G140)/60>INDIRECT("'"&L140&"'!m2"),HOUR(G140)+MINUTE(G140)/60<6),IF(O140>INDIRECT("'"&L140&"'!i2"),O140-INDIRECT("'"&L140&"'!i2")-Z140,0),0),"") ->  | AB140: 0 | AC140: 0 | AD140: 185.7 | AE140: 0 | AF140: 0 | AG140: 0 | AH140: =IFERROR(Z140*INDIRECT("'"&L140&"'!x2")*INDIRECT("'"&L140&"'!c6"),0) -> 0 | AI140: =IFERROR(AA140*INDIRECT("'"&L140&"'!z2")*INDIRECT("'"&L140&"'!c6"),0) -> 0 | AJ140: =IFERROR(AG140+AB140+AC140+AD140+AE140+AF140,"") -> 185.7 | AK140: =IF(E140="","",YEAR(E140)&"-"&MONTH(E140)&"-"&IF(LEN(DAY(E140))=1,"0"&DAY(E140),DAY(E140))) -> 2023-4-23 | AL140: =IFERROR(HOUR(F140)&":"&MINUTE(F140)&"-"&HOUR(G140)&":"&MINUTE(G140),"") -> 12:0-15:0 | AM140: =IFERROR(M140*60&" min","") -> 0 min | AN140: =O140 -> 3 | AO140: =IFERROR(T140,0)+IFERROR(U140,0)+IFERROR(V140,0)+IFERROR(W140,0)+IFERROR(X140,0)+IFERROR(Y140,0) -> 3 | AP140: =IFERROR(SUM(Z140:AA140),"") -> 0 | AQ140: =IF(F140="","",D140) -> Namn Namn 142 | AR140: =IFERROR(O140-Z140-AA140,"") ->  | AU140: =IFERROR(AB140,0) -> 0 | AV140: =IFERROR(AC140,0) -> 0 | AW140: =IFERROR(AD140,0) -> 185.7 | AX140: =IFERROR(AE140,0) -> 0 | AY140: =IFERROR(AF140,0) -> 0 | AZ140: =IFERROR(AG140,0) -> 0 | BC140: =SUM(AU140:AZ140) -> 185.7 | BE140: Auto
B141: Ledsagare LSS | C141: 3 | D141: Namn Namn 142 | E141: 2023-04-30 | F141: 12:00 | G141: 15:00 | J141: 127 | L141: YYYYMMDD-NNNN | M141: =IFERROR(INDEX(Admin!$AZ$3:$BA$50,MATCH(H141,Admin!$AZ$3:$AZ$53,0),2),"LäggTillAdmin") -> 0 | O141: 3 | P141: =IF(E141="","",IF(COUNTIF(Admin!$AN$4:$AN$99,E141)>0,1,WEEKDAY(E141))) -> 1 | R141: 3 | S141: 0 | T141: 0 | U141: 0 | V141: 3 | W141: 0 | X141: 0 | Y141: 0 | AB141: 0 | AC141: 0 | AD141: 185.7 | AE141: 0 | AF141: 0 | AG141: 0 | AH141: 0 | AI141: 0 | AJ141: 185.7 | AK141: 2023-4-30 | AL141: 12:0-15:0 | AM141: 0 min | AN141: 3 | AO141: 3 | AP141: 0 | AQ141: Namn Namn 142 | AU141: 0 | AV141: 0 | AW141: 185.7 | AX141: 0 | AY141: 0 | AZ141: 0 | BC141: 185.7 | BE141: Auto
B142: Ledsagare LSS | C142: 1 | D142: Namn Namn 146 | E142: 2023-04-01 | F142: 11:00 | G142: 15:00 | J142: 127 | L142: YYYYMMDD-NNNN | M142: =IFERROR(INDEX(Admin!$AZ$3:$BA$50,MATCH(H142,Admin!$AZ$3:$AZ$53,0),2),"LäggTillAdmin") -> 0 | O142: 4 | P142: =IF(E142="","",IF(COUNTIF(Admin!$AN$4:$AN$99,E142)>0,1,WEEKDAY(E142))) -> 7 | R142: 4 | S142: 0 | T142: 0 | U142: 0 | V142: 4 | W142: 0 | X142: 0 | Y142: 0 | AB142: 0 | AC142: 0 | AD142: 247.6 | AE142: 0 | AF142: 0 | AG142: 0 | AH142: 0 | AI142: 0 | AJ142: 247.6 | AK142: 2023-4-01 | AL142: 11:0-15:0 | AM142: 0 min | AN142: 4 | AO142: 4 | AP142: 0 | AQ142: Namn Namn 146 | AU142: 0 | AV142: 0 | AW142: 247.6 | AX142: 0 | AY142: 0 | AZ142: 0 | BC142: 247.6 | BE142: Auto
B143: Ledsagare LSS | C143: 1 | D143: Namn Namn 146 | E143: 2023-04-04 | F143: 09:00 | G143: 11:00 | J143: 127 | L143: YYYYMMDD-NNNN | M143: =IFERROR(INDEX(Admin!$AZ$3:$BA$50,MATCH(H143,Admin!$AZ$3:$AZ$53,0),2),"LäggTillAdmin") -> 0 | O143: 2 | P143: =IF(E143="","",IF(COUNTIF(Admin!$AN$4:$AN$99,E143)>0,1,WEEKDAY(E143))) -> 3 | R143: 2 | S143: 0 | T143: 0 | U143: 0 | V143: 0 | W143: 0 | X143: 0 | Y143: 0 | AB143: 0 | AC143: 0 | AD143: 0 | AE143: 0 | AF143: 0 | AG143: 0 | AH143: 0 | AI143: 0 | AJ143: 0 | AK143: 2023-4-04 | AL143: 9:0-11:0 | AM143: 0 min | AN143: 2 | AO143: 0 | AP143: 0 | AQ143: Namn Namn 146 | AU143: 0 | AV143: 0 | AW143: 0 | AX143: 0 | AY143: 0 | AZ143: 0 | BC143: 0 | BE143: Auto
B144: Ledsagare LSS | C144: 1 | D144: Namn Namn 146 | E144: 2023-04-06 | F144: 09:00 | G144: 11:00 | J144: 127 | L144: YYYYMMDD-NNNN | M144: =IFERROR(INDEX(Admin!$AZ$3:$BA$50,MATCH(H144,Admin!$AZ$3:$AZ$53,0),2),"LäggTillAdmin") -> 0 | O144: 2 | P144: =IF(E144="","",IF(COUNTIF(Admin!$AN$4:$AN$99,E144)>0,1,WEEKDAY(E144))) -> 5 | R144: 2 | S144: 0 | T144: 0 | U144: 0 | V144: 2 | W144: 0 | X144: 0 | Y144: 0 | AB144: 0 | AC144: 0 | AD144: 123.8 | AE144: 0 | AF144: 0 | AG144: 0 | AH144: 0 | AI144: 0 | AJ144: 123.8 | AK144: 2023-4-06 | AL144: 9:0-11:0 | AM144: 0 min | AN144: 2 | AO144: 2 | AP144: 0 | AQ144: Namn Namn 146 | AU144: 0 | AV144: 0 | AW144: 123.8 | AX144: 0 | AY144: 0 | AZ144: 0 | BC144: 123.8 | BE144: Auto
B145: Ledsagare LSS | C145: 1 | D145: Namn Namn 146 | E145: 2023-04-08 | F145: 13:00 | G145: 15:30 | J145: 127 | L145: YYYYMMDD-NNNN | M145: =IFERROR(INDEX(Admin!$AZ$3:$BA$50,MATCH(H145,Admin!$AZ$3:$AZ$53,0),2),"LäggTillAdmin") -> 0 | O145: 2.5 | P145: =IF(E145="","",IF(COUNTIF(Admin!$AN$4:$AN$99,E145)>0,1,WEEKDAY(E145))) -> 7 | R145: 2.5 | S145: 0 | T145: 0 | U145: 0 | V145: 2 | W145: 0 | X145: 0 | Y145: 0 | AB145: 0 | AC145: 0 | AD145: 123.8 | AE145: 0 | AF145: 0 | AG145: 0 | AH145: 0 | AI145: 0 | AJ145: 123.8 | AK145: 2023-4-08 | AL145: 13:0-15:30 | AM145: 0 min | AN145: 2.5 | AO145: 2 | AP145: 0 | AQ145: Namn Namn 146 | AU145: 0 | AV145: 0 | AW145: 123.8 | AX145: 0 | AY145: 0 | AZ145: 0 | BC145: 123.8 | BE145: Auto
B146: Ledsagare LSS | C146: 1 | D146: Namn Namn 146 | E146: 2023-04-11 | F146: 15:00 | G146: 17:00 | J146: 127 | L146: YYYYMMDD-NNNN | M146: =IFERROR(INDEX(Admin!$AZ$3:$BA$50,MATCH(H146,Admin!$AZ$3:$AZ$53,0),2),"LäggTillAdmin") -> 0 | O146: 2 | P146: =IF(E146="","",IF(COUNTIF(Admin!$AN$4:$AN$99,E146)>0,1,WEEKDAY(E146))) -> 3 | R146: 2 | S146: 0 | T146: 0 | U146: 0 | V146: 2 | W146: 0 | X146: 0 | Y146: 0 | AB146: 0 | AC146: 0 | AD146: 123.8 | AE146: 0 | AF146: 0 | AG146: 0 | AH146: 0 | AI146: 0 | AJ146: 123.8 | AK146: 2023-4-11 | AL146: 15:0-17:0 | AM146: 0 min | AN146: 2 | AO146: 2 | AP146: 0 | AQ146: Namn Namn 146 | AU146: 0 | AV146: 0 | AW146: 123.8 | AX146: 0 | AY146: 0 | AZ146: 0 | BC146: 123.8 | BE146: Auto
B147: Ledsagare LSS | C147: 1 | D147: Namn Namn 146 | E147: 2023-04-13 | F147: 15:30 | G147: 17:00 | J147: 127 | L147: YYYYMMDD-NNNN | M147: =IFERROR(INDEX(Admin!$AZ$3:$BA$50,MATCH(H147,Admin!$AZ$3:$AZ$53,0),2),"LäggTillAdmin") -> 0 | O147: 1.5 | P147: =IF(E147="","",IF(COUNTIF(Admin!$AN$4:$AN$99,E147)>0,1,WEEKDAY(E147))) -> 5 | R147: 1.5 | S147: 0 | T147: 0 | U147: 0 | V147: 0 | W147: 0 | X147: 0 | Y147: 0 | AB147: 0 | AC147: 0 | AD147: 0 | AE147: 0 | AF147: 0 | AG147: 0 | AH147: 0 | AI147: 0 | AJ147: 0 | AK147: 2023-4-13 | AL147: 15:30-17:0 | AM147: 0 min | AN147: 1.5 | AO147: 0 | AP147: 0 | AQ147: Namn Namn 146 | AU147: 0 | AV147: 0 | AW147: 0 | AX147: 0 | AY147: 0 | AZ147: 0 | BC147: 0 | BE147: Auto
B148: Ledsagare LSS | C148: 1 | D148: Namn Namn 146 | E148: 2023-04-17 | F148: 09:00 | G148: 11:00 | J148: 127 | L148: YYYYMMDD-NNNN | M148: =IFERROR(INDEX(Admin!$AZ$3:$BA$50,MATCH(H148,Admin!$AZ$3:$AZ$53,0),2),"LäggTillAdmin") -> 0 | O148: 2 | P148: =IF(E148="","",IF(COUNTIF(Admin!$AN$4:$AN$99,E148)>0,1,WEEKDAY(E148))) -> 2 | R148: 2 | S148: 0 | T148: 0 | U148: 0 | V148: 0 | W148: 0 | X148: 0 | Y148: 0 | AB148: 0 | AC148: 0 | AD148: 0 | AE148: 0 | AF148: 0 | AG148: 0 | AH148: 0 | AI148: 0 | AJ148: 0 | AK148: 2023-4-17 | AL148: 9:0-11:0 | AM148: 0 min | AN148: 2 | AO148: 0 | AP148: 0 | AQ148: Namn Namn 146 | AU148: 0 | AV148: 0 | AW148: 0 | AX148: 0 | AY148: 0 | AZ148: 0 | BC148: 0 | BE148: Auto
B149: Ledsagare LSS | C149: 1 | D149: Namn Namn 146 | E149: 2023-04-21 | F149: 09:00 | G149: 10:30 | J149: 127 | L149: YYYYMMDD-NNNN | M149: =IFERROR(INDEX(Admin!$AZ$3:$BA$50,MATCH(H149,Admin!$AZ$3:$AZ$53,0),2),"LäggTillAdmin") -> 0 | O149: 1.5 | P149: =IF(E149="","",IF(COUNTIF(Admin!$AN$4:$AN$99,E149)>0,1,WEEKDAY(E149))) -> 6 | R149: 1.5 | S149: 0 | T149: 0 | U149: 0 | V149: 0 | W149: 0 | X149: 0 | Y149: 0 | AB149: 0 | AC149: 0 | AD149: 0 | AE149: 0 | AF149: 0 | AG149: 0 | AH149: 0 | AI149: 0 | AJ149: 0 | AK149: 2023-4-21 | AL149: 9:0-10:30 | AM149: 0 min | AN149: 1.5 | AO149: 0 | AP149: 0 | AQ149: Namn Namn 146 | AU149: 0 | AV149: 0 | AW149: 0 | AX149: 0 | AY149: 0 | AZ149: 0 | BC149: 0 | BE149: Auto
B150: Ledsagare LSS | C150: 1 | D150: Namn Namn 146 | E150: 2023-04-26 | F150: 15:00 | G150: 16:30 | J150: 127 | L150: YYYYMMDD-NNNN | M150: =IFERROR(INDEX(Admin!$AZ$3:$BA$50,MATCH(H150,Admin!$AZ$3:$AZ$53,0),2),"LäggTillAdmin") -> 0 | O150: 1.5 | P150: =IF(E150="","",IF(COUNTIF(Admin!$AN$4:$AN$99,E150)>0,1,WEEKDAY(E150))) -> 4 | R150: 1.5 | S150: 0 | T150: 0 | U150: 0 | V150: 0 | W150: 0 | X150: 0 | Y150: 0 | AB150: 0 | AC150: 0 | AD150: 0 | AE150: 0 | AF150: 0 | AG150: 0 | AH150: 0 | AI150: 0 | AJ150: 0 | AK150: 2023-4-26 | AL150: 15:0-16:30 | AM150: 0 min | AN150: 1.5 | AO150: 0 | AP150: 0 | AQ150: Namn Namn 146 | AU150: 0 | AV150: 0 | AW150: 0 | AX150: 0 | AY150: 0 | AZ150: 0 | BC150: 0 | BE150: Auto
B151: Ledsagare LSS | C151: 1 | D151: Namn Namn 146 | E151: 2023-04-27 | F151: 15:00 | G151: 16:00 | J151: 127 | L151: YYYYMMDD-NNNN | M151: =IFERROR(INDEX(Admin!$AZ$3:$BA$50,MATCH(H151,Admin!$AZ$3:$AZ$53,0),2),"LäggTillAdmin") -> 0 | O151: 1 | P151: =IF(E151="","",IF(COUNTIF(Admin!$AN$4:$AN$99,E151)>0,1,WEEKDAY(E151))) -> 5 | R151: 1 | S151: 0 | T151: 0 | U151: 0 | V151: 0 | W151: 0 | X151: 0 | Y151: 0 | AB151: 0 | AC151: 0 | AD151: 0 | AE151: 0 | AF151: 0 | AG151: 0 | AH151: 0 | AI151: 0 | AJ151: 0 | AK151: 2023-4-27 | AL151: 15:0-16:0 | AM151: 0 min | AN151: 1 | AO151: 0 | AP151: 0 | AQ151: Namn Namn 146 | AU151: 0 | AV151: 0 | AW151: 0 | AX151: 0 | AY151: 0 | AZ151: 0 | BC151: 0 | BE151: Auto
B152: Ledsagare LSS | C152: 3 | D152: Namn Namn 156 | E152: 2023-04-04 | F152: 18:00 | G152: 19:30 | J152: 125 | L152: YYYYMMDD-NNNN | M152: =IFERROR(INDEX(Admin!$AZ$3:$BA$50,MATCH(H152,Admin!$AZ$3:$AZ$53,0),2),"LäggTillAdmin") -> 0 | O152: 1.5 | P152: =IF(E152="","",IF(COUNTIF(Admin!$AN$4:$AN$99,E152)>0,1,WEEKDAY(E152))) -> 3 | R152: 1.5 | S152: 0 | T152: 0.5 | U152: 0 | V152: 0 | W152: 0 | X152: 0 | Y152: 0 | AB152: 12 | AC152: 0 | AD152: 0 | AE152: 0 | AF152: 0 | AG152: 0 | AH152: 0 | AI152: 0 | AJ152: 12 | AK152: 2023-4-04 | AL152: 18:0-19:30 | AM152: 0 min | AN152: 1.5 | AO152: 0.5 | AP152: 0 | AQ152: Namn Namn 156 | AU152: 12 | AV152: 0 | AW152: 0 | AX152: 0 | AY152: 0 | AZ152: 0 | BC152: 12 | BE152: Auto
B153: Ledsagare LSS | C153: 3 | D153: Namn Namn 156 | E153: 2023-04-12 | F153: 16:00 | G153: 17:30 | J153: 125 | L153: YYYYMMDD-NNNN | M153: =IFERROR(INDEX(Admin!$AZ$3:$BA$50,MATCH(H153,Admin!$AZ$3:$AZ$53,0),2),"LäggTillAdmin") -> 0 | O153: 1.5 | P153: =IF(E153="","",IF(COUNTIF(Admin!$AN$4:$AN$99,E153)>0,1,WEEKDAY(E153))) -> 4 | R153: 1.5 | S153: 0 | T153: 0 | U153: 0 | V153: 0 | W153: 0 | X153: 0 | Y153: 0 | AB153: 0 | AC153: 0 | AD153: 0 | AE153: 0 | AF153: 0 | AG153: 0 | AH153: 0 | AI153: 0 | AJ153: 0 | AK153: 2023-4-12 | AL153: 16:0-17:30 | AM153: 0 min | AN153: 1.5 | AO153: 0 | AP153: 0 | AQ153: Namn Namn 156 | AU153: 0 | AV153: 0 | AW153: 0 | AX153: 0 | AY153: 0 | AZ153: 0 | BC153: 0 | BE153: Auto
B154: Ledsagare LSS | C154: 3 | D154: Namn Namn 156 | E154: 2023-04-14 | F154: 16:00 | G154: 18:45 | J154: 125 | L154: YYYYMMDD-NNNN | M154: =IFERROR(INDEX(Admin!$AZ$3:$BA$50,MATCH(H154,Admin!$AZ$3:$AZ$53,0),2),"LäggTillAdmin") -> 0 | O154: 2.75 | P154: =IF(E154="","",IF(COUNTIF(Admin!$AN$4:$AN$99,E154)>0,1,WEEKDAY(E154))) -> 6 | R154: 2.75 | S154: 0 | T154: 0 | U154: 0 | V154: 0 | W154: 0 | X154: 0 | Y154: 0 | AB154: 0 | AC154: 0 | AD154: 0 | AE154: 0 | AF154: 0 | AG154: 0 | AH154: 0 | AI154: 0 | AJ154: 0 | AK154: 2023-4-14 | AL154: 16:0-18:45 | AM154: 0 min | AN154: 2.75 | AO154: 0 | AP154: 0 | AQ154: Namn Namn 156 | AU154: 0 | AV154: 0 | AW154: 0 | AX154: 0 | AY154: 0 | AZ154: 0 | BC154: 0 | BE154: Auto
B155: Ledsagare LSS | C155: 3 | D155: Namn Namn 156 | E155: 2023-04-16 | F155: 15:40 | G155: 17:30 | J155: 125 | L155: YYYYMMDD-NNNN | M155: =IFERROR(INDEX(Admin!$AZ$3:$BA$50,MATCH(H155,Admin!$AZ$3:$AZ$53,0),2),"LäggTillAdmin") -> 0 | O155: 1.833333333 | P155: =IF(E155="","",IF(COUNTIF(Admin!$AN$4:$AN$99,E155)>0,1,WEEKDAY(E155))) -> 1 | R155: 1.833333333 | S155: 0 | T155: 0 | U155: 0 | V155: 1.833333333 | W155: 0 | X155: 0 | Y155: 0 | AB155: 0 | AC155: 0 | AD155: 113.4833333 | AE155: 0 | AF155: 0 | AG155: 0 | AH155: 0 | AI155: 0 | AJ155: 113.4833333 | AK155: 2023-4-16 | AL155: 15:40-17:30 | AM155: 0 min | AN155: 1.833333333 | AO155: 1.833333333 | AP155: 0 | AQ155: Namn Namn 156 | AU155: 0 | AV155: 0 | AW155: 113.4833333 | AX155: 0 | AY155: 0 | AZ155: 0 | BC155: 113.4833333 | BE155: Auto
B156: Ledsagare LSS | C156: 3 | D156: Namn Namn 156 | E156: 2023-04-18 | F156: 18:00 | G156: 19:30 | J156: 125 | L156: YYYYMMDD-NNNN | M156: =IFERROR(INDEX(Admin!$AZ$3:$BA$50,MATCH(H156,Admin!$AZ$3:$AZ$53,0),2),"LäggTillAdmin") -> 0 | O156: 1.5 | P156: =IF(E156="","",IF(COUNTIF(Admin!$AN$4:$AN$99,E156)>0,1,WEEKDAY(E156))) -> 3 | R156: 1.5 | S156: 0 | T156: 0.5 | U156: 0 | V156: 0 | W156: 0 | X156: 0 | Y156: 0 | AB156: 12 | AC156: 0 | AD156: 0 | AE156: 0 | AF156: 0 | AG156: 0 | AH156: 0 | AI156: 0 | AJ156: 12 | AK156: 2023-4-18 | AL156: 18:0-19:30 | AM156: 0 min | AN156: 1.5 | AO156: 0.5 | AP156: 0 | AQ156: Namn Namn 156 | AU156: 12 | AV156: 0 | AW156: 0 | AX156: 0 | AY156: 0 | AZ156: 0 | BC156: 12 | BE156: Auto
B157: Ledsagare LSS | C157: 3 | D157: Namn Namn 156 | E157: 2023-04-26 | F157: 16:00 | G157: 17:30 | J157: 125 | L157: YYYYMMDD-NNNN | M157: =IFERROR(INDEX(Admin!$AZ$3:$BA$50,MATCH(H157,Admin!$AZ$3:$AZ$53,0),2),"LäggTillAdmin") -> 0 | O157: 1.5 | P157: =IF(E157="","",IF(COUNTIF(Admin!$AN$4:$AN$99,E157)>0,1,WEEKDAY(E157))) -> 4 | R157: 1.5 | S157: 0 | T157: 0 | U157: 0 | V157: 0 | W157: 0 | X157: 0 | Y157: 0 | AB157: 0 | AC157: 0 | AD157: 0 | AE157: 0 | AF157: 0 | AG157: 0 | AH157: 0 | AI157: 0 | AJ157: 0 | AK157: 2023-4-26 | AL157: 16:0-17:30 | AM157: 0 min | AN157: 1.5 | AO157: 0 | AP157: 0 | AQ157: Namn Namn 156 | AU157: 0 | AV157: 0 | AW157: 0 | AX157: 0 | AY157: 0 | AZ157: 0 | BC157: 0 | BE157: Auto
B158: Ledsagare LSS | C158: 1 | D158: Namn Namn 162 | E158: 2023-04-12 | F158: 14:30 | G158: 18:00 | J158: 125 | L158: YYYYMMDD-NNNN | M158: =IFERROR(INDEX(Admin!$AZ$3:$BA$50,MATCH(H158,Admin!$AZ$3:$AZ$53,0),2),"LäggTillAdmin") -> 0 | O158: 3.5 | P158: =IF(E158="","",IF(COUNTIF(Admin!$AN$4:$AN$99,E158)>0,1,WEEKDAY(E158))) -> 4 | R158: 3.5 | S158: 0 | T158: 0 | U158: 0 | V158: 0 | W158: 0 | X158: 0 | Y158: 0 | AB158: 0 | AC158: 0 | AD158: 0 | AE158: 0 | AF158: 0 | AG158: 0 | AH158: 0 | AI158: 0 | AJ158: 0 | AK158: 2023-4-12 | AL158: 14:30-18:0 | AM158: 0 min | AN158: 3.5 | AO158: 0 | AP158: 0 | AQ158: Namn Namn 162 | AU158: 0 | AV158: 0 | AW158: 0 | AX158: 0 | AY158: 0 | AZ158: 0 | BC158: 0 | BE158: Auto
B159: Ledsagare LSS | C159: 1 | D159: Namn Namn 162 | E159: 2023-04-19 | F159: 14:00 | G159: 18:00 | J159: 125 | L159: YYYYMMDD-NNNN | M159: =IFERROR(INDEX(Admin!$AZ$3:$BA$50,MATCH(H159,Admin!$AZ$3:$AZ$53,0),2),"LäggTillAdmin") -> 0 | O159: 4 | P159: =IF(E159="","",IF(COUNTIF(Admin!$AN$4:$AN$99,E159)>0,1,WEEKDAY(E159))) -> 4 | R159: 4 | S159: 0 | T159: 0 | U159: 0 | V159: 0 | W159: 0 | X159: 0 | Y159: 0 | AB159: 0 | AC159: 0 | AD159: 0 | AE159: 0 | AF159: 0 | AG159: 0 | AH159: 0 | AI159: 0 | AJ159: 0 | AK159: 2023-4-19 | AL159: 14:0-18:0 | AM159: 0 min | AN159: 4 | AO159: 0 | AP159: 0 | AQ159: Namn Namn 162 | AU159: 0 | AV159: 0 | AW159: 0 | AX159: 0 | AY159: 0 | AZ159: 0 | BC159: 0 | BE159: Auto
B160: Ledsagare LSS | C160: 1 | D160: Namn Namn 162 | E160: 2023-04-26 | F160: 14:00 | G160: 17:30 | J160: 125 | L160: YYYYMMDD-NNNN | M160: =IFERROR(INDEX(Admin!$AZ$3:$BA$50,MATCH(H160,Admin!$AZ$3:$AZ$53,0),2),"LäggTillAdmin") -> 0 | O160: 3.5 | P160: =IF(E160="","",IF(COUNTIF(Admin!$AN$4:$AN$99,E160)>0,1,WEEKDAY(E160))) -> 4 | R160: 3.5 | S160: 0 | T160: 0 | U160: 0 | V160: 0 | W160: 0 | X160: 0 | Y160: 0 | AB160: 0 | AC160: 0 | AD160: 0 | AE160: 0 | AF160: 0 | AG160: 0 | AH160: 0 | AI160: 0 | AJ160: 0 | AK160: 2023-4-26 | AL160: 14:0-17:30 | AM160: 0 min | AN160: 3.5 | AO160: 0 | AP160: 0 | AQ160: Namn Namn 162 | AU160: 0 | AV160: 0 | AW160: 0 | AX160: 0 | AY160: 0 | AZ160: 0 | BC160: 0 | BE160: Auto
B161: Ledsagare LSS | C161: 1 | D161: Namn Namn 162 | E161: 2023-04-27 | F161: 07:30 | G161: 17:00 | J161: 125 | L161: YYYYMMDD-NNNN | M161: =IFERROR(INDEX(Admin!$AZ$3:$BA$50,MATCH(H161,Admin!$AZ$3:$AZ$53,0),2),"LäggTillAdmin") -> 0 | O161: 9.5 | P161: =IF(E161="","",IF(COUNTIF(Admin!$AN$4:$AN$99,E161)>0,1,WEEKDAY(E161))) -> 5 | R161: 9.5 | S161: 0 | T161: 0 | U161: 0 | V161: 0 | W161: 0 | X161: 0 | Y161: 0 | AB161: 0 | AC161: 0 | AD161: 0 | AE161: 0 | AF161: 0 | AG161: 0 | AH161: 0 | AI161: 0 | AJ161: 0 | AK161: 2023-4-27 | AL161: 7:30-17:0 | AM161: 0 min | AN161: 9.5 | AO161: 0 | AP161: 0 | AQ161: Namn Namn 162 | AU161: 0 | AV161: 0 | AW161: 0 | AX161: 0 | AY161: 0 | AZ161: 0 | BC161: 0 | BE161: Auto
B162: Ledsagare LSS | C162: 7 | D162: Namn Namn 166 | E162: 2023-04-15 | F162: 09:45 | G162: 11:45 | J162: 132.86 | L162: YYYYMMDD-NNNN | M162: =IFERROR(INDEX(Admin!$AZ$3:$BA$50,MATCH(H162,Admin!$AZ$3:$AZ$53,0),2),"LäggTillAdmin") -> 0 | O162: 2 | P162: =IF(E162="","",IF(COUNTIF(Admin!$AN$4:$AN$99,E162)>0,1,WEEKDAY(E162))) -> 7 | R162: 2 | S162: 0 | T162: 0 | U162: 0 | V162: 0 | W162: 0 | X162: 0 | Y162: 0 | AB162: 0 | AC162: 0 | AD162: 0 | AE162: 0 | AF162: 0 | AG162: 0 | AH162: 0 | AI162: 0 | AJ162: 0 | AK162: 2023-4-15 | AL162: 9:45-11:45 | AM162: 0 min | AN162: 2 | AO162: 0 | AP162: 0 | AQ162: Namn Namn 166 | AU162: 0 | AV162: 0 | AW162: 0 | AX162: 0 | AY162: 0 | AZ162: 0 | BC162: 0 | BE162: Auto
B163: Ledsagare LSS | C163: 7 | D163: Namn Namn 166 | E163: 2023-04-22 | F163: 14:45 | G163: 16:45 | J163: 132.86 | L163: YYYYMMDD-NNNN | M163: =IFERROR(INDEX(Admin!$AZ$3:$BA$50,MATCH(H163,Admin!$AZ$3:$AZ$53,0),2),"LäggTillAdmin") -> 0 | O163: 2 | P163: =IF(E163="","",IF(COUNTIF(Admin!$AN$4:$AN$99,E163)>0,1,WEEKDAY(E163))) -> 7 | R163: 2 | S163: 0 | T163: 0 | U163: 0 | V163: 0 | W163: 0 | X163: 0 | Y163: 0 | AB163: 0 | AC163: 0 | AD163: 0 | AE163: 0 | AF163: 0 | AG163: 0 | AH163: 0 | AI163: 0 | AJ163: 0 | AK163: 2023-4-22 | AL163: 14:45-16:45 | AM163: 0 min | AN163: 2 | AO163: 0 | AP163: 0 | AQ163: Namn Namn 166 | AU163: 0 | AV163: 0 | AW163: 0 | AX163: 0 | AY163: 0 | AZ163: 0 | BC163: 0 | BE163: Auto
B164: Ledsagare LSS | C164: 7 | D164: Namn Namn 166 | E164: 2023-04-23 | F164: 11:15 | G164: 12:15 | J164: 132.86 | L164: YYYYMMDD-NNNN | M164: =IFERROR(INDEX(Admin!$AZ$3:$BA$50,MATCH(H164,Admin!$AZ$3:$AZ$53,0),2),"LäggTillAdmin") -> 0 | O164: 1 | P164: =IF(E164="","",IF(COUNTIF(Admin!$AN$4:$AN$99,E164)>0,1,WEEKDAY(E164))) -> 1 | R164: 1 | S164: 0 | T164: 0 | U164: 0 | V164: 0 | W164: 0 | X164: 0 | Y164: 0 | AB164: 0 | AC164: 0 | AD164: 0 | AE164: 0 | AF164: 0 | AG164: 0 | AH164: 0 | AI164: 0 | AJ164: 0 | AK164: 2023-4-23 | AL164: 11:15-12:15 | AM164: 0 min | AN164: 1 | AO164: 0 | AP164: 0 | AQ164: Namn Namn 166 | AU164: 0 | AV164: 0 | AW164: 0 | AX164: 0 | AY164: 0 | AZ164: 0 | BC164: 0 | BE164: Auto
B165: Ledsagare LSS | C165: 7 | D165: Namn Namn 166 | E165: 2023-04-28 | F165: 18:45 | G165: 20:45 | J165: 132.86 | L165: YYYYMMDD-NNNN | M165: =IFERROR(INDEX(Admin!$AZ$3:$BA$50,MATCH(H165,Admin!$AZ$3:$AZ$53,0),2),"LäggTillAdmin") -> 0 | O165: 2 | P165: =IF(E165="","",IF(COUNTIF(Admin!$AN$4:$AN$99,E165)>0,1,WEEKDAY(E165))) -> 6 | R165: 2 | S165: 0 | T165: 0 | U165: 0 | V165: 0 | W165: 0 | X165: 0 | Y165: 0 | AB165: 0 | AC165: 0 | AD165: 0 | AE165: 0 | AF165: 0 | AG165: 0 | AH165: 0 | AI165: 0 | AJ165: 0 | AK165: 2023-4-28 | AL165: 18:45-20:45 | AM165: 0 min | AN165: 2 | AO165: 0 | AP165: 0 | AQ165: Namn Namn 166 | AU165: 0 | AV165: 0 | AW165: 0 | AX165: 0 | AY165: 0 | AZ165: 0 | BC165: 0 | BE165: Auto
B166: Ledsagare LSS | C166: 2 | D166: Namn Namn 170 | E166: 2023-04-09 | F166: 18:00 | G166: 20:00 | J166: 127 | L166: YYYYMMDD-NNNN | M166: =IFERROR(INDEX(Admin!$AZ$3:$BA$50,MATCH(H166,Admin!$AZ$3:$AZ$53,0),2),"LäggTillAdmin") -> 0 | O166: 2 | P166: =IF(E166="","",IF(COUNTIF(Admin!$AN$4:$AN$99,E166)>0,1,WEEKDAY(E166))) -> 1 | R166: 2 | S166: 0 | T166: 0 | U166: 0 | V166: 2 | W166: 0 | X166: 0 | Y166: 0 | AB166: 0 | AC166: 0 | AD166: 123.8 | AE166: 0 | AF166: 0 | AG166: 0 | AH166: 0 | AI166: 0 | AJ166: 123.8 | AK166: 2023-4-09 | AL166: 18:0-20:0 | AM166: 0 min | AN166: 2 | AO166: 2 | AP166: 0 | AQ166: Namn Namn 170 | AU166: 0 | AV166: 0 | AW166: 123.8 | AX166: 0 | AY166: 0 | AZ166: 0 | BC166: 123.8 | BE166: Auto
B167: Ledsagare LSS | C167: 2 | D167: Namn Namn 170 | E167: 2023-04-12 | F167: 16:00 | G167: 18:00 | J167: 127 | L167: YYYYMMDD-NNNN | M167: =IFERROR(INDEX(Admin!$AZ$3:$BA$50,MATCH(H167,Admin!$AZ$3:$AZ$53,0),2),"LäggTillAdmin") -> 0 | O167: 2 | P167: =IF(E167="","",IF(COUNTIF(Admin!$AN$4:$AN$99,E167)>0,1,WEEKDAY(E167))) -> 4 | R167: 2 | S167: 0 | T167: 0 | U167: 0 | V167: 0 | W167: 0 | X167: 0 | Y167: 0 | AB167: 0 | AC167: 0 | AD167: 0 | AE167: 0 | AF167: 0 | AG167: 0 | AH167: 0 | AI167: 0 | AJ167: 0 | AK167: 2023-4-12 | AL167: 16:0-18:0 | AM167: 0 min | AN167: 2 | AO167: 0 | AP167: 0 | AQ167: Namn Namn 170 | AU167: 0 | AV167: 0 | AW167: 0 | AX167: 0 | AY167: 0 | AZ167: 0 | BC167: 0 | BE167: Auto
B168: Ledsagare LSS | C168: 2 | D168: Namn Namn 170 | E168: 2023-04-23 | F168: 18:00 | G168: 20:00 | J168: 127 | L168: YYYYMMDD-NNNN | M168: =IFERROR(INDEX(Admin!$AZ$3:$BA$50,MATCH(H168,Admin!$AZ$3:$AZ$53,0),2),"LäggTillAdmin") -> 0 | O168: 2 | P168: =IF(E168="","",IF(COUNTIF(Admin!$AN$4:$AN$99,E168)>0,1,WEEKDAY(E168))) -> 1 | R168: 2 | S168: 0 | T168: 0 | U168: 0 | V168: 2 | W168: 0 | X168: 0 | Y168: 0 | AB168: 0 | AC168: 0 | AD168: 123.8 | AE168: 0 | AF168: 0 | AG168: 0 | AH168: 0 | AI168: 0 | AJ168: 123.8 | AK168: 2023-4-23 | AL168: 18:0-20:0 | AM168: 0 min | AN168: 2 | AO168: 2 | AP168: 0 | AQ168: Namn Namn 170 | AU168: 0 | AV168: 0 | AW168: 123.8 | AX168: 0 | AY168: 0 | AZ168: 0 | BC168: 123.8 | BE168: Auto
B169: Ledsagare LSS | C169: 2 | D169: Namn Namn 170 | E169: 2023-04-29 | F169: 15:00 | G169: 17:00 | J169: 127 | L169: YYYYMMDD-NNNN | M169: =IFERROR(INDEX(Admin!$AZ$3:$BA$50,MATCH(H169,Admin!$AZ$3:$AZ$53,0),2),"LäggTillAdmin") -> 0 | O169: 2 | P169: =IF(E169="","",IF(COUNTIF(Admin!$AN$4:$AN$99,E169)>0,1,WEEKDAY(E169))) -> 7 | R169: 2 | S169: 0 | T169: 0 | U169: 0 | V169: 2 | W169: 0 | X169: 0 | Y169: 0 | AB169: 0 | AC169: 0 | AD169: 123.8 | AE169: 0 | AF169: 0 | AG169: 0 | AH169: 0 | AI169: 0 | AJ169: 123.8 | AK169: 2023-4-29 | AL169: 15:0-17:0 | AM169: 0 min | AN169: 2 | AO169: 2 | AP169: 0 | AQ169: Namn Namn 170 | AU169: 0 | AV169: 0 | AW169: 123.8 | AX169: 0 | AY169: 0 | AZ169: 0 | BC169: 123.8 | BE169: Auto
B170: Ledsagare LSS | C170: 2 | D170: Namn Namn 174 | E170: 2023-04-22 | F170: 14:00 | G170: 18:00 | J170: 127 | L170: YYYYMMDD-NNNN | M170: =IFERROR(INDEX(Admin!$AZ$3:$BA$50,MATCH(H170,Admin!$AZ$3:$AZ$53,0),2),"LäggTillAdmin") -> 0 | O170: 4 | P170: =IF(E170="","",IF(COUNTIF(Admin!$AN$4:$AN$99,E170)>0,1,WEEKDAY(E170))) -> 7 | R170: 4 | S170: 0 | T170: 0 | U170: 0 | V170: 4 | W170: 0 | X170: 0 | Y170: 0 | AB170: 0 | AC170: 0 | AD170: 247.6 | AE170: 0 | AF170: 0 | AG170: 0 | AH170: 0 | AI170: 0 | AJ170: 247.6 | AK170: 2023-4-22 | AL170: 14:0-18:0 | AM170: 0 min | AN170: 4 | AO170: 4 | AP170: 0 | AQ170: Namn Namn 174 | AU170: 0 | AV170: 0 | AW170: 247.6 | AX170: 0 | AY170: 0 | AZ170: 0 | BC170: 247.6 | BE170: Auto
B171: Ledsagare LSS | C171: 2 | D171: Namn Namn 174 | E171: 2023-04-24 | F171: 12:00 | G171: 16:00 | J171: 127 | L171: YYYYMMDD-NNNN | M171: =IFERROR(INDEX(Admin!$AZ$3:$BA$50,MATCH(H171,Admin!$AZ$3:$AZ$53,0),2),"LäggTillAdmin") -> 0 | O171: 4 | P171: =IF(E171="","",IF(COUNTIF(Admin!$AN$4:$AN$99,E171)>0,1,WEEKDAY(E171))) -> 2 | R171: 4 | S171: 0 | T171: 0 | U171: 0 | V171: 0 | W171: 0 | X171: 0 | Y171: 0 | AB171: 0 | AC171: 0 | AD171: 0 | AE171: 0 | AF171: 0 | AG171: 0 | AH171: 0 | AI171: 0 | AJ171: 0 | AK171: 2023-4-24 | AL171: 12:0-16:0 | AM171: 0 min | AN171: 4 | AO171: 0 | AP171: 0 | AQ171: Namn Namn 174 | AU171: 0 | AV171: 0 | AW171: 0 | AX171: 0 | AY171: 0 | AZ171: 0 | BC171: 0 | BE171: Auto
B172: Ledsagare LSS | C172: 2 | D172: Namn Namn 174 | E172: 2023-04-26 | F172: 13:00 | G172: 17:00 | J172: 127 | L172: YYYYMMDD-NNNN | M172: =IFERROR(INDEX(Admin!$AZ$3:$BA$50,MATCH(H172,Admin!$AZ$3:$AZ$53,0),2),"LäggTillAdmin") -> 0 | O172: 4 | P172: =IF(E172="","",IF(COUNTIF(Admin!$AN$4:$AN$99,E172)>0,1,WEEKDAY(E172))) -> 4 | R172: 4 | S172: 0 | T172: 0 | U172: 0 | V172: 0 | W172: 0 | X172: 0 | Y172: 0 | AB172: 0 | AC172: 0 | AD172: 0 | AE172: 0 | AF172: 0 | AG172: 0 | AH172: 0 | AI172: 0 | AJ172: 0 | AK172: 2023-4-26 | AL172: 13:0-17:0 | AM172: 0 min | AN172: 4 | AO172: 0 | AP172: 0 | AQ172: Namn Namn 174 | AU172: 0 | AV172: 0 | AW172: 0 | AX172: 0 | AY172: 0 | AZ172: 0 | BC172: 0 | BE172: Auto
B173: Ledsagare LSS | C173: 2 | D173: Namn Namn 174 | E173: 2023-04-28 | F173: 14:00 | G173: 18:00 | J173: 127 | L173: YYYYMMDD-NNNN | M173: =IFERROR(INDEX(Admin!$AZ$3:$BA$50,MATCH(H173,Admin!$AZ$3:$AZ$53,0),2),"LäggTillAdmin") -> 0 | O173: 4 | P173: =IF(E173="","",IF(COUNTIF(Admin!$AN$4:$AN$99,E173)>0,1,WEEKDAY(E173))) -> 6 | R173: 4 | S173: 0 | T173: 0 | U173: 0 | V173: 0 | W173: 0 | X173: 0 | Y173: 0 | AB173: 0 | AC173: 0 | AD173: 0 | AE173: 0 | AF173: 0 | AG173: 0 | AH173: 0 | AI173: 0 | AJ173: 0 | AK173: 2023-4-28 | AL173: 14:0-18:0 | AM173: 0 min | AN173: 4 | AO173: 0 | AP173: 0 | AQ173: Namn Namn 174 | AU173: 0 | AV173: 0 | AW173: 0 | AX173: 0 | AY173: 0 | AZ173: 0 | BC173: 0 | BE173: Auto
B174: Ledsagare LSS | C174: 6 | D174: Namn Namn 178 | E174: 2023-04-02 | F174: 14:00 | G174: 17:00 | J174: 127 | L174: YYYYMMDD-NNNN | M174: =IFERROR(INDEX(Admin!$AZ$3:$BA$50,MATCH(H174,Admin!$AZ$3:$AZ$53,0),2),"LäggTillAdmin") -> 0 | O174: 3 | P174: =IF(E174="","",IF(COUNTIF(Admin!$AN$4:$AN$99,E174)>0,1,WEEKDAY(E174))) -> 1 | R174: 3 | S174: 0 | T174: 0 | U174: 0 | V174: 3 | W174: 0 | X174: 0 | Y174: 0 | AB174: 0 | AC174: 0 | AD174: 185.7 | AE174: 0 | AF174: 0 | AG174: 0 | AH174: 0 | AI174: 0 | AJ174: 185.7 | AK174: 2023-4-02 | AL174: 14:0-17:0 | AM174: 0 min | AN174: 3 | AO174: 3 | AP174: 0 | AQ174: Namn Namn 178 | AU174: 0 | AV174: 0 | AW174: 185.7 | AX174: 0 | AY174: 0 | AZ174: 0 | BC174: 185.7 | BE174: Auto
B175: Ledsagare LSS | C175: 6 | D175: Namn Namn 178 | E175: 2023-04-13 | F175: 13:00 | G175: 14:00 | J175: 127 | L175: YYYYMMDD-NNNN | M175: =IFERROR(INDEX(Admin!$AZ$3:$BA$50,MATCH(H175,Admin!$AZ$3:$AZ$53,0),2),"LäggTillAdmin") -> 0 | O175: 1 | P175: =IF(E175="","",IF(COUNTIF(Admin!$AN$4:$AN$99,E175)>0,1,WEEKDAY(E175))) -> 5 | R175: 1 | S175: 0 | T175: 0 | U175: 0 | V175: 0 | W175: 0 | X175: 0 | Y175: 0 | AB175: 0 | AC175: 0 | AD175: 0 | AE175: 0 | AF175: 0 | AG175: 0 | AH175: 0 | AI175: 0 | AJ175: 0 | AK175: 2023-4-13 | AL175: 13:0-14:0 | AM175: 0 min | AN175: 1 | AO175: 0 | AP175: 0 | AQ175: Namn Namn 178 | AU175: 0 | AV175: 0 | AW175: 0 | AX175: 0 | AY175: 0 | AZ175: 0 | BC175: 0 | BE175: Auto
B176: Ledsagare LSS | C176: 6 | D176: Namn Namn 178 | E176: 2023-04-21 | F176: 19:00 | G176: 21:00 | J176: 127 | L176: YYYYMMDD-NNNN | M176: =IFERROR(INDEX(Admin!$AZ$3:$BA$50,MATCH(H176,Admin!$AZ$3:$AZ$53,0),2),"LäggTillAdmin") -> 0 | O176: 2 | P176: =IF(E176="","",IF(COUNTIF(Admin!$AN$4:$AN$99,E176)>0,1,WEEKDAY(E176))) -> 6 | R176: 2 | S176: 0 | T176: 0 | U176: 0 | V176: 2 | W176: 0 | X176: 0 | Y176: 0 | AB176: 0 | AC176: 0 | AD176: 123.8 | AE176: 0 | AF176: 0 | AG176: 0 | AH176: 0 | AI176: 0 | AJ176: 123.8 | AK176: 2023-4-21 | AL176: 19:0-21:0 | AM176: 0 min | AN176: 2 | AO176: 2 | AP176: 0 | AQ176: Namn Namn 178 | AU176: 0 | AV176: 0 | AW176: 123.8 | AX176: 0 | AY176: 0 | AZ176: 0 | BC176: 123.8 | BE176: Auto
B177: Ledsagare LSS | C177: 6 | D177: Namn Namn 178 | E177: 2023-04-29 | F177: 13:00 | G177: 17:00 | J177: 127 | L177: YYYYMMDD-NNNN | M177: =IFERROR(INDEX(Admin!$AZ$3:$BA$50,MATCH(H177,Admin!$AZ$3:$AZ$53,0),2),"LäggTillAdmin") -> 0 | O177: 4 | P177: =IF(E177="","",IF(COUNTIF(Admin!$AN$4:$AN$99,E177)>0,1,WEEKDAY(E177))) -> 7 | R177: 4 | S177: 0 | T177: 0 | U177: 0 | V177: 4 | W177: 0 | X177: 0 | Y177: 0 | AB177: 0 | AC177: 0 | AD177: 247.6 | AE177: 0 | AF177: 0 | AG177: 0 | AH177: 0 | AI177: 0 | AJ177: 247.6 | AK177: 2023-4-29 | AL177: 13:0-17:0 | AM177: 0 min | AN177: 4 | AO177: 4 | AP177: 0 | AQ177: Namn Namn 178 | AU177: 0 | AV177: 0 | AW177: 247.6 | AX177: 0 | AY177: 0 | AZ177: 0 | BC177: 247.6 | BE177: Auto
B178: Ledsagare LSS | C178: 6 | D178: Namn Namn 182 | E178: 2023-04-03 | F178: 18:00 | G178: 21:00 | J178: 127 | L178: YYYYMMDD-NNNN | M178: =IFERROR(INDEX(Admin!$AZ$3:$BA$50,MATCH(H178,Admin!$AZ$3:$AZ$53,0),2),"LäggTillAdmin") -> 0 | O178: 3 | P178: =IF(E178="","",IF(COUNTIF(Admin!$AN$4:$AN$99,E178)>0,1,WEEKDAY(E178))) -> 2 | R178: 3 | S178: 0 | T178: 2 | U178: 0 | V178: 0 | W178: 0 | X178: 0 | Y178: 0 | AB178: 48 | AC178: 0 | AD178: 0 | AE178: 0 | AF178: 0 | AG178: 0 | AH178: 0 | AI178: 0 | AJ178: 48 | AK178: 2023-4-03 | AL178: 18:0-21:0 | AM178: 0 min | AN178: 3 | AO178: 2 | AP178: 0 | AQ178: Namn Namn 182 | AU178: 48 | AV178: 0 | AW178: 0 | AX178: 0 | AY178: 0 | AZ178: 0 | BC178: 48 | BE178: Auto
B179: Ledsagare LSS | C179: 6 | D179: Namn Namn 182 | E179: 2023-04-10 | F179: 18:00 | G179: 20:00 | J179: 127 | L179: YYYYMMDD-NNNN | M179: =IFERROR(INDEX(Admin!$AZ$3:$BA$50,MATCH(H179,Admin!$AZ$3:$AZ$53,0),2),"LäggTillAdmin") -> 0 | O179: 2 | P179: =IF(E179="","",IF(COUNTIF(Admin!$AN$4:$AN$99,E179)>0,1,WEEKDAY(E179))) -> 2 | R179: 2 | S179: 0 | T179: 0 | U179: 0 | V179: 2 | W179: 0 | X179: 0 | Y179: 0 | AB179: 0 | AC179: 0 | AD179: 123.8 | AE179: 0 | AF179: 0 | AG179: 0 | AH179: 0 | AI179: 0 | AJ179: 123.8 | AK179: 2023-4-10 | AL179: 18:0-20:0 | AM179: 0 min | AN179: 2 | AO179: 2 | AP179: 0 | AQ179: Namn Namn 182 | AU179: 0 | AV179: 0 | AW179: 123.8 | AX179: 0 | AY179: 0 | AZ179: 0 | BC179: 123.8 | BE179: Auto
B180: Ledsagare LSS | C180: 6 | D180: Namn Namn 182 | E180: 2023-04-17 | F180: 18:00 | G180: 21:00 | J180: 127 | L180: YYYYMMDD-NNNN | M180: =IFERROR(INDEX(Admin!$AZ$3:$BA$50,MATCH(H180,Admin!$AZ$3:$AZ$53,0),2),"LäggTillAdmin") -> 0 | O180: 3 | P180: =IF(E180="","",IF(COUNTIF(Admin!$AN$4:$AN$99,E180)>0,1,WEEKDAY(E180))) -> 2 | R180: 3 | S180: 0 | T180: 2 | U180: 0 | V180: 0 | W180: 0 | X180: 0 | Y180: 0 | AB180: 48 | AC180: 0 | AD180: 0 | AE180: 0 | AF180: 0 | AG180: 0 | AH180: 0 | AI180: 0 | AJ180: 48 | AK180: 2023-4-17 | AL180: 18:0-21:0 | AM180: 0 min | AN180: 3 | AO180: 2 | AP180: 0 | AQ180: Namn Namn 182 | AU180: 48 | AV180: 0 | AW180: 0 | AX180: 0 | AY180: 0 | AZ180: 0 | BC180: 48 | BE180: Auto
B181: Ledsagare LSS | C181: 5 | D181: Namn Namn 182 | E181: 2023-04-27 | F181: 07:00 | G181: 11:00 | J181: 127 | L181: YYYYMMDD-NNNN | M181: =IFERROR(INDEX(Admin!$AZ$3:$BA$50,MATCH(H181,Admin!$AZ$3:$AZ$53,0),2),"LäggTillAdmin") -> 0 | O181: 4 | P181: =IF(E181="","",IF(COUNTIF(Admin!$AN$4:$AN$99,E181)>0,1,WEEKDAY(E181))) -> 5 | R181: 4 | S181: 0 | T181: 0 | U181: 0 | V181: 0 | W181: 0 | X181: 0 | Y181: 0 | AB181: 0 | AC181: 0 | AD181: 0 | AE181: 0 | AF181: 0 | AG181: 0 | AH181: 0 | AI181: 0 | AJ181: 0 | AK181: 2023-4-27 | AL181: 7:0-11:0 | AM181: 0 min | AN181: 4 | AO181: 0 | AP181: 0 | AQ181: Namn Namn 182 | AU181: 0 | AV181: 0 | AW181: 0 | AX181: 0 | AY181: 0 | AZ181: 0 | BC181: 0 | BE181: Auto
B182: Ledsagare LSS | C182: 5 | D182: Namn Namn 182 | E182: 2023-04-28 | F182: 18:00 | G182: 22:00 | J182: 127 | L182: YYYYMMDD-NNNN | M182: =IFERROR(INDEX(Admin!$AZ$3:$BA$50,MATCH(H182,Admin!$AZ$3:$AZ$53,0),2),"LäggTillAdmin") -> 0 | O182: 4 | P182: =IF(E182="","",IF(COUNTIF(Admin!$AN$4:$AN$99,E182)>0,1,WEEKDAY(E182))) -> 6 | R182: 4 | S182: 0 | T182: 0 | U182: 0 | V182: 3 | W182: 0 | X182: 0 | Y182: 0 | AB182: 0 | AC182: 0 | AD182: 185.7 | AE182: 0 | AF182: 0 | AG182: 0 | AH182: 0 | AI182: 0 | AJ182: 185.7 | AK182: 2023-4-28 | AL182: 18:0-22:0 | AM182: 0 min | AN182: 4 | AO182: 3 | AP182: 0 | AQ182: Namn Namn 182 | AU182: 0 | AV182: 0 | AW182: 185.7 | AX182: 0 | AY182: 0 | AZ182: 0 | BC182: 185.7 | BE182: Auto
B183: Ledsagare LSS | C183: 2 | D183: Namn Namn 187 | E183: 2023-04-02 | F183: 15:00 | G183: 17:30 | J183: 127 | L183: YYYYMMDD-NNNN | M183: =IFERROR(INDEX(Admin!$AZ$3:$BA$50,MATCH(H183,Admin!$AZ$3:$AZ$53,0),2),"LäggTillAdmin") -> 0 | O183: 2.5 | P183: =IF(E183="","",IF(COUNTIF(Admin!$AN$4:$AN$99,E183)>0,1,WEEKDAY(E183))) -> 1 | R183: 2.5 | S183: 0 | T183: 0 | U183: 0 | V183: 2.5 | W183: 0 | X183: 0 | Y183: 0 | AB183: 0 | AC183: 0 | AD183: 154.75 | AE183: 0 | AF183: 0 | AG183: 0 | AH183: 0 | AI183: 0 | AJ183: 154.75 | AK183: 2023-4-02 | AL183: 15:0-17:30 | AM183: 0 min | AN183: 2.5 | AO183: 2.5 | AP183: 0 | AQ183: Namn Namn 187 | AU183: 0 | AV183: 0 | AW183: 154.75 | AX183: 0 | AY183: 0 | AZ183: 0 | BC183: 154.75 | BE183: Auto
B184: Ledsagare LSS | C184: 2 | D184: Namn Namn 187 | E184: 2023-04-05 | F184: 19:00 | G184: 20:00 | J184: 127 | L184: YYYYMMDD-NNNN | M184: =IFERROR(INDEX(Admin!$AZ$3:$BA$50,MATCH(H184,Admin!$AZ$3:$AZ$53,0),2),"LäggTillAdmin") -> 0 | O184: 1 | P184: =IF(E184="","",IF(COUNTIF(Admin!$AN$4:$AN$99,E184)>0,1,WEEKDAY(E184))) -> 4 | R184: 1 | S184: 0 | T184: 1 | U184: 0 | V184: 0 | W184: 0 | X184: 0 | Y184: 0 | AB184: 24 | AC184: 0 | AD184: 0 | AE184: 0 | AF184: 0 | AG184: 0 | AH184: 0 | AI184: 0 | AJ184: 24 | AK184: 2023-4-05 | AL184: 19:0-20:0 | AM184: 0 min | AN184: 1 | AO184: 1 | AP184: 0 | AQ184: Namn Namn 187 | AU184: 24 | AV184: 0 | AW184: 0 | AX184: 0 | AY184: 0 | AZ184: 0 | BC184: 24 | BE184: Auto
B185: Ledsagare LSS | C185: 2 | D185: Namn Namn 187 | E185: 2023-04-10 | F185: 19:00 | G185: 20:00 | J185: 127 | L185: YYYYMMDD-NNNN | M185: =IFERROR(INDEX(Admin!$AZ$3:$BA$50,MATCH(H185,Admin!$AZ$3:$AZ$53,0),2),"LäggTillAdmin") -> 0 | O185: 1 | P185: =IF(E185="","",IF(COUNTIF(Admin!$AN$4:$AN$99,E185)>0,1,WEEKDAY(E185))) -> 2 | R185: 1 | S185: 0 | T185: 0 | U185: 0 | V185: 1 | W185: 0 | X185: 0 | Y185: 0 | AB185: 0 | AC185: 0 | AD185: 61.9 | AE185: 0 | AF185: 0 | AG185: 0 | AH185: 0 | AI185: 0 | AJ185: 61.9 | AK185: 2023-4-10 | AL185: 19:0-20:0 | AM185: 0 min | AN185: 1 | AO185: 1 | AP185: 0 | AQ185: Namn Namn 187 | AU185: 0 | AV185: 0 | AW185: 61.9 | AX185: 0 | AY185: 0 | AZ185: 0 | BC185: 61.9 | BE185: Auto
B186: Ledsagare LSS | C186: 2 | D186: Namn Namn 187 | E186: 2023-04-12 | F186: 19:00 | G186: 20:00 | J186: 127 | L186: YYYYMMDD-NNNN | M186: =IFERROR(INDEX(Admin!$AZ$3:$BA$50,MATCH(H186,Admin!$AZ$3:$AZ$53,0),2),"LäggTillAdmin") -> 0 | O186: 1 | P186: =IF(E186="","",IF(COUNTIF(Admin!$AN$4:$AN$99,E186)>0,1,WEEKDAY(E186))) -> 4 | R186: 1 | S186: 0 | T186: 1 | U186: 0 | V186: 0 | W186: 0 | X186: 0 | Y186: 0 | AB186: 24 | AC186: 0 | AD186: 0 | AE186: 0 | AF186: 0 | AG186: 0 | AH186: 0 | AI186: 0 | AJ186: 24 | AK186: 2023-4-12 | AL186: 19:0-20:0 | AM186: 0 min | AN186: 1 | AO186: 1 | AP186: 0 | AQ186: Namn Namn 187 | AU186: 24 | AV186: 0 | AW186: 0 | AX186: 0 | AY186: 0 | AZ186: 0 | BC186: 24 | BE186: Auto
B187: Ledsagare LSS | C187: 2 | D187: Namn Namn 187 | E187: 2023-04-16 | F187: 15:00 | G187: 17:30 | J187: 127 | L187: YYYYMMDD-NNNN | M187: =IFERROR(INDEX(Admin!$AZ$3:$BA$50,MATCH(H187,Admin!$AZ$3:$AZ$53,0),2),"LäggTillAdmin") -> 0 | O187: 2.5 | P187: =IF(E187="","",IF(COUNTIF(Admin!$AN$4:$AN$99,E187)>0,1,WEEKDAY(E187))) -> 1 | R187: 2.5 | S187: 0 | T187: 0 | U187: 0 | V187: 2.5 | W187: 0 | X187: 0 | Y187: 0 | AB187: 0 | AC187: 0 | AD187: 154.75 | AE187: 0 | AF187: 0 | AG187: 0 | AH187: 0 | AI187: 0 | AJ187: 154.75 | AK187: 2023-4-16 | AL187: 15:0-17:30 | AM187: 0 min | AN187: 2.5 | AO187: 2.5 | AP187: 0 | AQ187: Namn Namn 187 | AU187: 0 | AV187: 0 | AW187: 154.75 | AX187: 0 | AY187: 0 | AZ187: 0 | BC187: 154.75 | BE187: Auto
B188: Ledsagare LSS | C188: 2 | D188: Namn Namn 187 | E188: 2023-04-17 | F188: 19:00 | G188: 20:00 | J188: 127 | L188: YYYYMMDD-NNNN | M188: =IFERROR(INDEX(Admin!$AZ$3:$BA$50,MATCH(H188,Admin!$AZ$3:$AZ$53,0),2),"LäggTillAdmin") -> 0 | O188: 1 | P188: =IF(E188="","",IF(COUNTIF(Admin!$AN$4:$AN$99,E188)>0,1,WEEKDAY(E188))) -> 2 | R188: 1 | S188: 0 | T188: 1 | U188: 0 | V188: 0 | W188: 0 | X188: 0 | Y188: 0 | AB188: 24 | AC188: 0 | AD188: 0 | AE188: 0 | AF188: 0 | AG188: 0 | AH188: 0 | AI188: 0 | AJ188: 24 | AK188: 2023-4-17 | AL188: 19:0-20:0 | AM188: 0 min | AN188: 1 | AO188: 1 | AP188: 0 | AQ188: Namn Namn 187 | AU188: 24 | AV188: 0 | AW188: 0 | AX188: 0 | AY188: 0 | AZ188: 0 | BC188: 24 | BE188: Auto
B189: Ledsagare LSS | C189: 2 | D189: Namn Namn 187 | E189: 2023-04-20 | F189: 18:00 | G189: 20:00 | J189: 127 | L189: YYYYMMDD-NNNN | M189: =IFERROR(INDEX(Admin!$AZ$3:$BA$50,MATCH(H189,Admin!$AZ$3:$AZ$53,0),2),"LäggTillAdmin") -> 0 | O189: 2 | P189: =IF(E189="","",IF(COUNTIF(Admin!$AN$4:$AN$99,E189)>0,1,WEEKDAY(E189))) -> 5 | R189: 2 | S189: 0 | T189: 1 | U189: 0 | V189: 0 | W189: 0 | X189: 0 | Y189: 0 | AB189: 24 | AC189: 0 | AD189: 0 | AE189: 0 | AF189: 0 | AG189: 0 | AH189: 0 | AI189: 0 | AJ189: 24 | AK189: 2023-4-20 | AL189: 18:0-20:0 | AM189: 0 min | AN189: 2 | AO189: 1 | AP189: 0 | AQ189: Namn Namn 187 | AU189: 24 | AV189: 0 | AW189: 0 | AX189: 0 | AY189: 0 | AZ189: 0 | BC189: 24 | BE189: Auto
B190: Ledsagare LSS | C190: 2 | D190: Namn Namn 187 | E190: 2023-04-30 | F190: 13:00 | G190: 14:00 | J190: 127 | L190: YYYYMMDD-NNNN | M190: =IFERROR(INDEX(Admin!$AZ$3:$BA$50,MATCH(H190,Admin!$AZ$3:$AZ$53,0),2),"LäggTillAdmin") -> 0 | O190: 1 | P190: =IF(E190="","",IF(COUNTIF(Admin!$AN$4:$AN$99,E190)>0,1,WEEKDAY(E190))) -> 1 | R190: 1 | S190: 0 | T190: 0 | U190: 0 | V190: 1 | W190: 0 | X190: 0 | Y190: 0 | AB190: 0 | AC190: 0 | AD190: 61.9 | AE190: 0 | AF190: 0 | AG190: 0 | AH190: 0 | AI190: 0 | AJ190: 61.9 | AK190: 2023-4-30 | AL190: 13:0-14:0 | AM190: 0 min | AN190: 1 | AO190: 1 | AP190: 0 | AQ190: Namn Namn 187 | AU190: 0 | AV190: 0 | AW190: 61.9 | AX190: 0 | AY190: 0 | AZ190: 0 | BC190: 61.9 | BE190: Auto
B191: Ledsagare LSS | C191: 1 | D191: Namn Namn 195 | E191: 2023-04-02 | F191: 15:00 | G191: 21:00 | J191: 127 | L191: YYYYMMDD-NNNN | M191: =IFERROR(INDEX(Admin!$AZ$3:$BA$50,MATCH(H191,Admin!$AZ$3:$AZ$53,0),2),"LäggTillAdmin") -> 0 | O191: 6 | P191: =IF(E191="","",IF(COUNTIF(Admin!$AN$4:$AN$99,E191)>0,1,WEEKDAY(E191))) -> 1 | R191: 6 | S191: 0 | T191: 0 | U191: 0 | V191: 6 | W191: 0 | X191: 0 | Y191: 0 | AB191: 0 | AC191: 0 | AD191: 371.4 | AE191: 0 | AF191: 0 | AG191: 0 | AH191: 0 | AI191: 0 | AJ191: 371.4 | AK191: 2023-4-02 | AL191: 15:0-21:0 | AM191: 0 min | AN191: 6 | AO191: 6 | AP191: 0 | AQ191: Namn Namn 195 | AU191: 0 | AV191: 0 | AW191: 371.4 | AX191: 0 | AY191: 0 | AZ191: 0 | BC191: 371.4 | BE191: Auto
B192: Ledsagare LSS | C192: 1 | D192: Namn Namn 195 | E192: 2023-04-22 | F192: 13:00 | G192: 19:00 | J192: 127 | L192: YYYYMMDD-NNNN | M192: =IFERROR(INDEX(Admin!$AZ$3:$BA$50,MATCH(H192,Admin!$AZ$3:$AZ$53,0),2),"LäggTillAdmin") -> 0 | O192: 6 | P192: =IF(E192="","",IF(COUNTIF(Admin!$AN$4:$AN$99,E192)>0,1,WEEKDAY(E192))) -> 7 | R192: 6 | S192: 0 | T192: 0 | U192: 0 | V192: 6 | W192: 0 | X192: 0 | Y192: 0 | AB192: 0 | AC192: 0 | AD192: 371.4 | AE192: 0 | AF192: 0 | AG192: 0 | AH192: 0 | AI192: 0 | AJ192: 371.4 | AK192: 2023-4-22 | AL192: 13:0-19:0 | AM192: 0 min | AN192: 6 | AO192: 6 | AP192: 0 | AQ192: Namn Namn 195 | AU192: 0 | AV192: 0 | AW192: 371.4 | AX192: 0 | AY192: 0 | AZ192: 0 | BC192: 371.4 | BE192: Auto
B193: Ledsagare LSS | C193: 1 | D193: Namn Namn 197 | E193: 2023-04-01 | F193: 12:00 | G193: 13:00 | J193: 127 | L193: YYYYMMDD-NNNN | M193: =IFERROR(INDEX(Admin!$AZ$3:$BA$50,MATCH(H193,Admin!$AZ$3:$AZ$53,0),2),"LäggTillAdmin") -> 0 | O193: 1 | P193: =IF(E193="","",IF(COUNTIF(Admin!$AN$4:$AN$99,E193)>0,1,WEEKDAY(E193))) -> 7 | R193: 1 | S193: 0 | T193: 0 | U193: 0 | V193: 1 | W193: 0 | X193: 0 | Y193: 0 | AB193: 0 | AC193: 0 | AD193: 61.9 | AE193: 0 | AF193: 0 | AG193: 0 | AH193: 0 | AI193: 0 | AJ193: 61.9 | AK193: 2023-4-01 | AL193: 12:0-13:0 | AM193: 0 min | AN193: 1 | AO193: 1 | AP193: 0 | AQ193: Namn Namn 197 | AU193: 0 | AV193: 0 | AW193: 61.9 | AX193: 0 | AY193: 0 | AZ193: 0 | BC193: 61.9 | BE193: Auto
B194: Ledsagare LSS | C194: 1 | D194: Namn Namn 197 | E194: 2023-04-02 | F194: 13:00 | G194: 15:00 | J194: 127 | L194: YYYYMMDD-NNNN | M194: =IFERROR(INDEX(Admin!$AZ$3:$BA$50,MATCH(H194,Admin!$AZ$3:$AZ$53,0),2),"LäggTillAdmin") -> 0 | O194: 2 | P194: =IF(E194="","",IF(COUNTIF(Admin!$AN$4:$AN$99,E194)>0,1,WEEKDAY(E194))) -> 1 | R194: 2 | S194: 0 | T194: 0 | U194: 0 | V194: 2 | W194: 0 | X194: 0 | Y194: 0 | AB194: 0 | AC194: 0 | AD194: 123.8 | AE194: 0 | AF194: 0 | AG194: 0 | AH194: 0 | AI194: 0 | AJ194: 123.8 | AK194: 2023-4-02 | AL194: 13:0-15:0 | AM194: 0 min | AN194: 2 | AO194: 2 | AP194: 0 | AQ194: Namn Namn 197 | AU194: 0 | AV194: 0 | AW194: 123.8 | AX194: 0 | AY194: 0 | AZ194: 0 | BC194: 123.8 | BE194: Auto
B195: Ledsagare LSS | C195: 1 | D195: Namn Namn 197 | E195: 2023-04-06 | F195: 11:00 | G195: 12:00 | J195: 127 | L195: YYYYMMDD-NNNN | M195: =IFERROR(INDEX(Admin!$AZ$3:$BA$50,MATCH(H195,Admin!$AZ$3:$AZ$53,0),2),"LäggTillAdmin") -> 0 | O195: 1 | P195: =IF(E195="","",IF(COUNTIF(Admin!$AN$4:$AN$99,E195)>0,1,WEEKDAY(E195))) -> 5 | R195: 1 | S195: 0 | T195: 0 | U195: 0 | V195: 1 | W195: 0 | X195: 0 | Y195: 0 | AB195: 0 | AC195: 0 | AD195: 61.9 | AE195: 0 | AF195: 0 | AG195: 0 | AH195: 0 | AI195: 0 | AJ195: 61.9 | AK195: 2023-4-06 | AL195: 11:0-12:0 | AM195: 0 min | AN195: 1 | AO195: 1 | AP195: 0 | AQ195: Namn Namn 197 | AU195: 0 | AV195: 0 | AW195: 61.9 | AX195: 0 | AY195: 0 | AZ195: 0 | BC195: 61.9 | BE195: Auto
B196: Ledsagare LSS | C196: 1 | D196: Namn Namn 197 | E196: 2023-04-08 | F196: 12:00 | G196: 14:00 | J196: 127 | L196: YYYYMMDD-NNNN | M196: =IFERROR(INDEX(Admin!$AZ$3:$BA$50,MATCH(H196,Admin!$AZ$3:$AZ$53,0),2),"LäggTillAdmin") -> 0 | O196: 2 | P196: =IF(E196="","",IF(COUNTIF(Admin!$AN$4:$AN$99,E196)>0,1,WEEKDAY(E196))) -> 7 | R196: 2 | S196: 0 | T196: 0 | U196: 0 | V196: 2 | W196: 0 | X196: 0 | Y196: 0 | AB196: 0 | AC196: 0 | AD196: 123.8 | AE196: 0 | AF196: 0 | AG196: 0 | AH196: 0 | AI196: 0 | AJ196: 123.8 | AK196: 2023-4-08 | AL196: 12:0-14:0 | AM196: 0 min | AN196: 2 | AO196: 2 | AP196: 0 | AQ196: Namn Namn 197 | AU196: 0 | AV196: 0 | AW196: 123.8 | AX196: 0 | AY196: 0 | AZ196: 0 | BC196: 123.8 | BE196: Auto
B197: Ledsagare LSS | C197: 1 | D197: Namn Namn 197 | E197: 2023-04-09 | F197: 13:00 | G197: 14:00 | J197: 127 | L197: YYYYMMDD-NNNN | M197: =IFERROR(INDEX(Admin!$AZ$3:$BA$50,MATCH(H197,Admin!$AZ$3:$AZ$53,0),2),"LäggTillAdmin") -> 0 | O197: 1 | P197: =IF(E197="","",IF(COUNTIF(Admin!$AN$4:$AN$99,E197)>0,1,WEEKDAY(E197))) -> 1 | R197: 1 | S197: 0 | T197: 0 | U197: 0 | V197: 1 | W197: 0 | X197: 0 | Y197: 0 | AB197: 0 | AC197: 0 | AD197: 61.9 | AE197: 0 | AF197: 0 | AG197: 0 | AH197: 0 | AI197: 0 | AJ197: 61.9 | AK197: 2023-4-09 | AL197: 13:0-14:0 | AM197: 0 min | AN197: 1 | AO197: 1 | AP197: 0 | AQ197: Namn Namn 197 | AU197: 0 | AV197: 0 | AW197: 61.9 | AX197: 0 | AY197: 0 | AZ197: 0 | BC197: 61.9 | BE197: Auto
B198: Ledsagare LSS | C198: 1 | D198: Namn Namn 197 | E198: 2023-04-11 | F198: 12:00 | G198: 14:00 | J198: 127 | L198: YYYYMMDD-NNNN | M198: =IFERROR(INDEX(Admin!$AZ$3:$BA$50,MATCH(H198,Admin!$AZ$3:$AZ$53,0),2),"LäggTillAdmin") -> 0 | O198: 2 | P198: =IF(E198="","",IF(COUNTIF(Admin!$AN$4:$AN$99,E198)>0,1,WEEKDAY(E198))) -> 3 | R198: 2 | S198: 0 | T198: 0 | U198: 0 | V198: 2 | W198: 0 | X198: 0 | Y198: 0 | AB198: 0 | AC198: 0 | AD198: 123.8 | AE198: 0 | AF198: 0 | AG198: 0 | AH198: 0 | AI198: 0 | AJ198: 123.8 | AK198: 2023-4-11 | AL198: 12:0-14:0 | AM198: 0 min | AN198: 2 | AO198: 2 | AP198: 0 | AQ198: Namn Namn 197 | AU198: 0 | AV198: 0 | AW198: 123.8 | AX198: 0 | AY198: 0 | AZ198: 0 | BC198: 123.8 | BE198: Auto
B199: Ledsagare LSS | C199: 1 | D199: Namn Namn 197 | E199: 2023-04-15 | F199: 12:00 | G199: 14:00 | J199: 127 | L199: YYYYMMDD-NNNN | M199: =IFERROR(INDEX(Admin!$AZ$3:$BA$50,MATCH(H199,Admin!$AZ$3:$AZ$53,0),2),"LäggTillAdmin") -> 0 | O199: 2 | P199: =IF(E199="","",IF(COUNTIF(Admin!$AN$4:$AN$99,E199)>0,1,WEEKDAY(E199))) -> 7 | R199: 2 | S199: 0 | T199: 0 | U199: 0 | V199: 2 | W199: 0 | X199: 0 | Y199: 0 | AB199: 0 | AC199: 0 | AD199: 123.8 | AE199: 0 | AF199: 0 | AG199: 0 | AH199: 0 | AI199: 0 | AJ199: 123.8 | AK199: 2023-4-15 | AL199: 12:0-14:0 | AM199: 0 min | AN199: 2 | AO199: 2 | AP199: 0 | AQ199: Namn Namn 197 | AU199: 0 | AV199: 0 | AW199: 123.8 | AX199: 0 | AY199: 0 | AZ199: 0 | BC199: 123.8 | BE199: Auto
B200: Ledsagare LSS | C200: 1 | D200: Namn Namn 197 | E200: 2023-04-16 | F200: 12:00 | G200: 14:00 | J200: 127 | L200: YYYYMMDD-NNNN | M200: =IFERROR(INDEX(Admin!$AZ$3:$BA$50,MATCH(H200,Admin!$AZ$3:$AZ$53,0),2),"LäggTillAdmin") -> 0 | O200: 2 | P200: =IF(E200="","",IF(COUNTIF(Admin!$AN$4:$AN$99,E200)>0,1,WEEKDAY(E200))) -> 1 | R200: 2 | S200: 0 | T200: 0 | U200: 0 | V200: 2 | W200: 0 | X200: 0 | Y200: 0 | AB200: 0 | AC200: 0 | AD200: 123.8 | AE200: 0 | AF200: 0 | AG200: 0 | AH200: 0 | AI200: 0 | AJ200: 123.8 | AK200: 2023-4-16 | AL200: 12:0-14:0 | AM200: 0 min | AN200: 2 | AO200: 2 | AP200: 0 | AQ200: Namn Namn 197 | AU200: 0 | AV200: 0 | AW200: 123.8 | AX200: 0 | AY200: 0 | AZ200: 0 | BC200: 123.8 | BE200: Auto
B201: Ledsagare LSS | C201: 1 | D201: Namn Namn 197 | E201: 2023-04-17 | F201: 15:00 | G201: 17:00 | J201: 127 | L201: YYYYMMDD-NNNN | M201: =IFERROR(INDEX(Admin!$AZ$3:$BA$50,MATCH(H201,Admin!$AZ$3:$AZ$53,0),2),"LäggTillAdmin") -> 0 | O201: 2 | P201: =IF(E201="","",IF(COUNTIF(Admin!$AN$4:$AN$99,E201)>0,1,WEEKDAY(E201))) -> 2 | R201: 2 | S201: 0 | T201: 0 | U201: 0 | V201: 0 | W201: 0 | X201: 0 | Y201: 0 | AB201: 0 | AC201: 0 | AD201: 0 | AE201: 0 | AF201: 0 | AG201: 0 | AH201: 0 | AI201: 0 | AJ201: 0 | AK201: 2023-4-17 | AL201: 15:0-17:0 | AM201: 0 min | AN201: 2 | AO201: 0 | AP201: 0 | AQ201: Namn Namn 197 | AU201: 0 | AV201: 0 | AW201: 0 | AX201: 0 | AY201: 0 | AZ201: 0 | BC201: 0 | BE201: Auto
B202: Ledsagare LSS | C202: 1 | D202: Namn Namn 197 | E202: 2023-04-23 | F202: 13:00 | G202: 14:00 | J202: 127 | L202: YYYYMMDD-NNNN | M202: =IFERROR(INDEX(Admin!$AZ$3:$BA$50,MATCH(H202,Admin!$AZ$3:$AZ$53,0),2),"LäggTillAdmin") -> 0 | O202: 1 | P202: =IF(E202="","",IF(COUNTIF(Admin!$AN$4:$AN$99,E202)>0,1,WEEKDAY(E202))) -> 1 | R202: 1 | S202: 0 | T202: 0 | U202: 0 | V202: 1 | W202: 0 | X202: 0 | Y202: 0 | AB202: 0 | AC202: 0 | AD202: 61.9 | AE202: 0 | AF202: 0 | AG202: 0 | AH202: 0 | AI202: 0 | AJ202: 61.9 | AK202: 2023-4-23 | AL202: 13:0-14:0 | AM202: 0 min | AN202: 1 | AO202: 1 | AP202: 0 | AQ202: Namn Namn 197 | AU202: 0 | AV202: 0 | AW202: 61.9 | AX202: 0 | AY202: 0 | AZ202: 0 | BC202: 61.9 | BE202: Auto
B203: Ledsagare LSS | C203: 1 | D203: Namn Namn 197 | E203: 2023-04-24 | F203: 15:00 | G203: 17:00 | J203: 127 | L203: YYYYMMDD-NNNN | M203: =IFERROR(INDEX(Admin!$AZ$3:$BA$50,MATCH(H203,Admin!$AZ$3:$AZ$53,0),2),"LäggTillAdmin") -> 0 | O203: 2 | P203: =IF(E203="","",IF(COUNTIF(Admin!$AN$4:$AN$99,E203)>0,1,WEEKDAY(E203))) -> 2 | R203: 2 | S203: 0 | T203: 0 | U203: 0 | V203: 0 | W203: 0 | X203: 0 | Y203: 0 | AB203: 0 | AC203: 0 | AD203: 0 | AE203: 0 | AF203: 0 | AG203: 0 | AH203: 0 | AI203: 0 | AJ203: 0 | AK203: 2023-4-24 | AL203: 15:0-17:0 | AM203: 0 min | AN203: 2 | AO203: 0 | AP203: 0 | AQ203: Namn Namn 197 | AU203: 0 | AV203: 0 | AW203: 0 | AX203: 0 | AY203: 0 | AZ203: 0 | BC203: 0 | BE203: Auto
B204: Ledsagare LSS | C204: 1 | D204: Namn Namn 208 | E204: 2023-04-02 | F204: 11:00 | G204: 15:00 | J204: 127 | L204: YYYYMMDD-NNNN | M204: =IFERROR(INDEX(Admin!$AZ$3:$BA$50,MATCH(H204,Admin!$AZ$3:$AZ$53,0),2),"LäggTillAdmin") -> 0 | O204: 4 | P204: =IF(E204="","",IF(COUNTIF(Admin!$AN$4:$AN$99,E204)>0,1,WEEKDAY(E204))) -> 1 | Q204: =IFERROR(IF(HOUR(F204)>HOUR(G204),IF(IF(E204="","",WEEKDAY(E204))=7,1,IF(E204="","",WEEKDAY(E204))+1),""),"") ->  | R204: =IFERROR(IF(HOUR(F204)>HOUR(G204),O204-S204,O204),"") -> 4 | S204: =IFERROR(IF(HOUR(F204)>HOUR(G204),HOUR(G204)+MINUTE(G204)/60,0),"") -> 0 | T204: 0 | U204: 0 | V204: 4 | W204: 0 | X204: 0 | Y204: 0 | Z204: =IFERROR(IF(AND(P204>=INDIRECT("'"&L204&"'!j2"),P204<=INDIRECT("'"&L204&"'!k2"),O204>INDIRECT("'"&L204&"'!i2"),HOUR(F204)+MINUTE(F204)/60-INDIRECT("'"&L204&"'!i2")<20),O204-INDIRECT("'"&L204&"'!i2")-MAX(HOUR(G204)-INDIRECT("'"&L204&"'!M2"),0),0),"") ->  | AA204: =IFERROR(IF(OR(P204=INDIRECT("'"&L204&"'!n2"),P204=INDIRECT("'"&L204&"'!o2"),HOUR(G204)+MINUTE(G204)/60>INDIRECT("'"&L204&"'!m2"),HOUR(G204)+MINUTE(G204)/60<6),IF(O204>INDIRECT("'"&L204&"'!i2"),O204-INDIRECT("'"&L204&"'!i2")-Z204,0),0),"") ->  | AB204: 0 | AC204: 0 | AD204: 247.6 | AE204: 0 | AF204: 0 | AG204: 0 | AH204: =IFERROR(Z204*INDIRECT("'"&L204&"'!x2")*INDIRECT("'"&L204&"'!c6"),0) -> 0 | AI204: =IFERROR(AA204*INDIRECT("'"&L204&"'!z2")*INDIRECT("'"&L204&"'!c6"),0) -> 0 | AJ204: =IFERROR(AG204+AB204+AC204+AD204+AE204+AF204,"") -> 247.6 | AK204: =IF(E204="","",YEAR(E204)&"-"&MONTH(E204)&"-"&IF(LEN(DAY(E204))=1,"0"&DAY(E204),DAY(E204))) -> 2023-4-02 | AL204: =IFERROR(HOUR(F204)&":"&MINUTE(F204)&"-"&HOUR(G204)&":"&MINUTE(G204),"") -> 11:0-15:0 | AM204: =IFERROR(M204*60&" min","") -> 0 min | AN204: =O204 -> 4 | AO204: =IFERROR(T204,0)+IFERROR(U204,0)+IFERROR(V204,0)+IFERROR(W204,0)+IFERROR(X204,0)+IFERROR(Y204,0) -> 4 | AP204: =IFERROR(SUM(Z204:AA204),"") -> 0 | AQ204: =IF(F204="","",D204) -> Namn Namn 208 | AR204: =IFERROR(O204-Z204-AA204,"") ->  | AU204: =IFERROR(AB204,0) -> 0 | AV204: =IFERROR(AC204,0) -> 0 | AW204: =IFERROR(AD204,0) -> 247.6 | AX204: =IFERROR(AE204,0) -> 0 | AY204: =IFERROR(AF204,0) -> 0 | AZ204: =IFERROR(AG204,0) -> 0 | BC204: =SUM(AU204:AZ204) -> 247.6 | BE204: Auto
B205: Ledsagare LSS | C205: 1 | D205: Namn Namn 208 | E205: 2023-04-05 | F205: 11:00 | G205: 14:30 | J205: 127 | L205: YYYYMMDD-NNNN | M205: =IFERROR(INDEX(Admin!$AZ$3:$BA$50,MATCH(H205,Admin!$AZ$3:$AZ$53,0),2),"LäggTillAdmin") -> 0 | O205: 3.5 | P205: =IF(E205="","",IF(COUNTIF(Admin!$AN$4:$AN$99,E205)>0,1,WEEKDAY(E205))) -> 4 | R205: 3.5 | S205: 0 | T205: 0 | U205: 0 | V205: 0 | W205: 0 | X205: 0 | Y205: 0 | AB205: 0 | AC205: 0 | AD205: 0 | AE205: 0 | AF205: 0 | AG205: 0 | AH205: 0 | AI205: 0 | AJ205: 0 | AK205: 2023-4-05 | AL205: 11:0-14:30 | AM205: 0 min | AN205: 3.5 | AO205: 0 | AP205: 0 | AQ205: Namn Namn 208 | AU205: 0 | AV205: 0 | AW205: 0 | AX205: 0 | AY205: 0 | AZ205: 0 | BC205: 0 | BE205: Auto
B206: Ledsagare LSS | C206: 1 | D206: Namn Namn 208 | E206: 2023-04-07 | F206: 13:00 | G206: 14:00 | J206: 127 | L206: YYYYMMDD-NNNN | M206: =IFERROR(INDEX(Admin!$AZ$3:$BA$50,MATCH(H206,Admin!$AZ$3:$AZ$53,0),2),"LäggTillAdmin") -> 0 | O206: 1 | P206: =IF(E206="","",IF(COUNTIF(Admin!$AN$4:$AN$99,E206)>0,1,WEEKDAY(E206))) -> 6 | R206: 1 | S206: 0 | T206: 0 | U206: 0 | V206: 1 | W206: 0 | X206: 0 | Y206: 0 | AB206: 0 | AC206: 0 | AD206: 61.9 | AE206: 0 | AF206: 0 | AG206: 0 | AH206: 0 | AI206: 0 | AJ206: 61.9 | AK206: 2023-4-07 | AL206: 13:0-14:0 | AM206: 0 min | AN206: 1 | AO206: 1 | AP206: 0 | AQ206: Namn Namn 208 | AU206: 0 | AV206: 0 | AW206: 61.9 | AX206: 0 | AY206: 0 | AZ206: 0 | BC206: 61.9 | BE206: Auto
B207: Ledsagare LSS | C207: 1 | D207: Namn Namn 208 | E207: 2023-04-09 | F207: 11:00 | G207: 13:00 | J207: 127 | L207: YYYYMMDD-NNNN | M207: =IFERROR(INDEX(Admin!$AZ$3:$BA$50,MATCH(H207,Admin!$AZ$3:$AZ$53,0),2),"LäggTillAdmin") -> 0 | O207: 2 | P207: =IF(E207="","",IF(COUNTIF(Admin!$AN$4:$AN$99,E207)>0,1,WEEKDAY(E207))) -> 1 | R207: 2 | S207: 0 | T207: 0 | U207: 0 | V207: 2 | W207: 0 | X207: 0 | Y207: 0 | AB207: 0 | AC207: 0 | AD207: 123.8 | AE207: 0 | AF207: 0 | AG207: 0 | AH207: 0 | AI207: 0 | AJ207: 123.8 | AK207: 2023-4-09 | AL207: 11:0-13:0 | AM207: 0 min | AN207: 2 | AO207: 2 | AP207: 0 | AQ207: Namn Namn 208 | AU207: 0 | AV207: 0 | AW207: 123.8 | AX207: 0 | AY207: 0 | AZ207: 0 | BC207: 123.8 | BE207: Auto
B208: Ledsagare LSS | C208: 1 | D208: Namn Namn 208 | E208: 2023-04-10 | F208: 11:00 | G208: 13:00 | J208: 127 | L208: YYYYMMDD-NNNN | M208: =IFERROR(INDEX(Admin!$AZ$3:$BA$50,MATCH(H208,Admin!$AZ$3:$AZ$53,0),2),"LäggTillAdmin") -> 0 | O208: 2 | P208: =IF(E208="","",IF(COUNTIF(Admin!$AN$4:$AN$99,E208)>0,1,WEEKDAY(E208))) -> 2 | R208: 2 | S208: 0 | T208: 0 | U208: 0 | V208: 2 | W208: 0 | X208: 0 | Y208: 0 | AB208: 0 | AC208: 0 | AD208: 123.8 | AE208: 0 | AF208: 0 | AG208: 0 | AH208: 0 | AI208: 0 | AJ208: 123.8 | AK208: 2023-4-10 | AL208: 11:0-13:0 | AM208: 0 min | AN208: 2 | AO208: 2 | AP208: 0 | AQ208: Namn Namn 208 | AU208: 0 | AV208: 0 | AW208: 123.8 | AX208: 0 | AY208: 0 | AZ208: 0 | BC208: 123.8 | BE208: Auto
B209: Ledsagare LSS | C209: 1 | D209: Namn Namn 208 | E209: 2023-04-12 | F209: 12:30 | G209: 15:30 | J209: 127 | L209: YYYYMMDD-NNNN | M209: =IFERROR(INDEX(Admin!$AZ$3:$BA$50,MATCH(H209,Admin!$AZ$3:$AZ$53,0),2),"LäggTillAdmin") -> 0 | O209: 3 | P209: =IF(E209="","",IF(COUNTIF(Admin!$AN$4:$AN$99,E209)>0,1,WEEKDAY(E209))) -> 4 | R209: 3 | S209: 0 | T209: 0 | U209: 0 | V209: 0 | W209: 0 | X209: 0 | Y209: 0 | AB209: 0 | AC209: 0 | AD209: 0 | AE209: 0 | AF209: 0 | AG209: 0 | AH209: 0 | AI209: 0 | AJ209: 0 | AK209: 2023-4-12 | AL209: 12:30-15:30 | AM209: 0 min | AN209: 3 | AO209: 0 | AP209: 0 | AQ209: Namn Namn 208 | AU209: 0 | AV209: 0 | AW209: 0 | AX209: 0 | AY209: 0 | AZ209: 0 | BC209: 0 | BE209: Auto
... 217 more rows

Sheet ArbetstimmarDetail
D9: _ArbetstagareNamn | E9: _Datum | F9: Arbetstimmar | G9: OB1 | H9: OB1 Kost | I9: OB2 | J9: OB2 Kost | K9: OA1 | L9: OA1 Kost | M9: OA2 | N9: OA2 Kost | O9: OD | P9: OD Kost | Q9: OC | R9: OC Kost | S9: Summa Kost
D10: Namn Namn 16 | E10: 2023-04-03 | F10: 2.416666667 | G10: 0 | H10: 0 | I10: 0 | J10: 0 | K10: 0 | L10: 0 | M10: 0 | N10: 0 | O10: 0.4166666667 | P10: 10 | Q10: 0 | R10: 0 | S10: 10
D11: Namn Namn 16 | E11: 2023-04-04 | F11: 2.333333333 | G11: 0 | H11: 0 | I11: 0 | J11: 0 | K11: 0 | L11: 0 | M11: 0 | N11: 0 | O11: 1.333333333 | P11: 32 | Q11: 0 | R11: 0 | S11: 32
D12: Namn Namn 16 | E12: 2023-04-06 | F12: 2.333333333 | G12: 0 | H12: 0 | I12: 0 | J12: 0 | K12: 2 | L12: 237.6 | M12: 0 | N12: 0 | O12: 0 | P12: 0 | Q12: 0 | R12: 0 | S12: 237.6
D13: Namn Namn 16 | E13: 2023-04-10 | F13: 2.416666667 | G13: 2 | H13: 123.8 | I13: 0 | J13: 0 | K13: 0 | L13: 0 | M13: 0 | N13: 0 | O13: 0 | P13: 0 | Q13: 0 | R13: 0 | S13: 123.8
D14: Namn Namn 16 | E14: 2023-04-11 | F14: 2.416666667 | G14: 2 | H14: 123.8 | I14: 0 | J14: 0 | K14: 0 | L14: 0 | M14: 0 | N14: 0 | O14: 0 | P14: 0 | Q14: 0 | R14: 0 | S14: 123.8
D15: Namn Namn 16 | E15: 2023-04-13 | F15: 2.333333333 | G15: 0 | H15: 0 | I15: 0 | J15: 0 | K15: 0 | L15: 0 | M15: 0 | N15: 0 | O15: 1.333333333 | P15: 32 | Q15: 0 | R15: 0 | S15: 32
D16: Namn Namn 16 | E16: 2023-04-17 | F16: 2.416666667 | G16: 0 | H16: 0 | I16: 0 | J16: 0 | K16: 0 | L16: 0 | M16: 0 | N16: 0 | O16: 0.4166666667 | P16: 10 | Q16: 0 | R16: 0 | S16: 10
D17: Namn Namn 16 | E17: 2023-04-18 | F17: 2.416666667 | G17: 0 | H17: 0 | I17: 0 | J17: 0 | K17: 0 | L17: 0 | M17: 0 | N17: 0 | O17: 1.416666667 | P17: 34 | Q17: 0 | R17: 0 | S17: 34
D18: Namn Namn 16 | E18: 2023-04-20 | F18: 1.9 | G18: 0 | H18: 0 | I18: 0 | J18: 0 | K18: 0 | L18: 0 | M18: 0 | N18: 0 | O18: 0.9 | P18: 21.6 | Q18: 0 | R18: 0 | S18: 21.6
D19: Namn Namn 25 | E19: 2023-04-08 | F19: 3 | G19: 3 | H19: 185.7 | I19: 0 | J19: 0 | K19: 0 | L19: 0 | M19: 0 | N19: 0 | O19: 0 | P19: 0 | Q19: 0 | R19: 0 | S19: 185.7
D20: Namn Namn 25 | E20: 2023-04-14 | F20: 3 | G20: 1 | H20: 61.9 | I20: 0 | J20: 0 | K20: 0 | L20: 0 | M20: 0 | N20: 0 | O20: 0 | P20: 0 | Q20: 0 | R20: 0 | S20: 61.9
D21: Namn Namn 25 | E21: 2023-04-22 | F21: 3 | G21: 3 | H21: 185.7 | I21: 0 | J21: 0 | K21: 0 | L21: 0 | M21: 0 | N21: 0 | O21: 0 | P21: 0 | Q21: 0 | R21: 0 | S21: 185.7
D22: Namn Namn 25 | E22: 2023-04-30 | F22: 3 | G22: 3 | H22: 185.7 | I22: 0 | J22: 0 | K22: 0 | L22: 0 | M22: 0 | N22: 0 | O22: 0 | P22: 0 | Q22: 0 | R22: 0 | S22: 185.7
D23: Namn Namn 29 | E23: 2023-04-06 | F23: 3 | G23: 3 | H23: 185.7 | I23: 0 | J23: 0 | K23: 0 | L23: 0 | M23: 0 | N23: 0 | O23: 0 | P23: 0 | Q23: 0 | R23: 0 | S23: 185.7
D24: Namn Namn 29 | E24: 2023-04-10 | F24: 2 | G24: 2 | H24: 123.8 | I24: 0 | J24: 0 | K24: 0 | L24: 0 | M24: 0 | N24: 0 | O24: 0 | P24: 0 | Q24: 0 | R24: 0 | S24: 123.8
D25: Namn Namn 29 | E25: 2023-04-02 | F25: 4 | G25: 4 | H25: 247.6 | I25: 0 | J25: 0 | K25: 0 | L25: 0 | M25: 0 | N25: 0 | O25: 0 | P25: 0 | Q25: 0 | R25: 0 | S25: 247.6
D26: Namn Namn 29 | E26: 2023-04-15 | F26: 3 | G26: 3 | H26: 185.7 | I26: 0 | J26: 0 | K26: 0 | L26: 0 | M26: 0 | N26: 0 | O26: 0 | P26: 0 | Q26: 0 | R26: 0 | S26: 185.7
D27: Namn Namn 33 | E27: 2023-04-13 | F27: 1.5 | G27: 0 | H27: 0 | I27: 0 | J27: 0 | K27: 0 | L27: 0 | M27: 0 | N27: 0 | O27: 0 | P27: 0 | Q27: 0 | R27: 0 | S27: 0
D28: Namn Namn 33 | E28: 2023-04-17 | F28: 2 | G28: 0 | H28: 0 | I28: 0 | J28: 0 | K28: 0 | L28: 0 | M28: 0 | N28: 0 | O28: 0 | P28: 0 | Q28: 0 | R28: 0 | S28: 0
D29: Namn Namn 33 | E29: 2023-04-18 | F29: 2 | G29: 0 | H29: 0 | I29: 0 | J29: 0 | K29: 0 | L29: 0 | M29: 0 | N29: 0 | O29: 0 | P29: 0 | Q29: 0 | R29: 0 | S29: 0
D30: Namn Namn 33 | E30: 2023-04-12 | F30: 1.5 | G30: 0 | H30: 0 | I30: 0 | J30: 0 | K30: 0 | L30: 0 | M30: 0 | N30: 0 | O30: 0 | P30: 0 | Q30: 0 | R30: 0 | S30: 0
D31: Namn Namn 33 | E31: 2023-04-25 | F31: 1.5 | G31: 0 | H31: 0 | I31: 0 | J31: 0 | K31: 0 | L31: 0 | M31: 0 | N31: 0 | O31: 0 | P31: 0 | Q31: 0 | R31: 0 | S31: 0
D32: Namn Namn 33 | E32: 2023-04-26 | F32: 1.5 | G32: 0 | H32: 0 | I32: 0 | J32: 0 | K32: 0 | L32: 0 | M32: 0 | N32: 0 | O32: 0 | P32: 0 | Q32: 0 | R32: 0 | S32: 0
D33: Namn Namn 33 | E33: 2023-04-28 | F33: 2 | G33: 0 | H33: 0 | I33: 0 | J33: 0 | K33: 0 | L33: 0 | M33: 0 | N33: 0 | O33: 0 | P33: 0 | Q33: 0 | R33: 0 | S33: 0
D34: Namn Namn 40 | E34: 2023-04-08 | F34: 5 | G34: 5 | H34: 309.5 | I34: 0 | J34: 0 | K34: 0 | L34: 0 | M34: 0 | N34: 0 | O34: 0 | P34: 0 | Q34: 0 | R34: 0 | S34: 309.5
D35: Namn Namn 40 | E35: 2023-04-23 | F35: 5 | G35: 5 | H35: 309.5 | I35: 0 | J35: 0 | K35: 0 | L35: 0 | M35: 0 | N35: 0 | O35: 0 | P35: 0 | Q35: 0 | R35: 0 | S35: 309.5
D36: Namn Namn 42 | E36: 2023-04-06 | F36: 1.866666667 | G36: 2 | H36: 123.8 | I36: 0 | J36: 0 | K36: 0 | L36: 0 | M36: 0 | N36: 0 | O36: 0 | P36: 0 | Q36: 0 | R36: 0 | S36: 123.8
D37: Namn Namn 42 | E37: 2023-04-10 | F37: 1.416666667 | G37: 1 | H37: 61.9 | I37: 0 | J37: 0 | K37: 0 | L37: 0 | M37: 0 | N37: 0 | O37: 0 | P37: 0 | Q37: 0 | R37: 0 | S37: 61.9
D38: Namn Namn 42 | E38: 2023-04-13 | F38: 1.583333333 | G38: 0 | H38: 0 | I38: 0 | J38: 0 | K38: 0 | L38: 0 | M38: 0 | N38: 0 | O38: 0 | P38: 0 | Q38: 0 | R38: 0 | S38: 0
D39: Namn Namn 42 | E39: 2023-04-20 | F39: 1.833333333 | G39: 0 | H39: 0 | I39: 0 | J39: 0 | K39: 0 | L39: 0 | M39: 0 | N39: 0 | O39: 0.2 | P39: 4.8 | Q39: 0 | R39: 0 | S39: 4.8
D40: Namn Namn 42 | E40: 2023-04-08 | F40: 2 | G40: 2 | H40: 123.8 | I40: 0 | J40: 0 | K40: 0 | L40: 0 | M40: 0 | N40: 0 | O40: 0 | P40: 0 | Q40: 0 | R40: 0 | S40: 123.8
D41: Namn Namn 42 | E41: 2023-04-22 | F41: 2.416666667 | G41: 2.416666667 | H41: 149.5916667 | I41: 0 | J41: 0 | K41: 0 | L41: 0 | M41: 0 | N41: 0 | O41: 0 | P41: 0 | Q41: 0 | R41: 0 | S41: 149.5916667
D42: Namn Namn 42 | E42: 2023-04-15 | F42: 3 | G42: 3 | H42: 185.7 | I42: 0 | J42: 0 | K42: 0 | L42: 0 | M42: 0 | N42: 0 | O42: 0 | P42: 0 | Q42: 0 | R42: 0 | S42: 185.7
D43: Namn Namn 42 | E43: 2023-04-05 | F43: 1.916666667 | G43: 0 | H43: 0 | I43: 0 | J43: 0 | K43: 0 | L43: 0 | M43: 0 | N43: 0 | O43: 0.25 | P43: 6 | Q43: 0 | R43: 0 | S43: 6
D44: Namn Namn 42 | E44: 2023-04-16 | F44: 2.25 | G44: 2.25 | H44: 139.275 | I44: 0 | J44: 0 | K44: 0 | L44: 0 | M44: 0 | N44: 0 | O44: 0 | P44: 0 | Q44: 0 | R44: 0 | S44: 139.275
D45: Namn Namn 42 | E45: 2023-04-29 | F45: 1.7 | G45: 1.7 | H45: 105.23 | I45: 0 | J45: 0 | K45: 0 | L45: 0 | M45: 0 | N45: 0 | O45: 0 | P45: 0 | Q45: 0 | R45: 0 | S45: 105.23
D46: Namn Namn 52 | E46: 2023-04-04 | F46: 5 | G46: 0 | H46: 0 | I46: 0 | J46: 0 | K46: 0 | L46: 0 | M46: 0 | N46: 0 | O46: 2 | P46: 48 | Q46: 0 | R46: 0 | S46: 48
D47: Namn Namn 52 | E47: 2023-04-18 | F47: 5 | G47: 0 | H47: 0 | I47: 0 | J47: 0 | K47: 0 | L47: 0 | M47: 0 | N47: 0 | O47: 2.5 | P47: 60 | Q47: 0 | R47: 0 | S47: 60
D48: Namn Namn 52 | E48: 2023-04-09 | F48: 5 | G48: 5 | H48: 309.5 | I48: 0 | J48: 0 | K48: 0 | L48: 0 | M48: 0 | N48: 0 | O48: 0 | P48: 0 | Q48: 0 | R48: 0 | S48: 309.5
D49: Namn Namn 52 | E49: 2023-04-24 | F49: 5 | G49: 0 | H49: 0 | I49: 0 | J49: 0 | K49: 0 | L49: 0 | M49: 0 | N49: 0 | O49: 2 | P49: 48 | Q49: 0 | R49: 0 | S49: 48
D50: Namn Namn 56 | E50: 2023-04-04 | F50: 4 | G50: 0 | H50: 0 | I50: 0 | J50: 0 | K50: 0 | L50: 0 | M50: 0 | N50: 0 | O50: 0 | P50: 0 | Q50: 0 | R50: 0 | S50: 0
D51: Namn Namn 56 | E51: 2023-04-18 | F51: 5 | G51: 0 | H51: 0 | I51: 0 | J51: 0 | K51: 0 | L51: 0 | M51: 0 | N51: 0 | O51: 0 | P51: 0 | Q51: 0 | R51: 0 | S51: 0
D52: Namn Namn 58 | E52: 2023-04-08 | F52: 5 | G52: 5 | H52: 309.5 | I52: 0 | J52: 0 | K52: 0 | L52: 0 | M52: 0 | N52: 0 | O52: 0 | P52: 0 | Q52: 0 | R52: 0 | S52: 309.5
D53: Namn Namn 58 | E53: 2023-04-15 | F53: 5 | G53: 5 | H53: 309.5 | I53: 0 | J53: 0 | K53: 0 | L53: 0 | M53: 0 | N53: 0 | O53: 0 | P53: 0 | Q53: 0 | R53: 0 | S53: 309.5
D54: Namn Namn 60 | E54: 2023-04-23 | F54: 4 | G54: 4 | H54: 247.6 | I54: 0 | J54: 0 | K54: 0 | L54: 0 | M54: 0 | N54: 0 | O54: 0 | P54: 0 | Q54: 0 | R54: 0 | S54: 247.6
D55: Namn Namn 60 | E55: 2023-04-16 | F55: 3 | G55: 3 | H55: 185.7 | I55: 0 | J55: 0 | K55: 0 | L55: 0 | M55: 0 | N55: 0 | O55: 0 | P55: 0 | Q55: 0 | R55: 0 | S55: 185.7
D56: Namn Namn 60 | E56: 2023-04-01 | F56: 3 | G56: 3 | H56: 185.7 | I56: 0 | J56: 0 | K56: 0 | L56: 0 | M56: 0 | N56: 0 | O56: 0 | P56: 0 | Q56: 0 | R56: 0 | S56: 185.7
D57: Namn Namn 63 | E57: 2023-04-06 | F57: 2 | G57: 0 | H57: 0 | I57: 0 | J57: 0 | K57: 0 | L57: 0 | M57: 0 | N57: 0 | O57: 0 | P57: 0 | Q57: 0 | R57: 0 | S57: 0
D58: Namn Namn 63 | E58: 2023-04-20 | F58: 4.5 | G58: 0 | H58: 0 | I58: 0 | J58: 0 | K58: 0 | L58: 0 | M58: 0 | N58: 0 | O58: 0 | P58: 0 | Q58: 0 | R58: 0 | S58: 0
D59: Namn Namn 63 | E59: 2023-04-08 | F59: 2 | G59: 0 | H59: 0 | I59: 0 | J59: 0 | K59: 0 | L59: 0 | M59: 0 | N59: 0 | O59: 0 | P59: 0 | Q59: 0 | R59: 0 | S59: 0
D60: Namn Namn 63 | E60: 2023-04-09 | F60: 2 | G60: 0 | H60: 0 | I60: 0 | J60: 0 | K60: 0 | L60: 0 | M60: 0 | N60: 0 | O60: 0 | P60: 0 | Q60: 0 | R60: 0 | S60: 0
D61: Namn Namn 63 | E61: 2023-04-07 | F61: 2 | G61: 0 | H61: 0 | I61: 0 | J61: 0 | K61: 0 | L61: 0 | M61: 0 | N61: 0 | O61: 0 | P61: 0 | Q61: 0 | R61: 0 | S61: 0
D62: Namn Namn 63 | E62: 2023-04-21 | F62: 6.5 | G62: 0 | H62: 0 | I62: 0 | J62: 0 | K62: 0 | L62: 0 | M62: 0 | N62: 0 | O62: 0 | P62: 0 | Q62: 0 | R62: 0 | S62: 0
D63: Namn Namn 69 | E63: 2023-04-13 | F63: 2 | G63: 0 | H63: 0 | I63: 0 | J63: 0 | K63: 0 | L63: 0 | M63: 0 | N63: 0 | O63: 1.833333333 | P63: 44 | Q63: 0 | R63: 0 | S63: 44
D64: Namn Namn 70 | E64: 2023-04-14 | F64: 2 | G64: 0 | H64: 0 | I64: 0 | J64: 0 | K64: 0 | L64: 0 | M64: 0 | N64: 0 | O64: 0 | P64: 0 | Q64: 0 | R64: 0 | S64: 0
D65: Namn Namn 70 | E65: 2023-04-30 | F65: 1 | G65: 1 | H65: 61.9 | I65: 0 | J65: 0 | K65: 0 | L65: 0 | M65: 0 | N65: 0 | O65: 0 | P65: 0 | Q65: 0 | R65: 0 | S65: 61.9
D66: Namn Namn 70 | E66: 2023-04-12 | F66: 2 | G66: 0 | H66: 0 | I66: 0 | J66: 0 | K66: 0 | L66: 0 | M66: 0 | N66: 0 | O66: 0 | P66: 0 | Q66: 0 | R66: 0 | S66: 0
D67: Namn Namn 70 | E67: 2023-04-26 | F67: 1.5 | G67: 0 | H67: 0 | I67: 0 | J67: 0 | K67: 0 | L67: 0 | M67: 0 | N67: 0 | O67: 0 | P67: 0 | Q67: 0 | R67: 0 | S67: 0
D68: Namn Namn 70 | E68: 2023-04-28 | F68: 1.5 | G68: 0 | H68: 0 | I68: 0 | J68: 0 | K68: 0 | L68: 0 | M68: 0 | N68: 0 | O68: 0 | P68: 0 | Q68: 0 | R68: 0 | S68: 0
D69: Namn Namn 70 | E69: 2023-04-05 | F69: 2 | G69: 0 | H69: 0 | I69: 0 | J69: 0 | K69: 0 | L69: 0 | M69: 0 | N69: 0 | O69: 0 | P69: 0 | Q69: 0 | R69: 0 | S69: 0
D70: Namn Namn 70 | E70: 2023-04-07 | F70: 2 | G70: 2 | H70: 123.8 | I70: 0 | J70: 0 | K70: 0 | L70: 0 | M70: 0 | N70: 0 | O70: 0 | P70: 0 | Q70: 0 | R70: 0 | S70: 123.8
D71: Namn Namn 70 | E71: 2023-04-21 | F71: 2 | G71: 0 | H71: 0 | I71: 0 | J71: 0 | K71: 0 | L71: 0 | M71: 0 | N71: 0 | O71: 0 | P71: 0 | Q71: 0 | R71: 0 | S71: 0
D72: Namn Namn 70 | E72: 2023-04-19 | F72: 2 | G72: 0 | H72: 0 | I72: 0 | J72: 0 | K72: 0 | L72: 0 | M72: 0 | N72: 0 | O72: 0 | P72: 0 | Q72: 0 | R72: 0 | S72: 0
D73: Namn Namn 79 | E73: 2023-04-10 | F73: 3.25 | G73: 3 | H73: 185.7 | I73: 0 | J73: 0 | K73: 0 | L73: 0 | M73: 0 | N73: 0 | O73: 0 | P73: 0 | Q73: 0 | R73: 0 | S73: 185.7
D74: Namn Namn 79 | E74: 2023-04-24 | F74: 3.75 | G74: 0 | H74: 0 | I74: 0 | J74: 0 | K74: 0 | L74: 0 | M74: 0 | N74: 0 | O74: 0.75 | P74: 18 | Q74: 0 | R74: 0 | S74: 18
D75: Namn Namn 81 | E75: 2023-04-17 | F75: 1.583333333 | G75: 0 | H75: 0 | I75: 0 | J75: 0 | K75: 0 | L75: 0 | M75: 0 | N75: 0 | O75: 0 | P75: 0 | Q75: 0 | R75: 0 | S75: 0
D76: Namn Namn 82 | E76: 2023-04-14 | F76: 2 | G76: 0 | H76: 0 | I76: 0 | J76: 0 | K76: 0 | L76: 0 | M76: 0 | N76: 0 | O76: 0 | P76: 0 | Q76: 0 | R76: 0 | S76: 0
D77: Namn Namn 82 | E77: 2023-04-01 | F77: 4 | G77: 4 | H77: 247.6 | I77: 0 | J77: 0 | K77: 0 | L77: 0 | M77: 0 | N77: 0 | O77: 0 | P77: 0 | Q77: 0 | R77: 0 | S77: 247.6
D78: Namn Namn 82 | E78: 2023-04-21 | F78: 3 | G78: 0 | H78: 0 | I78: 0 | J78: 0 | K78: 0 | L78: 0 | M78: 0 | N78: 0 | O78: 0 | P78: 0 | Q78: 0 | R78: 0 | S78: 0
D79: Namn Namn 82 | E79: 2023-04-27 | F79: 3 | G79: 0 | H79: 0 | I79: 0 | J79: 0 | K79: 0 | L79: 0 | M79: 0 | N79: 0 | O79: 0 | P79: 0 | Q79: 0 | R79: 0 | S79: 0
D80: Namn Namn 86 | E80: 2023-04-07 | F80: 2 | G80: 2 | H80: 123.8 | I80: 0 | J80: 0 | K80: 0 | L80: 0 | M80: 0 | N80: 0 | O80: 0 | P80: 0 | Q80: 0 | R80: 0 | S80: 123.8
D81: Namn Namn 87 | E81: 2023-04-06 | F81: 5 | G81: 5 | H81: 309.5 | I81: 0 | J81: 0 | K81: 0 | L81: 0 | M81: 0 | N81: 0 | O81: 0 | P81: 0 | Q81: 0 | R81: 0 | S81: 309.5
D82: Namn Namn 87 | E82: 2023-04-29 | F82: 5 | G82: 5 | H82: 309.5 | I82: 0 | J82: 0 | K82: 0 | L82: 0 | M82: 0 | N82: 0 | O82: 0 | P82: 0 | Q82: 0 | R82: 0 | S82: 309.5
D83: Namn Namn 89 | E83: 2023-04-06 | F83: 1.5 | G83: 2 | H83: 123.8 | I83: 0 | J83: 0 | K83: 0 | L83: 0 | M83: 0 | N83: 0 | O83: 0 | P83: 0 | Q83: 0 | R83: 0 | S83: 123.8
D84: Namn Namn 89 | E84: 2023-04-10 | F84: 1.5 | G84: 1 | H84: 61.9 | I84: 0 | J84: 0 | K84: 0 | L84: 0 | M84: 0 | N84: 0 | O84: 0 | P84: 0 | Q84: 0 | R84: 0 | S84: 61.9
D85: Namn Namn 89 | E85: 2023-04-02 | F85: 3.5 | G85: 3.5 | H85: 216.65 | I85: 0 | J85: 0 | K85: 0 | L85: 0 | M85: 0 | N85: 0 | O85: 0 | P85: 0 | Q85: 0 | R85: 0 | S85: 216.65
D86: Namn Namn 89 | E86: 2023-04-12 | F86: 5 | G86: 0 | H86: 0 | I86: 0 | J86: 0 | K86: 0 | L86: 0 | M86: 0 | N86: 0 | O86: 0 | P86: 0 | Q86: 0 | R86: 0 | S86: 0
D87: Namn Namn 89 | E87: 2023-04-25 | F87: 1 | G87: 0 | H87: 0 | I87: 0 | J87: 0 | K87: 0 | L87: 0 | M87: 0 | N87: 0 | O87: 0 | P87: 0 | Q87: 0 | R87: 0 | S87: 0
D88: Namn Namn 89 | E88: 2023-04-16 | F88: 2.5 | G88: 2.5 | H88: 154.75 | I88: 0 | J88: 0 | K88: 0 | L88: 0 | M88: 0 | N88: 0 | O88: 0 | P88: 0 | Q88: 0 | R88: 0 | S88: 154.75
D89: Namn Namn 89 | E89: 2023-04-19 | F89: 2 | G89: 0 | H89: 0 | I89: 0 | J89: 0 | K89: 0 | L89: 0 | M89: 0 | N89: 0 | O89: 0 | P89: 0 | Q89: 0 | R89: 0 | S89: 0
D90: Namn Namn 89 | E90: 2023-04-27 | F90: 3.5 | G90: 0 | H90: 0 | I90: 0 | J90: 0 | K90: 0 | L90: 0 | M90: 0 | N90: 0 | O90: 2.5 | P90: 60 | Q90: 0 | R90: 0 | S90: 60
D91: Namn Namn 98 | E91: 2023-04-13 | F91: 3 | G91: 0 | H91: 0 | I91: 0 | J91: 0 | K91: 0 | L91: 0 | M91: 0 | N91: 0 | O91: 0 | P91: 0 | Q91: 0 | R91: 0 | S91: 0
D92: Namn Namn 98 | E92: 2023-04-18 | F92: 3 | G92: 0 | H92: 0 | I92: 0 | J92: 0 | K92: 0 | L92: 0 | M92: 0 | N92: 0 | O92: 0 | P92: 0 | Q92: 0 | R92: 0 | S92: 0
D93: Namn Namn 98 | E93: 2023-04-20 | F93: 2 | G93: 0 | H93: 0 | I93: 0 | J93: 0 | K93: 0 | L93: 0 | M93: 0 | N93: 0 | O93: 0 | P93: 0 | Q93: 0 | R93: 0 | S93: 0
D94: Namn Namn 98 | E94: 2023-04-02 | F94: 2 | G94: 2 | H94: 123.8 | I94: 0 | J94: 0 | K94: 0 | L94: 0 | M94: 0 | N94: 0 | O94: 0 | P94: 0 | Q94: 0 | R94: 0 | S94: 123.8
D95: Namn Namn 98 | E95: 2023-04-15 | F95: 3 | G95: 3 | H95: 185.7 | I95: 0 | J95: 0 | K95: 0 | L95: 0 | M95: 0 | N95: 0 | O95: 0 | P95: 0 | Q95: 0 | R95: 0 | S95: 185.7
D96: Namn Namn 98 | E96: 2023-04-05 | F96: 6 | G96: 0 | H96: 0 | I96: 0 | J96: 0 | K96: 0 | L96: 0 | M96: 0 | N96: 0 | O96: 1 | P96: 24 | Q96: 0 | R96: 0 | S96: 24
D97: Namn Namn 98 | E97: 2023-04-09 | F97: 2 | G97: 2 | H97: 123.8 | I97: 0 | J97: 0 | K97: 0 | L97: 0 | M97: 0 | N97: 0 | O97: 0 | P97: 0 | Q97: 0 | R97: 0 | S97: 123.8
D98: Namn Namn 105 | E98: 2023-04-04 | F98: 4 | G98: 0 | H98: 0 | I98: 0 | J98: 0 | K98: 0 | L98: 0 | M98: 0 | N98: 0 | O98: 0 | P98: 0 | Q98: 0 | R98: 0 | S98: 0
D99: Namn Namn 105 | E99: 2023-04-11 | F99: 7 | G99: 7 | H99: 433.3 | I99: 0 | J99: 0 | K99: 0 | L99: 0 | M99: 0 | N99: 0 | O99: 0 | P99: 0 | Q99: 0 | R99: 0 | S99: 433.3
D100: Namn Namn 105 | E100: 2023-04-25 | F100: 5 | G100: 0 | H100: 0 | I100: 0 | J100: 0 | K100: 0 | L100: 0 | M100: 0 | N100: 0 | O100: 0 | P100: 0 | Q100: 0 | R100: 0 | S100: 0
D101: Namn Namn 105 | E101: 2023-04-07 | F101: 5 | G101: 5 | H101: 309.5 | I101: 0 | J101: 0 | K101: 0 | L101: 0 | M101: 0 | N101: 0 | O101: 0 | P101: 0 | Q101: 0 | R101: 0 | S101: 309.5
D102: Namn Namn 105 | E102: 2023-04-21 | F102: 4 | G102: 0 | H102: 0 | I102: 0 | J102: 0 | K102: 0 | L102: 0 | M102: 0 | N102: 0 | O102: 0 | P102: 0 | Q102: 0 | R102: 0 | S102: 0
D103: Namn Namn 110 | E103: 2023-04-03 | F103: 3 | G103: 0 | H103: 0 | I103: 0 | J103: 0 | K103: 0 | L103: 0 | M103: 0 | N103: 0 | O103: 0 | P103: 0 | Q103: 0 | R103: 0 | S103: 0
D104: Namn Namn 110 | E104: 2023-04-04 | F104: 4 | G104: 0 | H104: 0 | I104: 0 | J104: 0 | K104: 0 | L104: 0 | M104: 0 | N104: 0 | O104: 0 | P104: 0 | Q104: 0 | R104: 0 | S104: 0
D105: Namn Namn 110 | E105: 2023-04-11 | F105: 7 | G105: 0 | H105: 0 | I105: 0 | J105: 0 | K105: 0 | L105: 0 | M105: 0 | N105: 0 | O105: 0 | P105: 0 | Q105: 0 | R105: 0 | S105: 0
D106: Namn Namn 110 | E106: 2023-04-18 | F106: 8 | G106: 0 | H106: 0 | I106: 0 | J106: 0 | K106: 0 | L106: 0 | M106: 0 | N106: 0 | O106: 0 | P106: 0 | Q106: 0 | R106: 0 | S106: 0
D107: Namn Namn 110 | E107: 2023-04-25 | F107: 6 | G107: 0 | H107: 0 | I107: 0 | J107: 0 | K107: 0 | L107: 0 | M107: 0 | N107: 0 | O107: 0 | P107: 0 | Q107: 0 | R107: 0 | S107: 0
D108: Namn Namn 118 | E108: 2023-04-10 | F108: 4 | G108: 4 | H108: 247.6 | I108: 0 | J108: 0 | K108: 0 | L108: 0 | M108: 0 | N108: 0 | O108: 0 | P108: 0 | Q108: 0 | R108: 0 | S108: 247.6
D109: Namn Namn 118 | E109: 2023-04-02 | F109: 3 | G109: 3 | H109: 185.7 | I109: 0 | J109: 0 | K109: 0 | L109: 0 | M109: 0 | N109: 0 | O109: 0 | P109: 0 | Q109: 0 | R109: 0 | S109: 185.7
D110: Namn Namn 118 | E110: 2023-04-16 | F110: 3 | G110: 3 | H110: 185.7 | I110: 0 | J110: 0 | K110: 0 | L110: 0 | M110: 0 | N110: 0 | O110: 0 | P110: 0 | Q110: 0 | R110: 0 | S110: 185.7
D111: Namn Namn 121 | E111: 2023-04-23 | F111: 4 | G111: 4 | H111: 247.6 | I111: 0 | J111: 0 | K111: 0 | L111: 0 | M111: 0 | N111: 0 | O111: 0 | P111: 0 | Q111: 0 | R111: 0 | S111: 247.6
D112: Namn Namn 121 | E112: 2023-04-16 | F112: 8 | G112: 8 | H112: 495.2 | I112: 0 | J112: 0 | K112: 0 | L112: 0 | M112: 0 | N112: 0 | O112: 0 | P112: 0 | Q112: 0 | R112: 0 | S112: 495.2
D113: Namn Namn 123 | E113: 2023-04-08 | F113: 2.5 | G113: 2 | H113: 123.8 | I113: 0 | J113: 0 | K113: 0 | L113: 0 | M113: 0 | N113: 0 | O113: 0 | P113: 0 | Q113: 0 | R113: 0 | S113: 123.8
D114: Namn Namn 123 | E114: 2023-04-02 | F114: 1.5 | G114: 1.5 | H114: 92.85 | I114: 0 | J114: 0 | K114: 0 | L114: 0 | M114: 0 | N114: 0 | O114: 0 | P114: 0 | Q114: 0 | R114: 0 | S114: 92.85
D115: Namn Namn 123 | E115: 2023-04-15 | F115: 2 | G115: 2 | H115: 123.8 | I115: 0 | J115: 0 | K115: 0 | L115: 0 | M115: 0 | N115: 0 | O115: 0 | P115: 0 | Q115: 0 | R115: 0 | S115: 123.8
D116: Namn Namn 123 | E116: 2023-04-23 | F116: 1 | G116: 1 | H116: 61.9 | I116: 0 | J116: 0 | K116: 0 | L116: 0 | M116: 0 | N116: 0 | O116: 0 | P116: 0 | Q116: 0 | R116: 0 | S116: 61.9
D117: Namn Namn 123 | E117: 2023-04-16 | F117: 1 | G117: 1 | H117: 61.9 | I117: 0 | J117: 0 | K117: 0 | L117: 0 | M117: 0 | N117: 0 | O117: 0 | P117: 0 | Q117: 0 | R117: 0 | S117: 61.9
D118: Namn Namn 123 | E118: 2023-04-09 | F118: 1 | G118: 1 | H118: 61.9 | I118: 0 | J118: 0 | K118: 0 | L118: 0 | M118: 0 | N118: 0 | O118: 0 | P118: 0 | Q118: 0 | R118: 0 | S118: 61.9
D119: Namn Namn 123 | E119: 2023-04-01 | F119: 1 | G119: 1 | H119: 61.9 | I119: 0 | J119: 0 | K119: 0 | L119: 0 | M119: 0 | N119: 0 | O119: 0 | P119: 0 | Q119: 0 | R119: 0 | S119: 61.9
D120: Namn Namn 130 | E120: 2023-04-10 | F120: 1.5 | G120: 1 | H120: 61.9 | I120: 0 | J120: 0 | K120: 0 | L120: 0 | M120: 0 | N120: 0 | O120: 0 | P120: 0 | Q120: 0 | R120: 0 | S120: 61.9
D121: Namn Namn 130 | E121: 2023-04-08 | F121: 2 | G121: 2 | H121: 123.8 | I121: 0 | J121: 0 | K121: 0 | L121: 0 | M121: 0 | N121: 0 | O121: 0 | P121: 0 | Q121: 0 | R121: 0 | S121: 123.8
D122: Namn Namn 130 | E122: 2023-04-22 | F122: 1.5 | G122: 1.5 | H122: 92.85 | I122: 0 | J122: 0 | K122: 0 | L122: 0 | M122: 0 | N122: 0 | O122: 0 | P122: 0 | Q122: 0 | R122: 0 | S122: 92.85
D123: Namn Namn 130 | E123: 2023-04-15 | F123: 2 | G123: 2 | H123: 123.8 | I123: 0 | J123: 0 | K123: 0 | L123: 0 | M123: 0 | N123: 0 | O123: 0 | P123: 0 | Q123: 0 | R123: 0 | S123: 123.8
D124: Namn Namn 130 | E124: 2023-04-16 | F124: 1.5 | G124: 1.5 | H124: 92.85 | I124: 0 | J124: 0 | K124: 0 | L124: 0 | M124: 0 | N124: 0 | O124: 0 | P124: 0 | Q124: 0 | R124: 0 | S124: 92.85
D125: Namn Namn 130 | E125: 2023-04-09 | F125: 1.5 | G125: 1 | H125: 61.9 | I125: 0 | J125: 0 | K125: 0 | L125: 0 | M125: 0 | N125: 0 | O125: 0 | P125: 0 | Q125: 0 | R125: 0 | S125: 61.9
D126: Namn Namn 130 | E126: 2023-04-07 | F126: 1.5 | G126: 2 | H126: 123.8 | I126: 0 | J126: 0 | K126: 0 | L126: 0 | M126: 0 | N126: 0 | O126: 0 | P126: 0 | Q126: 0 | R126: 0 | S126: 123.8
D127: Namn Namn 137 | E127: 2023-04-13 | F127: 4 | G127: 0 | H127: 0 | I127: 0 | J127: 0 | K127: 0 | L127: 0 | M127: 0 | N127: 0 | O127: 0 | P127: 0 | Q127: 0 | R127: 0 | S127: 0
D128: Namn Namn 137 | E128: 2023-04-01 | F128: 5 | G128: 5 | H128: 309.5 | I128: 0 | J128: 0 | K128: 0 | L128: 0 | M128: 0 | N128: 0 | O128: 0 | P128: 0 | Q128: 0 | R128: 0 | S128: 309.5
D129: Namn Namn 137 | E129: 2023-04-07 | F129: 4 | G129: 4 | H129: 247.6 | I129: 0 | J129: 0 | K129: 0 | L129: 0 | M129: 0 | N129: 0 | O129: 0 | P129: 0 | Q129: 0 | R129: 0 | S129: 247.6
D130: Namn Namn 137 | E130: 2023-04-19 | F130: 2.5 | G130: 0 | H130: 0 | I130: 0 | J130: 0 | K130: 0 | L130: 0 | M130: 0 | N130: 0 | O130: 0 | P130: 0 | Q130: 0 | R130: 0 | S130: 0
D131: Namn Namn 137 | E131: 2023-04-27 | F131: 4 | G131: 0 | H131: 0 | I131: 0 | J131: 0 | K131: 0 | L131: 0 | M131: 0 | N131: 0 | O131: 0 | P131: 0 | Q131: 0 | R131: 0 | S131: 0
D132: Namn Namn 142 | E132: 2023-04-30 | F132: 3 | G132: 3 | H132: 185.7 | I132: 0 | J132: 0 | K132: 0 | L132: 0 | M132: 0 | N132: 0 | O132: 0 | P132: 0 | Q132: 0 | R132: 0 | S132: 185.7
D133: Namn Namn 142 | E133: 2023-04-23 | F133: 3 | G133: 3 | H133: 185.7 | I133: 0 | J133: 0 | K133: 0 | L133: 0 | M133: 0 | N133: 0 | O133: 0 | P133: 0 | Q133: 0 | R133: 0 | S133: 185.7
D134: Namn Namn 142 | E134: 2023-04-16 | F134: 3 | G134: 3 | H134: 185.7 | I134: 0 | J134: 0 | K134: 0 | L134: 0 | M134: 0 | N134: 0 | O134: 0 | P134: 0 | Q134: 0 | R134: 0 | S134: 185.7
D135: Namn Namn 142 | E135: 2023-04-09 | F135: 3 | G135: 3 | H135: 185.7 | I135: 0 | J135: 0 | K135: 0 | L135: 0 | M135: 0 | N135: 0 | O135: 0 | P135: 0 | Q135: 0 | R135: 0 | S135: 185.7
D136: Namn Namn 146 | E136: 2023-04-04 | F136: 2 | G136: 0 | H136: 0 | I136: 0 | J136: 0 | K136: 0 | L136: 0 | M136: 0 | N136: 0 | O136: 0 | P136: 0 | Q136: 0 | R136: 0 | S136: 0
D137: Namn Namn 146 | E137: 2023-04-06 | F137: 2 | G137: 2 | H137: 123.8 | I137: 0 | J137: 0 | K137: 0 | L137: 0 | M137: 0 | N137: 0 | O137: 0 | P137: 0 | Q137: 0 | R137: 0 | S137: 123.8
D138: Namn Namn 146 | E138: 2023-04-11 | F138: 2 | G138: 2 | H138: 123.8 | I138: 0 | J138: 0 | K138: 0 | L138: 0 | M138: 0 | N138: 0 | O138: 0 | P138: 0 | Q138: 0 | R138: 0 | S138: 123.8
D139: Namn Namn 146 | E139: 2023-04-13 | F139: 1.5 | G139: 0 | H139: 0 | I139: 0 | J139: 0 | K139: 0 | L139: 0 | M139: 0 | N139: 0 | O139: 0 | P139: 0 | Q139: 0 | R139: 0 | S139: 0
D140: Namn Namn 146 | E140: 2023-04-17 | F140: 2 | G140: 0 | H140: 0 | I140: 0 | J140: 0 | K140: 0 | L140: 0 | M140: 0 | N140: 0 | O140: 0 | P140: 0 | Q140: 0 | R140: 0 | S140: 0
D141: Namn Namn 146 | E141: 2023-04-08 | F141: 2.5 | G141: 2 | H141: 123.8 | I141: 0 | J141: 0 | K141: 0 | L141: 0 | M141: 0 | N141: 0 | O141: 0 | P141: 0 | Q141: 0 | R141: 0 | S141: 123.8
D142: Namn Namn 146 | E142: 2023-04-26 | F142: 1.5 | G142: 0 | H142: 0 | I142: 0 | J142: 0 | K142: 0 | L142: 0 | M142: 0 | N142: 0 | O142: 0 | P142: 0 | Q142: 0 | R142: 0 | S142: 0
D143: Namn Namn 146 | E143: 2023-04-01 | F143: 4 | G143: 4 | H143: 247.6 | I143: 0 | J143: 0 | K143: 0 | L143: 0 | M143: 0 | N143: 0 | O143: 0 | P143: 0 | Q143: 0 | R143: 0 | S143: 247.6
D144: Namn Namn 146 | E144: 2023-04-21 | F144: 1.5 | G144: 0 | H144: 0 | I144: 0 | J144: 0 | K144: 0 | L144: 0 | M144: 0 | N144: 0 | O144: 0 | P144: 0 | Q144: 0 | R144: 0 | S144: 0
D145: Namn Namn 146 | E145: 2023-04-27 | F145: 1 | G145: 0 | H145: 0 | I145: 0 | J145: 0 | K145: 0 | L145: 0 | M145: 0 | N145: 0 | O145: 0 | P145: 0 | Q145: 0 | R145: 0 | S145: 0
D146: Namn Namn 156 | E146: 2023-04-04 | F146: 1.5 | G146: 0 | H146: 0 | I146: 0 | J146: 0 | K146: 0 | L146: 0 | M146: 0 | N146: 0 | O146: 0.5 | P146: 12 | Q146: 0 | R146: 0 | S146: 12
D147: Namn Namn 156 | E147: 2023-04-18 | F147: 1.5 | G147: 0 | H147: 0 | I147: 0 | J147: 0 | K147: 0 | L147: 0 | M147: 0 | N147: 0 | O147: 0.5 | P147: 12 | Q147: 0 | R147: 0 | S147: 12
D148: Namn Namn 156 | E148: 2023-04-14 | F148: 2.75 | G148: 0 | H148: 0 | I148: 0 | J148: 0 | K148: 0 | L148: 0 | M148: 0 | N148: 0 | O148: 0 | P148: 0 | Q148: 0 | R148: 0 | S148: 0
D149: Namn Namn 156 | E149: 2023-04-12 | F149: 1.5 | G149: 0 | H149: 0 | I149: 0 | J149: 0 | K149: 0 | L149: 0 | M149: 0 | N149: 0 | O149: 0 | P149: 0 | Q149: 0 | R149: 0 | S149: 0
D150: Namn Namn 156 | E150: 2023-04-26 | F150: 1.5 | G150: 0 | H150: 0 | I150: 0 | J150: 0 | K150: 0 | L150: 0 | M150: 0 | N150: 0 | O150: 0 | P150: 0 | Q150: 0 | R150: 0 | S150: 0
D151: Namn Namn 156 | E151: 2023-04-16 | F151: 1.833333333 | G151: 1.833333333 | H151: 113.4833333 | I151: 0 | J151: 0 | K151: 0 | L151: 0 | M151: 0 | N151: 0 | O151: 0 | P151: 0 | Q151: 0 | R151: 0 | S151: 113.4833333
D152: Namn Namn 162 | E152: 2023-04-12 | F152: 3.5 | G152: 0 | H152: 0 | I152: 0 | J152: 0 | K152: 0 | L152: 0 | M152: 0 | N152: 0 | O152: 0 | P152: 0 | Q152: 0 | R152: 0 | S152: 0
D153: Namn Namn 162 | E153: 2023-04-26 | F153: 3.5 | G153: 0 | H153: 0 | I153: 0 | J153: 0 | K153: 0 | L153: 0 | M153: 0 | N153: 0 | O153: 0 | P153: 0 | Q153: 0 | R153: 0 | S153: 0
D154: Namn Namn 162 | E154: 2023-04-19 | F154: 4 | G154: 0 | H154: 0 | I154: 0 | J154: 0 | K154: 0 | L154: 0 | M154: 0 | N154: 0 | O154: 0 | P154: 0 | Q154: 0 | R154: 0 | S154: 0
D155: Namn Namn 162 | E155: 2023-04-27 | F155: 9.5 | G155: 0 | H155: 0 | I155: 0 | J155: 0 | K155: 0 | L155: 0 | M155: 0 | N155: 0 | O155: 0 | P155: 0 | Q155: 0 | R155: 0 | S155: 0
D156: Namn Namn 166 | E156: 2023-04-22 | F156: 2 | G156: 0 | H156: 0 | I156: 0 | J156: 0 | K156: 0 | L156: 0 | M156: 0 | N156: 0 | O156: 0 | P156: 0 | Q156: 0 | R156: 0 | S156: 0
D157: Namn Namn 166 | E157: 2023-04-15 | F157: 2 | G157: 0 | H157: 0 | I157: 0 | J157: 0 | K157: 0 | L157: 0 | M157: 0 | N157: 0 | O157: 0 | P157: 0 | Q157: 0 | R157: 0 | S157: 0
D158: Namn Namn 166 | E158: 2023-04-28 | F158: 2 | G158: 0 | H158: 0 | I158: 0 | J158: 0 | K158: 0 | L158: 0 | M158: 0 | N158: 0 | O158: 0 | P158: 0 | Q158: 0 | R158: 0 | S158: 0
D159: Namn Namn 166 | E159: 2023-04-23 | F159: 1 | G159: 0 | H159: 0 | I159: 0 | J159: 0 | K159: 0 | L159: 0 | M159: 0 | N159: 0 | O159: 0 | P159: 0 | Q159: 0 | R159: 0 | S159: 0
D160: Namn Namn 170 | E160: 2023-04-12 | F160: 2 | G160: 0 | H160: 0 | I160: 0 | J160: 0 | K160: 0 | L160: 0 | M160: 0 | N160: 0 | O160: 0 | P160: 0 | Q160: 0 | R160: 0 | S160: 0
D161: Namn Namn 170 | E161: 2023-04-23 | F161: 2 | G161: 2 | H161: 123.8 | I161: 0 | J161: 0 | K161: 0 | L161: 0 | M161: 0 | N161: 0 | O161: 0 | P161: 0 | Q161: 0 | R161: 0 | S161: 123.8
D162: Namn Namn 170 | E162: 2023-04-29 | F162: 2 | G162: 2 | H162: 123.8 | I162: 0 | J162: 0 | K162: 0 | L162: 0 | M162: 0 | N162: 0 | O162: 0 | P162: 0 | Q162: 0 | R162: 0 | S162: 123.8
D163: Namn Namn 170 | E163: 2023-04-09 | F163: 2 | G163: 2 | H163: 123.8 | I163: 0 | J163: 0 | K163: 0 | L163: 0 | M163: 0 | N163: 0 | O163: 0 | P163: 0 | Q163: 0 | R163: 0 | S163: 123.8
D164: Namn Namn 174 | E164: 2023-04-22 | F164: 4 | G164: 4 | H164: 247.6 | I164: 0 | J164: 0 | K164: 0 | L164: 0 | M164: 0 | N164: 0 | O164: 0 | P164: 0 | Q164: 0 | R164: 0 | S164: 247.6
D165: Namn Namn 174 | E165: 2023-04-26 | F165: 4 | G165: 0 | H165: 0 | I165: 0 | J165: 0 | K165: 0 | L165: 0 | M165: 0 | N165: 0 | O165: 0 | P165: 0 | Q165: 0 | R165: 0 | S165: 0
D166: Namn Namn 174 | E166: 2023-04-28 | F166: 4 | G166: 0 | H166: 0 | I166: 0 | J166: 0 | K166: 0 | L166: 0 | M166: 0 | N166: 0 | O166: 0 | P166: 0 | Q166: 0 | R166: 0 | S166: 0
D167: Namn Namn 174 | E167: 2023-04-24 | F167: 4 | G167: 0 | H167: 0 | I167: 0 | J167: 0 | K167: 0 | L167: 0 | M167: 0 | N167: 0 | O167: 0 | P167: 0 | Q167: 0 | R167: 0 | S167: 0
D168: Namn Namn 178 | E168: 2023-04-13 | F168: 1 | G168: 0 | H168: 0 | I168: 0 | J168: 0 | K168: 0 | L168: 0 | M168: 0 | N168: 0 | O168: 0 | P168: 0 | Q168: 0 | R168: 0 | S168: 0
D169: Namn Namn 178 | E169: 2023-04-02 | F169: 3 | G169: 3 | H169: 185.7 | I169: 0 | J169: 0 | K169: 0 | L169: 0 | M169: 0 | N169: 0 | O169: 0 | P169: 0 | Q169: 0 | R169: 0 | S169: 185.7
D170: Namn Namn 178 | E170: 2023-04-29 | F170: 4 | G170: 4 | H170: 247.6 | I170: 0 | J170: 0 | K170: 0 | L170: 0 | M170: 0 | N170: 0 | O170: 0 | P170: 0 | Q170: 0 | R170: 0 | S170: 247.6
D171: Namn Namn 178 | E171: 2023-04-21 | F171: 2 | G171: 2 | H171: 123.8 | I171: 0 | J171: 0 | K171: 0 | L171: 0 | M171: 0 | N171: 0 | O171: 0 | P171: 0 | Q171: 0 | R171: 0 | S171: 123.8
D172: Namn Namn 182 | E172: 2023-04-03 | F172: 3 | G172: 0 | H172: 0 | I172: 0 | J172: 0 | K172: 0 | L172: 0 | M172: 0 | N172: 0 | O172: 2 | P172: 48 | Q172: 0 | R172: 0 | S172: 48
D173: Namn Namn 182 | E173: 2023-04-10 | F173: 2 | G173: 2 | H173: 123.8 | I173: 0 | J173: 0 | K173: 0 | L173: 0 | M173: 0 | N173: 0 | O173: 0 | P173: 0 | Q173: 0 | R173: 0 | S173: 123.8
D174: Namn Namn 182 | E174: 2023-04-17 | F174: 3 | G174: 0 | H174: 0 | I174: 0 | J174: 0 | K174: 0 | L174: 0 | M174: 0 | N174: 0 | O174: 2 | P174: 48 | Q174: 0 | R174: 0 | S174: 48
D175: Namn Namn 182 | E175: 2023-04-28 | F175: 4 | G175: 3 | H175: 185.7 | I175: 0 | J175: 0 | K175: 0 | L175: 0 | M175: 0 | N175: 0 | O175: 0 | P175: 0 | Q175: 0 | R175: 0 | S175: 185.7
D176: Namn Namn 182 | E176: 2023-04-27 | F176: 4 | G176: 0 | H176: 0 | I176: 0 | J176: 0 | K176: 0 | L176: 0 | M176: 0 | N176: 0 | O176: 0 | P176: 0 | Q176: 0 | R176: 0 | S176: 0
D177: Namn Namn 187 | E177: 2023-04-10 | F177: 1 | G177: 1 | H177: 61.9 | I177: 0 | J177: 0 | K177: 0 | L177: 0 | M177: 0 | N177: 0 | O177: 0 | P177: 0 | Q177: 0 | R177: 0 | S177: 61.9
D178: Namn Namn 187 | E178: 2023-04-17 | F178: 1 | G178: 0 | H178: 0 | I178: 0 | J178: 0 | K178: 0 | L178: 0 | M178: 0 | N178: 0 | O178: 1 | P178: 24 | Q178: 0 | R178: 0 | S178: 24
D179: Namn Namn 187 | E179: 2023-04-20 | F179: 2 | G179: 0 | H179: 0 | I179: 0 | J179: 0 | K179: 0 | L179: 0 | M179: 0 | N179: 0 | O179: 1 | P179: 24 | Q179: 0 | R179: 0 | S179: 24
D180: Namn Namn 187 | E180: 2023-04-30 | F180: 1 | G180: 1 | H180: 61.9 | I180: 0 | J180: 0 | K180: 0 | L180: 0 | M180: 0 | N180: 0 | O180: 0 | P180: 0 | Q180: 0 | R180: 0 | S180: 61.9
D181: Namn Namn 187 | E181: 2023-04-02 | F181: 2.5 | G181: 2.5 | H181: 154.75 | I181: 0 | J181: 0 | K181: 0 | L181: 0 | M181: 0 | N181: 0 | O181: 0 | P181: 0 | Q181: 0 | R181: 0 | S181: 154.75
D182: Namn Namn 187 | E182: 2023-04-12 | F182: 1 | G182: 0 | H182: 0 | I182: 0 | J182: 0 | K182: 0 | L182: 0 | M182: 0 | N182: 0 | O182: 1 | P182: 24 | Q182: 0 | R182: 0 | S182: 24
D183: Namn Namn 187 | E183: 2023-04-05 | F183: 1 | G183: 0 | H183: 0 | I183: 0 | J183: 0 | K183: 0 | L183: 0 | M183: 0 | N183: 0 | O183: 1 | P183: 24 | Q183: 0 | R183: 0 | S183: 24
D184: Namn Namn 187 | E184: 2023-04-16 | F184: 2.5 | G184: 2.5 | H184: 154.75 | I184: 0 | J184: 0 | K184: 0 | L184: 0 | M184: 0 | N184: 0 | O184: 0 | P184: 0 | Q184: 0 | R184: 0 | S184: 154.75
D185: Namn Namn 195 | E185: 2023-04-22 | F185: 6 | G185: 6 | H185: 371.4 | I185: 0 | J185: 0 | K185: 0 | L185: 0 | M185: 0 | N185: 0 | O185: 0 | P185: 0 | Q185: 0 | R185: 0 | S185: 371.4
D186: Namn Namn 195 | E186: 2023-04-02 | F186: 6 | G186: 6 | H186: 371.4 | I186: 0 | J186: 0 | K186: 0 | L186: 0 | M186: 0 | N186: 0 | O186: 0 | P186: 0 | Q186: 0 | R186: 0 | S186: 371.4
D187: Namn Namn 197 | E187: 2023-04-06 | F187: 1 | G187: 1 | H187: 61.9 | I187: 0 | J187: 0 | K187: 0 | L187: 0 | M187: 0 | N187: 0 | O187: 0 | P187: 0 | Q187: 0 | R187: 0 | S187: 61.9
D188: Namn Namn 197 | E188: 2023-04-11 | F188: 2 | G188: 2 | H188: 123.8 | I188: 0 | J188: 0 | K188: 0 | L188: 0 | M188: 0 | N188: 0 | O188: 0 | P188: 0 | Q188: 0 | R188: 0 | S188: 123.8
D189: Namn Namn 197 | E189: 2023-04-17 | F189: 2 | G189: 0 | H189: 0 | I189: 0 | J189: 0 | K189: 0 | L189: 0 | M189: 0 | N189: 0 | O189: 0 | P189: 0 | Q189: 0 | R189: 0 | S189: 0
D190: Namn Namn 197 | E190: 2023-04-08 | F190: 2 | G190: 2 | H190: 123.8 | I190: 0 | J190: 0 | K190: 0 | L190: 0 | M190: 0 | N190: 0 | O190: 0 | P190: 0 | Q190: 0 | R190: 0 | S190: 123.8
D191: Namn Namn 197 | E191: 2023-04-02 | F191: 2 | G191: 2 | H191: 123.8 | I191: 0 | J191: 0 | K191: 0 | L191: 0 | M191: 0 | N191: 0 | O191: 0 | P191: 0 | Q191: 0 | R191: 0 | S191: 123.8
D192: Namn Namn 197 | E192: 2023-04-15 | F192: 2 | G192: 2 | H192: 123.8 | I192: 0 | J192: 0 | K192: 0 | L192: 0 | M192: 0 | N192: 0 | O192: 0 | P192: 0 | Q192: 0 | R192: 0 | S192: 123.8
D193: Namn Namn 197 | E193: 2023-04-23 | F193: 1 | G193: 1 | H193: 61.9 | I193: 0 | J193: 0 | K193: 0 | L193: 0 | M193: 0 | N193: 0 | O193: 0 | P193: 0 | Q193: 0 | R193: 0 | S193: 61.9
D194: Namn Namn 197 | E194: 2023-04-16 | F194: 2 | G194: 2 | H194: 123.8 | I194: 0 | J194: 0 | K194: 0 | L194: 0 | M194: 0 | N194: 0 | O194: 0 | P194: 0 | Q194: 0 | R194: 0 | S194: 123.8
D195: Namn Namn 197 | E195: 2023-04-09 | F195: 1 | G195: 1 | H195: 61.9 | I195: 0 | J195: 0 | K195: 0 | L195: 0 | M195: 0 | N195: 0 | O195: 0 | P195: 0 | Q195: 0 | R195: 0 | S195: 61.9
D196: Namn Namn 197 | E196: 2023-04-24 | F196: 2 | G196: 0 | H196: 0 | I196: 0 | J196: 0 | K196: 0 | L196: 0 | M196: 0 | N196: 0 | O196: 0 | P196: 0 | Q196: 0 | R196: 0 | S196: 0
D197: Namn Namn 197 | E197: 2023-04-01 | F197: 1 | G197: 1 | H197: 61.9 | I197: 0 | J197: 0 | K197: 0 | L197: 0 | M197: 0 | N197: 0 | O197: 0 | P197: 0 | Q197: 0 | R197: 0 | S197: 61.9
D198: Namn Namn 208 | E198: 2023-04-10 | F198: 2 | G198: 2 | H198: 123.8 | I198: 0 | J198: 0 | K198: 0 | L198: 0 | M198: 0 | N198: 0 | O198: 0 | P198: 0 | Q198: 0 | R198: 0 | S198: 123.8
D199: Namn Namn 208 | E199: 2023-04-18 | F199: 1 | G199: 0 | H199: 0 | I199: 0 | J199: 0 | K199: 0 | L199: 0 | M199: 0 | N199: 0 | O199: 0 | P199: 0 | Q199: 0 | R199: 0 | S199: 0
D200: Namn Namn 208 | E200: 2023-04-20 | F200: 1 | G200: 0 | H200: 0 | I200: 0 | J200: 0 | K200: 0 | L200: 0 | M200: 0 | N200: 0 | O200: 0 | P200: 0 | Q200: 0 | R200: 0 | S200: 0
D201: Namn Namn 208 | E201: 2023-04-14 | F201: 1.5 | G201: 0 | H201: 0 | I201: 0 | J201: 0 | K201: 0 | L201: 0 | M201: 0 | N201: 0 | O201: 0 | P201: 0 | Q201: 0 | R201: 0 | S201: 0
D202: Namn Namn 208 | E202: 2023-04-02 | F202: 4 | G202: 4 | H202: 247.6 | I202: 0 | J202: 0 | K202: 0 | L202: 0 | M202: 0 | N202: 0 | O202: 0 | P202: 0 | Q202: 0 | R202: 0 | S202: 247.6
D203: Namn Namn 208 | E203: 2023-04-12 | F203: 3 | G203: 0 | H203: 0 | I203: 0 | J203: 0 | K203: 0 | L203: 0 | M203: 0 | N203: 0 | O203: 0 | P203: 0 | Q203: 0 | R203: 0 | S203: 0
D204: Namn Namn 208 | E204: 2023-04-23 | F204: 1 | G204: 1 | H204: 61.9 | I204: 0 | J204: 0 | K204: 0 | L204: 0 | M204: 0 | N204: 0 | O204: 0 | P204: 0 | Q204: 0 | R204: 0 | S204: 61.9
D205: Namn Namn 208 | E205: 2023-04-05 | F205: 3.5 | G205: 0 | H205: 0 | I205: 0 | J205: 0 | K205: 0 | L205: 0 | M205: 0 | N205: 0 | O205: 0 | P205: 0 | Q205: 0 | R205: 0 | S205: 0
D206: Namn Namn 208 | E206: 2023-04-16 | F206: 2 | G206: 2 | H206: 123.8 | I206: 0 | J206: 0 | K206: 0 | L206: 0 | M206: 0 | N206: 0 | O206: 0 | P206: 0 | Q206: 0 | R206: 0 | S206: 123.8
D207: Namn Namn 208 | E207: 2023-04-09 | F207: 2 | G207: 2 | H207: 123.8 | I207: 0 | J207: 0 | K207: 0 | L207: 0 | M207: 0 | N207: 0 | O207: 0 | P207: 0 | Q207: 0 | R207: 0 | S207: 123.8
D208: Namn Namn 208 | E208: 2023-04-07 | F208: 1 | G208: 1 | H208: 61.9 | I208: 0 | J208: 0 | K208: 0 | L208: 0 | M208: 0 | N208: 0 | O208: 0 | P208: 0 | Q208: 0 | R208: 0 | S208: 61.9
... 203 more rows

Sheet ArbetstimmarPperson
D9: Bemaning | E9: Arbetstimmar | F9: OB1 | G9: OB2 | H9: OB D | I9: OB C | J9: OA1 | K9: OA2
D10: Namn Namn 341 | E10: 53.5 | F10: 13 | G10: 0 | H10: 5.5 | I10: 0 | J10: 0 | K10: 0
D11: Namn Namn 272 | E11: 47.5 | F11: 12 | G11: 0 | H11: 2 | I11: 0 | J11: 0 | K11: 0
D12: Namn Namn 265 | E12: 30 | F12: 30 | G12: 0 | H12: 0 | I12: 0 | J12: 0 | K12: 0
D13: Namn Namn 110 | E13: 28 | F13: 0 | G13: 0 | H13: 0 | I13: 0 | J13: 0 | K13: 0
D14: Namn Namn 383 | E14: 25.5 | F14: 10 | G14: 0 | H14: 0 | I14: 0 | J14: 0 | K14: 0
D15: Namn Namn 105 | E15: 25 | F15: 12 | G15: 0 | H15: 0 | I15: 0 | J15: 0 | K15: 0
D16: Namn Namn 208 | E16: 24 | F16: 12 | G16: 0 | H16: 0 | I16: 0 | J16: 0 | K16: 0
D17: Namn Namn 221 | E17: 24 | F17: 9 | G17: 0 | H17: 7 | I17: 0 | J17: 0 | K17: 0
D18: Namn Namn 298 | E18: 23 | F18: 10 | G18: 0 | H18: 2.25 | I18: 0 | J18: 0 | K18: 0
D19: Namn Namn 98 | E19: 21 | F19: 7 | G19: 0 | H19: 1 | I19: 0 | J19: 0 | K19: 0
D20: Namn Namn 16 | E20: 20.98333333 | F20: 4 | G20: 0 | H20: 5.816666667 | I20: 0 | J20: 2 | K20: 0
D21: Namn Namn 162 | E21: 20.5 | F21: 0 | G21: 0 | H21: 0 | I21: 0 | J21: 0 | K21: 0
D22: Namn Namn 89 | E22: 20.5 | F22: 9 | G22: 0 | H22: 2.5 | I22: 0 | J22: 0 | K22: 0
D23: Namn Namn 409 | E23: 20 | F23: 10 | G23: 0 | H23: 0 | I23: 0 | J23: 0 | K23: 0
D24: Namn Namn 322 | E24: 20 | F24: 11.5 | G24: 0 | H24: 1.5 | I24: 0 | J24: 0 | K24: 0
D25: Namn Namn 316 | E25: 20 | F25: 4 | G25: 0 | H25: 1 | I25: 0 | J25: 0 | K25: 0
D26: Namn Namn 423 | E26: 20 | F26: 0 | G26: 0 | H26: 0 | I26: 0 | J26: 0 | K26: 0
D27: Namn Namn 52 | E27: 20 | F27: 5 | G27: 0 | H27: 6.5 | I27: 0 | J27: 0 | K27: 0
D28: Namn Namn 146 | E28: 20 | F28: 10 | G28: 0 | H28: 0 | I28: 0 | J28: 0 | K28: 0
D29: Namn Namn 307 | E29: 20 | F29: 20 | G29: 0 | H29: 0 | I29: 0 | J29: 0 | K29: 0
D30: Namn Namn 247 | E30: 20 | F30: 12 | G30: 2 | H30: 3 | I30: 1 | J30: 0 | K30: 0
D31: Namn Namn 42 | E31: 19.98333333 | F31: 14.36666667 | G31: 0 | H31: 0.45 | I31: 0 | J31: 0 | K31: 0
D32: Namn Namn 137 | E32: 19.5 | F32: 9 | G32: 0 | H32: 0 | I32: 0 | J32: 0 | K32: 0
D33: Namn Namn 63 | E33: 19 | F33: 0 | G33: 0 | H33: 0 | I33: 0 | J33: 0 | K33: 0
D34: Namn Namn 402 | E34: 18 | F34: 4 | G34: 0 | H34: 0 | I34: 0 | J34: 0 | K34: 0
D35: Namn Namn 197 | E35: 18 | F35: 14 | G35: 0 | H35: 0 | I35: 0 | J35: 0 | K35: 0
D36: Namn Namn 182 | E36: 16 | F36: 5 | G36: 0 | H36: 4 | I36: 0 | J36: 0 | K36: 0
D37: Namn Namn 70 | E37: 16 | F37: 3 | G37: 0 | H37: 0 | I37: 0 | J37: 0 | K37: 0
D38: Namn Namn 417 | E38: 16 | F38: 16.25 | G38: 0 | H38: 0 | I38: 0 | J38: 0 | K38: 0
D39: Namn Namn 174 | E39: 16 | F39: 4 | G39: 0 | H39: 0 | I39: 0 | J39: 0 | K39: 0
D40: Namn Namn 380 | E40: 16 | F40: 4 | G40: 0 | H40: 0 | I40: 0 | J40: 0 | K40: 0
D41: Namn Namn 337 | E41: 16 | F41: 16 | G41: 0 | H41: 0 | I41: 0 | J41: 0 | K41: 0
D42: Namn Namn 310 | E42: 15 | F42: 4 | G42: 0 | H42: 3 | I42: 0 | J42: 0 | K42: 0
D43: Namn Namn 392 | E43: 15 | F43: 8 | G43: 0 | H43: 0 | I43: 0 | J43: 0 | K43: 0
D44: Namn Namn 238 | E44: 15 | F44: 0 | G44: 0 | H44: 7 | I44: 0 | J44: 0 | K44: 0
D45: Namn Namn 227 | E45: 13 | F45: 0 | G45: 0 | H45: 2.75 | I45: 0 | J45: 0 | K45: 0
D46: Namn Namn 245 | E46: 13 | F46: 0 | G46: 0 | H46: 0 | I46: 0 | J46: 0 | K46: 0
D47: Namn Namn 29 | E47: 12 | F47: 12 | G47: 0 | H47: 0 | I47: 0 | J47: 0 | K47: 0
D48: Namn Namn 362 | E48: 12 | F48: 10 | G48: 0 | H48: 0 | I48: 0 | J48: 0 | K48: 0
D49: Namn Namn 334 | E49: 12 | F49: 0 | G49: 0 | H49: 2.5 | I49: 0 | J49: 0 | K49: 0
D50: Namn Namn 33 | E50: 12 | F50: 0 | G50: 0 | H50: 0 | I50: 0 | J50: 0 | K50: 0
D51: Namn Namn 396 | E51: 12 | F51: 10 | G51: 0 | H51: 0 | I51: 0 | J51: 0 | K51: 0
D52: Namn Namn 187 | E52: 12 | F52: 7 | G52: 0 | H52: 4 | I52: 0 | J52: 0 | K52: 0
D53: Namn Namn 121 | E53: 12 | F53: 12 | G53: 0 | H53: 0 | I53: 0 | J53: 0 | K53: 0
D54: Namn Namn 232 | E54: 12 | F54: 0 | G54: 0 | H54: 0 | I54: 0 | J54: 0 | K54: 0
D55: Namn Namn 142 | E55: 12 | F55: 12 | G55: 0 | H55: 0 | I55: 0 | J55: 0 | K55: 0
D56: Namn Namn 370 | E56: 12 | F56: 1 | G56: 0 | H56: 5 | I56: 0 | J56: 2 | K56: 0
D57: Namn Namn 195 | E57: 12 | F57: 12 | G57: 0 | H57: 0 | I57: 0 | J57: 0 | K57: 0
D58: Namn Namn 82 | E58: 12 | F58: 4 | G58: 0 | H58: 0 | I58: 0 | J58: 0 | K58: 0
D59: Namn Namn 25 | E59: 12 | F59: 10 | G59: 0 | H59: 0 | I59: 0 | J59: 0 | K59: 0
D60: Namn Namn 253 | E60: 12 | F60: 4 | G60: 0 | H60: 0 | I60: 0 | J60: 0 | K60: 0
D61: Namn Namn 283 | E61: 11.75 | F61: 7.75 | G61: 0 | H61: 0 | I61: 0 | J61: 0 | K61: 0
D62: Namn Namn 130 | E62: 11.5 | F62: 11 | G62: 0 | H62: 0 | I62: 0 | J62: 0 | K62: 0
D63: Namn Namn 303 | E63: 11 | F63: 11 | G63: 0 | H63: 0 | I63: 0 | J63: 0 | K63: 0
D64: Namn Namn 261 | E64: 10.83333333 | F64: 0 | G64: 0 | H64: 4.583333333 | I64: 0 | J64: 0 | K64: 0
D65: Namn Namn 156 | E65: 10.58333333 | F65: 1.833333333 | G65: 0 | H65: 1 | I65: 0 | J65: 0 | K65: 0
D66: Namn Namn 427 | E66: 10.5 | F66: 0 | G66: 0 | H66: 0 | I66: 0 | J66: 0 | K66: 0
D67: Namn Namn 178 | E67: 10 | F67: 9 | G67: 0 | H67: 0 | I67: 0 | J67: 0 | K67: 0
D68: Namn Namn 118 | E68: 10 | F68: 10 | G68: 0 | H68: 0 | I68: 0 | J68: 0 | K68: 0
D69: Namn Namn 40 | E69: 10 | F69: 10 | G69: 0 | H69: 0 | I69: 0 | J69: 0 | K69: 0
D70: Namn Namn 87 | E70: 10 | F70: 10 | G70: 0 | H70: 0 | I70: 0 | J70: 0 | K70: 0
D71: Namn Namn 58 | E71: 10 | F71: 10 | G71: 0 | H71: 0 | I71: 0 | J71: 0 | K71: 0
D72: Namn Namn 123 | E72: 10 | F72: 9.5 | G72: 0 | H72: 0 | I72: 0 | J72: 0 | K72: 0
D73: Namn Namn 60 | E73: 10 | F73: 10 | G73: 0 | H73: 0 | I73: 0 | J73: 0 | K73: 0
D74: Namn Namn 291 | E74: 10 | F74: 6 | G74: 0 | H74: 2 | I74: 0 | J74: 0 | K74: 0
D75: Namn Namn 406 | E75: 9 | F75: 0 | G75: 0 | H75: 0 | I75: 0 | J75: 0 | K75: 0
D76: Namn Namn 56 | E76: 9 | F76: 0 | G76: 0 | H76: 0 | I76: 0 | J76: 0 | K76: 0
D77: Namn Namn 374 | E77: 8 | F77: 0 | G77: 0 | H77: 0.5 | I77: 0 | J77: 0 | K77: 0
D78: Namn Namn 296 | E78: 8 | F78: 4 | G78: 0 | H78: 0 | I78: 0 | J78: 0 | K78: 0
D79: Namn Namn 170 | E79: 8 | F79: 6 | G79: 0 | H79: 0 | I79: 0 | J79: 0 | K79: 0
D80: Namn Namn 377 | E80: 8 | F80: 7.5 | G80: 0 | H80: 0 | I80: 0 | J80: 0 | K80: 0
D81: Namn Namn 360 | E81: 8 | F81: 0 | G81: 0 | H81: 2.5 | I81: 0 | J81: 0 | K81: 0
D82: Namn Namn 236 | E82: 7 | F82: 5 | G82: 0 | H82: 0 | I82: 0 | J82: 0 | K82: 0
D83: Namn Namn 242 | E83: 7 | F83: 5 | G83: 0 | H83: 0 | I83: 0 | J83: 0 | K83: 0
D84: Namn Namn 166 | E84: 7 | F84: 0 | G84: 0 | H84: 0 | I84: 0 | J84: 0 | K84: 0
D85: Namn Namn 79 | E85: 7 | F85: 3 | G85: 0 | H85: 0.75 | I85: 0 | J85: 0 | K85: 0
D86: Namn Namn 286 | E86: 5 | F86: 1 | G86: 0 | H86: 0 | I86: 0 | J86: 0 | K86: 0
D87: Namn Namn 368 | E87: 4.25 | F87: 0 | G87: 0 | H87: 0 | I87: 0 | J87: 0 | K87: 0
D88: Namn Namn 252 | E88: 4 | F88: 4 | G88: 0 | H88: 0 | I88: 0 | J88: 0 | K88: 0
D89: Namn Namn 69 | E89: 2 | F89: 0 | G89: 0 | H89: 1.833333333 | I89: 0 | J89: 0 | K89: 0
D90: Namn Namn 86 | E90: 2 | F90: 2 | G90: 0 | H90: 0 | I90: 0 | J90: 0 | K90: 0
D91: Namn Namn 81 | E91: 1.583333333 | F91: 0 | G91: 0 | H91: 0 | I91: 0 | J91: 0 | K91: 0
D92: Grand Total | E92: 1203.966667 | F92: 539.7 | G92: 2 | H92: 79.93333333 | I92: 1 | J92: 4 | K92: 0

Sheet ArbetstimmarDatum
D9: _Datum | E9: Arbetstimmar | F9: OD | G9: OC | H9: OB1 | I9: OB2 | J9: OA1 | K9: OA2
D10: 2023-04-03 | E10: 25.41666667 | F10: 3.416666667 | G10: 0 | H10: 0 | I10: 0 | J10: 0 | K10: 0
D11: 2023-04-04 | E11: 57.83333333 | F11: 8.333333333 | G11: 0 | H11: 0 | I11: 0 | J11: 0 | K11: 0
D12: 2023-04-06 | E12: 32.7 | F12: 0 | G12: 0 | H12: 27 | I12: 0 | J12: 4 | K12: 0
D13: 2023-04-10 | E13: 31.58333333 | F13: 0 | G13: 0 | H13: 30 | I13: 0 | J13: 0 | K13: 0
D14: 2023-04-11 | E14: 34.91666667 | F14: 0 | G14: 0 | H14: 27 | I14: 0 | J14: 0 | K14: 0
D15: 2023-04-13 | E15: 26.16666667 | F15: 4.666666667 | G15: 0 | H15: 0 | I15: 0 | J15: 0 | K15: 0
D16: 2023-04-17 | E16: 33.5 | F16: 5.916666667 | G16: 0 | H16: 0 | I16: 0 | J16: 0 | K16: 0
D17: 2023-04-18 | E17: 72.16666667 | F17: 9.166666667 | G17: 0 | H17: 0 | I17: 0 | J17: 0 | K17: 0
D18: 2023-04-20 | E18: 32.23333333 | F18: 4.1 | G18: 0 | H18: 0 | I18: 0 | J18: 0 | K18: 0
D19: 2023-04-08 | E19: 37.75 | F19: 0 | G19: 0 | H19: 35 | I19: 0 | J19: 0 | K19: 0
D20: 2023-04-14 | E20: 20.25 | F20: 0 | G20: 0 | H20: 1 | I20: 0 | J20: 0 | K20: 0
D21: 2023-04-22 | E21: 49.41666667 | F21: 0 | G21: 0 | H21: 47.41666667 | I21: 0 | J21: 0 | K21: 0
D22: 2023-04-30 | E22: 30.5 | F22: 0 | G22: 0 | H22: 30 | I22: 0 | J22: 0 | K22: 0
D23: 2023-04-02 | E23: 55.25 | F23: 0 | G23: 0 | H23: 55.25 | I23: 0 | J23: 0 | K23: 0
D24: 2023-04-15 | E24: 49.75 | F24: 0 | G24: 0 | H24: 47.75 | I24: 0 | J24: 0 | K24: 0
D25: 2023-04-12 | E25: 35.91666667 | F25: 3.416666667 | G25: 0 | H25: 0 | I25: 0 | J25: 0 | K25: 0
D26: 2023-04-25 | E26: 44.75 | F26: 2.75 | G26: 0 | H26: 0 | I26: 0 | J26: 0 | K26: 0
D27: 2023-04-26 | E27: 60.58333333 | F27: 8.083333333 | G27: 0 | H27: 0 | I27: 0 | J27: 0 | K27: 0
D28: 2023-04-28 | E28: 39.75 | F28: 0 | G28: 0 | H28: 8.5 | I28: 1 | J28: 0 | K28: 0
D29: 2023-04-23 | E29: 41 | F29: 0 | G29: 0 | H29: 40 | I29: 0 | J29: 0 | K29: 0
D30: 2023-04-05 | E30: 39.91666667 | F30: 7.75 | G30: 0 | H30: 0 | I30: 0 | J30: 0 | K30: 0
D31: 2023-04-16 | E31: 66.75 | F31: 0 | G31: 0 | H31: 66.75 | I31: 0 | J31: 0 | K31: 0
D32: 2023-04-29 | E32: 29.03333333 | F32: 0 | G32: 0 | H32: 28.03333333 | I32: 1 | J32: 0 | K32: 0
D33: 2023-04-09 | E33: 45.5 | F33: 0 | G33: 0 | H33: 43 | I33: 0 | J33: 0 | K33: 0
D34: 2023-04-24 | E34: 32.75 | F34: 6.75 | G34: 0 | H34: 0 | I34: 0 | J34: 0 | K34: 0
D35: 2023-04-01 | E35: 21.5 | F35: 0 | G35: 0 | H35: 21.5 | I35: 0 | J35: 0 | K35: 0
D36: 2023-04-07 | E36: 27 | F36: 0 | G36: 0 | H36: 25 | I36: 0 | J36: 0 | K36: 0
D37: 2023-04-21 | E37: 43.5 | F37: 0 | G37: 0 | H37: 6.5 | I37: 0 | J37: 0 | K37: 0
D38: 2023-04-19 | E38: 38.58333333 | F38: 3.833333333 | G38: 0 | H38: 0 | I38: 0 | J38: 0 | K38: 0
D39: 2023-04-27 | E39: 48 | F39: 11.75 | G39: 1 | H39: 0 | I39: 0 | J39: 0 | K39: 0

Sheet Admin
AE1: Lön | AN1: Helgdagar | BK1: Ingen OB för timlön över: | BM1: Namn Ignore List:
AE2: ÖvertidGräns | AF2: 8 | AG2: annan lön | BD2: =Manual_Uppdrag!C13 -> 2024-05-01 | BF2: =MONTH(BD2) -> 5 | BK2: 127 | BM2: Charlotta Wirén
AE3: OB1 | AF3: UppdragsSpecifik | AN3: Datum | AO3: Namn | AP3: Vecka | AQ3: Veckodag | AR3: Dag på året | AT3: Starttid | AU3: Sluttid | AV3: Helg | AW3: OB-typ | AZ3: Input | BA3: HoursNum | BB3: Min
AN4: 2017-01-01 | AO4: Nyårsdagen | AP4: 52 | AQ4: Söndag | AR4: 1 | AT4: 2016-12-30T19:00:00 | AU4: 2017-02-02T07:00:00 | AV4: Nyårsafton | AW4: OB3 | AZ4: 0min | BA4: 0 | BB4: 0 | BD4: =YEAR(BD2)& "-"&MONTH(BD2)&"-"&DAY(31) -> 2024-5-31 | BE4: =TEXT(BD2,"YYYY-MM") -> YYYY-00
AE5: Övertid 1 | AF5: Mån-Fre 06:20 om pass> 8 h | AG5: 85% av grundlön | AN5: 2017-01-06 | AO5: Trettondedag jul | AP5: 1 | AQ5: Fredag | AR5: 6 | AT5: 2017-01-05T19:00:00 | AU5: 2017-01-09T07:00:00 | AV5: Trettondagen | AW5: OB2 | AZ5: 15min | BA5: 0.25 | BB5: 15 | BD5: =+BD4-1 -> 2024-05-30
AE6: Övertid 2 | AF6: Mån Fre 20-06 plus helger | AG6: 141,6% av grundlön | AN6: 2017-04-14 | AO6: Långfredagen | AP6: 15 | AQ6: Fredag | AR6: 104 | AT6: 2017-04-13T19:00:00 | AU6: 2017-04-18T07:00:00 | AV6: Långfredagen & Annandag påsk | AW6: OB3 | AZ6: 30min | BA6: 0.5 | BB6: 30 | BD6: =+BD5-1 -> 2024-05-29
AN7: 2017-04-16 | AO7: Påskdagen | AP7: 15 | AQ7: Söndag | AR7: 106 | AT7: 2017-04-30T19:00:00 | AU7: 2017-05-02T07:00:00 | AV7: Första maj | AW7: OB2 | AZ7: 45min | BA7: 0.75 | BB7: 45 | BD7: 2024-05-28
AN8: 2017-04-17 | AO8: Annandag påsk | AP8: 16 | AQ8: Måndag | AR8: 107 | AT8: 2017-05-24T19:00:00 | AU8: 2017-05-26T07:00:00 | AV8: Kristi Himmelsfärd | AW8: OB2 | AZ8: 60min | BA8: 1 | BB8: 60 | BD8: 2024-05-27
AE9: Kollektivavtal - LO (internt) | AG9: per timme | AH9: månadslön | AI9: månadsarbetstid | AN9: 2017-05-01 | AO9: Första maj | AP9: 18 | AQ9: Måndag | AR9: 121 | AT9: 2017-06-02T19:00:00 | AU9: 2017-06-05T07:00:00 | AV9: Pingstafton | AW9: OB3 | AZ9: 75min | BA9: 1.25 | BB9: 75 | BD9: 2024-05-26
AE10: minimilön nyanställd (6 mån) | AG10: =AH10/AI10 -> 100.7758621 | AH10: 17535 | AI10: 174 | AN10: 2017-05-25 | AO10: Kristi himmelfärdsdag | AP10: 21 | AQ10: Torsdag | AR10: 145 | AT10: 2017-06-05 | AU10: 2017-06-06T07:00:00 | AV10: Klämdag söndag - Sveriges nationaldag | AW10: OB2 | AZ10: 90min | BA10: 1.5 | BB10: 90 | BD10: 2024-05-25
AE11: minimilön övriga | AG11: =AH11/AI11 -> 106.2931034 | AH11: 18495 | AI11: 174 | AK11: 106.8 | AN11: 2017-06-04 | AO11: Pingstdagen | AP11: 22 | AQ11: Söndag | AR11: 155 | AT11: 2017-06-05T19:00:00 | AU11: 2017-06-07T07:00:00 | AV11: Sveriges Nationaldag | AW11: OB2 | AZ11: 105min | BA11: 1.75 | BB11: 105 | BD11: 2024-05-24
AE12: OB1 | AF12: mån fre 18-23 | AG12: 21.48 | AN12: 2017-06-06 | AO12: Sveriges nationaldag | AP12: 23 | AQ12: Tisdag | AR12: 157 | AT12: 2017-06-22T19:00:00 | AU12: 2017-06-26T07:00:00 | AV12: Midsommarafton | AW12: OB3 | AZ12: 120min | BA12: 2 | BB12: 120 | BD12: 2024-05-23
AE13: OB2 | AF13: Mån fre 23-07:00, mån 00:00-07:00 | AG13: 43.03 | AN13: 2017-06-24 | AO13: Midsommar | AP13: 25 | AQ13: Lördag | AR13: 175 | AT13: 2017-12-23T19:00:00 | AU13: 2017-12-27T07:00:00 | AV13: Julafton | AW13: OB3 | AZ13: 135min | BA13: 2.25 | BB13: 135 | BD13: 2024-05-22
AE14: OB3 | AF14: Lör-Sön 00:00 plus helgdagar | AG14: 86.03 | AN14: 2017-11-04 | AO14: Alla helgons dag | AP14: 44 | AQ14: Lördag | AR14: 308 | AT14: 2017-12-30T19:00:00 | AU14: 2017-01-02T07:00:00 | AV14: Nyårsafton | AW14: OB3 | AZ14: 150min | BA14: 2.5 | BB14: 150 | BD14: 2024-05-21
AN15: 2017-12-25 | AO15: Juldagen | AP15: 52 | AQ15: Måndag | AR15: 359 | AZ15: 165min | BA15: 2.75 | BB15: 165 | BD15: 2024-05-20
AE16: Kollektivavtal - Kommunikation (uppdrag 5,66,284,293) | AN16: 2017-12-26 | AO16: Annandag jul | AP16: 52 | AQ16: Tisdag | AR16: 360 | AZ16: 180min | BA16: 3 | BB16: 180 | BD16: 2024-05-19
AE17: GFL natt | AF17: Uppdrag 5,66,293 | AG17: 144.99 | AH17: =AG17*AI17 -> 25373.25 | AI17: 175 | AZ17: 00:00:00 | BA17: 0 | BB17: 0 | BD17: 2024-05-18
AE18: GFL dag | AF18: Uppdrag 284 | AG18: 136.63 | AH18: =AG18*AI18 -> 23910.25 | AI18: 175 | AZ18: 00:15:00 | BA18: 0.25 | BB18: 15 | BD18: 2024-05-17
AE19: OB1 | AF19: Mån - Tor 19:00-22:00 | AG19: 20.3 | AZ19: =AZ18+TIME(0,15,0) -> 00:30:00 | BA19: 0.5 | BB19: 30 | BD19: 2024-05-16
AE20: OB2 | AF20: Se kommentar | AG20: 45.39 | AZ20: =AZ19+TIME(0,15,0) -> 00:45:00 | BA20: 0.75 | BB20: 45 | BD20: 2024-05-15
AE21: OB3 | AF21: Se kommentar | AG21: 101.76 | AZ21: 01:00:00 | BA21: 1 | BB21: 60 | BD21: 2024-05-14
AE22: Övertid 1 | AF22: Helgfri mån-fre 06:00-20:00 | AG22: =AH18/94 -> 254.3643617 | AZ22: 01:15:00 | BA22: 1.25 | BB22: 75 | BD22: 2024-05-13
AE23: Övertid 2 | AF23: Övr övertid | AG23: =AH18/72 -> 332.0868056 | AZ23: 01:30:00 | BA23: 1.5 | BB23: 90 | BD23: 2024-05-12
AZ24: 01:45:00 | BA24: 1.75 | BB24: 105 | BD24: 2024-05-11
AE25: Priser | AG25: GFL | AH25: Påslag | AI25: Pris | AZ25: 02:00:00 | BA25: 2 | BB25: 120 | BD25: 2024-05-10
AE26: GFL dag | AG26: =AG18 -> 136.63 | AH26: 2.08 | AI26: =AH26*AG26 -> 284.1904 | AZ26: 02:15:00 | BA26: 2.25 | BB26: 135 | BD26: 2024-05-09
AE27: =AE19 -> OB1 | AG27: 20.3 | AH27: 1.6 | AI27: 32.48 | AZ27: 02:30:00 | BA27: 2.5 | BB27: 150 | BD27: 2024-05-08
AE28: =AE20 -> OB2 | AG28: 45.39 | AH28: 1.6 | AI28: 72.624 | AZ28: 02:45:00 | BA28: 2.75 | BB28: 165 | BD28: 2024-05-07
AE29: =AE21 -> OB3 | AG29: 101.76 | AH29: 1.6 | AI29: 162.816 | AZ29: 03:00:00 | BA29: 3 | BB29: 180 | BD29: 2024-05-06
AE30: =AE22 -> Övertid 1 | AG30: 254.3643617 | AH30: 1.6 | AI30: 406.9829787 | AZ30: Fyll i nya här | BD30: 2024-05-05
AE31: =AE23 -> Övertid 2 | AG31: 332.0868056 | AH31: 1.6 | AI31: 531.3388889 | BD31: 2024-05-04
BD32: 2024-05-03
BD33: 2024-05-02
BD34: 2024-05-01
AE60: Kalkyl
AE62: Artikel | AF62: Bruttolön | AG62: Kostnadsfaktor | AH62: Kostnadspåslag | AI62: Kostnad | AJ62: Faktorpåslag | AK62: Pris | AL62: Vinst | AM62: Vinst %
AE63: Grundlön dag | AF63: =AG18 -> 136.63 | AG63: 0.55 | AH63: =AF63*AG63 -> 75.1465 | AI63: =AH63+AF63 -> 211.7765 | AJ63: 2.08 | AK63: =AJ63*AF63 -> 284.1904 | AL63: =AK63-AI63 -> 72.4139 | AM63: =AL63/AK63 -> 0.2548076923
AE64: Grundlön natt | AF64: =AG17 -> 144.99 | AG64: 0.55 | AH64: 79.7445 | AI64: 224.7345 | AJ64: 2.08 | AK64: 301.5792 | AL64: 76.8447 | AM64: 0.2548076923
AE65: Grundlön teamleader natt | AF65: =AG17 -> 144.99 | AG65: 0.55 | AH65: 79.7445 | AI65: 224.7345 | AJ65: 2.28 | AK65: 330.5772 | AL65: 105.8427 | AM65: 0.3201754386
AE66: =AE19 -> OB1 | AF66: =AG19 -> 20.3 | AG66: 0.55 | AH66: 11.165 | AI66: 31.465 | AJ66: 1.6 | AK66: 32.48 | AL66: 1.015 | AM66: 0.03125
AE67: =AE20 -> OB2 | AF67: =AG20 -> 45.39 | AG67: 0.55 | AH67: 24.9645 | AI67: 70.3545 | AJ67: 1.6 | AK67: 72.624 | AL67: 2.2695 | AM67: 0.03125
AE68: =AE21 -> OB3 | AF68: =AG21 -> 101.76 | AG68: 0.55 | AH68: 55.968 | AI68: 157.728 | AJ68: 1.6 | AK68: 162.816 | AL68: 5.088 | AM68: 0.03125
AE69: =AE22 -> Övertid 1 | AF69: =AG22 -> 254.3643617 | AG69: 0.55 | AH69: 139.9003989 | AI69: 394.2647606 | AJ69: 1.6 | AK69: 406.9829787 | AL69: 12.71821809 | AM69: 0.03125
AE70: =AE23 -> Övertid 2 | AF70: =AG23 -> 332.0868056 | AG70: 0.55 | AH70: 182.6477431 | AI70: 514.7345486 | AJ70: 1.6 | AK70: 531.3388889 | AL70: 16.60434028 | AM70: 0.03125
AE72: Scenario april dagens priser.
AD74: Uppdrag | AE74: Artikel | AF74: Antal | AG74: Kostnad | AH74: Pris | AI74: Vinst | AJ74: Nytt pris | AK74: Ny vinst
AD75: 5 | AE75: Grundlön | AF75: 617.75 | AG75: =AI64 -> 224.7345 | AH75: =AK64 -> 301.5792 | AI75: =(AH75-AG75)*AF75 -> 47470.81342 | AJ75: =(AG75/(1+$AG$64))*1.9 -> 275.481 | AK75: =(AJ75-AG75)*AF75 -> 31348.65037
AD76: 5 | AE76: OB1 | AF76: 186.25 | AG76: =AI66 -> 31.465 | AH76: =AK66 -> 32.48 | AI76: =(AH76-AG76)*AF76 -> 189.04375 | AJ76: =(AG76/(1+$AG$64))*1.9 -> 38.57 | AK76: =(AJ76-AG76)*AF76 -> 1323.30625
AD77: 5 | AE77: Ob2 | AF77: 431.5 | AG77: =AI67 -> 70.3545 | AH77: =AK67 -> 72.624 | AI77: =(AH77-AG77)*AF77 -> 979.28925 | AJ77: 86.241 | AK77: 6855.02475
AD78: 66 | AE78: Grundlön | AF78: 128.5 | AG78: =AI65 -> 224.7345 | AH78: =AK65 -> 330.5772 | AI78: =(AH78-AG78)*AF78 -> 13600.78695 | AJ78: 275.481 | AK78: 6520.92525
AD79: 66 | AE79: OB1 | AF79: 31.5 | AG79: =AG76 -> 31.465 | AH79: =AK66 -> 32.48 | AI79: 31.9725 | AJ79: 38.57 | AK79: 223.8075
AD80: 66 | AE80: Ob2 | AF80: 97 | AG80: =AG77 -> 70.3545 | AH80: =AK67 -> 72.624 | AI80: 220.1415 | AJ80: =(AG80/(1+$AG$64))*1.9 -> 86.241 | AK80: 1540.9905
AD81: 284 | AE81: Grundlön | AF81: 371.5 | AG81: =AI63 -> 211.7765 | AH81: =AK63 -> 284.1904 | AI81: 26901.76385 | AJ81: 259.597 | AK81: 17765.31575
AD82: 284 | AE82: Övertid1 | AF82: 7.5 | AG82: =AI69 -> 394.2647606 | AH82: =AK69 -> 406.9829787 | AI82: 95.38663564 | AJ82: 483.2922872 | AK82: 667.7064495
AD83: 293 | AE83: Grundlön | AF83: 37.75 | AG83: =AI64 -> 224.7345 | AH83: =AK64 -> 301.5792 | AI83: 2900.887425 | AJ83: 275.481 | AK83: 1915.680375
AD84: 293 | AE84: OB1 | AF84: 4.75 | AG84: =AI66 -> 31.465 | AH84: =AK66 -> 32.48 | AI84: 4.82125 | AJ84: 38.57 | AK84: 33.74875
AD85: 293 | AE85: Ob2 | AF85: 29 | AG85: =AI67 -> 70.3545 | AH85: =AK67 -> 72.624 | AI85: 65.8155 | AJ85: 86.241 | AK85: 460.7085
AI86: =SUM(AI75:AI85) -> 92460.72204 | AK86: =SUM(AK75:AK85) -> 68655.86445
AK87: =AK86/AI86 -> 0.7425408642

Sheet OB_Working
C1: Starting day | D1: 2023-04-28 | F1: ThisDay | G1: 6
C2: StartingTime | D2: 13:00 | F2: StartHour | G2: 13 | H2: StartMinute | I2: 0
C3: EndTime | D3: 16:00 | F3: EndHour | G3: 16 | H3: EndMinute | I3: 0
C4: BreakTime (Hour)
C5: Contract | D5: YYYYMMDD-NNNN
C6: OD | D6: 0 | E6: 0 | F6: OA1 | G6: 0 | H6: 0
C7: OC | D7: 0 | E7: 0 | F7: OA2 | G7: 0 | H7: 0
C8: OB1 | D8: 0 | E8: 0
C9: OB2 | D9: 0 | E9: 0
B11: DayNr | C11: Hour | D11: Kontrakt_1 | E11: OB_Pay | T11: Actual Holiday | U11: Holiday Name | V11: Holidays | W11: WeekNum | X11: Hours | Y11: OB-typ | Z11: OB_Pay
A12: Monday | B12: 2 | C12: 24 | D12: OB1 | E12: 61.9 | U12: Nyårsdagen | V12: 2021-12-31 | W12: 6 | X12: 24 | Y12: OB1 | Z12: 61.9
A13: Monday | B13: 2 | C13: 1 | D13: OB1 | E13: 61.9 | U13: Nyårsdagen | V13: 2021-12-31 | W13: 6 | X13: 1 | Y13: OB1 | Z13: 61.9
A14: Monday | B14: 2 | C14: 2 | D14: OB1 | E14: 61.9 | U14: Nyårsdagen | V14: 2021-12-31 | W14: 6 | X14: 2 | Y14: OB1 | Z14: 61.9
A15: Monday | B15: 2 | C15: 3 | D15: OB1 | E15: 61.9 | U15: Nyårsdagen | V15: 2021-12-31 | W15: 6 | X15: 3 | Y15: OB1 | Z15: 61.9
A16: Monday | B16: 2 | C16: 4 | D16: OB1 | E16: 61.9 | U16: Nyårsdagen | V16: 2021-12-31 | W16: 6 | X16: 4 | Y16: OB1 | Z16: 61.9
A17: Monday | B17: 2 | C17: 5 | D17: OB1 | E17: 61.9 | U17: Nyårsdagen | V17: 2021-12-31 | W17: 6 | X17: 5 | Y17: OB1 | Z17: 61.9
A18: Monday | B18: 2 | C18: 6 | D18: OB1 | E18: 61.9 | U18: Nyårsdagen | V18: 2021-12-31 | W18: 6 | X18: 6 | Y18: OB1 | Z18: 61.9
A19: Monday | B19: 2 | C19: 7 | U19: Nyårsdagen | V19: 2021-12-31 | W19: 6 | X19: 7 | Y19: OB1 | Z19: 61.9
A20: Monday | B20: 2 | C20: 8 | U20: Nyårsdagen | V20: 2021-12-31 | W20: 6 | X20: 8 | Y20: OB1 | Z20: 61.9
A21: Monday | B21: 2 | C21: 9 | U21: Nyårsdagen | V21: 2021-12-31 | W21: 6 | X21: 9 | Y21: OB1 | Z21: 61.9
A22: Monday | B22: 2 | C22: 10 | U22: Nyårsdagen | V22: 2021-12-31 | W22: 6 | X22: 10 | Y22: OB1 | Z22: 61.9
A23: Monday | B23: 2 | C23: 11 | U23: Nyårsdagen | V23: 2021-12-31 | W23: 6 | X23: 11 | Y23: OB1 | Z23: 61.9
A24: Monday | B24: 2 | C24: 12 | U24: Nyårsdagen | V24: 2021-12-31 | W24: 6 | X24: 12 | Y24: OB1 | Z24: 61.9
A25: Monday | B25: 2 | C25: 13 | U25: Nyårsdagen | V25: 2021-12-31 | W25: 6 | X25: 13 | Y25: OB1 | Z25: 61.9
A26: Monday | B26: 2 | C26: 14 | U26: Nyårsdagen | V26: 2021-12-31 | W26: 6 | X26: 14 | Y26: OB1 | Z26: 61.9
A27: Monday | B27: 2 | C27: 15 | U27: Nyårsdagen | V27: 2021-12-31 | W27: 6 | X27: 15 | Y27: OB1 | Z27: 61.9
A28: Monday | B28: 2 | C28: 16 | U28: Nyårsdagen | V28: 2021-12-31 | W28: 6 | X28: 16 | Y28: OB1 | Z28: 61.9
A29: Monday | B29: 2 | C29: 17 | U29: Nyårsdagen | V29: 2021-12-31 | W29: 6 | X29: 17 | Y29: OB1 | Z29: 61.9
A30: Monday | B30: 2 | C30: 18 | U30: Nyårsdagen | V30: 2021-12-31 | W30: 6 | X30: 18 | Y30: OA1 | Z30: 118.8
A31: Monday | B31: 2 | C31: 19 | D31: OD | E31: 24 | U31: Nyårsdagen | V31: 2021-12-31 | W31: 6 | X31: 19 | Y31: OA1 | Z31: 118.8
A32: Monday | B32: 2 | C32: 20 | D32: OD | E32: 24 | U32: Nyårsdagen | V32: 2021-12-31 | W32: 6 | X32: 20 | Y32: OA1 | Z32: 118.8
A33: Monday | B33: 2 | C33: 21 | D33: OD | E33: 24 | U33: Nyårsdagen | V33: 2021-12-31 | W33: 6 | X33: 21 | Y33: OA1 | Z33: 118.8
A34: Monday | B34: 2 | C34: 22 | D34: OC | E34: 53 | U34: Nyårsdagen | V34: 2021-12-31 | W34: 6 | X34: 22 | Y34: OA1 | Z34: 118.8
A35: Monday | B35: 2 | C35: 23 | D35: OC | E35: 53 | U35: Nyårsdagen | V35: 2021-12-31 | W35: 6 | X35: 23 | Y35: OA1 | Z35: 118.8
A36: Tuesday | B36: 3 | C36: 24 | D36: OC | E36: 53 | T36: Nyårsdagen | U36: Nyårsdagen | V36: 2022-01-01 | W36: 7 | X36: 24 | Y36: OB1 | Z36: 61.9
A37: Tuesday | B37: 3 | C37: 1 | D37: OC | E37: 53 | T37: Nyårsdagen | U37: Nyårsdagen | V37: 2022-01-01 | W37: 7 | X37: 1 | Y37: OA2 | Z37: 142.6
A38: Tuesday | B38: 3 | C38: 2 | D38: OC | E38: 53 | T38: Nyårsdagen | U38: Nyårsdagen | V38: 2022-01-01 | W38: 7 | X38: 2 | Y38: OA2 | Z38: 142.6
A39: Tuesday | B39: 3 | C39: 3 | D39: OC | E39: 53 | T39: Nyårsdagen | U39: Nyårsdagen | V39: 2022-01-01 | W39: 7 | X39: 3 | Y39: OA2 | Z39: 142.6
A40: Tuesday | B40: 3 | C40: 4 | D40: OC | E40: 53 | T40: Nyårsdagen | U40: Nyårsdagen | V40: 2022-01-01 | W40: 7 | X40: 4 | Y40: OA2 | Z40: 142.6
A41: Tuesday | B41: 3 | C41: 5 | D41: OC | E41: 53 | T41: Nyårsdagen | U41: Nyårsdagen | V41: 2022-01-01 | W41: 7 | X41: 5 | Y41: OA2 | Z41: 142.6
A42: Tuesday | B42: 3 | C42: 6 | T42: Nyårsdagen | U42: Nyårsdagen | V42: 2022-01-01 | W42: 7 | X42: 6 | Y42: OA2 | Z42: 142.6
A43: Tuesday | B43: 3 | C43: 7 | T43: Nyårsdagen | U43: Nyårsdagen | V43: 2022-01-01 | W43: 7 | X43: 7 | Y43: OB1 | Z43: 61.9
A44: Tuesday | B44: 3 | C44: 8 | T44: Nyårsdagen | U44: Nyårsdagen | V44: 2022-01-01 | W44: 7 | X44: 8 | Y44: OB1 | Z44: 61.9
A45: Tuesday | B45: 3 | C45: 9 | T45: Nyårsdagen | U45: Nyårsdagen | V45: 2022-01-01 | W45: 7 | X45: 9 | Y45: OB1 | Z45: 61.9
A46: Tuesday | B46: 3 | C46: 10 | T46: Nyårsdagen | U46: Nyårsdagen | V46: 2022-01-01 | W46: 7 | X46: 10 | Y46: OB1 | Z46: 61.9
A47: Tuesday | B47: 3 | C47: 11 | T47: Nyårsdagen | U47: Nyårsdagen | V47: 2022-01-01 | W47: 7 | X47: 11 | Y47: OB1 | Z47: 61.9
A48: Tuesday | B48: 3 | C48: 12 | T48: Nyårsdagen | U48: Nyårsdagen | V48: 2022-01-01 | W48: 7 | X48: 12 | Y48: OB1 | Z48: 61.9
A49: Tuesday | B49: 3 | C49: 13 | T49: Nyårsdagen | U49: Nyårsdagen | V49: 2022-01-01 | W49: 7 | X49: 13 | Y49: OB1 | Z49: 61.9
A50: Tuesday | B50: 3 | C50: 14 | T50: Nyårsdagen | U50: Nyårsdagen | V50: 2022-01-01 | W50: 7 | X50: 14 | Y50: OB1 | Z50: 61.9
A51: Tuesday | B51: 3 | C51: 15 | T51: Nyårsdagen | U51: Nyårsdagen | V51: 2022-01-01 | W51: 7 | X51: 15 | Y51: OB1 | Z51: 61.9
A52: Tuesday | B52: 3 | C52: 16 | T52: Nyårsdagen | U52: Nyårsdagen | V52: 2022-01-01 | W52: 7 | X52: 16 | Y52: OB1 | Z52: 61.9
A53: Tuesday | B53: 3 | C53: 17 | T53: Nyårsdagen | U53: Nyårsdagen | V53: 2022-01-01 | W53: 7 | X53: 17 | Y53: OB1 | Z53: 61.9
A54: Tuesday | B54: 3 | C54: 18 | T54: Nyårsdagen | U54: Nyårsdagen | V54: 2022-01-01 | W54: 7 | X54: 18 | Y54: OB1 | Z54: 61.9
A55: Tuesday | B55: 3 | C55: 19 | D55: OD | E55: 24 | T55: Nyårsdagen | U55: Nyårsdagen | V55: 2022-01-01 | W55: 7 | X55: 19 | Y55: OB1 | Z55: 61.9
A56: Tuesday | B56: 3 | C56: 20 | D56: OD | E56: 24 | T56: Nyårsdagen | U56: Nyårsdagen | V56: 2022-01-01 | W56: 7 | X56: 20 | Y56: OB1 | Z56: 61.9
A57: Tuesday | B57: 3 | C57: 21 | D57: OD | E57: 24 | T57: Nyårsdagen | U57: Nyårsdagen | V57: 2022-01-01 | W57: 7 | X57: 21 | Y57: OB1 | Z57: 61.9
A58: Tuesday | B58: 3 | C58: 22 | D58: OC | E58: 53 | T58: Nyårsdagen | U58: Nyårsdagen | V58: 2022-01-01 | W58: 7 | X58: 22 | Y58: OA2 | Z58: 142.6
A59: Tuesday | B59: 3 | C59: 23 | D59: OC | E59: 53 | T59: Nyårsdagen | U59: Nyårsdagen | V59: 2022-01-01 | W59: 7 | X59: 23 | Y59: OA2 | Z59: 142.6
A60: Wednesday | B60: 4 | C60: 24 | D60: OC | E60: 53 | U60: Nyårsdagen | V60: 2022-01-02 | W60: 1 | X60: 24 | Y60: OA1 | Z60: 118.8
A61: Wednesday | B61: 4 | C61: 1 | D61: OC | E61: 53 | U61: Nyårsdagen | V61: 2022-01-02 | W61: 1 | X61: 1 | Y61: OA1 | Z61: 118.8
A62: Wednesday | B62: 4 | C62: 2 | D62: OC | E62: 53 | U62: Nyårsdagen | V62: 2022-01-02 | W62: 1 | X62: 2 | Y62: OA1 | Z62: 118.8
A63: Wednesday | B63: 4 | C63: 3 | D63: OC | E63: 53 | U63: Nyårsdagen | V63: 2022-01-02 | W63: 1 | X63: 3 | Y63: OA1 | Z63: 118.8
A64: Wednesday | B64: 4 | C64: 4 | D64: OC | E64: 53 | U64: Nyårsdagen | V64: 2022-01-02 | W64: 1 | X64: 4 | Y64: OA1 | Z64: 118.8
A65: Wednesday | B65: 4 | C65: 5 | D65: OC | E65: 53 | U65: Nyårsdagen | V65: 2022-01-02 | W65: 1 | X65: 5 | Y65: OA1 | Z65: 118.8
A66: Wednesday | B66: 4 | C66: 6 | U66: Nyårsdagen | V66: 2022-01-02 | W66: 1 | X66: 6 | Y66: OA1 | Z66: 118.8
A67: Wednesday | B67: 4 | C67: 7 | U67: Nyårsdagen | V67: 2022-01-02 | W67: 1 | X67: 7 | Y67: OB1 | Z67: 61.9
A68: Wednesday | B68: 4 | C68: 8 | U68: Nyårsdagen | V68: 2022-01-02 | W68: 1 | X68: 8 | Y68: OB1 | Z68: 61.9
A69: Wednesday | B69: 4 | C69: 9 | U69: Nyårsdagen | V69: 2022-01-02 | W69: 1 | X69: 9 | Y69: OB1 | Z69: 61.9
A70: Wednesday | B70: 4 | C70: 10 | U70: Nyårsdagen | V70: 2022-01-02 | W70: 1 | X70: 10 | Y70: OB1 | Z70: 61.9
A71: Wednesday | B71: 4 | C71: 11 | U71: Nyårsdagen | V71: 2022-01-02 | W71: 1 | X71: 11 | Y71: OB1 | Z71: 61.9
A72: Wednesday | B72: 4 | C72: 12 | U72: Nyårsdagen | V72: 2022-01-02 | W72: 1 | X72: 12 | Y72: OB1 | Z72: 61.9
A73: Wednesday | B73: 4 | C73: 13 | U73: Nyårsdagen | V73: 2022-01-02 | W73: 1 | X73: 13 | Y73: OB1 | Z73: 61.9
A74: Wednesday | B74: 4 | C74: 14 | U74: Nyårsdagen | V74: 2022-01-02 | W74: 1 | X74: 14 | Y74: OB1 | Z74: 61.9
A75: Wednesday | B75: 4 | C75: 15 | U75: Nyårsdagen | V75: 2022-01-02 | W75: 1 | X75: 15 | Y75: OB1 | Z75: 61.9
A76: Wednesday | B76: 4 | C76: 16 | U76: Nyårsdagen | V76: 2022-01-02 | W76: 1 | X76: 16 | Y76: OB1 | Z76: 61.9
A77: Wednesday | B77: 4 | C77: 17 | U77: Nyårsdagen | V77: 2022-01-02 | W77: 1 | X77: 17 | Y77: OB1 | Z77: 61.9
A78: Wednesday | B78: 4 | C78: 18 | U78: Nyårsdagen | V78: 2022-01-02 | W78: 1 | X78: 18 | Y78: OB1 | Z78: 61.9
A79: Wednesday | B79: 4 | C79: 19 | D79: OD | E79: 24 | U79: Nyårsdagen | V79: 2022-01-02 | W79: 1 | X79: 19 | Y79: OB1 | Z79: 61.9
A80: Wednesday | B80: 4 | C80: 20 | D80: OD | E80: 24 | U80: Nyårsdagen | V80: 2022-01-02 | W80: 1 | X80: 20 | Y80: OB1 | Z80: 61.9
A81: Wednesday | B81: 4 | C81: 21 | D81: OD | E81: 24 | U81: Nyårsdagen | V81: 2022-01-02 | W81: 1 | X81: 21 | Y81: OB1 | Z81: 61.9
A82: Wednesday | B82: 4 | C82: 22 | D82: OC | E82: 53 | U82: Nyårsdagen | V82: 2022-01-02 | W82: 1 | X82: 22 | Y82: OB2 | Z82: 71.1
A83: Wednesday | B83: 4 | C83: 23 | D83: OC | E83: 53 | U83: Nyårsdagen | V83: 2022-01-02 | W83: 1 | X83: 23 | Y83: OB2 | Z83: 71.1
A84: Thursday | B84: 5 | C84: 24 | D84: OC | E84: 53 | U84: Trettondedag jul | V84: 2022-01-05 | W84: 4 | X84: 24 | Y84: OB1 | Z84: 61.9
A85: Thursday | B85: 5 | C85: 1 | D85: OC | E85: 53 | U85: Trettondedag jul | V85: 2022-01-05 | W85: 4 | X85: 1 | Y85: OB1 | Z85: 61.9
A86: Thursday | B86: 5 | C86: 2 | D86: OC | E86: 53 | U86: Trettondedag jul | V86: 2022-01-05 | W86: 4 | X86: 2 | Y86: OB1 | Z86: 61.9
A87: Thursday | B87: 5 | C87: 3 | D87: OC | E87: 53 | U87: Trettondedag jul | V87: 2022-01-05 | W87: 4 | X87: 3 | Y87: OB1 | Z87: 61.9
A88: Thursday | B88: 5 | C88: 4 | D88: OC | E88: 53 | U88: Trettondedag jul | V88: 2022-01-05 | W88: 4 | X88: 4 | Y88: OB1 | Z88: 61.9
A89: Thursday | B89: 5 | C89: 5 | D89: OC | E89: 53 | U89: Trettondedag jul | V89: 2022-01-05 | W89: 4 | X89: 5 | Y89: OB1 | Z89: 61.9
A90: Thursday | B90: 5 | C90: 6 | U90: Trettondedag jul | V90: 2022-01-05 | W90: 4 | X90: 6 | Y90: OB1 | Z90: 61.9
A91: Thursday | B91: 5 | C91: 7 | U91: Trettondedag jul | V91: 2022-01-05 | W91: 4 | X91: 7 | Y91: OB1 | Z91: 61.9
A92: Thursday | B92: 5 | C92: 8 | U92: Trettondedag jul | V92: 2022-01-05 | W92: 4 | X92: 8 | Y92: OB1 | Z92: 61.9
A93: Thursday | B93: 5 | C93: 9 | U93: Trettondedag jul | V93: 2022-01-05 | W93: 4 | X93: 9 | Y93: OB1 | Z93: 61.9
A94: Thursday | B94: 5 | C94: 10 | U94: Trettondedag jul | V94: 2022-01-05 | W94: 4 | X94: 10 | Y94: OB1 | Z94: 61.9
A95: Thursday | B95: 5 | C95: 11 | U95: Trettondedag jul | V95: 2022-01-05 | W95: 4 | X95: 11 | Y95: OB1 | Z95: 61.9
A96: Thursday | B96: 5 | C96: 12 | U96: Trettondedag jul | V96: 2022-01-05 | W96: 4 | X96: 12 | Y96: OB1 | Z96: 61.9
A97: Thursday | B97: 5 | C97: 13 | U97: Trettondedag jul | V97: 2022-01-05 | W97: 4 | X97: 13 | Y97: OB1 | Z97: 61.9
A98: Thursday | B98: 5 | C98: 14 | U98: Trettondedag jul | V98: 2022-01-05 | W98: 4 | X98: 14 | Y98: OB1 | Z98: 61.9
A99: Thursday | B99: 5 | C99: 15 | U99: Trettondedag jul | V99: 2022-01-05 | W99: 4 | X99: 15 | Y99: OB1 | Z99: 61.9
A100: Thursday | B100: 5 | C100: 16 | U100: Trettondedag jul | V100: 2022-01-05 | W100: 4 | X100: 16 | Y100: OB1 | Z100: 61.9
A101: Thursday | B101: 5 | C101: 17 | U101: Trettondedag jul | V101: 2022-01-05 | W101: 4 | X101: 17 | Y101: OB1 | Z101: 61.9
A102: Thursday | B102: 5 | C102: 18 | U102: Trettondedag jul | V102: 2022-01-05 | W102: 4 | X102: 18 | Y102: OB1 | Z102: 61.9
A103: Thursday | B103: 5 | C103: 19 | D103: OD | E103: 24 | U103: Trettondedag jul | V103: 2022-01-05 | W103: 4 | X103: 19 | Y103: OB1 | Z103: 61.9
A104: Thursday | B104: 5 | C104: 20 | D104: OD | E104: 24 | U104: Trettondedag jul | V104: 2022-01-05 | W104: 4 | X104: 20 | Y104: OB1 | Z104: 61.9
A105: Thursday | B105: 5 | C105: 21 | D105: OD | E105: 24 | U105: Trettondedag jul | V105: 2022-01-05 | W105: 4 | X105: 21 | Y105: OB1 | Z105: 61.9
A106: Thursday | B106: 5 | C106: 22 | D106: OC | E106: 53 | U106: Trettondedag jul | V106: 2022-01-05 | W106: 4 | X106: 22 | Y106: OB1 | Z106: 61.9
A107: Thursday | B107: 5 | C107: 23 | D107: OC | E107: 53 | U107: Trettondedag jul | V107: 2022-01-05 | W107: 4 | X107: 23 | Y107: OB1 | Z107: 61.9
A108: Friday | B108: 6 | C108: 24 | D108: OC | E108: 53 | T108: Trettondedag jul | U108: Trettondedag jul | V108: 2022-01-06 | W108: 5 | X108: 24 | Y108: OB1 | Z108: 61.9
A109: Friday | B109: 6 | C109: 1 | D109: OC | E109: 53 | T109: Trettondedag jul | U109: Trettondedag jul | V109: 2022-01-06 | W109: 5 | X109: 1 | Y109: OA2 | Z109: 142.6
A110: Friday | B110: 6 | C110: 2 | D110: OC | E110: 53 | T110: Trettondedag jul | U110: Trettondedag jul | V110: 2022-01-06 | W110: 5 | X110: 2 | Y110: OA2 | Z110: 142.6
A111: Friday | B111: 6 | C111: 3 | D111: OC | E111: 53 | T111: Trettondedag jul | U111: Trettondedag jul | V111: 2022-01-06 | W111: 5 | X111: 3 | Y111: OA2 | Z111: 142.6
A112: Friday | B112: 6 | C112: 4 | D112: OC | E112: 53 | T112: Trettondedag jul | U112: Trettondedag jul | V112: 2022-01-06 | W112: 5 | X112: 4 | Y112: OA2 | Z112: 142.6
A113: Friday | B113: 6 | C113: 5 | D113: OC | E113: 53 | T113: Trettondedag jul | U113: Trettondedag jul | V113: 2022-01-06 | W113: 5 | X113: 5 | Y113: OA2 | Z113: 142.6
A114: Friday | B114: 6 | C114: 6 | T114: Trettondedag jul | U114: Trettondedag jul | V114: 2022-01-06 | W114: 5 | X114: 6 | Y114: OA2 | Z114: 142.6
A115: Friday | B115: 6 | C115: 7 | T115: Trettondedag jul | U115: Trettondedag jul | V115: 2022-01-06 | W115: 5 | X115: 7 | Y115: OB1 | Z115: 61.9
A116: Friday | B116: 6 | C116: 8 | T116: Trettondedag jul | U116: Trettondedag jul | V116: 2022-01-06 | W116: 5 | X116: 8 | Y116: OB1 | Z116: 61.9
A117: Friday | B117: 6 | C117: 9 | T117: Trettondedag jul | U117: Trettondedag jul | V117: 2022-01-06 | W117: 5 | X117: 9 | Y117: OB1 | Z117: 61.9
A118: Friday | B118: 6 | C118: 10 | T118: Trettondedag jul | U118: Trettondedag jul | V118: 2022-01-06 | W118: 5 | X118: 10 | Y118: OB1 | Z118: 61.9
A119: Friday | B119: 6 | C119: 11 | T119: Trettondedag jul | U119: Trettondedag jul | V119: 2022-01-06 | W119: 5 | X119: 11 | Y119: OB1 | Z119: 61.9
A120: Friday | B120: 6 | C120: 12 | T120: Trettondedag jul | U120: Trettondedag jul | V120: 2022-01-06 | W120: 5 | X120: 12 | Y120: OB1 | Z120: 61.9
A121: Friday | B121: 6 | C121: 13 | T121: Trettondedag jul | U121: Trettondedag jul | V121: 2022-01-06 | W121: 5 | X121: 13 | Y121: OB1 | Z121: 61.9
A122: Friday | B122: 6 | C122: 14 | T122: Trettondedag jul | U122: Trettondedag jul | V122: 2022-01-06 | W122: 5 | X122: 14 | Y122: OB1 | Z122: 61.9
A123: Friday | B123: 6 | C123: 15 | T123: Trettondedag jul | U123: Trettondedag jul | V123: 2022-01-06 | W123: 5 | X123: 15 | Y123: OB1 | Z123: 61.9
A124: Friday | B124: 6 | C124: 16 | T124: Trettondedag jul | U124: Trettondedag jul | V124: 2022-01-06 | W124: 5 | X124: 16 | Y124: OB1 | Z124: 61.9
A125: Friday | B125: 6 | C125: 17 | T125: Trettondedag jul | U125: Trettondedag jul | V125: 2022-01-06 | W125: 5 | X125: 17 | Y125: OB1 | Z125: 61.9
A126: Friday | B126: 6 | C126: 18 | T126: Trettondedag jul | U126: Trettondedag jul | V126: 2022-01-06 | W126: 5 | X126: 18 | Y126: OB1 | Z126: 61.9
A127: Friday | B127: 6 | C127: 19 | D127: OB1 | E127: 61.9 | T127: Trettondedag jul | U127: Trettondedag jul | V127: 2022-01-06 | W127: 5 | X127: 19 | Y127: OB1 | Z127: 61.9
A128: Friday | B128: 6 | C128: 20 | D128: OB1 | E128: 61.9 | T128: Trettondedag jul | U128: Trettondedag jul | V128: 2022-01-06 | W128: 5 | X128: 20 | Y128: OB1 | Z128: 61.9
A129: Friday | B129: 6 | C129: 21 | D129: OB1 | E129: 61.9 | T129: Trettondedag jul | U129: Trettondedag jul | V129: 2022-01-06 | W129: 5 | X129: 21 | Y129: OB1 | Z129: 61.9
A130: Friday | B130: 6 | C130: 22 | D130: OB2 | E130: 71.1 | T130: Trettondedag jul | U130: Trettondedag jul | V130: 2022-01-06 | W130: 5 | X130: 22 | Y130: OA2 | Z130: 142.6
A131: Friday | B131: 6 | C131: 23 | D131: OB2 | E131: 71.1 | T131: Trettondedag jul | U131: Trettondedag jul | V131: 2022-01-06 | W131: 5 | X131: 23 | Y131: OA2 | Z131: 142.6
A132: Saturday | B132: 7 | C132: 24 | D132: OB2 | E132: 71.1 | U132: Trettondedag jul | V132: 2022-01-07 | W132: 6 | X132: 24 | Y132: OB1 | Z132: 61.9
A133: Saturday | B133: 7 | C133: 1 | D133: OB2 | E133: 71.1 | U133: Trettondedag jul | V133: 2022-01-07 | W133: 6 | X133: 1 | Y133: OA1 | Z133: 118.8
A134: Saturday | B134: 7 | C134: 2 | D134: OB2 | E134: 71.1 | U134: Trettondedag jul | V134: 2022-01-07 | W134: 6 | X134: 2 | Y134: OA1 | Z134: 118.8
A135: Saturday | B135: 7 | C135: 3 | D135: OB2 | E135: 71.1 | U135: Trettondedag jul | V135: 2022-01-07 | W135: 6 | X135: 3 | Y135: OA1 | Z135: 118.8
A136: Saturday | B136: 7 | C136: 4 | D136: OB2 | E136: 71.1 | U136: Trettondedag jul | V136: 2022-01-07 | W136: 6 | X136: 4 | Y136: OA1 | Z136: 118.8
A137: Saturday | B137: 7 | C137: 5 | D137: OB2 | E137: 71.1 | U137: Trettondedag jul | V137: 2022-01-07 | W137: 6 | X137: 5 | Y137: OA1 | Z137: 118.8
A138: Saturday | B138: 7 | C138: 6 | D138: OB1 | E138: 61.9 | U138: Trettondedag jul | V138: 2022-01-07 | W138: 6 | X138: 6 | Y138: OA1 | Z138: 118.8
A139: Saturday | B139: 7 | C139: 7 | D139: OB1 | E139: 61.9 | U139: Trettondedag jul | V139: 2022-01-07 | W139: 6 | X139: 7 | Y139: OB1 | Z139: 61.9
A140: Saturday | B140: 7 | C140: 8 | D140: OB1 | E140: 61.9 | U140: Trettondedag jul | V140: 2022-01-07 | W140: 6 | X140: 8 | Y140: OB1 | Z140: 61.9
A141: Saturday | B141: 7 | C141: 9 | D141: OB1 | E141: 61.9 | U141: Trettondedag jul | V141: 2022-01-07 | W141: 6 | X141: 9 | Y141: OB1 | Z141: 61.9
A142: Saturday | B142: 7 | C142: 10 | D142: OB1 | E142: 61.9 | U142: Trettondedag jul | V142: 2022-01-07 | W142: 6 | X142: 10 | Y142: OB1 | Z142: 61.9
A143: Saturday | B143: 7 | C143: 11 | D143: OB1 | E143: 61.9 | U143: Trettondedag jul | V143: 2022-01-07 | W143: 6 | X143: 11 | Y143: OB1 | Z143: 61.9
A144: Saturday | B144: 7 | C144: 12 | D144: OB1 | E144: 61.9 | U144: Trettondedag jul | V144: 2022-01-07 | W144: 6 | X144: 12 | Y144: OB1 | Z144: 61.9
A145: Saturday | B145: 7 | C145: 13 | D145: OB1 | E145: 61.9 | U145: Trettondedag jul | V145: 2022-01-07 | W145: 6 | X145: 13 | Y145: OB1 | Z145: 61.9
A146: Saturday | B146: 7 | C146: 14 | D146: OB1 | E146: 61.9 | U146: Trettondedag jul | V146: 2022-01-07 | W146: 6 | X146: 14 | Y146: OB1 | Z146: 61.9
A147: Saturday | B147: 7 | C147: 15 | D147: OB1 | E147: 61.9 | U147: Trettondedag jul | V147: 2022-01-07 | W147: 6 | X147: 15 | Y147: OB1 | Z147: 61.9
A148: Saturday | B148: 7 | C148: 16 | D148: OB1 | E148: 61.9 | U148: Trettondedag jul | V148: 2022-01-07 | W148: 6 | X148: 16 | Y148: OB1 | Z148: 61.9
A149: Saturday | B149: 7 | C149: 17 | D149: OB1 | E149: 61.9 | U149: Trettondedag jul | V149: 2022-01-07 | W149: 6 | X149: 17 | Y149: OB1 | Z149: 61.9
A150: Saturday | B150: 7 | C150: 18 | D150: OB1 | E150: 61.9 | U150: Trettondedag jul | V150: 2022-01-07 | W150: 6 | X150: 18 | Y150: OB1 | Z150: 61.9
A151: Saturday | B151: 7 | C151: 19 | D151: OB1 | E151: 61.9 | U151: Trettondedag jul | V151: 2022-01-07 | W151: 6 | X151: 19 | Y151: OB1 | Z151: 61.9
A152: Saturday | B152: 7 | C152: 20 | D152: OB1 | E152: 61.9 | U152: Trettondedag jul | V152: 2022-01-07 | W152: 6 | X152: 20 | Y152: OB1 | Z152: 61.9
A153: Saturday | B153: 7 | C153: 21 | D153: OB1 | E153: 61.9 | U153: Trettondedag jul | V153: 2022-01-07 | W153: 6 | X153: 21 | Y153: OB1 | Z153: 61.9
A154: Saturday | B154: 7 | C154: 22 | D154: OB2 | E154: 71.1 | U154: Trettondedag jul | V154: 2022-01-07 | W154: 6 | X154: 22 | Y154: OB1 | Z154: 61.9
A155: Saturday | B155: 7 | C155: 23 | D155: OB2 | E155: 71.1 | U155: Trettondedag jul | V155: 2022-01-07 | W155: 6 | X155: 23 | Y155: OB1 | Z155: 61.9
A156: Sunday | B156: 1 | C156: 24 | D156: OB2 | E156: 71.1 | U156: Långfredagen | V156: 2022-04-14 | W156: 5 | X156: 24 | Y156: OB1 | Z156: 61.9
A157: Sunday | B157: 1 | C157: 1 | D157: OB2 | E157: 71.1 | U157: Långfredagen | V157: 2022-04-14 | W157: 5 | X157: 1 | Y157: OB1 | Z157: 61.9
A158: Sunday | B158: 1 | C158: 2 | D158: OB2 | E158: 71.1 | U158: Långfredagen | V158: 2022-04-14 | W158: 5 | X158: 2 | Y158: OB1 | Z158: 61.9
A159: Sunday | B159: 1 | C159: 3 | D159: OB2 | E159: 71.1 | U159: Långfredagen | V159: 2022-04-14 | W159: 5 | X159: 3 | Y159: OB1 | Z159: 61.9
A160: Sunday | B160: 1 | C160: 4 | D160: OB2 | E160: 71.1 | U160: Långfredagen | V160: 2022-04-14 | W160: 5 | X160: 4 | Y160: OB1 | Z160: 61.9
A161: Sunday | B161: 1 | C161: 5 | D161: OB2 | E161: 71.1 | U161: Långfredagen | V161: 2022-04-14 | W161: 5 | X161: 5 | Y161: OB1 | Z161: 61.9
A162: Sunday | B162: 1 | C162: 6 | D162: OB1 | E162: 61.9 | U162: Långfredagen | V162: 2022-04-14 | W162: 5 | X162: 6 | Y162: OB1 | Z162: 61.9
A163: Sunday | B163: 1 | C163: 7 | D163: OB1 | E163: 61.9 | U163: Långfredagen | V163: 2022-04-14 | W163: 5 | X163: 7 | Y163: OB1 | Z163: 61.9
A164: Sunday | B164: 1 | C164: 8 | D164: OB1 | E164: 61.9 | U164: Långfredagen | V164: 2022-04-14 | W164: 5 | X164: 8 | Y164: OB1 | Z164: 61.9
A165: Sunday | B165: 1 | C165: 9 | D165: OB1 | E165: 61.9 | U165: Långfredagen | V165: 2022-04-14 | W165: 5 | X165: 9 | Y165: OB1 | Z165: 61.9
A166: Sunday | B166: 1 | C166: 10 | D166: OB1 | E166: 61.9 | U166: Långfredagen | V166: 2022-04-14 | W166: 5 | X166: 10 | Y166: OB1 | Z166: 61.9
A167: Sunday | B167: 1 | C167: 11 | D167: OB1 | E167: 61.9 | U167: Långfredagen | V167: 2022-04-14 | W167: 5 | X167: 11 | Y167: OB1 | Z167: 61.9
A168: Sunday | B168: 1 | C168: 12 | D168: OB1 | E168: 61.9 | U168: Långfredagen | V168: 2022-04-14 | W168: 5 | X168: 12 | Y168: OB1 | Z168: 61.9
A169: Sunday | B169: 1 | C169: 13 | D169: OB1 | E169: 61.9 | U169: Långfredagen | V169: 2022-04-14 | W169: 5 | X169: 13 | Y169: OB1 | Z169: 61.9
A170: Sunday | B170: 1 | C170: 14 | D170: OB1 | E170: 61.9 | U170: Långfredagen | V170: 2022-04-14 | W170: 5 | X170: 14 | Y170: OB1 | Z170: 61.9
A171: Sunday | B171: 1 | C171: 15 | D171: OB1 | E171: 61.9 | U171: Långfredagen | V171: 2022-04-14 | W171: 5 | X171: 15 | Y171: OB1 | Z171: 61.9
A172: Sunday | B172: 1 | C172: 16 | D172: OB1 | E172: 61.9 | U172: Långfredagen | V172: 2022-04-14 | W172: 5 | X172: 16 | Y172: OB1 | Z172: 61.9
A173: Sunday | B173: 1 | C173: 17 | D173: OB1 | E173: 61.9 | U173: Långfredagen | V173: 2022-04-14 | W173: 5 | X173: 17 | Y173: OB1 | Z173: 61.9
A174: Sunday | B174: 1 | C174: 18 | D174: OB1 | E174: 61.9 | U174: Långfredagen | V174: 2022-04-14 | W174: 5 | X174: 18 | Y174: OA1 | Z174: 118.8
A175: Sunday | B175: 1 | C175: 19 | D175: OB1 | E175: 61.9 | U175: Långfredagen | V175: 2022-04-14 | W175: 5 | X175: 19 | Y175: OA1 | Z175: 118.8
A176: Sunday | B176: 1 | C176: 20 | D176: OB1 | E176: 61.9 | U176: Långfredagen | V176: 2022-04-14 | W176: 5 | X176: 20 | Y176: OA1 | Z176: 118.8
A177: Sunday | B177: 1 | C177: 21 | D177: OB1 | E177: 61.9 | U177: Långfredagen | V177: 2022-04-14 | W177: 5 | X177: 21 | Y177: OA1 | Z177: 118.8
A178: Sunday | B178: 1 | C178: 22 | D178: OB2 | E178: 71.1 | U178: Långfredagen | V178: 2022-04-14 | W178: 5 | X178: 22 | Y178: OA1 | Z178: 118.8
A179: Sunday | B179: 1 | C179: 23 | D179: OB2 | E179: 71.1 | U179: Långfredagen | V179: 2022-04-14 | W179: 5 | X179: 23 | Y179: OA1 | Z179: 118.8
A180: Monday | B180: 2 | C180: 24 | D180: OB1 | E180: 61.9 | T180: Långfredagen | U180: Långfredagen | V180: 2022-04-15 | W180: 6 | X180: 24 | Y180: OB1 | Z180: 61.9
A181: Monday | B181: 2 | C181: 1 | D181: OB1 | E181: 61.9 | T181: Långfredagen | U181: Långfredagen | V181: 2022-04-15 | W181: 6 | X181: 1 | Y181: OA2 | Z181: 142.6
A182: Monday | B182: 2 | C182: 2 | D182: OB1 | E182: 61.9 | T182: Långfredagen | U182: Långfredagen | V182: 2022-04-15 | W182: 6 | X182: 2 | Y182: OA2 | Z182: 142.6
A183: Monday | B183: 2 | C183: 3 | D183: OB1 | E183: 61.9 | T183: Långfredagen | U183: Långfredagen | V183: 2022-04-15 | W183: 6 | X183: 3 | Y183: OA2 | Z183: 142.6
A184: Monday | B184: 2 | C184: 4 | D184: OB1 | E184: 61.9 | T184: Långfredagen | U184: Långfredagen | V184: 2022-04-15 | W184: 6 | X184: 4 | Y184: OA2 | Z184: 142.6
A185: Monday | B185: 2 | C185: 5 | D185: OB1 | E185: 61.9 | T185: Långfredagen | U185: Långfredagen | V185: 2022-04-15 | W185: 6 | X185: 5 | Y185: OA2 | Z185: 142.6
A186: Monday | B186: 2 | C186: 6 | D186: OB1 | E186: 61.9 | T186: Långfredagen | U186: Långfredagen | V186: 2022-04-15 | W186: 6 | X186: 6 | Y186: OA2 | Z186: 142.6
A187: Monday | B187: 2 | C187: 7 | T187: Långfredagen | U187: Långfredagen | V187: 2022-04-15 | W187: 6 | X187: 7 | Y187: OB1 | Z187: 61.9
A188: Monday | B188: 2 | C188: 8 | T188: Långfredagen | U188: Långfredagen | V188: 2022-04-15 | W188: 6 | X188: 8 | Y188: OB1 | Z188: 61.9
A189: Monday | B189: 2 | C189: 9 | T189: Långfredagen | U189: Långfredagen | V189: 2022-04-15 | W189: 6 | X189: 9 | Y189: OB1 | Z189: 61.9
A190: Monday | B190: 2 | C190: 10 | T190: Långfredagen | U190: Långfredagen | V190: 2022-04-15 | W190: 6 | X190: 10 | Y190: OB1 | Z190: 61.9
A191: Monday | B191: 2 | C191: 11 | T191: Långfredagen | U191: Långfredagen | V191: 2022-04-15 | W191: 6 | X191: 11 | Y191: OB1 | Z191: 61.9
A192: Monday | B192: 2 | C192: 12 | T192: Långfredagen | U192: Långfredagen | V192: 2022-04-15 | W192: 6 | X192: 12 | Y192: OB1 | Z192: 61.9
A193: Monday | B193: 2 | C193: 13 | T193: Långfredagen | U193: Långfredagen | V193: 2022-04-15 | W193: 6 | X193: 13 | Y193: OB1 | Z193: 61.9
A194: Monday | B194: 2 | C194: 14 | T194: Långfredagen | U194: Långfredagen | V194: 2022-04-15 | W194: 6 | X194: 14 | Y194: OB1 | Z194: 61.9
A195: Monday | B195: 2 | C195: 15 | T195: Långfredagen | U195: Långfredagen | V195: 2022-04-15 | W195: 6 | X195: 15 | Y195: OB1 | Z195: 61.9
A196: Monday | B196: 2 | C196: 16 | T196: Långfredagen | U196: Långfredagen | V196: 2022-04-15 | W196: 6 | X196: 16 | Y196: OB1 | Z196: 61.9
A197: Monday | B197: 2 | C197: 17 | T197: Långfredagen | U197: Långfredagen | V197: 2022-04-15 | W197: 6 | X197: 17 | Y197: OB1 | Z197: 61.9
A198: Monday | B198: 2 | C198: 18 | T198: Långfredagen | U198: Långfredagen | V198: 2022-04-15 | W198: 6 | X198: 18 | Y198: OB1 | Z198: 61.9
A199: Monday | B199: 2 | C199: 19 | D199: OD | E199: 24 | T199: Långfredagen | U199: Långfredagen | V199: 2022-04-15 | W199: 6 | X199: 19 | Y199: OB1 | Z199: 61.9
A200: Monday | B200: 2 | C200: 20 | D200: OD | E200: 24 | T200: Långfredagen | U200: Långfredagen | V200: 2022-04-15 | W200: 6 | X200: 20 | Y200: OB1 | Z200: 61.9
A201: Monday | B201: 2 | C201: 21 | D201: OD | E201: 24 | T201: Långfredagen | U201: Långfredagen | V201: 2022-04-15 | W201: 6 | X201: 21 | Y201: OB1 | Z201: 61.9
... 3050 more rows

Sheet tempDiffTotalDetail
D4: Differences
E9: OD | H9: OC | K9: OB
D11: Row Labels | E11: Antal Timmar OD | F11: Beräkning 1 OD | G11: Beräkning 2 OD | H11: Antal Timmar OC | I11: Beräkning 1 OC | J11: Beräkning 2 OC | K11: Antal Timmar OB1 | L11: Beräkning 1 OB1 | M11: Beräkning 2 OB1 | N11: Antal Timmar OB2 | O11: Beräkning 1 OB2 | P11: Beräkning 2 OB2 | Q11: Sum of Kost_Total
D12: ALEX AL- GHAWALEB | E12: 0 | F12: 0 | G12: -714 | H12: 0 | I12: 0 | J12: 0 | K12: 0 | L12: 0 | M12: 714 | N12: 0 | O12: 0 | P12: 0 | Q12: 0
D13: ALEX RYLANDER | E13: 0 | F13: 0 | G13: -631.4 | H13: 0 | I13: 0 | J13: 0 | K13: 0 | L13: 0 | M13: 654.5 | N13: 0 | O13: 0 | P13: 0 | Q13: 23.1
D14: ALI AL-RUBAI NAJI | E14: 0 | F14: 0 | G14: -952 | H14: 0 | I14: 0 | J14: 0 | K14: 0 | L14: 0 | M14: 952 | N14: 0 | O14: 0 | P14: 0 | Q14: 0
D15: AYLA ERMAN | E15: 0 | F15: 0 | G15: -1190 | H15: 0 | I15: 0 | J15: 0 | K15: 0 | L15: 0 | M15: 1190 | N15: 0 | O15: 0 | P15: 0 | Q15: 0
D16: BAHIAH ABOUTAKA | E16: 0 | F16: 0 | G16: -773.5 | H16: 0 | I16: 0 | J16: 0 | K16: 0 | L16: 0 | M16: 773.5 | N16: 0 | O16: 0 | P16: 0 | Q16: 0
D17: BESIM IBISHI | E17: 0 | F17: 0 | G17: -1666 | H17: 0 | I17: 0 | J17: 0 | K17: 0 | L17: 0 | M17: 1666 | N17: 0 | O17: 0 | P17: 0 | Q17: 0
D18: BILJANA DAMNJANOVIC | E18: 0 | F18: 0 | G18: 115.5 | H18: 0 | I18: 0 | J18: 0 | K18: 0 | L18: 0 | M18: 0 | N18: 0 | O18: 0 | P18: 0 | Q18: 115.5
D19: OLD | E19: -5 | F19: -115.5 | G19: 0 | H19: 0 | I19: 0 | J19: 0 | K19: 0 | L19: 0 | M19: 0 | N19: 0 | O19: 0 | P19: 0 | Q19: 0
D20: NEW | E20: 5 | F20: 115.5 | G20: 115.5 | H20: 0 | I20: 0 | J20: 0 | K20: 0 | L20: 0 | M20: 0 | N20: 0 | O20: 0 | P20: 0 | Q20: 115.5
D21: BUTSARA ERIKSSON | E21: 0 | F21: 0 | G21: -1011.5 | H21: 0 | I21: 0 | J21: 0 | K21: 0 | L21: 0 | M21: 1011.5 | N21: 0 | O21: 0 | P21: 0 | Q21: 0
D22: CAROLINA SVENSSON | E22: 0 | F22: 0 | G22: -714 | H22: 0 | I22: 0 | J22: 0 | K22: 0 | L22: 0 | M22: 714 | N22: 0 | O22: 0 | P22: 0 | Q22: 0
D23: CELINE DUVAL | E23: 0 | F23: 0 | G23: -714 | H23: 0 | I23: 0 | J23: 0 | K23: 0 | L23: 0 | M23: 714 | N23: 0 | O23: 0 | P23: 0 | Q23: 0
D24: ELI VOCA | E24: 0 | F24: 0 | G24: -727.3 | H24: 0 | I24: 0 | J24: 0 | K24: 0 | L24: 0 | M24: 773.5 | N24: 0 | O24: 0 | P24: 0 | Q24: 46.2
D25: ELIN CLAESSON | E25: 0 | F25: 0 | G25: 23.1 | H25: 0 | I25: 0 | J25: 0 | K25: 0 | L25: 0 | M25: 0 | N25: 0 | O25: 0 | P25: 0 | Q25: 23.1
D26: GUNILLA SVENSSON | E26: 0 | F26: 0 | G26: 0 | H26: 0 | I26: 0 | J26: 0 | K26: 0 | L26: 0 | M26: 0 | N26: 0 | O26: 0 | P26: 0 | Q26: 0
D27: HANEEN SAFADI | E27: 0 | F27: 0 | G27: -1547 | H27: 0 | I27: 0 | J27: 0 | K27: 0 | L27: 0 | M27: 1547 | N27: 0 | O27: 0 | P27: 0 | Q27: 0
D28: HÅKAN PERSSON | E28: 0 | F28: 0 | G28: -548.8 | H28: 0 | I28: 0 | J28: 0 | K28: 0 | L28: 0 | M28: 595 | N28: 0 | O28: 0 | P28: 0 | Q28: 46.2
D29: JANA KISWANI | E29: 0 | F29: 0 | G29: -565.25 | H29: 0 | I29: 0 | J29: 0 | K29: 0 | L29: 0 | M29: 565.25 | N29: 0 | O29: 0 | P29: 0 | Q29: 0
D30: JULIA STANISIC | E30: 0 | F30: 0 | G30: 46.2 | H30: 0 | I30: 0 | J30: 0 | K30: 0 | L30: 0 | M30: 0 | N30: 0 | O30: 0 | P30: 0 | Q30: 46.2
D31: KARIN RÅDESTIG | E31: 0 | F31: 0 | G31: 0 | H31: 0 | I31: 0 | J31: 0 | K31: 0 | L31: 0 | M31: 0 | N31: 0 | O31: 0 | P31: 0 | Q31: 0
D32: KARRER MASHALAWI | E32: 0 | F32: 0 | G32: -1226.4 | H32: 0 | I32: 0 | J32: 0 | K32: 0 | L32: 0 | M32: 450.8 | N32: 0 | O32: 0 | P32: -274 | Q32: 23.1
D33: KHADIJA SABRI | E33: 0 | F33: 0 | G33: -653.5083333 | H33: 0 | I33: 0 | J33: 0 | K33: 8.881784197e-16 | L33: 0 | M33: 653.5083333 | N33: 0 | O33: 0 | P33: 0 | Q33: 0
D34: NASIBE HUSAJ | E34: 0 | F34: 0 | G34: 23.1 | H34: 0 | I34: 0 | J34: 0 | K34: 0 | L34: 0 | M34: 0 | N34: 0 | O34: 0 | P34: 0 | Q34: 23.1
D35: NOUR KHAFAJA | E35: 0 | F35: 7.105427358e-15 | G35: 103.95 | H35: 0 | I35: 0 | J35: 21.20833333 | K35: 0 | L35: 0 | M35: 0 | N35: 0 | O35: 0 | P35: 0 | Q35: 125.1583333
D36: RAJAA SALMAN | E36: 0 | F36: 0 | G36: -714 | H36: 0 | I36: 0 | J36: 0 | K36: 0 | L36: 0 | M36: 714 | N36: 0 | O36: 0 | P36: 0 | Q36: 0
D37: SABINA MAMEDOVA | E37: 0 | F37: 0 | G37: -892.5 | H37: 0 | I37: 0 | J37: -68.3 | K37: 0 | L37: 0 | M37: 892.5 | N37: 0 | O37: 0 | P37: 68.3 | Q37: 0
D38: SANDRA NYSTRÖM | E38: 0 | F38: 7.105427358e-15 | G38: -287.7 | H38: 0 | I38: 0 | J38: 0 | K38: 0 | L38: 0 | M38: 357 | N38: 0 | O38: 0 | P38: 0 | Q38: 69.3
D39: SUHA KISWANI | E39: 0 | F39: 0 | G39: -684.25 | H39: 0 | I39: 0 | J39: 0 | K39: 0 | L39: 0 | M39: 684.25 | N39: 0 | O39: 0 | P39: 0 | Q39: 0
D40: SUHAH ALI FAISAL | E40: 0 | F40: 0 | G40: 0 | H40: 0 | I40: 0 | J40: 0 | K40: 0 | L40: 0 | M40: 0 | N40: 0 | O40: 0 | P40: 0 | Q40: 0
D41: THI PHOUNG LE | E41: 0 | F41: 0 | G41: -1428 | H41: 0 | I41: 0 | J41: 0 | K41: 0 | L41: 0 | M41: 1428 | N41: 0 | O41: 0 | P41: 0 | Q41: 0
D42: ULF NILSSON | E42: 0 | F42: 0 | G42: 103.95 | H42: 0 | I42: 0 | J42: 0 | K42: 0 | L42: 0 | M42: 0 | N42: 0 | O42: 0 | P42: 0 | Q42: 103.95
D43: YASIN FAKHRO | E43: 0 | F43: 7.105427358e-15 | G43: -347.2 | H43: 0 | I43: 0 | J43: 0 | K43: 0 | L43: 0 | M43: 416.5 | N43: 0 | O43: 0 | P43: 0 | Q43: 69.3
D44: Grand Total | E44: 0 | F44: 2.131628207e-14 | G44: -17572.50833 | H44: 0 | I44: 0 | J44: -47.09166667 | K44: 8.881784197e-16 | L44: 0 | M44: 17466.80833 | N44: 0 | O44: 0 | P44: -205.7 | Q44: 714.2083333

Sheet tempDiffTotal
D11: Sum of Kost_Total | E11: Column Labels
D12: Row Labels | E12: OLD | F12: NEW | I12: Diff
D13: ALEX AL- GHAWALEB | E13: 714 | F13: 714 | I13: =F13-E13 -> 0
D14: ALEX RYLANDER | E14: 654.5 | F14: 677.6 | I14: =F14-E14 -> 23.1
D15: ALI AL-RUBAI NAJI | E15: 952 | F15: 952 | I15: 0
D16: AYLA ERMAN | E16: 1190 | F16: 1190 | I16: 0
D17: BAHIAH ABOUTAKA | E17: 773.5 | F17: 773.5 | I17: 0
D18: BESIM IBISHI | E18: 1666 | F18: 1666 | I18: 0
D19: BILJANA DAMNJANOVIC | E19: 0 | F19: 115.5 | I19: 115.5
D20: BUTSARA ERIKSSON | E20: 1011.5 | F20: 1011.5 | I20: 0
D21: CAROLINA SVENSSON | E21: 714 | F21: 714 | I21: 0
D22: CELINE DUVAL | E22: 714 | F22: 714 | I22: 0
D23: ELI VOCA | E23: 773.5 | F23: 819.7 | I23: 46.2
D24: ELIN CLAESSON | E24: 0 | F24: 23.1 | I24: 23.1
D25: GUNILLA SVENSSON | E25: 0 | F25: 0 | I25: 0
D26: HANEEN SAFADI | E26: 1547 | F26: 1547 | I26: 0
D27: HÅKAN PERSSON | E27: 595 | F27: 641.2 | I27: 46.2
D28: JANA KISWANI | E28: 565.25 | F28: 565.25 | I28: 0
D29: JULIA STANISIC | E29: 0 | F29: 46.2 | I29: 46.2
D30: KARIN RÅDESTIG | E30: 0 | F30: 0 | I30: 0
D31: KARRER MASHALAWI | E31: 2322.2 | F31: 2345.3 | I31: 23.1
D32: KHADIJA SABRI | E32: 653.5083333 | F32: 653.5083333 | I32: 0
D33: NASIBE HUSAJ | E33: 0 | F33: 23.1 | I33: 23.1
D34: NOUR KHAFAJA | E34: 0 | F34: 125.1583333 | I34: 125.1583333
D35: RAJAA SALMAN | E35: 714 | F35: 714 | I35: 0
D36: SABINA MAMEDOVA | E36: 960.8 | F36: 960.8 | I36: 0
D37: SANDRA NYSTRÖM | E37: 357 | F37: 426.3 | I37: 69.3
D38: SUHA KISWANI | E38: 684.25 | F38: 684.25 | I38: 0
D39: SUHAH ALI FAISAL | E39: 0 | F39: 0 | I39: 0
D40: THI PHOUNG LE | E40: 1428 | F40: 1428 | I40: 0
D41: ULF NILSSON | E41: 0 | F41: 103.95 | I41: 103.95
D42: YASIN FAKHRO | E42: 416.5 | F42: 485.8 | I42: 69.3
D43: Grand Total | E43: 19406.50833 | F43: 20120.71667 | I43: 714.2083333

Sheet tempDiffDB
A10: Version | B10: _Uppdrag | C10: _AnstNr | D10: _ArbetstagareNamn | E10: _Datum | F10: _Start | G10: _Slut | H10: _Rast | I10: _TotaltH | J10: _Timersättning | K10: _Veckodag | L10: _Personalnummer | M10: _rastHour | N10: Kontrakt | O10: WorkingHours | P10: Weekday | Q10: Weekday_+1 | R10: h_day0 | S10: h_day+1 | T10: OD | U10: OC | V10: OB1 | W10: OB2 | X10: OA1 | Y10: OA2 | Z10: Övertid1 | AA10: Övertid2 | AB10: ODPay | AC10: OCPay | AD10: OB1Pay | AE10: OB2Pay | AF10: OA1Pay | AG10: OA2Pay | AH10: Övertid1Pay | AI10: Övertid2Pay | AJ10: TotalPay | AK10: Datum | AL10: TID | AM10: RAST | AN10: TIM | AO10: OB | AP10: Övertid | AQ10: Bemaning | AR10: WorkingH (no OT) | AS10: VanligArbetstimmar | AT10: Kost_Arbh | AU10: Kost_OD | AV10: Kost_OC | AW10: Kost_OB1 | AX10: Kost_OB2 | AY10: Kost_OA1 | AZ10: Kost_OA2 | BA10: Kost_ÖT1 | BB10: Kost_ÖT2 | BC10: Kost_Total | BD10: _Comments | BE10: _Input
A11: NEW | B11: Avlösare LSS | C11: _AnstNr | D11: ALEX AL- GHAWALEB | E11: 2022-11-13 | F11: 15:00 | G11: 21:00 | J11: 125 | L11: 20030402-2650 | M11: =IFERROR(INDEX(Admin!$AZ$3:$BA$50,MATCH(H11,Admin!$AZ$3:$AZ$53,0),2),"LäggTillAdmin") -> 0 | O11: 6 | P11: =IF(E11="","",IF(COUNTIF(Admin!$AN$4:$AN$99,E11)>0,1,WEEKDAY(E11))) -> 1 | Q11: =IFERROR(IF(HOUR(F11)>HOUR(G11),IF(IF(E11="","",WEEKDAY(E11))=7,1,IF(E11="","",WEEKDAY(E11))+1),""),"") ->  | R11: =IFERROR(IF(HOUR(F11)>HOUR(G11),O11-S11,O11),"") -> 6 | S11: =IFERROR(IF(HOUR(F11)>HOUR(G11),HOUR(G11)+MINUTE(G11)/60,0),"") -> 0 | T11: 0 | U11: 0 | V11: 6 | W11: 0 | X11: 0 | Y11: 0 | Z11: =IFERROR(IF(AND(P11>=INDIRECT("'"&L11&"'!j2"),P11<=INDIRECT("'"&L11&"'!k2"),O11>INDIRECT("'"&L11&"'!i2"),HOUR(F11)+MINUTE(F11)/60-INDIRECT("'"&L11&"'!i2")<20),O11-INDIRECT("'"&L11&"'!i2")-MAX(HOUR(G11)-INDIRECT("'"&L11&"'!M2"),0),0),"") ->  | AA11: =IFERROR(IF(OR(P11=INDIRECT("'"&L11&"'!n2"),P11=INDIRECT("'"&L11&"'!o2"),HOUR(G11)+MINUTE(G11)/60>INDIRECT("'"&L11&"'!m2"),HOUR(G11)+MINUTE(G11)/60<6),IF(O11>INDIRECT("'"&L11&"'!i2"),O11-INDIRECT("'"&L11&"'!i2")-Z11,0),0),"") ->  | AB11: 0 | AC11: 0 | AD11: 357 | AE11: 0 | AF11: 0 | AG11: 0 | AH11: =IFERROR(Z11*INDIRECT("'"&L11&"'!x2")*INDIRECT("'"&L11&"'!c6"),0) -> 0 | AI11: =IFERROR(AA11*INDIRECT("'"&L11&"'!z2")*INDIRECT("'"&L11&"'!c6"),0) -> 0 | AJ11: =IFERROR(AG11+AB11+AC11+AD11+AE11+AF11,"") -> 357 | AK11: =IF(E11="","",YEAR(E11)&"-"&MONTH(E11)&"-"&IF(LEN(DAY(E11))=1,"0"&DAY(E11),DAY(E11))) -> 2022-11-13 | AL11: =IFERROR(HOUR(F11)&":"&MINUTE(F11)&"-"&HOUR(G11)&":"&MINUTE(G11),"") -> 15:0-21:0 | AM11: =IFERROR(M11*60&" min","") -> 0 min | AN11: =O11 -> 6 | AO11: =IFERROR(T11,0)+IFERROR(U11,0)+IFERROR(V11,0)+IFERROR(W11,0)+IFERROR(X11,0)+IFERROR(Y11,0) -> 6 | AP11: =IFERROR(SUM(Z11:AA11),"") -> 0 | AQ11: =IF(F11="","",D11) -> ALEX AL- GHAWALEB | AR11: =IFERROR(O11-Z11-AA11,"") ->  | AU11: =IFERROR(AB11,0) -> 0 | AV11: 0 | AW11: 357 | AX11: 0 | AY11: 0 | AZ11: 0 | BC11: =SUM(AU11:AZ11) -> 357 | BE11: Auto
A12: NEW | B12: Avlösare LSS | C12: _AnstNr | D12: ALEX AL- GHAWALEB | E12: 2022-11-26 | F12: 15:00 | G12: 21:00 | J12: 125 | L12: 20030402-2650 | M12: =IFERROR(INDEX(Admin!$AZ$3:$BA$50,MATCH(H12,Admin!$AZ$3:$AZ$53,0),2),"LäggTillAdmin") -> 0 | O12: 6 | P12: =IF(E12="","",IF(COUNTIF(Admin!$AN$4:$AN$99,E12)>0,1,WEEKDAY(E12))) -> 7 | R12: 6 | S12: 0 | T12: 0 | U12: 0 | V12: 6 | W12: 0 | X12: 0 | Y12: 0 | AB12: 0 | AC12: 0 | AD12: 357 | AE12: 0 | AF12: 0 | AG12: 0 | AH12: 0 | AI12: 0 | AJ12: 357 | AK12: 2022-11-26 | AL12: 15:0-21:0 | AM12: 0 min | AN12: 6 | AO12: 6 | AP12: 0 | AQ12: ALEX AL- GHAWALEB | AU12: 0 | AV12: 0 | AW12: 357 | AX12: 0 | AY12: 0 | AZ12: 0 | BC12: 357 | BE12: Auto
A13: NEW | B13: Avlösare LSS | C13: T2 | D13: ALEX RYLANDER | E13: 2022-11-06 | F13: 11:00 | G13: 17:00 | J13: 125 | L13: 19980306-0277 | M13: =IFERROR(INDEX(Admin!$AZ$3:$BA$50,MATCH(H13,Admin!$AZ$3:$AZ$53,0),2),"LäggTillAdmin") -> 0 | O13: 6 | P13: =IF(E13="","",IF(COUNTIF(Admin!$AN$4:$AN$99,E13)>0,1,WEEKDAY(E13))) -> 1 | R13: 6 | S13: 0 | T13: 0 | U13: 0 | V13: 6 | W13: 0 | X13: 0 | Y13: 0 | AB13: 0 | AC13: 0 | AD13: 357 | AE13: 0 | AF13: 0 | AG13: 0 | AH13: 0 | AI13: 0 | AJ13: 357 | AK13: 2022-11-06 | AL13: 11:0-17:0 | AM13: 0 min | AN13: 6 | AO13: 6 | AP13: 0 | AQ13: ALEX RYLANDER | AU13: 0 | AV13: 0 | AW13: 357 | AX13: 0 | AY13: 0 | AZ13: 0 | BC13: 357 | BE13: Auto
A14: NEW | B14: Avlösare LSS | C14: T2 | D14: ALEX RYLANDER | E14: 2022-11-13 | F14: 10:00 | G14: 15:00 | J14: 125 | L14: 19980306-0277 | M14: =IFERROR(INDEX(Admin!$AZ$3:$BA$50,MATCH(H14,Admin!$AZ$3:$AZ$53,0),2),"LäggTillAdmin") -> 0 | O14: 5 | P14: =IF(E14="","",IF(COUNTIF(Admin!$AN$4:$AN$99,E14)>0,1,WEEKDAY(E14))) -> 1 | R14: 5 | S14: 0 | T14: 0 | U14: 0 | V14: 5 | W14: 0 | X14: 0 | Y14: 0 | AB14: 0 | AC14: 0 | AD14: 297.5 | AE14: 0 | AF14: 0 | AG14: 0 | AH14: 0 | AI14: 0 | AJ14: 297.5 | AK14: 2022-11-13 | AL14: 10:0-15:0 | AM14: 0 min | AN14: 5 | AO14: 5 | AP14: 0 | AQ14: ALEX RYLANDER | AU14: 0 | AV14: 0 | AW14: 297.5 | AX14: 0 | AY14: 0 | AZ14: 0 | BC14: 297.5 | BE14: Auto
A15: NEW | B15: Avlösare LSS | C15: T2 | D15: ALEX RYLANDER | E15: 2022-11-16 | F15: 16:00 | G15: 20:00 | J15: 125 | L15: 19980306-0277 | M15: =IFERROR(INDEX(Admin!$AZ$3:$BA$50,MATCH(H15,Admin!$AZ$3:$AZ$53,0),2),"LäggTillAdmin") -> 0 | O15: 4 | P15: =IF(E15="","",IF(COUNTIF(Admin!$AN$4:$AN$99,E15)>0,1,WEEKDAY(E15))) -> 4 | R15: 4 | S15: 0 | T15: 1 | U15: 0 | V15: 0 | W15: 0 | X15: 0 | Y15: 0 | AB15: 23.1 | AC15: 0 | AD15: 0 | AE15: 0 | AF15: 0 | AG15: 0 | AH15: 0 | AI15: 0 | AJ15: 23.1 | AK15: 2022-11-16 | AL15: 16:0-20:0 | AM15: 0 min | AN15: 4 | AO15: 1 | AP15: 0 | AQ15: ALEX RYLANDER | AU15: 23.1 | AV15: 0 | AW15: 0 | AX15: 0 | AY15: 0 | AZ15: 0 | BC15: 23.1 | BE15: Auto
A16: NEW | B16: Avlösare LSS | C16: 3 | D16: ALI AL-RUBAI NAJI | E16: 2022-11-05 | F16: 13:00 | G16: 21:00 | J16: 125 | L16: 19800505-1696 | M16: =IFERROR(INDEX(Admin!$AZ$3:$BA$50,MATCH(H16,Admin!$AZ$3:$AZ$53,0),2),"LäggTillAdmin") -> 0 | O16: 8 | P16: =IF(E16="","",IF(COUNTIF(Admin!$AN$4:$AN$99,E16)>0,1,WEEKDAY(E16))) -> 7 | R16: 8 | S16: 0 | T16: 0 | U16: 0 | V16: 8 | W16: 0 | X16: 0 | Y16: 0 | AB16: 0 | AC16: 0 | AD16: 476 | AE16: 0 | AF16: 0 | AG16: 0 | AH16: 0 | AI16: 0 | AJ16: 476 | AK16: 2022-11-05 | AL16: 13:0-21:0 | AM16: 0 min | AN16: 8 | AO16: 8 | AP16: 0 | AQ16: ALI AL-RUBAI NAJI | AU16: 0 | AV16: 0 | AW16: 476 | AX16: 0 | AY16: 0 | AZ16: 0 | BC16: 476 | BE16: Auto
A17: NEW | B17: Avlösare LSS | C17: 3 | D17: ALI AL-RUBAI NAJI | E17: 2022-11-13 | F17: 11:00 | G17: 19:00 | J17: 125 | L17: 19800505-1696 | M17: =IFERROR(INDEX(Admin!$AZ$3:$BA$50,MATCH(H17,Admin!$AZ$3:$AZ$53,0),2),"LäggTillAdmin") -> 0 | O17: 8 | P17: =IF(E17="","",IF(COUNTIF(Admin!$AN$4:$AN$99,E17)>0,1,WEEKDAY(E17))) -> 1 | R17: 8 | S17: 0 | T17: 0 | U17: 0 | V17: 8 | W17: 0 | X17: 0 | Y17: 0 | AB17: 0 | AC17: 0 | AD17: 476 | AE17: 0 | AF17: 0 | AG17: 0 | AH17: 0 | AI17: 0 | AJ17: 476 | AK17: 2022-11-13 | AL17: 11:0-19:0 | AM17: 0 min | AN17: 8 | AO17: 8 | AP17: 0 | AQ17: ALI AL-RUBAI NAJI | AU17: 0 | AV17: 0 | AW17: 476 | AX17: 0 | AY17: 0 | AZ17: 0 | BC17: 476 | BE17: Auto
A18: NEW | B18: Avlösare LSS | C18: 7 | D18: AYLA ERMAN | E18: 2022-11-06 | F18: 11:00 | G18: 16:00 | J18: 125 | L18: 19671030-2826 | M18: =IFERROR(INDEX(Admin!$AZ$3:$BA$50,MATCH(H18,Admin!$AZ$3:$AZ$53,0),2),"LäggTillAdmin") -> 0 | O18: 5 | P18: =IF(E18="","",IF(COUNTIF(Admin!$AN$4:$AN$99,E18)>0,1,WEEKDAY(E18))) -> 1 | R18: 5 | S18: 0 | T18: 0 | U18: 0 | V18: 5 | W18: 0 | X18: 0 | Y18: 0 | AB18: 0 | AC18: 0 | AD18: 297.5 | AE18: 0 | AF18: 0 | AG18: 0 | AH18: 0 | AI18: 0 | AJ18: 297.5 | AK18: 2022-11-06 | AL18: 11:0-16:0 | AM18: 0 min | AN18: 5 | AO18: 5 | AP18: 0 | AQ18: AYLA ERMAN | AU18: 0 | AV18: 0 | AW18: 297.5 | AX18: 0 | AY18: 0 | AZ18: 0 | BC18: 297.5 | BE18: Auto
A19: NEW | B19: Avlösare LSS | C19: 7 | D19: AYLA ERMAN | E19: 2022-11-13 | F19: 11:00 | G19: 16:00 | J19: 125 | L19: 19671030-2826 | M19: =IFERROR(INDEX(Admin!$AZ$3:$BA$50,MATCH(H19,Admin!$AZ$3:$AZ$53,0),2),"LäggTillAdmin") -> 0 | O19: 5 | P19: =IF(E19="","",IF(COUNTIF(Admin!$AN$4:$AN$99,E19)>0,1,WEEKDAY(E19))) -> 1 | R19: 5 | S19: 0 | T19: 0 | U19: 0 | V19: 5 | W19: 0 | X19: 0 | Y19: 0 | AB19: 0 | AC19: 0 | AD19: 297.5 | AE19: 0 | AF19: 0 | AG19: 0 | AH19: 0 | AI19: 0 | AJ19: 297.5 | AK19: 2022-11-13 | AL19: 11:0-16:0 | AM19: 0 min | AN19: 5 | AO19: 5 | AP19: 0 | AQ19: AYLA ERMAN | AU19: 0 | AV19: 0 | AW19: 297.5 | AX19: 0 | AY19: 0 | AZ19: 0 | BC19: 297.5 | BE19: Auto
A20: NEW | B20: Avlösare LSS | C20: 7 | D20: AYLA ERMAN | E20: 2022-11-20 | F20: 11:00 | G20: 16:00 | J20: 125 | L20: 19671030-2826 | M20: =IFERROR(INDEX(Admin!$AZ$3:$BA$50,MATCH(H20,Admin!$AZ$3:$AZ$53,0),2),"LäggTillAdmin") -> 0 | O20: 5 | P20: =IF(E20="","",IF(COUNTIF(Admin!$AN$4:$AN$99,E20)>0,1,WEEKDAY(E20))) -> 1 | R20: 5 | S20: 0 | T20: 0 | U20: 0 | V20: 5 | W20: 0 | X20: 0 | Y20: 0 | AB20: 0 | AC20: 0 | AD20: 297.5 | AE20: 0 | AF20: 0 | AG20: 0 | AH20: 0 | AI20: 0 | AJ20: 297.5 | AK20: 2022-11-20 | AL20: 11:0-16:0 | AM20: 0 min | AN20: 5 | AO20: 5 | AP20: 0 | AQ20: AYLA ERMAN | AU20: 0 | AV20: 0 | AW20: 297.5 | AX20: 0 | AY20: 0 | AZ20: 0 | BC20: 297.5 | BE20: Auto
A21: NEW | B21: Avlösare LSS | C21: 7 | D21: AYLA ERMAN | E21: 2022-11-27 | F21: 11:00 | G21: 16:00 | J21: 125 | L21: 19671030-2826 | M21: =IFERROR(INDEX(Admin!$AZ$3:$BA$50,MATCH(H21,Admin!$AZ$3:$AZ$53,0),2),"LäggTillAdmin") -> 0 | O21: 5 | P21: =IF(E21="","",IF(COUNTIF(Admin!$AN$4:$AN$99,E21)>0,1,WEEKDAY(E21))) -> 1 | R21: 5 | S21: 0 | T21: 0 | U21: 0 | V21: 5 | W21: 0 | X21: 0 | Y21: 0 | AB21: 0 | AC21: 0 | AD21: 297.5 | AE21: 0 | AF21: 0 | AG21: 0 | AH21: 0 | AI21: 0 | AJ21: 297.5 | AK21: 2022-11-27 | AL21: 11:0-16:0 | AM21: 0 min | AN21: 5 | AO21: 5 | AP21: 0 | AQ21: AYLA ERMAN | AU21: 0 | AV21: 0 | AW21: 297.5 | AX21: 0 | AY21: 0 | AZ21: 0 | BC21: 297.5 | BE21: Auto
A22: NEW | B22: Avlösare LSS | C22: 2 | D22: BAHIAH ABOUTAKA | E22: 2022-11-02 | F22: 15:00 | G22: 17:00 | J22: 125 | L22: 19861222-6566 | M22: =IFERROR(INDEX(Admin!$AZ$3:$BA$50,MATCH(H22,Admin!$AZ$3:$AZ$53,0),2),"LäggTillAdmin") -> 0 | O22: 2 | P22: =IF(E22="","",IF(COUNTIF(Admin!$AN$4:$AN$99,E22)>0,1,WEEKDAY(E22))) -> 4 | R22: 2 | S22: 0 | T22: 0 | U22: 0 | V22: 0 | W22: 0 | X22: 0 | Y22: 0 | AB22: 0 | AC22: 0 | AD22: 0 | AE22: 0 | AF22: 0 | AG22: 0 | AH22: 0 | AI22: 0 | AJ22: 0 | AK22: 2022-11-02 | AL22: 15:0-17:0 | AM22: 0 min | AN22: 2 | AO22: 0 | AP22: 0 | AQ22: BAHIAH ABOUTAKA | AU22: 0 | AV22: 0 | AW22: 0 | AX22: 0 | AY22: 0 | AZ22: 0 | BC22: 0 | BE22: Auto
A23: NEW | B23: Avlösare LSS | C23: 2 | D23: BAHIAH ABOUTAKA | E23: 2022-11-05 | F23: 11:00 | G23: 13:30 | J23: 125 | L23: 19861222-6566 | M23: =IFERROR(INDEX(Admin!$AZ$3:$BA$50,MATCH(H23,Admin!$AZ$3:$AZ$53,0),2),"LäggTillAdmin") -> 0 | O23: 2.5 | P23: =IF(E23="","",IF(COUNTIF(Admin!$AN$4:$AN$99,E23)>0,1,WEEKDAY(E23))) -> 7 | R23: 2.5 | S23: 0 | T23: 0 | U23: 0 | V23: 2 | W23: 0 | X23: 0 | Y23: 0 | AB23: 0 | AC23: 0 | AD23: 119 | AE23: 0 | AF23: 0 | AG23: 0 | AH23: 0 | AI23: 0 | AJ23: 119 | AK23: 2022-11-05 | AL23: 11:0-13:30 | AM23: 0 min | AN23: 2.5 | AO23: 2 | AP23: 0 | AQ23: BAHIAH ABOUTAKA | AU23: 0 | AV23: 0 | AW23: 119 | AX23: 0 | AY23: 0 | AZ23: 0 | BC23: 119 | BE23: Auto
A24: NEW | B24: Avlösare LSS | C24: 2 | D24: BAHIAH ABOUTAKA | E24: 2022-11-09 | F24: 15:00 | G24: 16:30 | J24: 125 | L24: 19861222-6566 | M24: =IFERROR(INDEX(Admin!$AZ$3:$BA$50,MATCH(H24,Admin!$AZ$3:$AZ$53,0),2),"LäggTillAdmin") -> 0 | O24: 1.5 | P24: =IF(E24="","",IF(COUNTIF(Admin!$AN$4:$AN$99,E24)>0,1,WEEKDAY(E24))) -> 4 | R24: 1.5 | S24: 0 | T24: 0 | U24: 0 | V24: 0 | W24: 0 | X24: 0 | Y24: 0 | AB24: 0 | AC24: 0 | AD24: 0 | AE24: 0 | AF24: 0 | AG24: 0 | AH24: 0 | AI24: 0 | AJ24: 0 | AK24: 2022-11-09 | AL24: 15:0-16:30 | AM24: 0 min | AN24: 1.5 | AO24: 0 | AP24: 0 | AQ24: BAHIAH ABOUTAKA | AU24: 0 | AV24: 0 | AW24: 0 | AX24: 0 | AY24: 0 | AZ24: 0 | BC24: 0 | BE24: Auto
A25: NEW | B25: Avlösare LSS | C25: 2 | D25: BAHIAH ABOUTAKA | E25: 2022-11-13 | F25: 13:00 | G25: 16:00 | J25: 125 | L25: 19861222-6566 | M25: =IFERROR(INDEX(Admin!$AZ$3:$BA$50,MATCH(H25,Admin!$AZ$3:$AZ$53,0),2),"LäggTillAdmin") -> 0 | O25: 3 | P25: =IF(E25="","",IF(COUNTIF(Admin!$AN$4:$AN$99,E25)>0,1,WEEKDAY(E25))) -> 1 | R25: 3 | S25: 0 | T25: 0 | U25: 0 | V25: 3 | W25: 0 | X25: 0 | Y25: 0 | AB25: 0 | AC25: 0 | AD25: 178.5 | AE25: 0 | AF25: 0 | AG25: 0 | AH25: 0 | AI25: 0 | AJ25: 178.5 | AK25: 2022-11-13 | AL25: 13:0-16:0 | AM25: 0 min | AN25: 3 | AO25: 3 | AP25: 0 | AQ25: BAHIAH ABOUTAKA | AU25: 0 | AV25: 0 | AW25: 178.5 | AX25: 0 | AY25: 0 | AZ25: 0 | BC25: 178.5 | BE25: Auto
A26: NEW | B26: Avlösare LSS | C26: 2 | D26: BAHIAH ABOUTAKA | E26: 2022-11-16 | F26: 17:00 | G26: 19:00 | J26: 125 | L26: 19861222-6566 | M26: =IFERROR(INDEX(Admin!$AZ$3:$BA$50,MATCH(H26,Admin!$AZ$3:$AZ$53,0),2),"LäggTillAdmin") -> 0 | O26: 2 | P26: =IF(E26="","",IF(COUNTIF(Admin!$AN$4:$AN$99,E26)>0,1,WEEKDAY(E26))) -> 4 | R26: 2 | S26: 0 | T26: 0 | U26: 0 | V26: 0 | W26: 0 | X26: 0 | Y26: 0 | AB26: 0 | AC26: 0 | AD26: 0 | AE26: 0 | AF26: 0 | AG26: 0 | AH26: 0 | AI26: 0 | AJ26: 0 | AK26: 2022-11-16 | AL26: 17:0-19:0 | AM26: 0 min | AN26: 2 | AO26: 0 | AP26: 0 | AQ26: BAHIAH ABOUTAKA | AU26: 0 | AV26: 0 | AW26: 0 | AX26: 0 | AY26: 0 | AZ26: 0 | BC26: 0 | BE26: Auto
A27: NEW | B27: Avlösare LSS | C27: 2 | D27: BAHIAH ABOUTAKA | E27: 2022-11-20 | F27: 14:00 | G27: 17:00 | J27: 125 | L27: 19861222-6566 | M27: =IFERROR(INDEX(Admin!$AZ$3:$BA$50,MATCH(H27,Admin!$AZ$3:$AZ$53,0),2),"LäggTillAdmin") -> 0 | O27: 3 | P27: =IF(E27="","",IF(COUNTIF(Admin!$AN$4:$AN$99,E27)>0,1,WEEKDAY(E27))) -> 1 | R27: 3 | S27: 0 | T27: 0 | U27: 0 | V27: 3 | W27: 0 | X27: 0 | Y27: 0 | AB27: 0 | AC27: 0 | AD27: 178.5 | AE27: 0 | AF27: 0 | AG27: 0 | AH27: 0 | AI27: 0 | AJ27: 178.5 | AK27: 2022-11-20 | AL27: 14:0-17:0 | AM27: 0 min | AN27: 3 | AO27: 3 | AP27: 0 | AQ27: BAHIAH ABOUTAKA | AU27: 0 | AV27: 0 | AW27: 178.5 | AX27: 0 | AY27: 0 | AZ27: 0 | BC27: 178.5 | BE27: Auto
A28: NEW | B28: Avlösare LSS | C28: 2 | D28: BAHIAH ABOUTAKA | E28: 2022-11-23 | F28: 17:00 | G28: 18:30 | J28: 125 | L28: 19861222-6566 | M28: =IFERROR(INDEX(Admin!$AZ$3:$BA$50,MATCH(H28,Admin!$AZ$3:$AZ$53,0),2),"LäggTillAdmin") -> 0 | O28: 1.5 | P28: =IF(E28="","",IF(COUNTIF(Admin!$AN$4:$AN$99,E28)>0,1,WEEKDAY(E28))) -> 4 | R28: 1.5 | S28: 0 | T28: 0 | U28: 0 | V28: 0 | W28: 0 | X28: 0 | Y28: 0 | AB28: 0 | AC28: 0 | AD28: 0 | AE28: 0 | AF28: 0 | AG28: 0 | AH28: 0 | AI28: 0 | AJ28: 0 | AK28: 2022-11-23 | AL28: 17:0-18:30 | AM28: 0 min | AN28: 1.5 | AO28: 0 | AP28: 0 | AQ28: BAHIAH ABOUTAKA | AU28: 0 | AV28: 0 | AW28: 0 | AX28: 0 | AY28: 0 | AZ28: 0 | BC28: 0 | BE28: Auto
A29: NEW | B29: Avlösare LSS | C29: 2 | D29: BAHIAH ABOUTAKA | E29: 2022-11-27 | F29: 14:00 | G29: 19:00 | J29: 125 | L29: 19861222-6566 | M29: =IFERROR(INDEX(Admin!$AZ$3:$BA$50,MATCH(H29,Admin!$AZ$3:$AZ$53,0),2),"LäggTillAdmin") -> 0 | O29: 5 | P29: =IF(E29="","",IF(COUNTIF(Admin!$AN$4:$AN$99,E29)>0,1,WEEKDAY(E29))) -> 1 | R29: 5 | S29: 0 | T29: 0 | U29: 0 | V29: 5 | W29: 0 | X29: 0 | Y29: 0 | AB29: 0 | AC29: 0 | AD29: 297.5 | AE29: 0 | AF29: 0 | AG29: 0 | AH29: 0 | AI29: 0 | AJ29: 297.5 | AK29: 2022-11-27 | AL29: 14:0-19:0 | AM29: 0 min | AN29: 5 | AO29: 5 | AP29: 0 | AQ29: BAHIAH ABOUTAKA | AU29: 0 | AV29: 0 | AW29: 297.5 | AX29: 0 | AY29: 0 | AZ29: 0 | BC29: 297.5 | BE29: Auto
A30: NEW | B30: Avlösare LSS | C30: 2 | D30: BAHIAH ABOUTAKA | E30: 2022-11-28 | F30: 17:00 | G30: 18:30 | J30: 125 | L30: 19861222-6566 | M30: =IFERROR(INDEX(Admin!$AZ$3:$BA$50,MATCH(H30,Admin!$AZ$3:$AZ$53,0),2),"LäggTillAdmin") -> 0 | O30: 1.5 | P30: =IF(E30="","",IF(COUNTIF(Admin!$AN$4:$AN$99,E30)>0,1,WEEKDAY(E30))) -> 2 | R30: 1.5 | S30: 0 | T30: 0 | U30: 0 | V30: 0 | W30: 0 | X30: 0 | Y30: 0 | AB30: 0 | AC30: 0 | AD30: 0 | AE30: 0 | AF30: 0 | AG30: 0 | AH30: 0 | AI30: 0 | AJ30: 0 | AK30: 2022-11-28 | AL30: 17:0-18:30 | AM30: 0 min | AN30: 1.5 | AO30: 0 | AP30: 0 | AQ30: BAHIAH ABOUTAKA | AU30: 0 | AV30: 0 | AW30: 0 | AX30: 0 | AY30: 0 | AZ30: 0 | BC30: 0 | BE30: Auto
A31: NEW | B31: Avlösare LSS | C31: 2 | D31: BAHIAH ABOUTAKA | E31: 2022-11-29 | F31: 17:00 | G31: 19:00 | J31: 125 | L31: 19861222-6566 | M31: =IFERROR(INDEX(Admin!$AZ$3:$BA$50,MATCH(H31,Admin!$AZ$3:$AZ$53,0),2),"LäggTillAdmin") -> 0 | O31: 2 | P31: =IF(E31="","",IF(COUNTIF(Admin!$AN$4:$AN$99,E31)>0,1,WEEKDAY(E31))) -> 3 | R31: 2 | S31: 0 | T31: 0 | U31: 0 | V31: 0 | W31: 0 | X31: 0 | Y31: 0 | AB31: 0 | AC31: 0 | AD31: 0 | AE31: 0 | AF31: 0 | AG31: 0 | AH31: 0 | AI31: 0 | AJ31: 0 | AK31: 2022-11-29 | AL31: 17:0-19:0 | AM31: 0 min | AN31: 2 | AO31: 0 | AP31: 0 | AQ31: BAHIAH ABOUTAKA | AU31: 0 | AV31: 0 | AW31: 0 | AX31: 0 | AY31: 0 | AZ31: 0 | BC31: 0 | BE31: Auto
A32: NEW | B32: Avlösare LSS | C32: T1 | D32: BESIM IBISHI | E32: 2022-11-05 | F32: 10:00 | G32: 16:00 | J32: 125 | L32: 19911027-0098 | M32: =IFERROR(INDEX(Admin!$AZ$3:$BA$50,MATCH(H32,Admin!$AZ$3:$AZ$53,0),2),"LäggTillAdmin") -> 0 | O32: 6 | P32: =IF(E32="","",IF(COUNTIF(Admin!$AN$4:$AN$99,E32)>0,1,WEEKDAY(E32))) -> 7 | R32: 6 | S32: 0 | T32: 0 | U32: 0 | V32: 6 | W32: 0 | X32: 0 | Y32: 0 | AB32: 0 | AC32: 0 | AD32: 357 | AE32: 0 | AF32: 0 | AG32: 0 | AH32: 0 | AI32: 0 | AJ32: 357 | AK32: 2022-11-05 | AL32: 10:0-16:0 | AM32: 0 min | AN32: 6 | AO32: 6 | AP32: 0 | AQ32: BESIM IBISHI | AU32: 0 | AV32: 0 | AW32: 357 | AX32: 0 | AY32: 0 | AZ32: 0 | BC32: 357 | BE32: Auto
A33: NEW | B33: Avlösare LSS | C33: T1 | D33: BESIM IBISHI | E33: 2022-11-06 | F33: 15:30 | G33: 19:30 | J33: 125 | L33: 19911027-0098 | M33: =IFERROR(INDEX(Admin!$AZ$3:$BA$50,MATCH(H33,Admin!$AZ$3:$AZ$53,0),2),"LäggTillAdmin") -> 0 | O33: 4 | P33: =IF(E33="","",IF(COUNTIF(Admin!$AN$4:$AN$99,E33)>0,1,WEEKDAY(E33))) -> 1 | R33: 4 | S33: 0 | T33: 0 | U33: 0 | V33: 4 | W33: 0 | X33: 0 | Y33: 0 | AB33: 0 | AC33: 0 | AD33: 238 | AE33: 0 | AF33: 0 | AG33: 0 | AH33: 0 | AI33: 0 | AJ33: 238 | AK33: 2022-11-06 | AL33: 15:30-19:30 | AM33: 0 min | AN33: 4 | AO33: 4 | AP33: 0 | AQ33: BESIM IBISHI | AU33: 0 | AV33: 0 | AW33: 238 | AX33: 0 | AY33: 0 | AZ33: 0 | BC33: 238 | BE33: Auto
A34: NEW | B34: Avlösare LSS | C34: T1 | D34: BESIM IBISHI | E34: 2022-11-11 | F34: 17:00 | G34: 21:00 | J34: 125 | L34: 19911027-0098 | M34: =IFERROR(INDEX(Admin!$AZ$3:$BA$50,MATCH(H34,Admin!$AZ$3:$AZ$53,0),2),"LäggTillAdmin") -> 0 | O34: 4 | P34: =IF(E34="","",IF(COUNTIF(Admin!$AN$4:$AN$99,E34)>0,1,WEEKDAY(E34))) -> 6 | R34: 4 | S34: 0 | T34: 0 | U34: 0 | V34: 2 | W34: 0 | X34: 0 | Y34: 0 | AB34: 0 | AC34: 0 | AD34: 119 | AE34: 0 | AF34: 0 | AG34: 0 | AH34: 0 | AI34: 0 | AJ34: 119 | AK34: 2022-11-11 | AL34: 17:0-21:0 | AM34: 0 min | AN34: 4 | AO34: 2 | AP34: 0 | AQ34: BESIM IBISHI | AU34: 0 | AV34: 0 | AW34: 119 | AX34: 0 | AY34: 0 | AZ34: 0 | BC34: 119 | BE34: Auto
A35: NEW | B35: Avlösare LSS | C35: T1 | D35: BESIM IBISHI | E35: 2022-11-12 | F35: 12:00 | G35: 16:00 | J35: 125 | L35: 19911027-0098 | M35: =IFERROR(INDEX(Admin!$AZ$3:$BA$50,MATCH(H35,Admin!$AZ$3:$AZ$53,0),2),"LäggTillAdmin") -> 0 | O35: 4 | P35: =IF(E35="","",IF(COUNTIF(Admin!$AN$4:$AN$99,E35)>0,1,WEEKDAY(E35))) -> 7 | R35: 4 | S35: 0 | T35: 0 | U35: 0 | V35: 4 | W35: 0 | X35: 0 | Y35: 0 | AB35: 0 | AC35: 0 | AD35: 238 | AE35: 0 | AF35: 0 | AG35: 0 | AH35: 0 | AI35: 0 | AJ35: 238 | AK35: 2022-11-12 | AL35: 12:0-16:0 | AM35: 0 min | AN35: 4 | AO35: 4 | AP35: 0 | AQ35: BESIM IBISHI | AU35: 0 | AV35: 0 | AW35: 238 | AX35: 0 | AY35: 0 | AZ35: 0 | BC35: 238 | BE35: Auto
A36: NEW | B36: Avlösare LSS | C36: T1 | D36: BESIM IBISHI | E36: 2022-11-13 | F36: 17:00 | G36: 20:00 | J36: 125 | L36: 19911027-0098 | M36: =IFERROR(INDEX(Admin!$AZ$3:$BA$50,MATCH(H36,Admin!$AZ$3:$AZ$53,0),2),"LäggTillAdmin") -> 0 | O36: 3 | P36: =IF(E36="","",IF(COUNTIF(Admin!$AN$4:$AN$99,E36)>0,1,WEEKDAY(E36))) -> 1 | R36: 3 | S36: 0 | T36: 0 | U36: 0 | V36: 3 | W36: 0 | X36: 0 | Y36: 0 | AB36: 0 | AC36: 0 | AD36: 178.5 | AE36: 0 | AF36: 0 | AG36: 0 | AH36: 0 | AI36: 0 | AJ36: 178.5 | AK36: 2022-11-13 | AL36: 17:0-20:0 | AM36: 0 min | AN36: 3 | AO36: 3 | AP36: 0 | AQ36: BESIM IBISHI | AU36: 0 | AV36: 0 | AW36: 178.5 | AX36: 0 | AY36: 0 | AZ36: 0 | BC36: 178.5 | BE36: Auto
A37: NEW | B37: Avlösare LSS | C37: T1 | D37: BESIM IBISHI | E37: 2022-11-26 | F37: 17:00 | G37: 20:00 | J37: 125 | L37: 19911027-0098 | M37: =IFERROR(INDEX(Admin!$AZ$3:$BA$50,MATCH(H37,Admin!$AZ$3:$AZ$53,0),2),"LäggTillAdmin") -> 0 | O37: 3 | P37: =IF(E37="","",IF(COUNTIF(Admin!$AN$4:$AN$99,E37)>0,1,WEEKDAY(E37))) -> 7 | R37: 3 | S37: 0 | T37: 0 | U37: 0 | V37: 3 | W37: 0 | X37: 0 | Y37: 0 | AB37: 0 | AC37: 0 | AD37: 178.5 | AE37: 0 | AF37: 0 | AG37: 0 | AH37: 0 | AI37: 0 | AJ37: 178.5 | AK37: 2022-11-26 | AL37: 17:0-20:0 | AM37: 0 min | AN37: 3 | AO37: 3 | AP37: 0 | AQ37: BESIM IBISHI | AU37: 0 | AV37: 0 | AW37: 178.5 | AX37: 0 | AY37: 0 | AZ37: 0 | BC37: 178.5 | BE37: Auto
A38: NEW | B38: Avlösare LSS | C38: T1 | D38: BESIM IBISHI | E38: 2022-11-27 | F38: 18:00 | G38: 21:00 | J38: 125 | L38: 19911027-0098 | M38: =IFERROR(INDEX(Admin!$AZ$3:$BA$50,MATCH(H38,Admin!$AZ$3:$AZ$53,0),2),"LäggTillAdmin") -> 0 | O38: 3 | P38: =IF(E38="","",IF(COUNTIF(Admin!$AN$4:$AN$99,E38)>0,1,WEEKDAY(E38))) -> 1 | R38: 3 | S38: 0 | T38: 0 | U38: 0 | V38: 3 | W38: 0 | X38: 0 | Y38: 0 | AB38: 0 | AC38: 0 | AD38: 178.5 | AE38: 0 | AF38: 0 | AG38: 0 | AH38: 0 | AI38: 0 | AJ38: 178.5 | AK38: 2022-11-27 | AL38: 18:0-21:0 | AM38: 0 min | AN38: 3 | AO38: 3 | AP38: 0 | AQ38: BESIM IBISHI | AU38: 0 | AV38: 0 | AW38: 178.5 | AX38: 0 | AY38: 0 | AZ38: 0 | BC38: 178.5 | BE38: Auto
A39: NEW | B39: Avlösare LSS | C39: T1 | D39: BESIM IBISHI | E39: 2022-11-27 | F39: 08:00 | G39: 11:00 | J39: 125 | L39: 19911027-0098 | M39: =IFERROR(INDEX(Admin!$AZ$3:$BA$50,MATCH(H39,Admin!$AZ$3:$AZ$53,0),2),"LäggTillAdmin") -> 0 | O39: 3 | P39: =IF(E39="","",IF(COUNTIF(Admin!$AN$4:$AN$99,E39)>0,1,WEEKDAY(E39))) -> 1 | R39: 3 | S39: 0 | T39: 0 | U39: 0 | V39: 3 | W39: 0 | X39: 0 | Y39: 0 | AB39: 0 | AC39: 0 | AD39: 178.5 | AE39: 0 | AF39: 0 | AG39: 0 | AH39: 0 | AI39: 0 | AJ39: 178.5 | AK39: 2022-11-27 | AL39: 8:0-11:0 | AM39: 0 min | AN39: 3 | AO39: 3 | AP39: 0 | AQ39: BESIM IBISHI | AU39: 0 | AV39: 0 | AW39: 178.5 | AX39: 0 | AY39: 0 | AZ39: 0 | BC39: 178.5 | BE39: Auto
A40: NEW | B40: Avlösare LSS | C40: 1 | D40: BILJANA DAMNJANOVIC | E40: 2022-11-02 | F40: 17:00 | G40: 19:00 | J40: 125 | L40: 19770827-6121 | M40: =IFERROR(INDEX(Admin!$AZ$3:$BA$50,MATCH(H40,Admin!$AZ$3:$AZ$53,0),2),"LäggTillAdmin") -> 0 | O40: 2 | P40: =IF(E40="","",IF(COUNTIF(Admin!$AN$4:$AN$99,E40)>0,1,WEEKDAY(E40))) -> 4 | R40: 2 | S40: 0 | T40: 0 | U40: 0 | V40: 0 | W40: 0 | X40: 0 | Y40: 0 | AB40: 0 | AC40: 0 | AD40: 0 | AE40: 0 | AF40: 0 | AG40: 0 | AH40: 0 | AI40: 0 | AJ40: 0 | AK40: 2022-11-02 | AL40: 17:0-19:0 | AM40: 0 min | AN40: 2 | AO40: 0 | AP40: 0 | AQ40: BILJANA DAMNJANOVIC | AU40: 0 | AV40: 0 | AW40: 0 | AX40: 0 | AY40: 0 | AZ40: 0 | BC40: 0 | BE40: Auto
